Workbook

Sheet Dependientes (hidden)
A1: Depto | B1: Dpto_Nom | C1: Mpio | D1: Municipio | E1: Mpio_Nom | F1: Llave | G1: Rango_ibc | H1: Cot_Ene | I1: Ing_Ene | J1: Ret_Ene | K1: Susp_Ene | L1: Vaca_Ene | M1: Cot_Feb | N1: Ing_Feb | O1: Ret_Feb | P1: Susp_Feb | Q1: Vaca_Feb | R1: Cot_Mar | S1: Ing_Mar | T1: Ret_Mar | U1: Susp_Mar | V1: Vaca_Mar | W1: Cot_Abr | X1: Ing_Abr | Y1: Ret_Abr | Z1: Susp_Abr | AA1: Vaca_Abr | AB1: Cot_May | AC1: Ing_May | AD1: Ret_May | AE1: Susp_May | AF1: Vaca_May | AG1: Cot_Jun | AH1: Ing_Jun | AI1: Ret_Jun | AJ1: Susp_Jun | AK1: Vaca_Jun | AL1: Cot_Jul | AM1: Ing_Jul | AN1: Ret_Jul | AO1: Susp_Jul | AP1: Vaca_Jul | AQ1: Cot_Ago | AR1: Ing_Ago | AS1: Ret_Ago | AT1: Susp_Ago | AU1: Vaca_Ago | AV1: Cot_Sep | AW1: Ing_Sep | AX1: Ret_Sep | AY1: Susp_Sep | AZ1: Vaca_Sep | BA1: Cot_Oct | BB1: Ing_Oct | BC1: Ret_Oct | BD1: Susp_Oct | BE1: Vaca_Oct | BT1: . | BU1: =A1 -> Depto | BV1: =B1 -> Dpto_Nom | BW1: Mpio | BX1: Municipio | BY1: Mpio_Nom | BZ1: Llave | CA1: Rango_ibc | CB1: Cot_Ene | CC1: Ing_Ene | CD1: Ret_Ene | CE1: Susp_Ene | CF1: Vaca_Ene | CG1: Cot_Feb | CH1: Ing_Feb | CI1: Ret_Feb | CJ1: Susp_Feb | CK1: Vaca_Feb | CL1: Cot_Mar | CM1: Ing_Mar | CN1: Ret_Mar | CO1: Susp_Mar | CP1: Vaca_Mar | CQ1: Cot_Abr | CR1: Ing_Abr | CS1: Ret_Abr | CT1: Susp_Abr | CU1: Vaca_Abr | CV1: Cot_May | CW1: Ing_May | CX1: Ret_May | CY1: Susp_May | CZ1: Vaca_May | DA1: Cot_Jun | DB1: Ing_Jun | DC1: Ret_Jun | DD1: Susp_Jun | DE1: Vaca_Jun | DF1: Cot_Jul | DG1: Ing_Jul | DH1: Ret_Jul | DI1: Susp_Jul | DJ1: Vaca_Jul | DK1: Cot_Ago | DL1: Ing_Ago | DM1: Ret_Ago | DN1: Susp_Ago | DO1: Vaca_Ago | DP1: Cot_Sep | DQ1: Ing_Sep | DR1: Ret_Sep | DS1: Susp_Sep | DT1: Vaca_Sep | DU1: Cot_Oct | DV1: Ing_Oct | DW1: Ret_Oct | DX1: Susp_Oct | DY1: Vaca_Oct
A2: $null$ | B2: Sin Info | C2: $null$ | D2: Sin Info | E2: Sin Info | F2: Sin Info1 | G2: 1 | H2: 1039 | I2: 557 | J2: 497 | K2: 16 | L2: 43 | M2: 1291 | N2: 599 | O2: 724 | P2: 36 | Q2: 43 | R2: 993 | S2: 264 | T2: 706 | U2: 48 | V2: 12 | W2: 512 | X2: 155 | Y2: 138 | Z2: 55 | AA2: 31 | AB2: 533 | AC2: 180 | AD2: 248 | AE2: 25 | AF2: 21 | AG2: 547 | AH2: 148 | AI2: 215 | AJ2: 24 | AK2: 44 | AL2: 603 | AM2: 254 | AN2: 280 | AO2: 27 | AP2: 49 | AQ2: 563 | AR2: 231 | AS2: 280 | AT2: 10 | AU2: 18 | AV2: =+IFERROR(VLOOKUP($F2,[1]Hoja1!$F$2:$L$4485,3,0),0) -> 591 | AW2: =+IFERROR(VLOOKUP($F2,[1]Hoja1!$F$2:$L$4485,4,0),0) -> 200 | AX2: =+IFERROR(VLOOKUP($F2,[1]Hoja1!$F$2:$L$4485,5,0),0) -> 230 | AY2: =+IFERROR(VLOOKUP($F2,[1]Hoja1!$F$2:$L$4485,6,0),0) -> 8 | AZ2: =+IFERROR(VLOOKUP($F2,[1]Hoja1!$F$2:$L$4485,7,0),0) -> 38 | BA2: =+IFERROR(VLOOKUP($F2,[2]Hoja1!$F$2:$L$4485,3,0),0) -> 547 | BB2: =+IFERROR(VLOOKUP($F2,[2]Hoja1!$F$2:$L$4485,4,0),0) -> 166 | BC2: =+IFERROR(VLOOKUP($F2,[2]Hoja1!$F$2:$L$4485,5,0),0) -> 214 | BD2: =+IFERROR(VLOOKUP($F2,[2]Hoja1!$F$2:$L$4485,6,0),0) -> 10 | BE2: =+IFERROR(VLOOKUP($F2,[2]Hoja1!$F$2:$L$4485,7,0),0) -> 22 | BU2: =+_xlfn._xlws.FILTER(A1:BE4485,B1:B4485=Reporte!O4,"") -> 19 | BV2: CAUCA | BW2: 001 | BX2: 19001 | BY2: POPAYÁN | BZ2: 190011 | CA2: 1 | CB2: 26539 | CC2: 6949 | CD2: 4013 | CE2: 609 | CF2: 2792 | CG2: 25079 | CH2: 5305 | CI2: 3596 | CJ2: 625 | CK2: 1007 | CL2: 26348 | CM2: 3521 | CN2: 6021 | CO2: 1159 | CP2: 4384 | CQ2: 25655 | CR2: 1549 | CS2: 2670 | CT2: 3071 | CU2: 7734 | CV2: 22457 | CW2: 3203 | CX2: 2227 | CY2: 1660 | CZ2: 1967 | DA2: 22513 | DB2: 3269 | DC2: 3196 | DD2: 902 | DE2: 1043 | DF2: 23124 | DG2: 3571 | DH2: 3278 | DI2: 677 | DJ2: 1056 | DK2: 22837 | DL2: 3495 | DM2: 3542 | DN2: 629 | DO2: 927 | DP2: 23459 | DQ2: 3775 | DR2: 3834 | DS2: 689 | DT2: 990 | DU2: 22521 | DV2: 3752 | DW2: 3106 | DX2: 607 | DY2: 857
A3: $null$ | B3: Sin Info | C3: $null$ | D3: Sin Info | E3: Sin Info | F3: Sin Info2 | G3: 2 | H3: 195 | I3: 12 | J3: 9 | K3: 2 | L3: 5 | M3: 234 | N3: 13 | O3: 8 | P3: 3 | Q3: 1 | R3: 134 | S3: 31 | T3: 22 | U3: 7 | V3: 4 | W3: 107 | X3: 1 | Y3: 2 | Z3: 1 | AA3: 0 | AB3: 135 | AC3: 7 | AD3: 10 | AE3: 0 | AF3: 35 | AG3: 103 | AH3: 7 | AI3: 8 | AJ3: 7 | AK3: 0 | AL3: 103 | AM3: 17 | AN3: 6 | AO3: 0 | AP3: 0 | AQ3: 92 | AR3: 4 | AS3: 13 | AT3: 2 | AU3: 1 | AV3: =+IFERROR(VLOOKUP($F3,[1]Hoja1!$F$2:$L$4485,3,0),0) -> 112 | AW3: =+IFERROR(VLOOKUP($F3,[1]Hoja1!$F$2:$L$4485,4,0),0) -> 14 | AX3: =+IFERROR(VLOOKUP($F3,[1]Hoja1!$F$2:$L$4485,5,0),0) -> 14 | AY3: =+IFERROR(VLOOKUP($F3,[1]Hoja1!$F$2:$L$4485,6,0),0) -> 25 | AZ3: =+IFERROR(VLOOKUP($F3,[1]Hoja1!$F$2:$L$4485,7,0),0) -> 0 | BA3: =+IFERROR(VLOOKUP($F3,[2]Hoja1!$F$2:$L$4485,3,0),0) -> 72 | BB3: =+IFERROR(VLOOKUP($F3,[2]Hoja1!$F$2:$L$4485,4,0),0) -> 6 | BC3: =+IFERROR(VLOOKUP($F3,[2]Hoja1!$F$2:$L$4485,5,0),0) -> 2 | BD3: =+IFERROR(VLOOKUP($F3,[2]Hoja1!$F$2:$L$4485,6,0),0) -> 3 | BE3: =+IFERROR(VLOOKUP($F3,[2]Hoja1!$F$2:$L$4485,7,0),0) -> 0 | BU3: 19 | BV3: CAUCA | BW3: 001 | BX3: 19001 | BY3: POPAYÁN | BZ3: 190012 | CA3: 2 | CB3: 25188 | CC3: 2007 | CD3: 818 | CE3: 1103 | CF3: 3502 | CG3: 26890 | CH3: 1242 | CI3: 670 | CJ3: 1452 | CK3: 1179 | CL3: 25332 | CM3: 594 | CN3: 1044 | CO3: 1246 | CP3: 3081 | CQ3: 23351 | CR3: 575 | CS3: 878 | CT3: 674 | CU3: 4968 | CV3: 24457 | CW3: 453 | CX3: 796 | CY3: 1344 | CZ3: 1784 | DA3: 25375 | DB3: 534 | DC3: 918 | DD3: 817 | DE3: 1286 | DF3: 24680 | DG3: 578 | DH3: 567 | DI3: 742 | DJ3: 1226 | DK3: 25999 | DL3: 1021 | DM3: 612 | DN3: 654 | DO3: 1359 | DP3: 25620 | DQ3: 705 | DR3: 609 | DS3: 700 | DT3: 1081 | DU3: 25824 | DV3: 603 | DW3: 690 | DX3: 908 | DY3: 1116
A4: $null$ | B4: Sin Info | C4: $null$ | D4: Sin Info | E4: Sin Info | F4: Sin Info3 | G4: 3 | H4: 43 | I4: 10 | J4: 10 | K4: 3 | L4: 2 | M4: 48 | N4: 12 | O4: 12 | P4: 3 | Q4: 0 | R4: 19 | S4: 8 | T4: 10 | U4: 2 | V4: 6 | W4: 10 | X4: 3 | Y4: 1 | Z4: 1 | AA4: 1 | AB4: 17 | AC4: 7 | AD4: 5 | AE4: 4 | AF4: 1 | AG4: 14 | AH4: 3 | AI4: 3 | AJ4: 1 | AK4: 0 | AL4: 14 | AM4: 3 | AN4: 6 | AO4: 0 | AP4: 0 | AQ4: 16 | AR4: 7 | AS4: 8 | AT4: 1 | AU4: 0 | AV4: =+IFERROR(VLOOKUP($F4,[1]Hoja1!$F$2:$L$4485,3,0),0) -> 11 | AW4: =+IFERROR(VLOOKUP($F4,[1]Hoja1!$F$2:$L$4485,4,0),0) -> 3 | AX4: =+IFERROR(VLOOKUP($F4,[1]Hoja1!$F$2:$L$4485,5,0),0) -> 3 | AY4: =+IFERROR(VLOOKUP($F4,[1]Hoja1!$F$2:$L$4485,6,0),0) -> 0 | AZ4: =+IFERROR(VLOOKUP($F4,[1]Hoja1!$F$2:$L$4485,7,0),0) -> 0 | BA4: =+IFERROR(VLOOKUP($F4,[2]Hoja1!$F$2:$L$4485,3,0),0) -> 11 | BB4: =+IFERROR(VLOOKUP($F4,[2]Hoja1!$F$2:$L$4485,4,0),0) -> 2 | BC4: =+IFERROR(VLOOKUP($F4,[2]Hoja1!$F$2:$L$4485,5,0),0) -> 2 | BD4: =+IFERROR(VLOOKUP($F4,[2]Hoja1!$F$2:$L$4485,6,0),0) -> 0 | BE4: =+IFERROR(VLOOKUP($F4,[2]Hoja1!$F$2:$L$4485,7,0),0) -> 0 | BU4: 19 | BV4: CAUCA | BW4: 001 | BX4: 19001 | BY4: POPAYÁN | BZ4: 190013 | CA4: 3 | CB4: 9883 | CC4: 360 | CD4: 288 | CE4: 553 | CF4: 1864 | CG4: 11569 | CH4: 691 | CI4: 257 | CJ4: 353 | CK4: 677 | CL4: 11348 | CM4: 118 | CN4: 154 | CO4: 443 | CP4: 1453 | CQ4: 9363 | CR4: 30 | CS4: 143 | CT4: 150 | CU4: 2276 | CV4: 11137 | CW4: 260 | CX4: 397 | CY4: 320 | CZ4: 1199 | DA4: 10861 | DB4: 119 | DC4: 169 | DD4: 257 | DE4: 774 | DF4: 11556 | DG4: 111 | DH4: 239 | DI4: 302 | DJ4: 799 | DK4: 11949 | DL4: 252 | DM4: 154 | DN4: 258 | DO4: 874 | DP4: 11520 | DQ4: 169 | DR4: 154 | DS4: 260 | DT4: 751 | DU4: 11794 | DV4: 114 | DW4: 162 | DX4: 249 | DY4: 869
A5: $null$ | B5: Sin Info | C5: $null$ | D5: Sin Info | E5: Sin Info | F5: Sin Info4 | G5: 4 | H5: 49 | I5: 5 | J5: 5 | K5: 19 | L5: 6 | M5: 44 | N5: 2 | O5: 3 | P5: 20 | Q5: 1 | R5: 11 | S5: 1 | T5: 1 | U5: 8 | V5: 1 | W5: 11 | X5: 0 | Y5: 0 | Z5: 9 | AA5: 0 | AB5: 9 | AC5: 0 | AD5: 0 | AE5: 8 | AF5: 0 | AG5: 9 | AH5: 0 | AI5: 0 | AJ5: 8 | AK5: 0 | AL5: 14 | AM5: 3 | AN5: 3 | AO5: 8 | AP5: 0 | AQ5: 13 | AR5: 2 | AS5: 1 | AT5: 8 | AU5: 1 | AV5: =+IFERROR(VLOOKUP($F5,[1]Hoja1!$F$2:$L$4485,3,0),0) -> 12 | AW5: =+IFERROR(VLOOKUP($F5,[1]Hoja1!$F$2:$L$4485,4,0),0) -> 1 | AX5: =+IFERROR(VLOOKUP($F5,[1]Hoja1!$F$2:$L$4485,5,0),0) -> 1 | AY5: =+IFERROR(VLOOKUP($F5,[1]Hoja1!$F$2:$L$4485,6,0),0) -> 8 | AZ5: =+IFERROR(VLOOKUP($F5,[1]Hoja1!$F$2:$L$4485,7,0),0) -> 1 | BA5: =+IFERROR(VLOOKUP($F5,[2]Hoja1!$F$2:$L$4485,3,0),0) -> 11 | BB5: =+IFERROR(VLOOKUP($F5,[2]Hoja1!$F$2:$L$4485,4,0),0) -> 0 | BC5: =+IFERROR(VLOOKUP($F5,[2]Hoja1!$F$2:$L$4485,5,0),0) -> 0 | BD5: =+IFERROR(VLOOKUP($F5,[2]Hoja1!$F$2:$L$4485,6,0),0) -> 8 | BE5: =+IFERROR(VLOOKUP($F5,[2]Hoja1!$F$2:$L$4485,7,0),0) -> 1 | BU5: 19 | BV5: CAUCA | BW5: 001 | BX5: 19001 | BY5: POPAYÁN | BZ5: 190014 | CA5: 4 | CB5: 1622 | CC5: 31 | CD5: 57 | CE5: 27 | CF5: 339 | CG5: 1856 | CH5: 13 | CI5: 44 | CJ5: 28 | CK5: 91 | CL5: 1816 | CM5: 5 | CN5: 36 | CO5: 24 | CP5: 185 | CQ5: 1456 | CR5: 7 | CS5: 33 | CT5: 15 | CU5: 221 | CV5: 1668 | CW5: 4 | CX5: 22 | CY5: 15 | CZ5: 98 | DA5: 1921 | DB5: 11 | DC5: 35 | DD5: 36 | DE5: 91 | DF5: 1806 | DG5: 15 | DH5: 28 | DI5: 35 | DJ5: 107 | DK5: 1981 | DL5: 16 | DM5: 23 | DN5: 71 | DO5: 143 | DP5: 1920 | DQ5: 13 | DR5: 28 | DS5: 56 | DT5: 91 | DU5: 1996 | DV5: 12 | DW5: 23 | DX5: 71 | DY5: 118
A6: 05 | B6: ANTIOQUIA | C6: 001 | D6: 05001 | E6: MEDELLÍN | F6: 050011 | G6: 1 | H6: 449351 | I6: 120978 | J6: 67625 | K6: 11810 | L6: 54128 | M6: 408550 | N6: 77728 | O6: 64926 | P6: 8426 | Q6: 17970 | R6: 469654 | S6: 52835 | T6: 96232 | U6: 26397 | V6: 118254 | W6: 473259 | X6: 27632 | Y6: 51316 | Z6: 49870 | AA6: 183762 | AB6: 397953 | AC6: 48815 | AD6: 47343 | AE6: 30620 | AF6: 43313 | AG6: 374754 | AH6: 50287 | AI6: 51210 | AJ6: 16388 | AK6: 19387 | AL6: 379459 | AM6: 54573 | AN6: 51379 | AO6: 15647 | AP6: 22864 | AQ6: 372775 | AR6: 52820 | AS6: 48554 | AT6: 13765 | AU6: 19223 | AV6: =+IFERROR(VLOOKUP($F6,[1]Hoja1!$F$2:$L$4485,3,0),0) -> 377514 | AW6: =+IFERROR(VLOOKUP($F6,[1]Hoja1!$F$2:$L$4485,4,0),0) -> 65313 | AX6: =+IFERROR(VLOOKUP($F6,[1]Hoja1!$F$2:$L$4485,5,0),0) -> 53221 | AY6: =+IFERROR(VLOOKUP($F6,[1]Hoja1!$F$2:$L$4485,6,0),0) -> 11174 | AZ6: =+IFERROR(VLOOKUP($F6,[1]Hoja1!$F$2:$L$4485,7,0),0) -> 13750 | BA6: =+IFERROR(VLOOKUP($F6,[2]Hoja1!$F$2:$L$4485,3,0),0) -> 377381 | BB6: =+IFERROR(VLOOKUP($F6,[2]Hoja1!$F$2:$L$4485,4,0),0) -> 67338 | BC6: =+IFERROR(VLOOKUP($F6,[2]Hoja1!$F$2:$L$4485,5,0),0) -> 52091 | BD6: =+IFERROR(VLOOKUP($F6,[2]Hoja1!$F$2:$L$4485,6,0),0) -> 9074 | BE6: =+IFERROR(VLOOKUP($F6,[2]Hoja1!$F$2:$L$4485,7,0),0) -> 13400 | BU6: 19 | BV6: CAUCA | BW6: 022 | BX6: 19022 | BY6: ALMAGUER | BZ6: 190221 | CA6: 1 | CB6: 902 | CC6: 43 | CD6: 75 | CE6: 1 | CF6: 1 | CG6: 877 | CH6: 24 | CI6: 66 | CJ6: 0 | CK6: 1 | CL6: 693 | CM6: 9 | CN6: 330 | CO6: 0 | CP6: 0 | CQ6: 663 | CR6: 59 | CS6: 69 | CT6: 1 | CU6: 1 | CV6: 1526 | CW6: 293 | CX6: 241 | CY6: 1 | CZ6: 0 | DA6: 760 | DB6: 23 | DC6: 137 | DD6: 1 | DE6: 0 | DF6: 768 | DG6: 14 | DH6: 58 | DI6: 0 | DJ6: 0 | DK6: 890 | DL6: 31 | DM6: 98 | DN6: 0 | DO6: 0 | DP6: 846 | DQ6: 64 | DR6: 85 | DS6: 12 | DT6: 0 | DU6: 837 | DV6: 51 | DW6: 75 | DX6: 0 | DY6: 1
A7: 05 | B7: ANTIOQUIA | C7: 001 | D7: 05001 | E7: MEDELLÍN | F7: 050012 | G7: 2 | H7: 406968 | I7: 18434 | J7: 14616 | K7: 13307 | L7: 69076 | M7: 439220 | N7: 14384 | O7: 12739 | P7: 9607 | Q7: 22179 | R7: 378304 | S7: 9760 | T7: 16574 | U7: 12490 | V7: 90618 | W7: 325433 | X7: 3683 | Y7: 7135 | Z7: 18602 | AA7: 87207 | AB7: 378528 | AC7: 4577 | AD7: 8370 | AE7: 17768 | AF7: 31774 | AG7: 395110 | AH7: 8714 | AI7: 9434 | AJ7: 11537 | AK7: 22624 | AL7: 390961 | AM7: 8925 | AN7: 8597 | AO7: 11067 | AP7: 23679 | AQ7: 395613 | AR7: 8245 | AS7: 9969 | AT7: 10811 | AU7: 20942 | AV7: =+IFERROR(VLOOKUP($F7,[1]Hoja1!$F$2:$L$4485,3,0),0) -> 408297 | AW7: =+IFERROR(VLOOKUP($F7,[1]Hoja1!$F$2:$L$4485,4,0),0) -> 11668 | AX7: =+IFERROR(VLOOKUP($F7,[1]Hoja1!$F$2:$L$4485,5,0),0) -> 9617 | AY7: =+IFERROR(VLOOKUP($F7,[1]Hoja1!$F$2:$L$4485,6,0),0) -> 10000 | AZ7: =+IFERROR(VLOOKUP($F7,[1]Hoja1!$F$2:$L$4485,7,0),0) -> 18171 | BA7: =+IFERROR(VLOOKUP($F7,[2]Hoja1!$F$2:$L$4485,3,0),0) -> 415779 | BB7: =+IFERROR(VLOOKUP($F7,[2]Hoja1!$F$2:$L$4485,4,0),0) -> 10552 | BC7: =+IFERROR(VLOOKUP($F7,[2]Hoja1!$F$2:$L$4485,5,0),0) -> 9774 | BD7: =+IFERROR(VLOOKUP($F7,[2]Hoja1!$F$2:$L$4485,6,0),0) -> 10198 | BE7: =+IFERROR(VLOOKUP($F7,[2]Hoja1!$F$2:$L$4485,7,0),0) -> 21165 | BU7: 19 | BV7: CAUCA | BW7: 022 | BX7: 19022 | BY7: ALMAGUER | BZ7: 190222 | CA7: 2 | CB7: 16 | CC7: 1 | CD7: 0 | CE7: 0 | CF7: 3 | CG7: 16 | CH7: 1 | CI7: 1 | CJ7: 0 | CK7: 0 | CL7: 21 | CM7: 0 | CN7: 0 | CO7: 0 | CP7: 0 | CQ7: 19 | CR7: 0 | CS7: 1 | CT7: 0 | CU7: 1 | CV7: 18 | CW7: 0 | CX7: 0 | CY7: 1 | CZ7: 0 | DA7: 17 | DB7: 0 | DC7: 1 | DD7: 1 | DE7: 0 | DF7: 17 | DG7: 0 | DH7: 0 | DI7: 1 | DJ7: 0 | DK7: 26 | DL7: 1 | DM7: 3 | DN7: 0 | DO7: 0 | DP7: 23 | DQ7: 0 | DR7: 1 | DS7: 0 | DT7: 1 | DU7: 27 | DV7: 1 | DW7: 0 | DX7: 0 | DY7: 0
A8: 05 | B8: ANTIOQUIA | C8: 001 | D8: 05001 | E8: MEDELLÍN | F8: 050013 | G8: 3 | H8: 180069 | I8: 4199 | J8: 5011 | K8: 2463 | L8: 47624 | M8: 193520 | N8: 3940 | O8: 4468 | P8: 1567 | Q8: 12762 | R8: 177358 | S8: 3026 | T8: 4994 | U8: 2213 | V8: 38302 | W8: 155484 | X8: 910 | Y8: 2112 | Z8: 4767 | AA8: 40192 | AB8: 172295 | AC8: 1227 | AD8: 3198 | AE8: 4661 | AF8: 14768 | AG8: 173148 | AH8: 2192 | AI8: 3853 | AJ8: 3043 | AK8: 12049 | AL8: 184172 | AM8: 2716 | AN8: 3329 | AO8: 2368 | AP8: 12798 | AQ8: 187642 | AR8: 2563 | AS8: 3657 | AT8: 2324 | AU8: 10592 | AV8: =+IFERROR(VLOOKUP($F8,[1]Hoja1!$F$2:$L$4485,3,0),0) -> 188920 | AW8: =+IFERROR(VLOOKUP($F8,[1]Hoja1!$F$2:$L$4485,4,0),0) -> 2767 | AX8: =+IFERROR(VLOOKUP($F8,[1]Hoja1!$F$2:$L$4485,5,0),0) -> 3679 | AY8: =+IFERROR(VLOOKUP($F8,[1]Hoja1!$F$2:$L$4485,6,0),0) -> 1957 | AZ8: =+IFERROR(VLOOKUP($F8,[1]Hoja1!$F$2:$L$4485,7,0),0) -> 11100 | BA8: =+IFERROR(VLOOKUP($F8,[2]Hoja1!$F$2:$L$4485,3,0),0) -> 194926 | BB8: =+IFERROR(VLOOKUP($F8,[2]Hoja1!$F$2:$L$4485,4,0),0) -> 2690 | BC8: =+IFERROR(VLOOKUP($F8,[2]Hoja1!$F$2:$L$4485,5,0),0) -> 3435 | BD8: =+IFERROR(VLOOKUP($F8,[2]Hoja1!$F$2:$L$4485,6,0),0) -> 1899 | BE8: =+IFERROR(VLOOKUP($F8,[2]Hoja1!$F$2:$L$4485,7,0),0) -> 15727 | BU8: 19 | BV8: CAUCA | BW8: 022 | BX8: 19022 | BY8: ALMAGUER | BZ8: 190223 | CA8: 3 | CB8: 5 | CC8: 0 | CD8: 0 | CE8: 1 | CF8: 0 | CG8: 8 | CH8: 1 | CI8: 0 | CJ8: 2 | CK8: 0 | CL8: 5 | CM8: 0 | CN8: 1 | CO8: 1 | CP8: 2 | CQ8: 2 | CR8: 0 | CS8: 0 | CT8: 0 | CU8: 0 | CV8: 5 | CW8: 0 | CX8: 0 | CY8: 1 | CZ8: 0 | DA8: 3 | DB8: 0 | DC8: 0 | DD8: 0 | DE8: 0 | DF8: 3 | DG8: 1 | DH8: 0 | DI8: 0 | DJ8: 0 | DK8: 5 | DL8: 1 | DM8: 0 | DN8: 0 | DO8: 0 | DP8: 9 | DQ8: 0 | DR8: 2 | DS8: 0 | DT8: 0 | DU8: 10 | DV8: 1 | DW8: 0 | DX8: 0 | DY8: 0
A9: 05 | B9: ANTIOQUIA | C9: 001 | D9: 05001 | E9: MEDELLÍN | F9: 050014 | G9: 4 | H9: 58258 | I9: 684 | J9: 1366 | K9: 424 | L9: 17751 | M9: 65965 | N9: 601 | O9: 1170 | P9: 301 | Q9: 3409 | R9: 67739 | S9: 595 | T9: 1265 | U9: 529 | V9: 9040 | W9: 57045 | X9: 329 | Y9: 625 | Z9: 1135 | AA9: 11624 | AB9: 60410 | AC9: 295 | AD9: 868 | AE9: 1099 | AF9: 3860 | AG9: 69376 | AH9: 355 | AI9: 1194 | AJ9: 808 | AK9: 5188 | AL9: 63749 | AM9: 633 | AN9: 1078 | AO9: 564 | AP9: 3724 | AQ9: 64984 | AR9: 527 | AS9: 1252 | AT9: 470 | AU9: 3047 | AV9: =+IFERROR(VLOOKUP($F9,[1]Hoja1!$F$2:$L$4485,3,0),0) -> 65776 | AW9: =+IFERROR(VLOOKUP($F9,[1]Hoja1!$F$2:$L$4485,4,0),0) -> 657 | AX9: =+IFERROR(VLOOKUP($F9,[1]Hoja1!$F$2:$L$4485,5,0),0) -> 1240 | AY9: =+IFERROR(VLOOKUP($F9,[1]Hoja1!$F$2:$L$4485,6,0),0) -> 406 | AZ9: =+IFERROR(VLOOKUP($F9,[1]Hoja1!$F$2:$L$4485,7,0),0) -> 3380 | BA9: =+IFERROR(VLOOKUP($F9,[2]Hoja1!$F$2:$L$4485,3,0),0) -> 66950 | BB9: =+IFERROR(VLOOKUP($F9,[2]Hoja1!$F$2:$L$4485,4,0),0) -> 529 | BC9: =+IFERROR(VLOOKUP($F9,[2]Hoja1!$F$2:$L$4485,5,0),0) -> 1098 | BD9: =+IFERROR(VLOOKUP($F9,[2]Hoja1!$F$2:$L$4485,6,0),0) -> 356 | BE9: =+IFERROR(VLOOKUP($F9,[2]Hoja1!$F$2:$L$4485,7,0),0) -> 5883 | BU9: 19 | BV9: CAUCA | BW9: 022 | BX9: 19022 | BY9: ALMAGUER | BZ9: 190224 | CA9: 4 | CB9: 2 | CC9: 0 | CD9: 0 | CE9: 1 | CF9: 0 | CG9: 0 | CH9: 0 | CI9: 0 | CJ9: 0 | CK9: 0 | CL9: 1 | CM9: 0 | CN9: 0 | CO9: 0 | CP9: 0 | CQ9: 1 | CR9: 0 | CS9: 0 | CT9: 0 | CU9: 0 | CV9: 1 | CW9: 0 | CX9: 0 | CY9: 0 | CZ9: 0 | DA9: 1 | DB9: 0 | DC9: 0 | DD9: 0 | DE9: 0 | DF9: 1 | DG9: 0 | DH9: 0 | DI9: 0 | DJ9: 0 | DK9: 1 | DL9: 0 | DM9: 0 | DN9: 0 | DO9: 0 | DP9: 1 | DQ9: 0 | DR9: 0 | DS9: 0 | DT9: 0 | DU9: 2 | DV9: 0 | DW9: 0 | DX9: 0 | DY9: 0
A10: 05 | B10: ANTIOQUIA | C10: 002 | D10: 05002 | E10: ABEJORRAL | F10: 050021 | G10: 1 | H10: 1744 | I10: 413 | J10: 361 | K10: 101 | L10: 83 | M10: 1608 | N10: 401 | O10: 368 | P10: 140 | Q10: 6 | R10: 1604 | S10: 388 | T10: 553 | U10: 109 | V10: 87 | W10: 1412 | X10: 115 | Y10: 162 | Z10: 81 | AA10: 103 | AB10: 1294 | AC10: 232 | AD10: 181 | AE10: 98 | AF10: 23 | AG10: 1417 | AH10: 317 | AI10: 255 | AJ10: 73 | AK10: 18 | AL10: 1958 | AM10: 444 | AN10: 556 | AO10: 106 | AP10: 19 | AQ10: 1702 | AR10: 293 | AS10: 268 | AT10: 145 | AU10: 16 | AV10: =+IFERROR(VLOOKUP($F10,[1]Hoja1!$F$2:$L$4485,3,0),0) -> 1673 | AW10: =+IFERROR(VLOOKUP($F10,[1]Hoja1!$F$2:$L$4485,4,0),0) -> 310 | AX10: =+IFERROR(VLOOKUP($F10,[1]Hoja1!$F$2:$L$4485,5,0),0) -> 301 | AY10: =+IFERROR(VLOOKUP($F10,[1]Hoja1!$F$2:$L$4485,6,0),0) -> 115 | AZ10: =+IFERROR(VLOOKUP($F10,[1]Hoja1!$F$2:$L$4485,7,0),0) -> 14 | BA10: =+IFERROR(VLOOKUP($F10,[2]Hoja1!$F$2:$L$4485,3,0),0) -> 1662 | BB10: =+IFERROR(VLOOKUP($F10,[2]Hoja1!$F$2:$L$4485,4,0),0) -> 286 | BC10: =+IFERROR(VLOOKUP($F10,[2]Hoja1!$F$2:$L$4485,5,0),0) -> 286 | BD10: =+IFERROR(VLOOKUP($F10,[2]Hoja1!$F$2:$L$4485,6,0),0) -> 113 | BE10: =+IFERROR(VLOOKUP($F10,[2]Hoja1!$F$2:$L$4485,7,0),0) -> 9 | BU10: 19 | BV10: CAUCA | BW10: 050 | BX10: 19050 | BY10: ARGELIA | BZ10: 190501 | CA10: 1 | CB10: 107 | CC10: 51 | CD10: 4 | CE10: 0 | CF10: 2 | CG10: 172 | CH10: 72 | CI10: 22 | CJ10: 1 | CK10: 0 | CL10: 216 | CM10: 70 | CN10: 84 | CO10: 3 | CP10: 0 | CQ10: 94 | CR10: 20 | CS10: 3 | CT10: 2 | CU10: 1 | CV10: 90 | CW10: 4 | CX10: 6 | CY10: 0 | CZ10: 0 | DA10: 154 | DB10: 48 | DC10: 9 | DD10: 0 | DE10: 0 | DF10: 160 | DG10: 37 | DH10: 20 | DI10: 0 | DJ10: 0 | DK10: 170 | DL10: 30 | DM10: 31 | DN10: 1 | DO10: 0 | DP10: 104 | DQ10: 11 | DR10: 15 | DS10: 0 | DT10: 0 | DU10: 145 | DV10: 27 | DW10: 6 | DX10: 0 | DY10: 0
A11: 05 | B11: ANTIOQUIA | C11: 002 | D11: 05002 | E11: ABEJORRAL | F11: 050022 | G11: 2 | H11: 447 | I11: 16 | J11: 24 | K11: 9 | L11: 112 | M11: 450 | N11: 17 | O11: 13 | P11: 11 | Q11: 8 | R11: 414 | S11: 7 | T11: 19 | U11: 20 | V11: 36 | W11: 481 | X11: 7 | Y11: 10 | Z11: 30 | AA11: 41 | AB11: 429 | AC11: 8 | AD11: 10 | AE11: 17 | AF11: 20 | AG11: 470 | AH11: 4 | AI11: 20 | AJ11: 32 | AK11: 9 | AL11: 853 | AM11: 60 | AN11: 17 | AO11: 28 | AP11: 16 | AQ11: 491 | AR11: 41 | AS11: 13 | AT11: 22 | AU11: 8 | AV11: =+IFERROR(VLOOKUP($F11,[1]Hoja1!$F$2:$L$4485,3,0),0) -> 488 | AW11: =+IFERROR(VLOOKUP($F11,[1]Hoja1!$F$2:$L$4485,4,0),0) -> 15 | AX11: =+IFERROR(VLOOKUP($F11,[1]Hoja1!$F$2:$L$4485,5,0),0) -> 23 | AY11: =+IFERROR(VLOOKUP($F11,[1]Hoja1!$F$2:$L$4485,6,0),0) -> 31 | AZ11: =+IFERROR(VLOOKUP($F11,[1]Hoja1!$F$2:$L$4485,7,0),0) -> 12 | BA11: =+IFERROR(VLOOKUP($F11,[2]Hoja1!$F$2:$L$4485,3,0),0) -> 502 | BB11: =+IFERROR(VLOOKUP($F11,[2]Hoja1!$F$2:$L$4485,4,0),0) -> 8 | BC11: =+IFERROR(VLOOKUP($F11,[2]Hoja1!$F$2:$L$4485,5,0),0) -> 19 | BD11: =+IFERROR(VLOOKUP($F11,[2]Hoja1!$F$2:$L$4485,6,0),0) -> 17 | BE11: =+IFERROR(VLOOKUP($F11,[2]Hoja1!$F$2:$L$4485,7,0),0) -> 19 | BU11: 19 | BV11: CAUCA | BW11: 050 | BX11: 19050 | BY11: ARGELIA | BZ11: 190502 | CA11: 2 | CB11: 12 | CC11: 3 | CD11: 2 | CE11: 0 | CF11: 1 | CG11: 13 | CH11: 0 | CI11: 1 | CJ11: 0 | CK11: 0 | CL11: 61 | CM11: 12 | CN11: 0 | CO11: 0 | CP11: 1 | CQ11: 16 | CR11: 0 | CS11: 0 | CT11: 0 | CU11: 0 | CV11: 18 | CW11: 0 | CX11: 0 | CY11: 0 | CZ11: 0 | DA11: 19 | DB11: 0 | DC11: 0 | DD11: 1 | DE11: 0 | DF11: 22 | DG11: 2 | DH11: 0 | DI11: 1 | DJ11: 0 | DK11: 20 | DL11: 1 | DM11: 0 | DN11: 0 | DO11: 0 | DP11: 21 | DQ11: 0 | DR11: 0 | DS11: 0 | DT11: 0 | DU11: 27 | DV11: 2 | DW11: 0 | DX11: 0 | DY11: 0
A12: 05 | B12: ANTIOQUIA | C12: 002 | D12: 05002 | E12: ABEJORRAL | F12: 050023 | G12: 3 | H12: 111 | I12: 9 | J12: 4 | K12: 5 | L12: 35 | M12: 166 | N12: 4 | O12: 3 | P12: 2 | Q12: 3 | R12: 143 | S12: 2 | T12: 3 | U12: 13 | V12: 7 | W12: 92 | X12: 0 | Y12: 0 | Z12: 2 | AA12: 17 | AB12: 146 | AC12: 1 | AD12: 0 | AE12: 5 | AF12: 6 | AG12: 153 | AH12: 0 | AI12: 4 | AJ12: 8 | AK12: 3 | AL12: 138 | AM12: 3 | AN12: 4 | AO12: 3 | AP12: 2 | AQ12: 173 | AR12: 8 | AS12: 5 | AT12: 3 | AU12: 4 | AV12: =+IFERROR(VLOOKUP($F12,[1]Hoja1!$F$2:$L$4485,3,0),0) -> 195 | AW12: =+IFERROR(VLOOKUP($F12,[1]Hoja1!$F$2:$L$4485,4,0),0) -> 5 | AX12: =+IFERROR(VLOOKUP($F12,[1]Hoja1!$F$2:$L$4485,5,0),0) -> 8 | AY12: =+IFERROR(VLOOKUP($F12,[1]Hoja1!$F$2:$L$4485,6,0),0) -> 9 | AZ12: =+IFERROR(VLOOKUP($F12,[1]Hoja1!$F$2:$L$4485,7,0),0) -> 2 | BA12: =+IFERROR(VLOOKUP($F12,[2]Hoja1!$F$2:$L$4485,3,0),0) -> 170 | BB12: =+IFERROR(VLOOKUP($F12,[2]Hoja1!$F$2:$L$4485,4,0),0) -> 1 | BC12: =+IFERROR(VLOOKUP($F12,[2]Hoja1!$F$2:$L$4485,5,0),0) -> 4 | BD12: =+IFERROR(VLOOKUP($F12,[2]Hoja1!$F$2:$L$4485,6,0),0) -> 9 | BE12: =+IFERROR(VLOOKUP($F12,[2]Hoja1!$F$2:$L$4485,7,0),0) -> 2 | BU12: 19 | BV12: CAUCA | BW12: 050 | BX12: 19050 | BY12: ARGELIA | BZ12: 190503 | CA12: 3 | CB12: 5 | CC12: 0 | CD12: 0 | CE12: 0 | CF12: 1 | CG12: 2 | CH12: 0 | CI12: 0 | CJ12: 0 | CK12: 0 | CL12: 1 | CM12: 0 | CN12: 0 | CO12: 0 | CP12: 0 | CQ12: 2 | CR12: 0 | CS12: 0 | CT12: 0 | CU12: 1 | CV12: 2 | CW12: 0 | CX12: 0 | CY12: 0 | CZ12: 0 | DA12: 5 | DB12: 1 | DC12: 0 | DD12: 0 | DE12: 0 | DF12: 5 | DG12: 0 | DH12: 0 | DI12: 0 | DJ12: 0 | DK12: 5 | DL12: 0 | DM12: 0 | DN12: 0 | DO12: 0 | DP12: 7 | DQ12: 0 | DR12: 0 | DS12: 0 | DT12: 0 | DU12: 6 | DV12: 0 | DW12: 0 | DX12: 0 | DY12: 0
A13: 05 | B13: ANTIOQUIA | C13: 002 | D13: 05002 | E13: ABEJORRAL | F13: 050024 | G13: 4 | H13: 27 | I13: 0 | J13: 2 | K13: 0 | L13: 9 | M13: 28 | N13: 0 | O13: 0 | P13: 0 | Q13: 0 | R13: 28 | S13: 0 | T13: 0 | U13: 1 | V13: 2 | W13: 24 | X13: 0 | Y13: 0 | Z13: 0 | AA13: 3 | AB13: 26 | AC13: 0 | AD13: 0 | AE13: 1 | AF13: 4 | AG13: 34 | AH13: 1 | AI13: 1 | AJ13: 0 | AK13: 0 | AL13: 33 | AM13: 1 | AN13: 0 | AO13: 0 | AP13: 0 | AQ13: 37 | AR13: 2 | AS13: 1 | AT13: 0 | AU13: 2 | AV13: =+IFERROR(VLOOKUP($F13,[1]Hoja1!$F$2:$L$4485,3,0),0) -> 33 | AW13: =+IFERROR(VLOOKUP($F13,[1]Hoja1!$F$2:$L$4485,4,0),0) -> 0 | AX13: =+IFERROR(VLOOKUP($F13,[1]Hoja1!$F$2:$L$4485,5,0),0) -> 3 | AY13: =+IFERROR(VLOOKUP($F13,[1]Hoja1!$F$2:$L$4485,6,0),0) -> 0 | AZ13: =+IFERROR(VLOOKUP($F13,[1]Hoja1!$F$2:$L$4485,7,0),0) -> 3 | BA13: =+IFERROR(VLOOKUP($F13,[2]Hoja1!$F$2:$L$4485,3,0),0) -> 33 | BB13: =+IFERROR(VLOOKUP($F13,[2]Hoja1!$F$2:$L$4485,4,0),0) -> 1 | BC13: =+IFERROR(VLOOKUP($F13,[2]Hoja1!$F$2:$L$4485,5,0),0) -> 0 | BD13: =+IFERROR(VLOOKUP($F13,[2]Hoja1!$F$2:$L$4485,6,0),0) -> 0 | BE13: =+IFERROR(VLOOKUP($F13,[2]Hoja1!$F$2:$L$4485,7,0),0) -> 1 | BU13: 19 | BV13: CAUCA | BW13: 050 | BX13: 19050 | BY13: ARGELIA | BZ13: 190504 | CA13: 4 | CB13: 0 | CC13: 0 | CD13: 0 | CE13: 0 | CF13: 0 | CG13: 0 | CH13: 0 | CI13: 0 | CJ13: 0 | CK13: 0 | CL13: 0 | CM13: 0 | CN13: 0 | CO13: 0 | CP13: 0 | CQ13: 0 | CR13: 0 | CS13: 0 | CT13: 0 | CU13: 0 | CV13: 0 | CW13: 0 | CX13: 0 | CY13: 0 | CZ13: 0 | DA13: 0 | DB13: 0 | DC13: 0 | DD13: 0 | DE13: 0 | DF13: 0 | DG13: 0 | DH13: 0 | DI13: 0 | DJ13: 0 | DK13: 0 | DL13: 0 | DM13: 0 | DN13: 0 | DO13: 0 | DP13: 0 | DQ13: 0 | DR13: 0 | DS13: 0 | DT13: 0 | DU13: 0 | DV13: 0 | DW13: 0 | DX13: 0 | DY13: 0
A14: 05 | B14: ANTIOQUIA | C14: 004 | D14: 05004 | E14: ABRIAQUÍ | F14: 050041 | G14: 1 | H14: 397 | I14: 182 | J14: 191 | K14: 2 | L14: 0 | M14: 459 | N14: 317 | O14: 346 | P14: 2 | Q14: 0 | R14: 538 | S14: 309 | T14: 326 | U14: 33 | V14: 10 | W14: 402 | X14: 194 | Y14: 198 | Z14: 8 | AA14: 11 | AB14: 495 | AC14: 305 | AD14: 259 | AE14: 2 | AF14: 5 | AG14: 460 | AH14: 277 | AI14: 241 | AJ14: 0 | AK14: 0 | AL14: 581 | AM14: 384 | AN14: 373 | AO14: 9 | AP14: 0 | AQ14: 482 | AR14: 285 | AS14: 305 | AT14: 17 | AU14: 0 | AV14: =+IFERROR(VLOOKUP($F14,[1]Hoja1!$F$2:$L$4485,3,0),0) -> 443 | AW14: =+IFERROR(VLOOKUP($F14,[1]Hoja1!$F$2:$L$4485,4,0),0) -> 276 | AX14: =+IFERROR(VLOOKUP($F14,[1]Hoja1!$F$2:$L$4485,5,0),0) -> 256 | AY14: =+IFERROR(VLOOKUP($F14,[1]Hoja1!$F$2:$L$4485,6,0),0) -> 30 | AZ14: =+IFERROR(VLOOKUP($F14,[1]Hoja1!$F$2:$L$4485,7,0),0) -> 0 | BA14: =+IFERROR(VLOOKUP($F14,[2]Hoja1!$F$2:$L$4485,3,0),0) -> 493 | BB14: =+IFERROR(VLOOKUP($F14,[2]Hoja1!$F$2:$L$4485,4,0),0) -> 287 | BC14: =+IFERROR(VLOOKUP($F14,[2]Hoja1!$F$2:$L$4485,5,0),0) -> 333 | BD14: =+IFERROR(VLOOKUP($F14,[2]Hoja1!$F$2:$L$4485,6,0),0) -> 21 | BE14: =+IFERROR(VLOOKUP($F14,[2]Hoja1!$F$2:$L$4485,7,0),0) -> 0 | BU14: 19 | BV14: CAUCA | BW14: 075 | BX14: 19075 | BY14: BALBOA | BZ14: 190751 | CA14: 1 | CB14: 104 | CC14: 30 | CD14: 17 | CE14: 2 | CF14: 1 | CG14: 138 | CH14: 14 | CI14: 13 | CJ14: 3 | CK14: 0 | CL14: 87 | CM14: 5 | CN14: 33 | CO14: 3 | CP14: 6 | CQ14: 84 | CR14: 20 | CS14: 13 | CT14: 2 | CU14: 17 | CV14: 78 | CW14: 4 | CX14: 4 | CY14: 4 | CZ14: 1 | DA14: 70 | DB14: 3 | DC14: 3 | DD14: 1 | DE14: 0 | DF14: 73 | DG14: 6 | DH14: 1 | DI14: 1 | DJ14: 1 | DK14: 102 | DL14: 12 | DM14: 3 | DN14: 1 | DO14: 0 | DP14: 92 | DQ14: 16 | DR14: 2 | DS14: 0 | DT14: 0 | DU14: 94 | DV14: 15 | DW14: 14 | DX14: 0 | DY14: 0
A15: 05 | B15: ANTIOQUIA | C15: 004 | D15: 05004 | E15: ABRIAQUÍ | F15: 050042 | G15: 2 | H15: 27 | I15: 1 | J15: 8 | K15: 0 | L15: 1 | M15: 24 | N15: 0 | O15: 8 | P15: 0 | Q15: 0 | R15: 18 | S15: 0 | T15: 5 | U15: 3 | V15: 0 | W15: 22 | X15: 0 | Y15: 2 | Z15: 3 | AA15: 1 | AB15: 23 | AC15: 3 | AD15: 1 | AE15: 0 | AF15: 0 | AG15: 30 | AH15: 0 | AI15: 6 | AJ15: 0 | AK15: 0 | AL15: 43 | AM15: 4 | AN15: 6 | AO15: 0 | AP15: 0 | AQ15: 47 | AR15: 4 | AS15: 12 | AT15: 0 | AU15: 1 | AV15: =+IFERROR(VLOOKUP($F15,[1]Hoja1!$F$2:$L$4485,3,0),0) -> 31 | AW15: =+IFERROR(VLOOKUP($F15,[1]Hoja1!$F$2:$L$4485,4,0),0) -> 8 | AX15: =+IFERROR(VLOOKUP($F15,[1]Hoja1!$F$2:$L$4485,5,0),0) -> 2 | AY15: =+IFERROR(VLOOKUP($F15,[1]Hoja1!$F$2:$L$4485,6,0),0) -> 1 | AZ15: =+IFERROR(VLOOKUP($F15,[1]Hoja1!$F$2:$L$4485,7,0),0) -> 0 | BA15: =+IFERROR(VLOOKUP($F15,[2]Hoja1!$F$2:$L$4485,3,0),0) -> 63 | BB15: =+IFERROR(VLOOKUP($F15,[2]Hoja1!$F$2:$L$4485,4,0),0) -> 6 | BC15: =+IFERROR(VLOOKUP($F15,[2]Hoja1!$F$2:$L$4485,5,0),0) -> 5 | BD15: =+IFERROR(VLOOKUP($F15,[2]Hoja1!$F$2:$L$4485,6,0),0) -> 0 | BE15: =+IFERROR(VLOOKUP($F15,[2]Hoja1!$F$2:$L$4485,7,0),0) -> 1 | BU15: 19 | BV15: CAUCA | BW15: 075 | BX15: 19075 | BY15: BALBOA | BZ15: 190752 | CA15: 2 | CB15: 30 | CC15: 3 | CD15: 1 | CE15: 0 | CF15: 1 | CG15: 33 | CH15: 3 | CI15: 0 | CJ15: 1 | CK15: 12 | CL15: 33 | CM15: 1 | CN15: 1 | CO15: 0 | CP15: 16 | CQ15: 17 | CR15: 0 | CS15: 3 | CT15: 4 | CU15: 6 | CV15: 18 | CW15: 1 | CX15: 1 | CY15: 2 | CZ15: 1 | DA15: 26 | DB15: 5 | DC15: 0 | DD15: 2 | DE15: 0 | DF15: 22 | DG15: 0 | DH15: 4 | DI15: 6 | DJ15: 0 | DK15: 25 | DL15: 1 | DM15: 1 | DN15: 1 | DO15: 1 | DP15: 27 | DQ15: 1 | DR15: 0 | DS15: 0 | DT15: 1 | DU15: 31 | DV15: 0 | DW15: 1 | DX15: 0 | DY15: 0
A16: 05 | B16: ANTIOQUIA | C16: 004 | D16: 05004 | E16: ABRIAQUÍ | F16: 050043 | G16: 3 | H16: 2 | I16: 0 | J16: 0 | K16: 0 | L16: 0 | M16: 4 | N16: 1 | O16: 1 | P16: 0 | Q16: 0 | R16: 2 | S16: 0 | T16: 0 | U16: 0 | V16: 1 | W16: 1 | X16: 0 | Y16: 0 | Z16: 0 | AA16: 0 | AB16: 1 | AC16: 0 | AD16: 0 | AE16: 0 | AF16: 0 | AG16: 5 | AH16: 1 | AI16: 0 | AJ16: 0 | AK16: 1 | AL16: 3 | AM16: 1 | AN16: 0 | AO16: 0 | AP16: 0 | AQ16: 2 | AR16: 1 | AS16: 0 | AT16: 0 | AU16: 0 | AV16: =+IFERROR(VLOOKUP($F16,[1]Hoja1!$F$2:$L$4485,3,0),0) -> 6 | AW16: =+IFERROR(VLOOKUP($F16,[1]Hoja1!$F$2:$L$4485,4,0),0) -> 1 | AX16: =+IFERROR(VLOOKUP($F16,[1]Hoja1!$F$2:$L$4485,5,0),0) -> 0 | AY16: =+IFERROR(VLOOKUP($F16,[1]Hoja1!$F$2:$L$4485,6,0),0) -> 0 | AZ16: =+IFERROR(VLOOKUP($F16,[1]Hoja1!$F$2:$L$4485,7,0),0) -> 0 | BA16: =+IFERROR(VLOOKUP($F16,[2]Hoja1!$F$2:$L$4485,3,0),0) -> 5 | BB16: =+IFERROR(VLOOKUP($F16,[2]Hoja1!$F$2:$L$4485,4,0),0) -> 0 | BC16: =+IFERROR(VLOOKUP($F16,[2]Hoja1!$F$2:$L$4485,5,0),0) -> 0 | BD16: =+IFERROR(VLOOKUP($F16,[2]Hoja1!$F$2:$L$4485,6,0),0) -> 0 | BE16: =+IFERROR(VLOOKUP($F16,[2]Hoja1!$F$2:$L$4485,7,0),0) -> 0 | BU16: 19 | BV16: CAUCA | BW16: 075 | BX16: 19075 | BY16: BALBOA | BZ16: 190753 | CA16: 3 | CB16: 12 | CC16: 0 | CD16: 0 | CE16: 0 | CF16: 1 | CG16: 14 | CH16: 0 | CI16: 1 | CJ16: 0 | CK16: 3 | CL16: 10 | CM16: 0 | CN16: 0 | CO16: 0 | CP16: 2 | CQ16: 13 | CR16: 0 | CS16: 2 | CT16: 0 | CU16: 3 | CV16: 8 | CW16: 0 | CX16: 0 | CY16: 0 | CZ16: 0 | DA16: 10 | DB16: 0 | DC16: 0 | DD16: 0 | DE16: 0 | DF16: 12 | DG16: 0 | DH16: 2 | DI16: 0 | DJ16: 0 | DK16: 8 | DL16: 0 | DM16: 0 | DN16: 0 | DO16: 0 | DP16: 9 | DQ16: 0 | DR16: 0 | DS16: 0 | DT16: 0 | DU16: 12 | DV16: 0 | DW16: 0 | DX16: 0 | DY16: 0
A17: 05 | B17: ANTIOQUIA | C17: 004 | D17: 05004 | E17: ABRIAQUÍ | F17: 050044 | G17: 4 | H17: 0 | I17: 0 | J17: 0 | K17: 0 | L17: 0 | M17: 0 | N17: 0 | O17: 0 | P17: 0 | Q17: 0 | R17: 0 | S17: 0 | T17: 0 | U17: 0 | V17: 0 | W17: 0 | X17: 0 | Y17: 0 | Z17: 0 | AA17: 0 | AB17: 0 | AC17: 0 | AD17: 0 | AE17: 0 | AF17: 0 | AG17: 2 | AH17: 0 | AI17: 0 | AJ17: 0 | AK17: 0 | AL17: 4 | AM17: 0 | AN17: 0 | AO17: 0 | AP17: 0 | AQ17: 4 | AR17: 0 | AS17: 0 | AT17: 0 | AU17: 0 | AV17: =+IFERROR(VLOOKUP($F17,[1]Hoja1!$F$2:$L$4485,3,0),0) -> 5 | AW17: =+IFERROR(VLOOKUP($F17,[1]Hoja1!$F$2:$L$4485,4,0),0) -> 0 | AX17: =+IFERROR(VLOOKUP($F17,[1]Hoja1!$F$2:$L$4485,5,0),0) -> 1 | AY17: =+IFERROR(VLOOKUP($F17,[1]Hoja1!$F$2:$L$4485,6,0),0) -> 0 | AZ17: =+IFERROR(VLOOKUP($F17,[1]Hoja1!$F$2:$L$4485,7,0),0) -> 0 | BA17: =+IFERROR(VLOOKUP($F17,[2]Hoja1!$F$2:$L$4485,3,0),0) -> 5 | BB17: =+IFERROR(VLOOKUP($F17,[2]Hoja1!$F$2:$L$4485,4,0),0) -> 0 | BC17: =+IFERROR(VLOOKUP($F17,[2]Hoja1!$F$2:$L$4485,5,0),0) -> 0 | BD17: =+IFERROR(VLOOKUP($F17,[2]Hoja1!$F$2:$L$4485,6,0),0) -> 0 | BE17: =+IFERROR(VLOOKUP($F17,[2]Hoja1!$F$2:$L$4485,7,0),0) -> 0 | BU17: 19 | BV17: CAUCA | BW17: 075 | BX17: 19075 | BY17: BALBOA | BZ17: 190754 | CA17: 4 | CB17: 1 | CC17: 0 | CD17: 0 | CE17: 0 | CF17: 0 | CG17: 0 | CH17: 0 | CI17: 0 | CJ17: 0 | CK17: 0 | CL17: 0 | CM17: 0 | CN17: 0 | CO17: 0 | CP17: 0 | CQ17: 0 | CR17: 0 | CS17: 0 | CT17: 0 | CU17: 0 | CV17: 0 | CW17: 0 | CX17: 0 | CY17: 0 | CZ17: 0 | DA17: 0 | DB17: 0 | DC17: 0 | DD17: 0 | DE17: 0 | DF17: 0 | DG17: 0 | DH17: 0 | DI17: 0 | DJ17: 0 | DK17: 0 | DL17: 0 | DM17: 0 | DN17: 0 | DO17: 0 | DP17: 0 | DQ17: 0 | DR17: 0 | DS17: 0 | DT17: 0 | DU17: 0 | DV17: 0 | DW17: 0 | DX17: 0 | DY17: 0
A18: 05 | B18: ANTIOQUIA | C18: 021 | D18: 05021 | E18: ALEJANDRÍA | F18: 050211 | G18: 1 | H18: 369 | I18: 184 | J18: 145 | K18: 0 | L18: 2 | M18: 213 | N18: 42 | O18: 98 | P18: 0 | Q18: 0 | R18: 265 | S18: 53 | T18: 103 | U18: 7 | V18: 10 | W18: 300 | X18: 143 | Y18: 132 | Z18: 9 | AA18: 11 | AB18: 325 | AC18: 183 | AD18: 173 | AE18: 2 | AF18: 4 | AG18: 316 | AH18: 215 | AI18: 211 | AJ18: 5 | AK18: 0 | AL18: 237 | AM18: 142 | AN18: 137 | AO18: 4 | AP18: 0 | AQ18: 308 | AR18: 210 | AS18: 234 | AT18: 3 | AU18: 0 | AV18: =+IFERROR(VLOOKUP($F18,[1]Hoja1!$F$2:$L$4485,3,0),0) -> 273 | AW18: =+IFERROR(VLOOKUP($F18,[1]Hoja1!$F$2:$L$4485,4,0),0) -> 176 | AX18: =+IFERROR(VLOOKUP($F18,[1]Hoja1!$F$2:$L$4485,5,0),0) -> 194 | AY18: =+IFERROR(VLOOKUP($F18,[1]Hoja1!$F$2:$L$4485,6,0),0) -> 4 | AZ18: =+IFERROR(VLOOKUP($F18,[1]Hoja1!$F$2:$L$4485,7,0),0) -> 0 | BA18: =+IFERROR(VLOOKUP($F18,[2]Hoja1!$F$2:$L$4485,3,0),0) -> 322 | BB18: =+IFERROR(VLOOKUP($F18,[2]Hoja1!$F$2:$L$4485,4,0),0) -> 236 | BC18: =+IFERROR(VLOOKUP($F18,[2]Hoja1!$F$2:$L$4485,5,0),0) -> 248 | BD18: =+IFERROR(VLOOKUP($F18,[2]Hoja1!$F$2:$L$4485,6,0),0) -> 0 | BE18: =+IFERROR(VLOOKUP($F18,[2]Hoja1!$F$2:$L$4485,7,0),0) -> 0 | BU18: 19 | BV18: CAUCA | BW18: 100 | BX18: 19100 | BY18: BOLÍVAR | BZ18: 191001 | CA18: 1 | CB18: 238 | CC18: 34 | CD18: 19 | CE18: 0 | CF18: 2 | CG18: 237 | CH18: 32 | CI18: 28 | CJ18: 1 | CK18: 2 | CL18: 250 | CM18: 24 | CN18: 203 | CO18: 0 | CP18: 8 | CQ18: 141 | CR18: 73 | CS18: 28 | CT18: 2 | CU18: 24 | CV18: 122 | CW18: 10 | CX18: 1 | CY18: 5 | CZ18: 0 | DA18: 131 | DB18: 10 | DC18: 12 | DD18: 0 | DE18: 0 | DF18: 144 | DG18: 28 | DH18: 2 | DI18: 1 | DJ18: 2 | DK18: 148 | DL18: 22 | DM18: 23 | DN18: 0 | DO18: 0 | DP18: 179 | DQ18: 50 | DR18: 23 | DS18: 3 | DT18: 2 | DU18: 186 | DV18: 29 | DW18: 18 | DX18: 2 | DY18: 0
A19: 05 | B19: ANTIOQUIA | C19: 021 | D19: 05021 | E19: ALEJANDRÍA | F19: 050212 | G19: 2 | H19: 26 | I19: 2 | J19: 2 | K19: 0 | L19: 4 | M19: 29 | N19: 9 | O19: 1 | P19: 0 | Q19: 0 | R19: 28 | S19: 4 | T19: 4 | U19: 1 | V19: 1 | W19: 22 | X19: 1 | Y19: 0 | Z19: 1 | AA19: 1 | AB19: 30 | AC19: 0 | AD19: 2 | AE19: 1 | AF19: 1 | AG19: 39 | AH19: 8 | AI19: 2 | AJ19: 1 | AK19: 0 | AL19: 39 | AM19: 1 | AN19: 1 | AO19: 0 | AP19: 0 | AQ19: 43 | AR19: 0 | AS19: 3 | AT19: 0 | AU19: 1 | AV19: =+IFERROR(VLOOKUP($F19,[1]Hoja1!$F$2:$L$4485,3,0),0) -> 40 | AW19: =+IFERROR(VLOOKUP($F19,[1]Hoja1!$F$2:$L$4485,4,0),0) -> 5 | AX19: =+IFERROR(VLOOKUP($F19,[1]Hoja1!$F$2:$L$4485,5,0),0) -> 2 | AY19: =+IFERROR(VLOOKUP($F19,[1]Hoja1!$F$2:$L$4485,6,0),0) -> 0 | AZ19: =+IFERROR(VLOOKUP($F19,[1]Hoja1!$F$2:$L$4485,7,0),0) -> 0 | BA19: =+IFERROR(VLOOKUP($F19,[2]Hoja1!$F$2:$L$4485,3,0),0) -> 49 | BB19: =+IFERROR(VLOOKUP($F19,[2]Hoja1!$F$2:$L$4485,4,0),0) -> 5 | BC19: =+IFERROR(VLOOKUP($F19,[2]Hoja1!$F$2:$L$4485,5,0),0) -> 4 | BD19: =+IFERROR(VLOOKUP($F19,[2]Hoja1!$F$2:$L$4485,6,0),0) -> 0 | BE19: =+IFERROR(VLOOKUP($F19,[2]Hoja1!$F$2:$L$4485,7,0),0) -> 1 | BU19: 19 | BV19: CAUCA | BW19: 100 | BX19: 19100 | BY19: BOLÍVAR | BZ19: 191002 | CA19: 2 | CB19: 49 | CC19: 3 | CD19: 0 | CE19: 0 | CF19: 5 | CG19: 53 | CH19: 3 | CI19: 3 | CJ19: 1 | CK19: 24 | CL19: 53 | CM19: 4 | CN19: 2 | CO19: 0 | CP19: 24 | CQ19: 35 | CR19: 0 | CS19: 7 | CT19: 6 | CU19: 10 | CV19: 28 | CW19: 0 | CX19: 1 | CY19: 2 | CZ19: 0 | DA19: 26 | DB19: 0 | DC19: 0 | DD19: 1 | DE19: 1 | DF19: 26 | DG19: 2 | DH19: 0 | DI19: 1 | DJ19: 1 | DK19: 39 | DL19: 1 | DM19: 0 | DN19: 1 | DO19: 1 | DP19: 40 | DQ19: 5 | DR19: 1 | DS19: 0 | DT19: 0 | DU19: 49 | DV19: 7 | DW19: 0 | DX19: 0 | DY19: 3
A20: 05 | B20: ANTIOQUIA | C20: 021 | D20: 05021 | E20: ALEJANDRÍA | F20: 050213 | G20: 3 | H20: 8 | I20: 1 | J20: 1 | K20: 0 | L20: 0 | M20: 9 | N20: 0 | O20: 3 | P20: 0 | Q20: 1 | R20: 10 | S20: 0 | T20: 0 | U20: 0 | V20: 1 | W20: 10 | X20: 0 | Y20: 0 | Z20: 0 | AA20: 0 | AB20: 12 | AC20: 0 | AD20: 0 | AE20: 0 | AF20: 0 | AG20: 11 | AH20: 0 | AI20: 0 | AJ20: 0 | AK20: 0 | AL20: 12 | AM20: 0 | AN20: 0 | AO20: 0 | AP20: 0 | AQ20: 11 | AR20: 0 | AS20: 0 | AT20: 0 | AU20: 0 | AV20: =+IFERROR(VLOOKUP($F20,[1]Hoja1!$F$2:$L$4485,3,0),0) -> 11 | AW20: =+IFERROR(VLOOKUP($F20,[1]Hoja1!$F$2:$L$4485,4,0),0) -> 0 | AX20: =+IFERROR(VLOOKUP($F20,[1]Hoja1!$F$2:$L$4485,5,0),0) -> 0 | AY20: =+IFERROR(VLOOKUP($F20,[1]Hoja1!$F$2:$L$4485,6,0),0) -> 0 | AZ20: =+IFERROR(VLOOKUP($F20,[1]Hoja1!$F$2:$L$4485,7,0),0) -> 0 | BA20: =+IFERROR(VLOOKUP($F20,[2]Hoja1!$F$2:$L$4485,3,0),0) -> 12 | BB20: =+IFERROR(VLOOKUP($F20,[2]Hoja1!$F$2:$L$4485,4,0),0) -> 0 | BC20: =+IFERROR(VLOOKUP($F20,[2]Hoja1!$F$2:$L$4485,5,0),0) -> 1 | BD20: =+IFERROR(VLOOKUP($F20,[2]Hoja1!$F$2:$L$4485,6,0),0) -> 0 | BE20: =+IFERROR(VLOOKUP($F20,[2]Hoja1!$F$2:$L$4485,7,0),0) -> 0 | BU20: 19 | BV20: CAUCA | BW20: 100 | BX20: 19100 | BY20: BOLÍVAR | BZ20: 191003 | CA20: 3 | CB20: 19 | CC20: 0 | CD20: 2 | CE20: 0 | CF20: 2 | CG20: 19 | CH20: 1 | CI20: 0 | CJ20: 1 | CK20: 7 | CL20: 16 | CM20: 0 | CN20: 0 | CO20: 0 | CP20: 6 | CQ20: 15 | CR20: 0 | CS20: 3 | CT20: 0 | CU20: 2 | CV20: 10 | CW20: 0 | CX20: 0 | CY20: 0 | CZ20: 0 | DA20: 10 | DB20: 0 | DC20: 0 | DD20: 0 | DE20: 0 | DF20: 14 | DG20: 0 | DH20: 0 | DI20: 0 | DJ20: 0 | DK20: 17 | DL20: 0 | DM20: 0 | DN20: 0 | DO20: 1 | DP20: 19 | DQ20: 0 | DR20: 0 | DS20: 0 | DT20: 0 | DU20: 18 | DV20: 0 | DW20: 0 | DX20: 0 | DY20: 2
A21: 05 | B21: ANTIOQUIA | C21: 021 | D21: 05021 | E21: ALEJANDRÍA | F21: 050214 | G21: 4 | H21: 0 | I21: 0 | J21: 0 | K21: 0 | L21: 0 | M21: 0 | N21: 0 | O21: 0 | P21: 0 | Q21: 0 | R21: 0 | S21: 0 | T21: 0 | U21: 0 | V21: 0 | W21: 0 | X21: 0 | Y21: 0 | Z21: 0 | AA21: 0 | AB21: 0 | AC21: 0 | AD21: 0 | AE21: 0 | AF21: 0 | AG21: 1 | AH21: 1 | AI21: 0 | AJ21: 0 | AK21: 0 | AL21: 1 | AM21: 0 | AN21: 1 | AO21: 0 | AP21: 0 | AQ21: 0 | AR21: 0 | AS21: 0 | AT21: 0 | AU21: 0 | AV21: =+IFERROR(VLOOKUP($F21,[1]Hoja1!$F$2:$L$4485,3,0),0) -> 0 | AW21: =+IFERROR(VLOOKUP($F21,[1]Hoja1!$F$2:$L$4485,4,0),0) -> 0 | AX21: =+IFERROR(VLOOKUP($F21,[1]Hoja1!$F$2:$L$4485,5,0),0) -> 0 | AY21: =+IFERROR(VLOOKUP($F21,[1]Hoja1!$F$2:$L$4485,6,0),0) -> 0 | AZ21: =+IFERROR(VLOOKUP($F21,[1]Hoja1!$F$2:$L$4485,7,0),0) -> 0 | BA21: =+IFERROR(VLOOKUP($F21,[2]Hoja1!$F$2:$L$4485,3,0),0) -> 0 | BB21: =+IFERROR(VLOOKUP($F21,[2]Hoja1!$F$2:$L$4485,4,0),0) -> 0 | BC21: =+IFERROR(VLOOKUP($F21,[2]Hoja1!$F$2:$L$4485,5,0),0) -> 0 | BD21: =+IFERROR(VLOOKUP($F21,[2]Hoja1!$F$2:$L$4485,6,0),0) -> 0 | BE21: =+IFERROR(VLOOKUP($F21,[2]Hoja1!$F$2:$L$4485,7,0),0) -> 0 | BU21: 19 | BV21: CAUCA | BW21: 100 | BX21: 19100 | BY21: BOLÍVAR | BZ21: 191004 | CA21: 4 | CB21: 1 | CC21: 0 | CD21: 0 | CE21: 0 | CF21: 0 | CG21: 2 | CH21: 0 | CI21: 0 | CJ21: 0 | CK21: 0 | CL21: 3 | CM21: 0 | CN21: 0 | CO21: 0 | CP21: 1 | CQ21: 1 | CR21: 0 | CS21: 0 | CT21: 0 | CU21: 0 | CV21: 1 | CW21: 0 | CX21: 0 | CY21: 0 | CZ21: 0 | DA21: 1 | DB21: 0 | DC21: 0 | DD21: 0 | DE21: 0 | DF21: 1 | DG21: 0 | DH21: 0 | DI21: 0 | DJ21: 0 | DK21: 2 | DL21: 0 | DM21: 0 | DN21: 0 | DO21: 0 | DP21: 3 | DQ21: 0 | DR21: 0 | DS21: 0 | DT21: 0 | DU21: 2 | DV21: 0 | DW21: 0 | DX21: 0 | DY21: 0
A22: 05 | B22: ANTIOQUIA | C22: 030 | D22: 05030 | E22: AMAGÁ | F22: 050301 | G22: 1 | H22: 2445 | I22: 653 | J22: 372 | K22: 48 | L22: 154 | M22: 2445 | N22: 512 | O22: 277 | P22: 95 | Q22: 71 | R22: 2717 | S22: 315 | T22: 471 | U22: 153 | V22: 557 | W22: 2568 | X22: 214 | Y22: 298 | Z22: 176 | AA22: 692 | AB22: 2386 | AC22: 441 | AD22: 304 | AE22: 71 | AF22: 64 | AG22: 2416 | AH22: 417 | AI22: 345 | AJ22: 33 | AK22: 44 | AL22: 2494 | AM22: 430 | AN22: 356 | AO22: 36 | AP22: 45 | AQ22: 2588 | AR22: 485 | AS22: 365 | AT22: 49 | AU22: 90 | AV22: =+IFERROR(VLOOKUP($F22,[1]Hoja1!$F$2:$L$4485,3,0),0) -> 2770 | AW22: =+IFERROR(VLOOKUP($F22,[1]Hoja1!$F$2:$L$4485,4,0),0) -> 577 | AX22: =+IFERROR(VLOOKUP($F22,[1]Hoja1!$F$2:$L$4485,5,0),0) -> 446 | AY22: =+IFERROR(VLOOKUP($F22,[1]Hoja1!$F$2:$L$4485,6,0),0) -> 61 | AZ22: =+IFERROR(VLOOKUP($F22,[1]Hoja1!$F$2:$L$4485,7,0),0) -> 83 | BA22: =+IFERROR(VLOOKUP($F22,[2]Hoja1!$F$2:$L$4485,3,0),0) -> 2720 | BB22: =+IFERROR(VLOOKUP($F22,[2]Hoja1!$F$2:$L$4485,4,0),0) -> 507 | BC22: =+IFERROR(VLOOKUP($F22,[2]Hoja1!$F$2:$L$4485,5,0),0) -> 416 | BD22: =+IFERROR(VLOOKUP($F22,[2]Hoja1!$F$2:$L$4485,6,0),0) -> 52 | BE22: =+IFERROR(VLOOKUP($F22,[2]Hoja1!$F$2:$L$4485,7,0),0) -> 69 | BU22: 19 | BV22: CAUCA | BW22: 110 | BX22: 19110 | BY22: BUENOS AIRES | BZ22: 191101 | CA22: 1 | CB22: 395 | CC22: 147 | CD22: 47 | CE22: 4 | CF22: 14 | CG22: 344 | CH22: 55 | CI22: 34 | CJ22: 3 | CK22: 1 | CL22: 399 | CM22: 30 | CN22: 100 | CO22: 1 | CP22: 0 | CQ22: 276 | CR22: 18 | CS22: 28 | CT22: 11 | CU22: 11 | CV22: 326 | CW22: 50 | CX22: 21 | CY22: 2 | CZ22: 2 | DA22: 383 | DB22: 61 | DC22: 55 | DD22: 3 | DE22: 1 | DF22: 343 | DG22: 41 | DH22: 53 | DI22: 3 | DJ22: 3 | DK22: 333 | DL22: 40 | DM22: 47 | DN22: 3 | DO22: 1 | DP22: 331 | DQ22: 35 | DR22: 46 | DS22: 1 | DT22: 1 | DU22: 363 | DV22: 46 | DW22: 58 | DX22: 2 | DY22: 2
A23: 05 | B23: ANTIOQUIA | C23: 030 | D23: 05030 | E23: AMAGÁ | F23: 050302 | G23: 2 | H23: 1389 | I23: 82 | J23: 56 | K23: 50 | L23: 128 | M23: 1487 | N23: 57 | O23: 39 | P23: 44 | Q23: 39 | R23: 1323 | S23: 26 | T23: 28 | U23: 64 | V23: 362 | W23: 1244 | X23: 18 | Y23: 34 | Z23: 64 | AA23: 325 | AB23: 1449 | AC23: 44 | AD23: 26 | AE23: 59 | AF23: 32 | AG23: 1500 | AH23: 52 | AI23: 36 | AJ23: 58 | AK23: 25 | AL23: 1416 | AM23: 52 | AN23: 23 | AO23: 57 | AP23: 55 | AQ23: 1459 | AR23: 37 | AS23: 29 | AT23: 43 | AU23: 73 | AV23: =+IFERROR(VLOOKUP($F23,[1]Hoja1!$F$2:$L$4485,3,0),0) -> 1640 | AW23: =+IFERROR(VLOOKUP($F23,[1]Hoja1!$F$2:$L$4485,4,0),0) -> 86 | AX23: =+IFERROR(VLOOKUP($F23,[1]Hoja1!$F$2:$L$4485,5,0),0) -> 43 | AY23: =+IFERROR(VLOOKUP($F23,[1]Hoja1!$F$2:$L$4485,6,0),0) -> 93 | AZ23: =+IFERROR(VLOOKUP($F23,[1]Hoja1!$F$2:$L$4485,7,0),0) -> 53 | BA23: =+IFERROR(VLOOKUP($F23,[2]Hoja1!$F$2:$L$4485,3,0),0) -> 1720 | BB23: =+IFERROR(VLOOKUP($F23,[2]Hoja1!$F$2:$L$4485,4,0),0) -> 58 | BC23: =+IFERROR(VLOOKUP($F23,[2]Hoja1!$F$2:$L$4485,5,0),0) -> 54 | BD23: =+IFERROR(VLOOKUP($F23,[2]Hoja1!$F$2:$L$4485,6,0),0) -> 71 | BE23: =+IFERROR(VLOOKUP($F23,[2]Hoja1!$F$2:$L$4485,7,0),0) -> 60 | BU23: 19 | BV23: CAUCA | BW23: 110 | BX23: 19110 | BY23: BUENOS AIRES | BZ23: 191102 | CA23: 2 | CB23: 131 | CC23: 7 | CD23: 0 | CE23: 1 | CF23: 8 | CG23: 188 | CH23: 5 | CI23: 4 | CJ23: 4 | CK23: 10 | CL23: 137 | CM23: 1 | CN23: 5 | CO23: 1 | CP23: 2 | CQ23: 178 | CR23: 1 | CS23: 4 | CT23: 3 | CU23: 13 | CV23: 162 | CW23: 1 | CX23: 1 | CY23: 5 | CZ23: 4 | DA23: 218 | DB23: 46 | DC23: 4 | DD23: 5 | DE23: 2 | DF23: 158 | DG23: 0 | DH23: 0 | DI23: 2 | DJ23: 3 | DK23: 166 | DL23: 2 | DM23: 1 | DN23: 0 | DO23: 2 | DP23: 169 | DQ23: 0 | DR23: 0 | DS23: 5 | DT23: 6 | DU23: 140 | DV23: 2 | DW23: 5 | DX23: 5 | DY23: 5
A24: 05 | B24: ANTIOQUIA | C24: 030 | D24: 05030 | E24: AMAGÁ | F24: 050303 | G24: 3 | H24: 413 | I24: 6 | J24: 10 | K24: 7 | L24: 39 | M24: 438 | N24: 10 | O24: 6 | P24: 5 | Q24: 18 | R24: 409 | S24: 4 | T24: 6 | U24: 11 | V24: 157 | W24: 308 | X24: 2 | Y24: 5 | Z24: 4 | AA24: 116 | AB24: 459 | AC24: 19 | AD24: 8 | AE24: 10 | AF24: 8 | AG24: 516 | AH24: 6 | AI24: 13 | AJ24: 10 | AK24: 4 | AL24: 556 | AM24: 14 | AN24: 6 | AO24: 14 | AP24: 8 | AQ24: 563 | AR24: 15 | AS24: 21 | AT24: 6 | AU24: 14 | AV24: =+IFERROR(VLOOKUP($F24,[1]Hoja1!$F$2:$L$4485,3,0),0) -> 611 | AW24: =+IFERROR(VLOOKUP($F24,[1]Hoja1!$F$2:$L$4485,4,0),0) -> 30 | AX24: =+IFERROR(VLOOKUP($F24,[1]Hoja1!$F$2:$L$4485,5,0),0) -> 23 | AY24: =+IFERROR(VLOOKUP($F24,[1]Hoja1!$F$2:$L$4485,6,0),0) -> 7 | AZ24: =+IFERROR(VLOOKUP($F24,[1]Hoja1!$F$2:$L$4485,7,0),0) -> 7 | BA24: =+IFERROR(VLOOKUP($F24,[2]Hoja1!$F$2:$L$4485,3,0),0) -> 681 | BB24: =+IFERROR(VLOOKUP($F24,[2]Hoja1!$F$2:$L$4485,4,0),0) -> 16 | BC24: =+IFERROR(VLOOKUP($F24,[2]Hoja1!$F$2:$L$4485,5,0),0) -> 15 | BD24: =+IFERROR(VLOOKUP($F24,[2]Hoja1!$F$2:$L$4485,6,0),0) -> 15 | BE24: =+IFERROR(VLOOKUP($F24,[2]Hoja1!$F$2:$L$4485,7,0),0) -> 13 | BU24: 19 | BV24: CAUCA | BW24: 110 | BX24: 19110 | BY24: BUENOS AIRES | BZ24: 191103 | CA24: 3 | CB24: 14 | CC24: 1 | CD24: 3 | CE24: 0 | CF24: 2 | CG24: 17 | CH24: 2 | CI24: 0 | CJ24: 1 | CK24: 1 | CL24: 14 | CM24: 0 | CN24: 0 | CO24: 0 | CP24: 1 | CQ24: 11 | CR24: 0 | CS24: 0 | CT24: 0 | CU24: 0 | CV24: 14 | CW24: 0 | CX24: 0 | CY24: 0 | CZ24: 0 | DA24: 17 | DB24: 3 | DC24: 0 | DD24: 0 | DE24: 0 | DF24: 10 | DG24: 1 | DH24: 0 | DI24: 0 | DJ24: 1 | DK24: 12 | DL24: 0 | DM24: 0 | DN24: 0 | DO24: 1 | DP24: 12 | DQ24: 0 | DR24: 0 | DS24: 0 | DT24: 1 | DU24: 11 | DV24: 0 | DW24: 0 | DX24: 0 | DY24: 0
A25: 05 | B25: ANTIOQUIA | C25: 030 | D25: 05030 | E25: AMAGÁ | F25: 050304 | G25: 4 | H25: 35 | I25: 1 | J25: 1 | K25: 0 | L25: 6 | M25: 40 | N25: 0 | O25: 0 | P25: 0 | Q25: 1 | R25: 28 | S25: 0 | T25: 0 | U25: 0 | V25: 8 | W25: 21 | X25: 0 | Y25: 0 | Z25: 1 | AA25: 9 | AB25: 41 | AC25: 0 | AD25: 2 | AE25: 1 | AF25: 1 | AG25: 54 | AH25: 0 | AI25: 1 | AJ25: 0 | AK25: 0 | AL25: 53 | AM25: 0 | AN25: 2 | AO25: 0 | AP25: 0 | AQ25: 62 | AR25: 0 | AS25: 9 | AT25: 0 | AU25: 0 | AV25: =+IFERROR(VLOOKUP($F25,[1]Hoja1!$F$2:$L$4485,3,0),0) -> 49 | AW25: =+IFERROR(VLOOKUP($F25,[1]Hoja1!$F$2:$L$4485,4,0),0) -> 0 | AX25: =+IFERROR(VLOOKUP($F25,[1]Hoja1!$F$2:$L$4485,5,0),0) -> 0 | AY25: =+IFERROR(VLOOKUP($F25,[1]Hoja1!$F$2:$L$4485,6,0),0) -> 0 | AZ25: =+IFERROR(VLOOKUP($F25,[1]Hoja1!$F$2:$L$4485,7,0),0) -> 0 | BA25: =+IFERROR(VLOOKUP($F25,[2]Hoja1!$F$2:$L$4485,3,0),0) -> 47 | BB25: =+IFERROR(VLOOKUP($F25,[2]Hoja1!$F$2:$L$4485,4,0),0) -> 2 | BC25: =+IFERROR(VLOOKUP($F25,[2]Hoja1!$F$2:$L$4485,5,0),0) -> 2 | BD25: =+IFERROR(VLOOKUP($F25,[2]Hoja1!$F$2:$L$4485,6,0),0) -> 1 | BE25: =+IFERROR(VLOOKUP($F25,[2]Hoja1!$F$2:$L$4485,7,0),0) -> 0 | BU25: 19 | BV25: CAUCA | BW25: 110 | BX25: 19110 | BY25: BUENOS AIRES | BZ25: 191104 | CA25: 4 | CB25: 2 | CC25: 0 | CD25: 0 | CE25: 0 | CF25: 0 | CG25: 2 | CH25: 0 | CI25: 0 | CJ25: 0 | CK25: 0 | CL25: 2 | CM25: 0 | CN25: 0 | CO25: 0 | CP25: 0 | CQ25: 2 | CR25: 0 | CS25: 0 | CT25: 0 | CU25: 0 | CV25: 2 | CW25: 0 | CX25: 0 | CY25: 0 | CZ25: 0 | DA25: 2 | DB25: 0 | DC25: 0 | DD25: 0 | DE25: 0 | DF25: 2 | DG25: 0 | DH25: 0 | DI25: 0 | DJ25: 0 | DK25: 2 | DL25: 0 | DM25: 0 | DN25: 0 | DO25: 0 | DP25: 2 | DQ25: 0 | DR25: 0 | DS25: 0 | DT25: 0 | DU25: 3 | DV25: 0 | DW25: 1 | DX25: 0 | DY25: 1
A26: 05 | B26: ANTIOQUIA | C26: 031 | D26: 05031 | E26: AMALFI | F26: 050311 | G26: 1 | H26: 1239 | I26: 602 | J26: 218 | K26: 3 | L26: 38 | M26: 1391 | N26: 649 | O26: 253 | P26: 5 | Q26: 11 | R26: 1388 | S26: 522 | T26: 384 | U26: 7 | V26: 32 | W26: 1123 | X26: 443 | Y26: 163 | Z26: 11 | AA26: 45 | AB26: 1132 | AC26: 471 | AD26: 124 | AE26: 3 | AF26: 7 | AG26: 1327 | AH26: 632 | AI26: 228 | AJ26: 5 | AK26: 4 | AL26: 1429 | AM26: 647 | AN26: 296 | AO26: 4 | AP26: 11 | AQ26: 1385 | AR26: 566 | AS26: 347 | AT26: 5 | AU26: 11 | AV26: =+IFERROR(VLOOKUP($F26,[1]Hoja1!$F$2:$L$4485,3,0),0) -> 1380 | AW26: =+IFERROR(VLOOKUP($F26,[1]Hoja1!$F$2:$L$4485,4,0),0) -> 656 | AX26: =+IFERROR(VLOOKUP($F26,[1]Hoja1!$F$2:$L$4485,5,0),0) -> 256 | AY26: =+IFERROR(VLOOKUP($F26,[1]Hoja1!$F$2:$L$4485,6,0),0) -> 4 | AZ26: =+IFERROR(VLOOKUP($F26,[1]Hoja1!$F$2:$L$4485,7,0),0) -> 12 | BA26: =+IFERROR(VLOOKUP($F26,[2]Hoja1!$F$2:$L$4485,3,0),0) -> 1348 | BB26: =+IFERROR(VLOOKUP($F26,[2]Hoja1!$F$2:$L$4485,4,0),0) -> 618 | BC26: =+IFERROR(VLOOKUP($F26,[2]Hoja1!$F$2:$L$4485,5,0),0) -> 244 | BD26: =+IFERROR(VLOOKUP($F26,[2]Hoja1!$F$2:$L$4485,6,0),0) -> 5 | BE26: =+IFERROR(VLOOKUP($F26,[2]Hoja1!$F$2:$L$4485,7,0),0) -> 10 | BU26: 19 | BV26: CAUCA | BW26: 130 | BX26: 19130 | BY26: CAJIBÍO | BZ26: 191301 | CA26: 1 | CB26: 245 | CC26: 38 | CD26: 40 | CE26: 1 | CF26: 13 | CG26: 179 | CH26: 18 | CI26: 10 | CJ26: 0 | CK26: 0 | CL26: 181 | CM26: 10 | CN26: 13 | CO26: 0 | CP26: 0 | CQ26: 185 | CR26: 5 | CS26: 10 | CT26: 1 | CU26: 2 | CV26: 183 | CW26: 3 | CX26: 5 | CY26: 2 | CZ26: 4 | DA26: 194 | DB26: 6 | DC26: 11 | DD26: 1 | DE26: 2 | DF26: 195 | DG26: 6 | DH26: 6 | DI26: 0 | DJ26: 3 | DK26: 183 | DL26: 8 | DM26: 5 | DN26: 1 | DO26: 1 | DP26: 193 | DQ26: 9 | DR26: 7 | DS26: 0 | DT26: 4 | DU26: 197 | DV26: 8 | DW26: 6 | DX26: 0 | DY26: 0
A27: 05 | B27: ANTIOQUIA | C27: 031 | D27: 05031 | E27: AMALFI | F27: 050312 | G27: 2 | H27: 227 | I27: 57 | J27: 5 | K27: 4 | L27: 15 | M27: 253 | N27: 14 | O27: 5 | P27: 2 | Q27: 9 | R27: 277 | S27: 11 | T27: 3 | U27: 5 | V27: 27 | W27: 311 | X27: 25 | Y27: 5 | Z27: 10 | AA27: 21 | AB27: 330 | AC27: 6 | AD27: 5 | AE27: 6 | AF27: 6 | AG27: 316 | AH27: 11 | AI27: 13 | AJ27: 5 | AK27: 4 | AL27: 308 | AM27: 5 | AN27: 5 | AO27: 4 | AP27: 3 | AQ27: 311 | AR27: 8 | AS27: 20 | AT27: 5 | AU27: 7 | AV27: =+IFERROR(VLOOKUP($F27,[1]Hoja1!$F$2:$L$4485,3,0),0) -> 326 | AW27: =+IFERROR(VLOOKUP($F27,[1]Hoja1!$F$2:$L$4485,4,0),0) -> 27 | AX27: =+IFERROR(VLOOKUP($F27,[1]Hoja1!$F$2:$L$4485,5,0),0) -> 6 | AY27: =+IFERROR(VLOOKUP($F27,[1]Hoja1!$F$2:$L$4485,6,0),0) -> 2 | AZ27: =+IFERROR(VLOOKUP($F27,[1]Hoja1!$F$2:$L$4485,7,0),0) -> 5 | BA27: =+IFERROR(VLOOKUP($F27,[2]Hoja1!$F$2:$L$4485,3,0),0) -> 333 | BB27: =+IFERROR(VLOOKUP($F27,[2]Hoja1!$F$2:$L$4485,4,0),0) -> 14 | BC27: =+IFERROR(VLOOKUP($F27,[2]Hoja1!$F$2:$L$4485,5,0),0) -> 6 | BD27: =+IFERROR(VLOOKUP($F27,[2]Hoja1!$F$2:$L$4485,6,0),0) -> 2 | BE27: =+IFERROR(VLOOKUP($F27,[2]Hoja1!$F$2:$L$4485,7,0),0) -> 14 | BU27: 19 | BV27: CAUCA | BW27: 130 | BX27: 19130 | BY27: CAJIBÍO | BZ27: 191302 | CA27: 2 | CB27: 44 | CC27: 3 | CD27: 1 | CE27: 1 | CF27: 9 | CG27: 49 | CH27: 3 | CI27: 1 | CJ27: 0 | CK27: 1 | CL27: 49 | CM27: 4 | CN27: 2 | CO27: 1 | CP27: 0 | CQ27: 41 | CR27: 0 | CS27: 2 | CT27: 1 | CU27: 0 | CV27: 35 | CW27: 1 | CX27: 1 | CY27: 1 | CZ27: 1 | DA27: 34 | DB27: 1 | DC27: 0 | DD27: 1 | DE27: 1 | DF27: 37 | DG27: 3 | DH27: 1 | DI27: 1 | DJ27: 0 | DK27: 42 | DL27: 2 | DM27: 1 | DN27: 0 | DO27: 4 | DP27: 36 | DQ27: 4 | DR27: 0 | DS27: 0 | DT27: 1 | DU27: 37 | DV27: 0 | DW27: 1 | DX27: 0 | DY27: 0
A28: 05 | B28: ANTIOQUIA | C28: 031 | D28: 05031 | E28: AMALFI | F28: 050313 | G28: 3 | H28: 74 | I28: 7 | J28: 2 | K28: 0 | L28: 1 | M28: 84 | N28: 4 | O28: 1 | P28: 0 | Q28: 1 | R28: 82 | S28: 2 | T28: 3 | U28: 1 | V28: 3 | W28: 78 | X28: 5 | Y28: 2 | Z28: 1 | AA28: 3 | AB28: 81 | AC28: 1 | AD28: 1 | AE28: 3 | AF28: 3 | AG28: 86 | AH28: 2 | AI28: 4 | AJ28: 1 | AK28: 2 | AL28: 81 | AM28: 1 | AN28: 0 | AO28: 1 | AP28: 1 | AQ28: 84 | AR28: 1 | AS28: 1 | AT28: 0 | AU28: 0 | AV28: =+IFERROR(VLOOKUP($F28,[1]Hoja1!$F$2:$L$4485,3,0),0) -> 90 | AW28: =+IFERROR(VLOOKUP($F28,[1]Hoja1!$F$2:$L$4485,4,0),0) -> 4 | AX28: =+IFERROR(VLOOKUP($F28,[1]Hoja1!$F$2:$L$4485,5,0),0) -> 0 | AY28: =+IFERROR(VLOOKUP($F28,[1]Hoja1!$F$2:$L$4485,6,0),0) -> 0 | AZ28: =+IFERROR(VLOOKUP($F28,[1]Hoja1!$F$2:$L$4485,7,0),0) -> 3 | BA28: =+IFERROR(VLOOKUP($F28,[2]Hoja1!$F$2:$L$4485,3,0),0) -> 94 | BB28: =+IFERROR(VLOOKUP($F28,[2]Hoja1!$F$2:$L$4485,4,0),0) -> 4 | BC28: =+IFERROR(VLOOKUP($F28,[2]Hoja1!$F$2:$L$4485,5,0),0) -> 1 | BD28: =+IFERROR(VLOOKUP($F28,[2]Hoja1!$F$2:$L$4485,6,0),0) -> 0 | BE28: =+IFERROR(VLOOKUP($F28,[2]Hoja1!$F$2:$L$4485,7,0),0) -> 1 | BU28: 19 | BV28: CAUCA | BW28: 130 | BX28: 19130 | BY28: CAJIBÍO | BZ28: 191303 | CA28: 3 | CB28: 6 | CC28: 1 | CD28: 1 | CE28: 0 | CF28: 0 | CG28: 14 | CH28: 1 | CI28: 0 | CJ28: 0 | CK28: 0 | CL28: 15 | CM28: 0 | CN28: 0 | CO28: 0 | CP28: 0 | CQ28: 18 | CR28: 0 | CS28: 1 | CT28: 0 | CU28: 0 | CV28: 17 | CW28: 0 | CX28: 0 | CY28: 1 | CZ28: 0 | DA28: 16 | DB28: 0 | DC28: 0 | DD28: 0 | DE28: 0 | DF28: 18 | DG28: 0 | DH28: 0 | DI28: 0 | DJ28: 0 | DK28: 20 | DL28: 0 | DM28: 2 | DN28: 0 | DO28: 0 | DP28: 18 | DQ28: 0 | DR28: 0 | DS28: 0 | DT28: 0 | DU28: 18 | DV28: 0 | DW28: 0 | DX28: 0 | DY28: 0
A29: 05 | B29: ANTIOQUIA | C29: 031 | D29: 05031 | E29: AMALFI | F29: 050314 | G29: 4 | H29: 12 | I29: 1 | J29: 1 | K29: 0 | L29: 0 | M29: 8 | N29: 0 | O29: 0 | P29: 0 | Q29: 0 | R29: 10 | S29: 0 | T29: 0 | U29: 0 | V29: 2 | W29: 9 | X29: 0 | Y29: 0 | Z29: 0 | AA29: 2 | AB29: 7 | AC29: 0 | AD29: 0 | AE29: 1 | AF29: 0 | AG29: 11 | AH29: 0 | AI29: 0 | AJ29: 0 | AK29: 1 | AL29: 8 | AM29: 0 | AN29: 0 | AO29: 0 | AP29: 0 | AQ29: 7 | AR29: 0 | AS29: 0 | AT29: 0 | AU29: 0 | AV29: =+IFERROR(VLOOKUP($F29,[1]Hoja1!$F$2:$L$4485,3,0),0) -> 5 | AW29: =+IFERROR(VLOOKUP($F29,[1]Hoja1!$F$2:$L$4485,4,0),0) -> 0 | AX29: =+IFERROR(VLOOKUP($F29,[1]Hoja1!$F$2:$L$4485,5,0),0) -> 0 | AY29: =+IFERROR(VLOOKUP($F29,[1]Hoja1!$F$2:$L$4485,6,0),0) -> 0 | AZ29: =+IFERROR(VLOOKUP($F29,[1]Hoja1!$F$2:$L$4485,7,0),0) -> 0 | BA29: =+IFERROR(VLOOKUP($F29,[2]Hoja1!$F$2:$L$4485,3,0),0) -> 7 | BB29: =+IFERROR(VLOOKUP($F29,[2]Hoja1!$F$2:$L$4485,4,0),0) -> 0 | BC29: =+IFERROR(VLOOKUP($F29,[2]Hoja1!$F$2:$L$4485,5,0),0) -> 0 | BD29: =+IFERROR(VLOOKUP($F29,[2]Hoja1!$F$2:$L$4485,6,0),0) -> 0 | BE29: =+IFERROR(VLOOKUP($F29,[2]Hoja1!$F$2:$L$4485,7,0),0) -> 0 | BU29: 19 | BV29: CAUCA | BW29: 130 | BX29: 19130 | BY29: CAJIBÍO | BZ29: 191304 | CA29: 4 | CB29: 0 | CC29: 0 | CD29: 0 | CE29: 0 | CF29: 0 | CG29: 1 | CH29: 0 | CI29: 0 | CJ29: 0 | CK29: 0 | CL29: 1 | CM29: 0 | CN29: 0 | CO29: 0 | CP29: 0 | CQ29: 1 | CR29: 0 | CS29: 0 | CT29: 0 | CU29: 0 | CV29: 1 | CW29: 0 | CX29: 0 | CY29: 0 | CZ29: 0 | DA29: 1 | DB29: 0 | DC29: 0 | DD29: 0 | DE29: 0 | DF29: 1 | DG29: 0 | DH29: 0 | DI29: 0 | DJ29: 0 | DK29: 1 | DL29: 0 | DM29: 0 | DN29: 0 | DO29: 0 | DP29: 1 | DQ29: 0 | DR29: 0 | DS29: 0 | DT29: 0 | DU29: 1 | DV29: 0 | DW29: 0 | DX29: 0 | DY29: 0
A30: 05 | B30: ANTIOQUIA | C30: 034 | D30: 05034 | E30: ANDES | F30: 050341 | G30: 1 | H30: 1319 | I30: 206 | J30: 144 | K30: 1 | L30: 41 | M30: 1277 | N30: 108 | O30: 109 | P30: 5 | Q30: 39 | R30: 1270 | S30: 91 | T30: 151 | U30: 10 | V30: 223 | W30: 1235 | X30: 92 | Y30: 36 | Z30: 22 | AA30: 279 | AB30: 1263 | AC30: 106 | AD30: 80 | AE30: 9 | AF30: 43 | AG30: 1259 | AH30: 102 | AI30: 111 | AJ30: 6 | AK30: 24 | AL30: 1213 | AM30: 81 | AN30: 81 | AO30: 6 | AP30: 26 | AQ30: 1219 | AR30: 94 | AS30: 87 | AT30: 3 | AU30: 14 | AV30: =+IFERROR(VLOOKUP($F30,[1]Hoja1!$F$2:$L$4485,3,0),0) -> 1292 | AW30: =+IFERROR(VLOOKUP($F30,[1]Hoja1!$F$2:$L$4485,4,0),0) -> 132 | AX30: =+IFERROR(VLOOKUP($F30,[1]Hoja1!$F$2:$L$4485,5,0),0) -> 95 | AY30: =+IFERROR(VLOOKUP($F30,[1]Hoja1!$F$2:$L$4485,6,0),0) -> 4 | AZ30: =+IFERROR(VLOOKUP($F30,[1]Hoja1!$F$2:$L$4485,7,0),0) -> 10 | BA30: =+IFERROR(VLOOKUP($F30,[2]Hoja1!$F$2:$L$4485,3,0),0) -> 1286 | BB30: =+IFERROR(VLOOKUP($F30,[2]Hoja1!$F$2:$L$4485,4,0),0) -> 114 | BC30: =+IFERROR(VLOOKUP($F30,[2]Hoja1!$F$2:$L$4485,5,0),0) -> 110 | BD30: =+IFERROR(VLOOKUP($F30,[2]Hoja1!$F$2:$L$4485,6,0),0) -> 1 | BE30: =+IFERROR(VLOOKUP($F30,[2]Hoja1!$F$2:$L$4485,7,0),0) -> 9 | BU30: 19 | BV30: CAUCA | BW30: 137 | BX30: 19137 | BY30: CALDONO | BZ30: 191371 | CA30: 1 | CB30: 141 | CC30: 62 | CD30: 49 | CE30: 0 | CF30: 0 | CG30: 120 | CH30: 47 | CI30: 44 | CJ30: 0 | CK30: 2 | CL30: 134 | CM30: 60 | CN30: 78 | CO30: 0 | CP30: 3 | CQ30: 110 | CR30: 45 | CS30: 31 | CT30: 1 | CU30: 2 | CV30: 101 | CW30: 26 | CX30: 33 | CY30: 4 | CZ30: 0 | DA30: 150 | DB30: 69 | DC30: 61 | DD30: 2 | DE30: 0 | DF30: 168 | DG30: 62 | DH30: 65 | DI30: 1 | DJ30: 0 | DK30: 136 | DL30: 39 | DM30: 27 | DN30: 4 | DO30: 0 | DP30: 108 | DQ30: 13 | DR30: 9 | DS30: 1 | DT30: 0 | DU30: 109 | DV30: 16 | DW30: 14 | DX30: 1 | DY30: 0
A31: 05 | B31: ANTIOQUIA | C31: 034 | D31: 05034 | E31: ANDES | F31: 050342 | G31: 2 | H31: 348 | I31: 9 | J31: 5 | K31: 0 | L31: 17 | M31: 357 | N31: 10 | O31: 7 | P31: 2 | Q31: 8 | R31: 350 | S31: 7 | T31: 13 | U31: 0 | V31: 22 | W31: 318 | X31: 1 | Y31: 8 | Z31: 1 | AA31: 19 | AB31: 357 | AC31: 3 | AD31: 4 | AE31: 1 | AF31: 2 | AG31: 373 | AH31: 3 | AI31: 10 | AJ31: 0 | AK31: 5 | AL31: 399 | AM31: 9 | AN31: 6 | AO31: 1 | AP31: 9 | AQ31: 399 | AR31: 9 | AS31: 4 | AT31: 0 | AU31: 4 | AV31: =+IFERROR(VLOOKUP($F31,[1]Hoja1!$F$2:$L$4485,3,0),0) -> 402 | AW31: =+IFERROR(VLOOKUP($F31,[1]Hoja1!$F$2:$L$4485,4,0),0) -> 13 | AX31: =+IFERROR(VLOOKUP($F31,[1]Hoja1!$F$2:$L$4485,5,0),0) -> 9 | AY31: =+IFERROR(VLOOKUP($F31,[1]Hoja1!$F$2:$L$4485,6,0),0) -> 2 | AZ31: =+IFERROR(VLOOKUP($F31,[1]Hoja1!$F$2:$L$4485,7,0),0) -> 0 | BA31: =+IFERROR(VLOOKUP($F31,[2]Hoja1!$F$2:$L$4485,3,0),0) -> 418 | BB31: =+IFERROR(VLOOKUP($F31,[2]Hoja1!$F$2:$L$4485,4,0),0) -> 14 | BC31: =+IFERROR(VLOOKUP($F31,[2]Hoja1!$F$2:$L$4485,5,0),0) -> 3 | BD31: =+IFERROR(VLOOKUP($F31,[2]Hoja1!$F$2:$L$4485,6,0),0) -> 2 | BE31: =+IFERROR(VLOOKUP($F31,[2]Hoja1!$F$2:$L$4485,7,0),0) -> 9 | BU31: 19 | BV31: CAUCA | BW31: 137 | BX31: 19137 | BY31: CALDONO | BZ31: 191372 | CA31: 2 | CB31: 71 | CC31: 17 | CD31: 2 | CE31: 0 | CF31: 1 | CG31: 69 | CH31: 1 | CI31: 2 | CJ31: 1 | CK31: 1 | CL31: 72 | CM31: 4 | CN31: 1 | CO31: 0 | CP31: 0 | CQ31: 69 | CR31: 0 | CS31: 1 | CT31: 0 | CU31: 0 | CV31: 69 | CW31: 0 | CX31: 0 | CY31: 0 | CZ31: 1 | DA31: 72 | DB31: 4 | DC31: 0 | DD31: 1 | DE31: 0 | DF31: 70 | DG31: 0 | DH31: 2 | DI31: 1 | DJ31: 0 | DK31: 68 | DL31: 4 | DM31: 0 | DN31: 0 | DO31: 0 | DP31: 76 | DQ31: 1 | DR31: 0 | DS31: 0 | DT31: 0 | DU31: 88 | DV31: 1 | DW31: 5 | DX31: 0 | DY31: 0
A32: 05 | B32: ANTIOQUIA | C32: 034 | D32: 05034 | E32: ANDES | F32: 050343 | G32: 3 | H32: 60 | I32: 1 | J32: 0 | K32: 0 | L32: 10 | M32: 69 | N32: 1 | O32: 0 | P32: 0 | Q32: 5 | R32: 69 | S32: 1 | T32: 4 | U32: 0 | V32: 9 | W32: 63 | X32: 0 | Y32: 0 | Z32: 1 | AA32: 9 | AB32: 69 | AC32: 2 | AD32: 0 | AE32: 0 | AF32: 2 | AG32: 71 | AH32: 1 | AI32: 1 | AJ32: 0 | AK32: 4 | AL32: 71 | AM32: 1 | AN32: 1 | AO32: 0 | AP32: 2 | AQ32: 79 | AR32: 1 | AS32: 2 | AT32: 0 | AU32: 2 | AV32: =+IFERROR(VLOOKUP($F32,[1]Hoja1!$F$2:$L$4485,3,0),0) -> 79 | AW32: =+IFERROR(VLOOKUP($F32,[1]Hoja1!$F$2:$L$4485,4,0),0) -> 1 | AX32: =+IFERROR(VLOOKUP($F32,[1]Hoja1!$F$2:$L$4485,5,0),0) -> 1 | AY32: =+IFERROR(VLOOKUP($F32,[1]Hoja1!$F$2:$L$4485,6,0),0) -> 0 | AZ32: =+IFERROR(VLOOKUP($F32,[1]Hoja1!$F$2:$L$4485,7,0),0) -> 5 | BA32: =+IFERROR(VLOOKUP($F32,[2]Hoja1!$F$2:$L$4485,3,0),0) -> 79 | BB32: =+IFERROR(VLOOKUP($F32,[2]Hoja1!$F$2:$L$4485,4,0),0) -> 0 | BC32: =+IFERROR(VLOOKUP($F32,[2]Hoja1!$F$2:$L$4485,5,0),0) -> 0 | BD32: =+IFERROR(VLOOKUP($F32,[2]Hoja1!$F$2:$L$4485,6,0),0) -> 0 | BE32: =+IFERROR(VLOOKUP($F32,[2]Hoja1!$F$2:$L$4485,7,0),0) -> 14 | BU32: 19 | BV32: CAUCA | BW32: 137 | BX32: 19137 | BY32: CALDONO | BZ32: 191373 | CA32: 3 | CB32: 10 | CC32: 3 | CD32: 1 | CE32: 0 | CF32: 0 | CG32: 13 | CH32: 1 | CI32: 0 | CJ32: 0 | CK32: 0 | CL32: 16 | CM32: 3 | CN32: 0 | CO32: 0 | CP32: 0 | CQ32: 18 | CR32: 0 | CS32: 0 | CT32: 0 | CU32: 1 | CV32: 18 | CW32: 1 | CX32: 0 | CY32: 0 | CZ32: 0 | DA32: 19 | DB32: 1 | DC32: 0 | DD32: 0 | DE32: 0 | DF32: 20 | DG32: 1 | DH32: 0 | DI32: 0 | DJ32: 0 | DK32: 23 | DL32: 3 | DM32: 0 | DN32: 0 | DO32: 0 | DP32: 23 | DQ32: 0 | DR32: 0 | DS32: 0 | DT32: 0 | DU32: 23 | DV32: 0 | DW32: 1 | DX32: 0 | DY32: 0
A33: 05 | B33: ANTIOQUIA | C33: 034 | D33: 05034 | E33: ANDES | F33: 050344 | G33: 4 | H33: 17 | I33: 0 | J33: 0 | K33: 0 | L33: 4 | M33: 15 | N33: 0 | O33: 0 | P33: 0 | Q33: 1 | R33: 16 | S33: 0 | T33: 0 | U33: 1 | V33: 2 | W33: 9 | X33: 0 | Y33: 1 | Z33: 0 | AA33: 3 | AB33: 8 | AC33: 0 | AD33: 0 | AE33: 0 | AF33: 1 | AG33: 9 | AH33: 0 | AI33: 0 | AJ33: 0 | AK33: 0 | AL33: 9 | AM33: 0 | AN33: 0 | AO33: 0 | AP33: 0 | AQ33: 8 | AR33: 0 | AS33: 0 | AT33: 0 | AU33: 1 | AV33: =+IFERROR(VLOOKUP($F33,[1]Hoja1!$F$2:$L$4485,3,0),0) -> 6 | AW33: =+IFERROR(VLOOKUP($F33,[1]Hoja1!$F$2:$L$4485,4,0),0) -> 0 | AX33: =+IFERROR(VLOOKUP($F33,[1]Hoja1!$F$2:$L$4485,5,0),0) -> 0 | AY33: =+IFERROR(VLOOKUP($F33,[1]Hoja1!$F$2:$L$4485,6,0),0) -> 0 | AZ33: =+IFERROR(VLOOKUP($F33,[1]Hoja1!$F$2:$L$4485,7,0),0) -> 0 | BA33: =+IFERROR(VLOOKUP($F33,[2]Hoja1!$F$2:$L$4485,3,0),0) -> 9 | BB33: =+IFERROR(VLOOKUP($F33,[2]Hoja1!$F$2:$L$4485,4,0),0) -> 0 | BC33: =+IFERROR(VLOOKUP($F33,[2]Hoja1!$F$2:$L$4485,5,0),0) -> 0 | BD33: =+IFERROR(VLOOKUP($F33,[2]Hoja1!$F$2:$L$4485,6,0),0) -> 0 | BE33: =+IFERROR(VLOOKUP($F33,[2]Hoja1!$F$2:$L$4485,7,0),0) -> 1 | BU33: 19 | BV33: CAUCA | BW33: 137 | BX33: 19137 | BY33: CALDONO | BZ33: 191374 | CA33: 4 | CB33: 0 | CC33: 0 | CD33: 0 | CE33: 0 | CF33: 0 | CG33: 0 | CH33: 0 | CI33: 0 | CJ33: 0 | CK33: 0 | CL33: 0 | CM33: 0 | CN33: 0 | CO33: 0 | CP33: 0 | CQ33: 0 | CR33: 0 | CS33: 0 | CT33: 0 | CU33: 0 | CV33: 0 | CW33: 0 | CX33: 0 | CY33: 0 | CZ33: 0 | DA33: 0 | DB33: 0 | DC33: 0 | DD33: 0 | DE33: 0 | DF33: 0 | DG33: 0 | DH33: 0 | DI33: 0 | DJ33: 0 | DK33: 1 | DL33: 1 | DM33: 0 | DN33: 0 | DO33: 0 | DP33: 1 | DQ33: 0 | DR33: 0 | DS33: 0 | DT33: 0 | DU33: 1 | DV33: 0 | DW33: 0 | DX33: 0 | DY33: 0
A34: 05 | B34: ANTIOQUIA | C34: 036 | D34: 05036 | E34: ANGELÓPOLIS | F34: 050361 | G34: 1 | H34: 504 | I34: 144 | J34: 118 | K34: 10 | L34: 78 | M34: 485 | N34: 123 | O34: 101 | P34: 7 | Q34: 0 | R34: 452 | S34: 55 | T34: 76 | U34: 39 | V34: 36 | W34: 400 | X34: 26 | Y34: 37 | Z34: 50 | AA34: 32 | AB34: 385 | AC34: 15 | AD34: 44 | AE34: 4 | AF34: 37 | AG34: 414 | AH34: 63 | AI34: 70 | AJ34: 0 | AK34: 4 | AL34: 412 | AM34: 61 | AN34: 55 | AO34: 0 | AP34: 1 | AQ34: 394 | AR34: 38 | AS34: 43 | AT34: 11 | AU34: 1 | AV34: =+IFERROR(VLOOKUP($F34,[1]Hoja1!$F$2:$L$4485,3,0),0) -> 398 | AW34: =+IFERROR(VLOOKUP($F34,[1]Hoja1!$F$2:$L$4485,4,0),0) -> 43 | AX34: =+IFERROR(VLOOKUP($F34,[1]Hoja1!$F$2:$L$4485,5,0),0) -> 57 | AY34: =+IFERROR(VLOOKUP($F34,[1]Hoja1!$F$2:$L$4485,6,0),0) -> 4 | AZ34: =+IFERROR(VLOOKUP($F34,[1]Hoja1!$F$2:$L$4485,7,0),0) -> 14 | BA34: =+IFERROR(VLOOKUP($F34,[2]Hoja1!$F$2:$L$4485,3,0),0) -> 396 | BB34: =+IFERROR(VLOOKUP($F34,[2]Hoja1!$F$2:$L$4485,4,0),0) -> 71 | BC34: =+IFERROR(VLOOKUP($F34,[2]Hoja1!$F$2:$L$4485,5,0),0) -> 58 | BD34: =+IFERROR(VLOOKUP($F34,[2]Hoja1!$F$2:$L$4485,6,0),0) -> 0 | BE34: =+IFERROR(VLOOKUP($F34,[2]Hoja1!$F$2:$L$4485,7,0),0) -> 0 | BU34: 19 | BV34: CAUCA | BW34: 142 | BX34: 19142 | BY34: CALOTO | BZ34: 191421 | CA34: 1 | CB34: 838 | CC34: 180 | CD34: 116 | CE34: 30 | CF34: 211 | CG34: 836 | CH34: 147 | CI34: 127 | CJ34: 57 | CK34: 151 | CL34: 777 | CM34: 99 | CN34: 104 | CO34: 30 | CP34: 178 | CQ34: 805 | CR34: 43 | CS34: 66 | CT34: 35 | CU34: 309 | CV34: 728 | CW34: 42 | CX34: 59 | CY34: 53 | CZ34: 227 | DA34: 719 | DB34: 84 | DC34: 75 | DD34: 41 | DE34: 159 | DF34: 700 | DG34: 113 | DH34: 71 | DI34: 34 | DJ34: 150 | DK34: 695 | DL34: 99 | DM34: 61 | DN34: 24 | DO34: 137 | DP34: 700 | DQ34: 74 | DR34: 94 | DS34: 28 | DT34: 126 | DU34: 686 | DV34: 102 | DW34: 58 | DX34: 20 | DY34: 114
A35: 05 | B35: ANTIOQUIA | C35: 036 | D35: 05036 | E35: ANGELÓPOLIS | F35: 050362 | G35: 2 | H35: 26 | I35: 3 | J35: 2 | K35: 0 | L35: 1 | M35: 28 | N35: 2 | O35: 2 | P35: 0 | Q35: 0 | R35: 30 | S35: 0 | T35: 1 | U35: 0 | V35: 2 | W35: 30 | X35: 4 | Y35: 0 | Z35: 3 | AA35: 1 | AB35: 30 | AC35: 0 | AD35: 3 | AE35: 0 | AF35: 0 | AG35: 24 | AH35: 0 | AI35: 0 | AJ35: 0 | AK35: 0 | AL35: 30 | AM35: 0 | AN35: 0 | AO35: 0 | AP35: 0 | AQ35: 31 | AR35: 0 | AS35: 1 | AT35: 1 | AU35: 1 | AV35: =+IFERROR(VLOOKUP($F35,[1]Hoja1!$F$2:$L$4485,3,0),0) -> 33 | AW35: =+IFERROR(VLOOKUP($F35,[1]Hoja1!$F$2:$L$4485,4,0),0) -> 0 | AX35: =+IFERROR(VLOOKUP($F35,[1]Hoja1!$F$2:$L$4485,5,0),0) -> 0 | AY35: =+IFERROR(VLOOKUP($F35,[1]Hoja1!$F$2:$L$4485,6,0),0) -> 0 | AZ35: =+IFERROR(VLOOKUP($F35,[1]Hoja1!$F$2:$L$4485,7,0),0) -> 0 | BA35: =+IFERROR(VLOOKUP($F35,[2]Hoja1!$F$2:$L$4485,3,0),0) -> 41 | BB35: =+IFERROR(VLOOKUP($F35,[2]Hoja1!$F$2:$L$4485,4,0),0) -> 7 | BC35: =+IFERROR(VLOOKUP($F35,[2]Hoja1!$F$2:$L$4485,5,0),0) -> 2 | BD35: =+IFERROR(VLOOKUP($F35,[2]Hoja1!$F$2:$L$4485,6,0),0) -> 0 | BE35: =+IFERROR(VLOOKUP($F35,[2]Hoja1!$F$2:$L$4485,7,0),0) -> 0 | BU35: 19 | BV35: CAUCA | BW35: 142 | BX35: 19142 | BY35: CALOTO | BZ35: 191422 | CA35: 2 | CB35: 2009 | CC35: 18 | CD35: 44 | CE35: 80 | CF35: 736 | CG35: 1965 | CH35: 28 | CI35: 40 | CJ35: 72 | CK35: 270 | CL35: 1951 | CM35: 35 | CN35: 21 | CO35: 77 | CP35: 278 | CQ35: 1876 | CR35: 14 | CS35: 15 | CT35: 88 | CU35: 418 | CV35: 1991 | CW35: 7 | CX35: 20 | CY35: 73 | CZ35: 393 | DA35: 2082 | DB35: 34 | DC35: 20 | DD35: 140 | DE35: 393 | DF35: 2043 | DG35: 14 | DH35: 35 | DI35: 93 | DJ35: 256 | DK35: 2028 | DL35: 26 | DM35: 26 | DN35: 48 | DO35: 213 | DP35: 2034 | DQ35: 48 | DR35: 31 | DS35: 48 | DT35: 178 | DU35: 2031 | DV35: 15 | DW35: 42 | DX35: 47 | DY35: 157
A36: 05 | B36: ANTIOQUIA | C36: 036 | D36: 05036 | E36: ANGELÓPOLIS | F36: 050363 | G36: 3 | H36: 0 | I36: 0 | J36: 0 | K36: 0 | L36: 0 | M36: 0 | N36: 0 | O36: 0 | P36: 0 | Q36: 0 | R36: 3 | S36: 0 | T36: 0 | U36: 0 | V36: 0 | W36: 3 | X36: 0 | Y36: 0 | Z36: 0 | AA36: 0 | AB36: 2 | AC36: 0 | AD36: 0 | AE36: 0 | AF36: 0 | AG36: 3 | AH36: 0 | AI36: 0 | AJ36: 0 | AK36: 0 | AL36: 5 | AM36: 0 | AN36: 0 | AO36: 0 | AP36: 0 | AQ36: 4 | AR36: 0 | AS36: 0 | AT36: 0 | AU36: 0 | AV36: =+IFERROR(VLOOKUP($F36,[1]Hoja1!$F$2:$L$4485,3,0),0) -> 3 | AW36: =+IFERROR(VLOOKUP($F36,[1]Hoja1!$F$2:$L$4485,4,0),0) -> 0 | AX36: =+IFERROR(VLOOKUP($F36,[1]Hoja1!$F$2:$L$4485,5,0),0) -> 0 | AY36: =+IFERROR(VLOOKUP($F36,[1]Hoja1!$F$2:$L$4485,6,0),0) -> 0 | AZ36: =+IFERROR(VLOOKUP($F36,[1]Hoja1!$F$2:$L$4485,7,0),0) -> 0 | BA36: =+IFERROR(VLOOKUP($F36,[2]Hoja1!$F$2:$L$4485,3,0),0) -> 4 | BB36: =+IFERROR(VLOOKUP($F36,[2]Hoja1!$F$2:$L$4485,4,0),0) -> 1 | BC36: =+IFERROR(VLOOKUP($F36,[2]Hoja1!$F$2:$L$4485,5,0),0) -> 0 | BD36: =+IFERROR(VLOOKUP($F36,[2]Hoja1!$F$2:$L$4485,6,0),0) -> 0 | BE36: =+IFERROR(VLOOKUP($F36,[2]Hoja1!$F$2:$L$4485,7,0),0) -> 0 | BU36: 19 | BV36: CAUCA | BW36: 142 | BX36: 19142 | BY36: CALOTO | BZ36: 191423 | CA36: 3 | CB36: 917 | CC36: 0 | CD36: 14 | CE36: 16 | CF36: 180 | CG36: 953 | CH36: 2 | CI36: 7 | CJ36: 4 | CK36: 87 | CL36: 1005 | CM36: 6 | CN36: 19 | CO36: 7 | CP36: 104 | CQ36: 961 | CR36: 4 | CS36: 9 | CT36: 8 | CU36: 297 | CV36: 914 | CW36: 0 | CX36: 7 | CY36: 12 | CZ36: 183 | DA36: 887 | DB36: 2 | DC36: 8 | DD36: 15 | DE36: 206 | DF36: 967 | DG36: 3 | DH36: 13 | DI36: 9 | DJ36: 111 | DK36: 994 | DL36: 2 | DM36: 9 | DN36: 6 | DO36: 114 | DP36: 1013 | DQ36: 1 | DR36: 10 | DS36: 11 | DT36: 121 | DU36: 1010 | DV36: 3 | DW36: 15 | DX36: 4 | DY36: 102
A37: 05 | B37: ANTIOQUIA | C37: 036 | D37: 05036 | E37: ANGELÓPOLIS | F37: 050364 | G37: 4 | H37: 0 | I37: 0 | J37: 0 | K37: 0 | L37: 0 | M37: 0 | N37: 0 | O37: 0 | P37: 0 | Q37: 0 | R37: 0 | S37: 0 | T37: 0 | U37: 0 | V37: 0 | W37: 0 | X37: 0 | Y37: 0 | Z37: 0 | AA37: 0 | AB37: 0 | AC37: 0 | AD37: 0 | AE37: 0 | AF37: 0 | AG37: 0 | AH37: 0 | AI37: 0 | AJ37: 0 | AK37: 0 | AL37: 0 | AM37: 0 | AN37: 0 | AO37: 0 | AP37: 0 | AQ37: 0 | AR37: 0 | AS37: 0 | AT37: 0 | AU37: 0 | AV37: =+IFERROR(VLOOKUP($F37,[1]Hoja1!$F$2:$L$4485,3,0),0) -> 0 | AW37: =+IFERROR(VLOOKUP($F37,[1]Hoja1!$F$2:$L$4485,4,0),0) -> 0 | AX37: =+IFERROR(VLOOKUP($F37,[1]Hoja1!$F$2:$L$4485,5,0),0) -> 0 | AY37: =+IFERROR(VLOOKUP($F37,[1]Hoja1!$F$2:$L$4485,6,0),0) -> 0 | AZ37: =+IFERROR(VLOOKUP($F37,[1]Hoja1!$F$2:$L$4485,7,0),0) -> 0 | BA37: =+IFERROR(VLOOKUP($F37,[2]Hoja1!$F$2:$L$4485,3,0),0) -> 0 | BB37: =+IFERROR(VLOOKUP($F37,[2]Hoja1!$F$2:$L$4485,4,0),0) -> 0 | BC37: =+IFERROR(VLOOKUP($F37,[2]Hoja1!$F$2:$L$4485,5,0),0) -> 0 | BD37: =+IFERROR(VLOOKUP($F37,[2]Hoja1!$F$2:$L$4485,6,0),0) -> 0 | BE37: =+IFERROR(VLOOKUP($F37,[2]Hoja1!$F$2:$L$4485,7,0),0) -> 0 | BU37: 19 | BV37: CAUCA | BW37: 142 | BX37: 19142 | BY37: CALOTO | BZ37: 191424 | CA37: 4 | CB37: 262 | CC37: 1 | CD37: 1 | CE37: 1 | CF37: 58 | CG37: 262 | CH37: 0 | CI37: 6 | CJ37: 0 | CK37: 16 | CL37: 261 | CM37: 0 | CN37: 2 | CO37: 0 | CP37: 25 | CQ37: 264 | CR37: 1 | CS37: 1 | CT37: 0 | CU37: 43 | CV37: 245 | CW37: 0 | CX37: 2 | CY37: 0 | CZ37: 16 | DA37: 250 | DB37: 1 | DC37: 5 | DD37: 0 | DE37: 48 | DF37: 249 | DG37: 0 | DH37: 1 | DI37: 0 | DJ37: 22 | DK37: 265 | DL37: 0 | DM37: 1 | DN37: 0 | DO37: 31 | DP37: 256 | DQ37: 0 | DR37: 3 | DS37: 0 | DT37: 26 | DU37: 260 | DV37: 0 | DW37: 1 | DX37: 0 | DY37: 20
A38: 05 | B38: ANTIOQUIA | C38: 038 | D38: 05038 | E38: ANGOSTURA | F38: 050381 | G38: 1 | H38: 127 | I38: 28 | J38: 9 | K38: 1 | L38: 7 | M38: 117 | N38: 20 | O38: 8 | P38: 0 | Q38: 1 | R38: 140 | S38: 29 | T38: 18 | U38: 2 | V38: 12 | W38: 130 | X38: 8 | Y38: 6 | Z38: 1 | AA38: 9 | AB38: 161 | AC38: 34 | AD38: 10 | AE38: 1 | AF38: 3 | AG38: 159 | AH38: 16 | AI38: 15 | AJ38: 0 | AK38: 1 | AL38: 162 | AM38: 22 | AN38: 31 | AO38: 1 | AP38: 7 | AQ38: 134 | AR38: 5 | AS38: 15 | AT38: 1 | AU38: 6 | AV38: =+IFERROR(VLOOKUP($F38,[1]Hoja1!$F$2:$L$4485,3,0),0) -> 150 | AW38: =+IFERROR(VLOOKUP($F38,[1]Hoja1!$F$2:$L$4485,4,0),0) -> 30 | AX38: =+IFERROR(VLOOKUP($F38,[1]Hoja1!$F$2:$L$4485,5,0),0) -> 22 | AY38: =+IFERROR(VLOOKUP($F38,[1]Hoja1!$F$2:$L$4485,6,0),0) -> 1 | AZ38: =+IFERROR(VLOOKUP($F38,[1]Hoja1!$F$2:$L$4485,7,0),0) -> 4 | BA38: =+IFERROR(VLOOKUP($F38,[2]Hoja1!$F$2:$L$4485,3,0),0) -> 168 | BB38: =+IFERROR(VLOOKUP($F38,[2]Hoja1!$F$2:$L$4485,4,0),0) -> 38 | BC38: =+IFERROR(VLOOKUP($F38,[2]Hoja1!$F$2:$L$4485,5,0),0) -> 32 | BD38: =+IFERROR(VLOOKUP($F38,[2]Hoja1!$F$2:$L$4485,6,0),0) -> 1 | BE38: =+IFERROR(VLOOKUP($F38,[2]Hoja1!$F$2:$L$4485,7,0),0) -> 5 | BU38: 19 | BV38: CAUCA | BW38: 212 | BX38: 19212 | BY38: CORINTO | BZ38: 192121 | CA38: 1 | CB38: 387 | CC38: 65 | CD38: 63 | CE38: 8 | CF38: 44 | CG38: 335 | CH38: 50 | CI38: 20 | CJ38: 1 | CK38: 5 | CL38: 386 | CM38: 45 | CN38: 37 | CO38: 2 | CP38: 28 | CQ38: 333 | CR38: 11 | CS38: 35 | CT38: 3 | CU38: 54 | CV38: 362 | CW38: 49 | CX38: 20 | CY38: 3 | CZ38: 9 | DA38: 316 | DB38: 32 | DC38: 22 | DD38: 4 | DE38: 3 | DF38: 326 | DG38: 23 | DH38: 24 | DI38: 4 | DJ38: 3 | DK38: 361 | DL38: 36 | DM38: 26 | DN38: 3 | DO38: 3 | DP38: 385 | DQ38: 16 | DR38: 23 | DS38: 2 | DT38: 10 | DU38: 355 | DV38: 50 | DW38: 38 | DX38: 12 | DY38: 4
A39: 05 | B39: ANTIOQUIA | C39: 038 | D39: 05038 | E39: ANGOSTURA | F39: 050382 | G39: 2 | H39: 24 | I39: 0 | J39: 2 | K39: 0 | L39: 2 | M39: 32 | N39: 3 | O39: 1 | P39: 0 | Q39: 1 | R39: 28 | S39: 0 | T39: 2 | U39: 1 | V39: 5 | W39: 25 | X39: 1 | Y39: 0 | Z39: 1 | AA39: 1 | AB39: 118 | AC39: 4 | AD39: 2 | AE39: 0 | AF39: 1 | AG39: 37 | AH39: 1 | AI39: 0 | AJ39: 0 | AK39: 0 | AL39: 39 | AM39: 0 | AN39: 2 | AO39: 0 | AP39: 1 | AQ39: 39 | AR39: 1 | AS39: 1 | AT39: 0 | AU39: 2 | AV39: =+IFERROR(VLOOKUP($F39,[1]Hoja1!$F$2:$L$4485,3,0),0) -> 45 | AW39: =+IFERROR(VLOOKUP($F39,[1]Hoja1!$F$2:$L$4485,4,0),0) -> 2 | AX39: =+IFERROR(VLOOKUP($F39,[1]Hoja1!$F$2:$L$4485,5,0),0) -> 0 | AY39: =+IFERROR(VLOOKUP($F39,[1]Hoja1!$F$2:$L$4485,6,0),0) -> 0 | AZ39: =+IFERROR(VLOOKUP($F39,[1]Hoja1!$F$2:$L$4485,7,0),0) -> 0 | BA39: =+IFERROR(VLOOKUP($F39,[2]Hoja1!$F$2:$L$4485,3,0),0) -> 47 | BB39: =+IFERROR(VLOOKUP($F39,[2]Hoja1!$F$2:$L$4485,4,0),0) -> 2 | BC39: =+IFERROR(VLOOKUP($F39,[2]Hoja1!$F$2:$L$4485,5,0),0) -> 2 | BD39: =+IFERROR(VLOOKUP($F39,[2]Hoja1!$F$2:$L$4485,6,0),0) -> 0 | BE39: =+IFERROR(VLOOKUP($F39,[2]Hoja1!$F$2:$L$4485,7,0),0) -> 1 | BU39: 19 | BV39: CAUCA | BW39: 212 | BX39: 19212 | BY39: CORINTO | BZ39: 192122 | CA39: 2 | CB39: 287 | CC39: 192 | CD39: 5 | CE39: 0 | CF39: 32 | CG39: 309 | CH39: 20 | CI39: 7 | CJ39: 1 | CK39: 11 | CL39: 318 | CM39: 13 | CN39: 1 | CO39: 0 | CP39: 20 | CQ39: 311 | CR39: 1 | CS39: 1 | CT39: 0 | CU39: 4 | CV39: 373 | CW39: 1 | CX39: 0 | CY39: 1 | CZ39: 37 | DA39: 432 | DB39: 1 | DC39: 2 | DD39: 2 | DE39: 2 | DF39: 339 | DG39: 1 | DH39: 2 | DI39: 1 | DJ39: 9 | DK39: 317 | DL39: 1 | DM39: 4 | DN39: 1 | DO39: 8 | DP39: 357 | DQ39: 0 | DR39: 0 | DS39: 0 | DT39: 0 | DU39: 436 | DV39: 5 | DW39: 3 | DX39: 0 | DY39: 8
A40: 05 | B40: ANTIOQUIA | C40: 038 | D40: 05038 | E40: ANGOSTURA | F40: 050383 | G40: 3 | H40: 8 | I40: 0 | J40: 1 | K40: 0 | L40: 0 | M40: 9 | N40: 0 | O40: 0 | P40: 0 | Q40: 0 | R40: 15 | S40: 0 | T40: 2 | U40: 0 | V40: 0 | W40: 15 | X40: 0 | Y40: 0 | Z40: 1 | AA40: 0 | AB40: 28 | AC40: 0 | AD40: 0 | AE40: 0 | AF40: 0 | AG40: 16 | AH40: 0 | AI40: 0 | AJ40: 0 | AK40: 0 | AL40: 16 | AM40: 0 | AN40: 0 | AO40: 0 | AP40: 0 | AQ40: 14 | AR40: 0 | AS40: 0 | AT40: 0 | AU40: 0 | AV40: =+IFERROR(VLOOKUP($F40,[1]Hoja1!$F$2:$L$4485,3,0),0) -> 17 | AW40: =+IFERROR(VLOOKUP($F40,[1]Hoja1!$F$2:$L$4485,4,0),0) -> 2 | AX40: =+IFERROR(VLOOKUP($F40,[1]Hoja1!$F$2:$L$4485,5,0),0) -> 0 | AY40: =+IFERROR(VLOOKUP($F40,[1]Hoja1!$F$2:$L$4485,6,0),0) -> 0 | AZ40: =+IFERROR(VLOOKUP($F40,[1]Hoja1!$F$2:$L$4485,7,0),0) -> 0 | BA40: =+IFERROR(VLOOKUP($F40,[2]Hoja1!$F$2:$L$4485,3,0),0) -> 19 | BB40: =+IFERROR(VLOOKUP($F40,[2]Hoja1!$F$2:$L$4485,4,0),0) -> 2 | BC40: =+IFERROR(VLOOKUP($F40,[2]Hoja1!$F$2:$L$4485,5,0),0) -> 0 | BD40: =+IFERROR(VLOOKUP($F40,[2]Hoja1!$F$2:$L$4485,6,0),0) -> 0 | BE40: =+IFERROR(VLOOKUP($F40,[2]Hoja1!$F$2:$L$4485,7,0),0) -> 0 | BU40: 19 | BV40: CAUCA | BW40: 212 | BX40: 19212 | BY40: CORINTO | BZ40: 192123 | CA40: 3 | CB40: 22 | CC40: 15 | CD40: 0 | CE40: 0 | CF40: 2 | CG40: 38 | CH40: 3 | CI40: 0 | CJ40: 0 | CK40: 0 | CL40: 33 | CM40: 0 | CN40: 1 | CO40: 0 | CP40: 2 | CQ40: 31 | CR40: 0 | CS40: 0 | CT40: 0 | CU40: 0 | CV40: 35 | CW40: 0 | CX40: 0 | CY40: 0 | CZ40: 0 | DA40: 36 | DB40: 1 | DC40: 0 | DD40: 0 | DE40: 0 | DF40: 85 | DG40: 0 | DH40: 1 | DI40: 0 | DJ40: 0 | DK40: 109 | DL40: 2 | DM40: 1 | DN40: 0 | DO40: 0 | DP40: 43 | DQ40: 1 | DR40: 1 | DS40: 0 | DT40: 0 | DU40: 53 | DV40: 0 | DW40: 1 | DX40: 0 | DY40: 0
A41: 05 | B41: ANTIOQUIA | C41: 038 | D41: 05038 | E41: ANGOSTURA | F41: 050384 | G41: 4 | H41: 1 | I41: 0 | J41: 1 | K41: 0 | L41: 0 | M41: 0 | N41: 0 | O41: 0 | P41: 0 | Q41: 0 | R41: 0 | S41: 0 | T41: 0 | U41: 0 | V41: 0 | W41: 0 | X41: 0 | Y41: 0 | Z41: 0 | AA41: 0 | AB41: 0 | AC41: 0 | AD41: 0 | AE41: 0 | AF41: 0 | AG41: 0 | AH41: 0 | AI41: 0 | AJ41: 0 | AK41: 0 | AL41: 0 | AM41: 0 | AN41: 0 | AO41: 0 | AP41: 0 | AQ41: 1 | AR41: 0 | AS41: 0 | AT41: 0 | AU41: 0 | AV41: =+IFERROR(VLOOKUP($F41,[1]Hoja1!$F$2:$L$4485,3,0),0) -> 2 | AW41: =+IFERROR(VLOOKUP($F41,[1]Hoja1!$F$2:$L$4485,4,0),0) -> 0 | AX41: =+IFERROR(VLOOKUP($F41,[1]Hoja1!$F$2:$L$4485,5,0),0) -> 0 | AY41: =+IFERROR(VLOOKUP($F41,[1]Hoja1!$F$2:$L$4485,6,0),0) -> 0 | AZ41: =+IFERROR(VLOOKUP($F41,[1]Hoja1!$F$2:$L$4485,7,0),0) -> 0 | BA41: =+IFERROR(VLOOKUP($F41,[2]Hoja1!$F$2:$L$4485,3,0),0) -> 2 | BB41: =+IFERROR(VLOOKUP($F41,[2]Hoja1!$F$2:$L$4485,4,0),0) -> 0 | BC41: =+IFERROR(VLOOKUP($F41,[2]Hoja1!$F$2:$L$4485,5,0),0) -> 0 | BD41: =+IFERROR(VLOOKUP($F41,[2]Hoja1!$F$2:$L$4485,6,0),0) -> 0 | BE41: =+IFERROR(VLOOKUP($F41,[2]Hoja1!$F$2:$L$4485,7,0),0) -> 1 | BU41: 19 | BV41: CAUCA | BW41: 212 | BX41: 19212 | BY41: CORINTO | BZ41: 192124 | CA41: 4 | CB41: 2 | CC41: 0 | CD41: 0 | CE41: 0 | CF41: 0 | CG41: 6 | CH41: 0 | CI41: 4 | CJ41: 0 | CK41: 0 | CL41: 3 | CM41: 0 | CN41: 1 | CO41: 0 | CP41: 0 | CQ41: 2 | CR41: 0 | CS41: 0 | CT41: 0 | CU41: 0 | CV41: 2 | CW41: 0 | CX41: 0 | CY41: 0 | CZ41: 0 | DA41: 2 | DB41: 0 | DC41: 0 | DD41: 0 | DE41: 0 | DF41: 3 | DG41: 1 | DH41: 0 | DI41: 0 | DJ41: 0 | DK41: 4 | DL41: 0 | DM41: 0 | DN41: 0 | DO41: 0 | DP41: 3 | DQ41: 0 | DR41: 0 | DS41: 0 | DT41: 0 | DU41: 3 | DV41: 0 | DW41: 0 | DX41: 0 | DY41: 0
A42: 05 | B42: ANTIOQUIA | C42: 040 | D42: 05040 | E42: ANORÍ | F42: 050401 | G42: 1 | H42: 285 | I42: 61 | J42: 25 | K42: 9 | L42: 59 | M42: 253 | N42: 50 | O42: 64 | P42: 0 | Q42: 10 | R42: 239 | S42: 24 | T42: 54 | U42: 37 | V42: 21 | W42: 190 | X42: 9 | Y42: 11 | Z42: 25 | AA42: 26 | AB42: 195 | AC42: 29 | AD42: 28 | AE42: 2 | AF42: 4 | AG42: 216 | AH42: 44 | AI42: 20 | AJ42: 4 | AK42: 3 | AL42: 239 | AM42: 55 | AN42: 33 | AO42: 25 | AP42: 3 | AQ42: 282 | AR42: 48 | AS42: 32 | AT42: 35 | AU42: 3 | AV42: =+IFERROR(VLOOKUP($F42,[1]Hoja1!$F$2:$L$4485,3,0),0) -> 235 | AW42: =+IFERROR(VLOOKUP($F42,[1]Hoja1!$F$2:$L$4485,4,0),0) -> 33 | AX42: =+IFERROR(VLOOKUP($F42,[1]Hoja1!$F$2:$L$4485,5,0),0) -> 26 | AY42: =+IFERROR(VLOOKUP($F42,[1]Hoja1!$F$2:$L$4485,6,0),0) -> 18 | AZ42: =+IFERROR(VLOOKUP($F42,[1]Hoja1!$F$2:$L$4485,7,0),0) -> 3 | BA42: =+IFERROR(VLOOKUP($F42,[2]Hoja1!$F$2:$L$4485,3,0),0) -> 246 | BB42: =+IFERROR(VLOOKUP($F42,[2]Hoja1!$F$2:$L$4485,4,0),0) -> 45 | BC42: =+IFERROR(VLOOKUP($F42,[2]Hoja1!$F$2:$L$4485,5,0),0) -> 39 | BD42: =+IFERROR(VLOOKUP($F42,[2]Hoja1!$F$2:$L$4485,6,0),0) -> 12 | BE42: =+IFERROR(VLOOKUP($F42,[2]Hoja1!$F$2:$L$4485,7,0),0) -> 2 | BU42: 19 | BV42: CAUCA | BW42: 256 | BX42: 19256 | BY42: EL TAMBO | BZ42: 192561 | CA42: 1 | CB42: 224 | CC42: 36 | CD42: 20 | CE42: 0 | CF42: 18 | CG42: 220 | CH42: 42 | CI42: 30 | CJ42: 0 | CK42: 3 | CL42: 196 | CM42: 8 | CN42: 15 | CO42: 0 | CP42: 14 | CQ42: 220 | CR42: 10 | CS42: 3 | CT42: 27 | CU42: 41 | CV42: 197 | CW42: 7 | CX42: 7 | CY42: 1 | CZ42: 0 | DA42: 193 | DB42: 11 | DC42: 17 | DD42: 1 | DE42: 1 | DF42: 197 | DG42: 20 | DH42: 18 | DI42: 0 | DJ42: 3 | DK42: 201 | DL42: 15 | DM42: 22 | DN42: 0 | DO42: 1 | DP42: 225 | DQ42: 12 | DR42: 9 | DS42: 0 | DT42: 0 | DU42: 228 | DV42: 30 | DW42: 6 | DX42: 0 | DY42: 1
A43: 05 | B43: ANTIOQUIA | C43: 040 | D43: 05040 | E43: ANORÍ | F43: 050402 | G43: 2 | H43: 162 | I43: 21 | J43: 5 | K43: 1 | L43: 22 | M43: 210 | N43: 9 | O43: 1 | P43: 2 | Q43: 6 | R43: 165 | S43: 5 | T43: 3 | U43: 3 | V43: 8 | W43: 158 | X43: 4 | Y43: 2 | Z43: 1 | AA43: 8 | AB43: 174 | AC43: 5 | AD43: 3 | AE43: 0 | AF43: 5 | AG43: 176 | AH43: 1 | AI43: 3 | AJ43: 1 | AK43: 2 | AL43: 220 | AM43: 16 | AN43: 3 | AO43: 0 | AP43: 1 | AQ43: 234 | AR43: 3 | AS43: 8 | AT43: 9 | AU43: 4 | AV43: =+IFERROR(VLOOKUP($F43,[1]Hoja1!$F$2:$L$4485,3,0),0) -> 257 | AW43: =+IFERROR(VLOOKUP($F43,[1]Hoja1!$F$2:$L$4485,4,0),0) -> 7 | AX43: =+IFERROR(VLOOKUP($F43,[1]Hoja1!$F$2:$L$4485,5,0),0) -> 5 | AY43: =+IFERROR(VLOOKUP($F43,[1]Hoja1!$F$2:$L$4485,6,0),0) -> 3 | AZ43: =+IFERROR(VLOOKUP($F43,[1]Hoja1!$F$2:$L$4485,7,0),0) -> 5 | BA43: =+IFERROR(VLOOKUP($F43,[2]Hoja1!$F$2:$L$4485,3,0),0) -> 260 | BB43: =+IFERROR(VLOOKUP($F43,[2]Hoja1!$F$2:$L$4485,4,0),0) -> 8 | BC43: =+IFERROR(VLOOKUP($F43,[2]Hoja1!$F$2:$L$4485,5,0),0) -> 3 | BD43: =+IFERROR(VLOOKUP($F43,[2]Hoja1!$F$2:$L$4485,6,0),0) -> 3 | BE43: =+IFERROR(VLOOKUP($F43,[2]Hoja1!$F$2:$L$4485,7,0),0) -> 3 | BU43: 19 | BV43: CAUCA | BW43: 256 | BX43: 19256 | BY43: EL TAMBO | BZ43: 192562 | CA43: 2 | CB43: 58 | CC43: 0 | CD43: 0 | CE43: 0 | CF43: 4 | CG43: 71 | CH43: 10 | CI43: 0 | CJ43: 0 | CK43: 0 | CL43: 78 | CM43: 1 | CN43: 0 | CO43: 0 | CP43: 26 | CQ43: 52 | CR43: 0 | CS43: 0 | CT43: 2 | CU43: 4 | CV43: 82 | CW43: 0 | CX43: 0 | CY43: 0 | CZ43: 1 | DA43: 127 | DB43: 43 | DC43: 1 | DD43: 2 | DE43: 0 | DF43: 117 | DG43: 2 | DH43: 1 | DI43: 3 | DJ43: 1 | DK43: 122 | DL43: 4 | DM43: 0 | DN43: 0 | DO43: 1 | DP43: 97 | DQ43: 0 | DR43: 1 | DS43: 3 | DT43: 0 | DU43: 94 | DV43: 2 | DW43: 1 | DX43: 0 | DY43: 1
A44: 05 | B44: ANTIOQUIA | C44: 040 | D44: 05040 | E44: ANORÍ | F44: 050403 | G44: 3 | H44: 39 | I44: 5 | J44: 3 | K44: 0 | L44: 5 | M44: 37 | N44: 0 | O44: 0 | P44: 0 | Q44: 2 | R44: 52 | S44: 0 | T44: 1 | U44: 0 | V44: 3 | W44: 59 | X44: 0 | Y44: 0 | Z44: 0 | AA44: 6 | AB44: 60 | AC44: 1 | AD44: 1 | AE44: 0 | AF44: 5 | AG44: 56 | AH44: 1 | AI44: 3 | AJ44: 0 | AK44: 0 | AL44: 58 | AM44: 5 | AN44: 2 | AO44: 0 | AP44: 0 | AQ44: 66 | AR44: 0 | AS44: 0 | AT44: 0 | AU44: 0 | AV44: =+IFERROR(VLOOKUP($F44,[1]Hoja1!$F$2:$L$4485,3,0),0) -> 70 | AW44: =+IFERROR(VLOOKUP($F44,[1]Hoja1!$F$2:$L$4485,4,0),0) -> 3 | AX44: =+IFERROR(VLOOKUP($F44,[1]Hoja1!$F$2:$L$4485,5,0),0) -> 2 | AY44: =+IFERROR(VLOOKUP($F44,[1]Hoja1!$F$2:$L$4485,6,0),0) -> 1 | AZ44: =+IFERROR(VLOOKUP($F44,[1]Hoja1!$F$2:$L$4485,7,0),0) -> 3 | BA44: =+IFERROR(VLOOKUP($F44,[2]Hoja1!$F$2:$L$4485,3,0),0) -> 73 | BB44: =+IFERROR(VLOOKUP($F44,[2]Hoja1!$F$2:$L$4485,4,0),0) -> 0 | BC44: =+IFERROR(VLOOKUP($F44,[2]Hoja1!$F$2:$L$4485,5,0),0) -> 0 | BD44: =+IFERROR(VLOOKUP($F44,[2]Hoja1!$F$2:$L$4485,6,0),0) -> 0 | BE44: =+IFERROR(VLOOKUP($F44,[2]Hoja1!$F$2:$L$4485,7,0),0) -> 2 | BU44: 19 | BV44: CAUCA | BW44: 256 | BX44: 19256 | BY44: EL TAMBO | BZ44: 192563 | CA44: 3 | CB44: 10 | CC44: 0 | CD44: 1 | CE44: 0 | CF44: 2 | CG44: 10 | CH44: 0 | CI44: 0 | CJ44: 0 | CK44: 0 | CL44: 11 | CM44: 0 | CN44: 0 | CO44: 0 | CP44: 2 | CQ44: 12 | CR44: 0 | CS44: 0 | CT44: 0 | CU44: 4 | CV44: 14 | CW44: 0 | CX44: 1 | CY44: 0 | CZ44: 1 | DA44: 18 | DB44: 3 | DC44: 0 | DD44: 0 | DE44: 1 | DF44: 19 | DG44: 1 | DH44: 0 | DI44: 0 | DJ44: 0 | DK44: 18 | DL44: 0 | DM44: 1 | DN44: 0 | DO44: 0 | DP44: 18 | DQ44: 1 | DR44: 0 | DS44: 0 | DT44: 1 | DU44: 18 | DV44: 0 | DW44: 0 | DX44: 0 | DY44: 0
A45: 05 | B45: ANTIOQUIA | C45: 040 | D45: 05040 | E45: ANORÍ | F45: 050404 | G45: 4 | H45: 2 | I45: 0 | J45: 1 | K45: 0 | L45: 1 | M45: 0 | N45: 0 | O45: 0 | P45: 0 | Q45: 0 | R45: 0 | S45: 0 | T45: 0 | U45: 0 | V45: 0 | W45: 1 | X45: 0 | Y45: 0 | Z45: 0 | AA45: 1 | AB45: 0 | AC45: 0 | AD45: 0 | AE45: 0 | AF45: 0 | AG45: 2 | AH45: 0 | AI45: 0 | AJ45: 0 | AK45: 0 | AL45: 3 | AM45: 0 | AN45: 0 | AO45: 0 | AP45: 0 | AQ45: 2 | AR45: 0 | AS45: 0 | AT45: 0 | AU45: 0 | AV45: =+IFERROR(VLOOKUP($F45,[1]Hoja1!$F$2:$L$4485,3,0),0) -> 2 | AW45: =+IFERROR(VLOOKUP($F45,[1]Hoja1!$F$2:$L$4485,4,0),0) -> 0 | AX45: =+IFERROR(VLOOKUP($F45,[1]Hoja1!$F$2:$L$4485,5,0),0) -> 0 | AY45: =+IFERROR(VLOOKUP($F45,[1]Hoja1!$F$2:$L$4485,6,0),0) -> 0 | AZ45: =+IFERROR(VLOOKUP($F45,[1]Hoja1!$F$2:$L$4485,7,0),0) -> 1 | BA45: =+IFERROR(VLOOKUP($F45,[2]Hoja1!$F$2:$L$4485,3,0),0) -> 2 | BB45: =+IFERROR(VLOOKUP($F45,[2]Hoja1!$F$2:$L$4485,4,0),0) -> 0 | BC45: =+IFERROR(VLOOKUP($F45,[2]Hoja1!$F$2:$L$4485,5,0),0) -> 0 | BD45: =+IFERROR(VLOOKUP($F45,[2]Hoja1!$F$2:$L$4485,6,0),0) -> 0 | BE45: =+IFERROR(VLOOKUP($F45,[2]Hoja1!$F$2:$L$4485,7,0),0) -> 0 | BU45: 19 | BV45: CAUCA | BW45: 256 | BX45: 19256 | BY45: EL TAMBO | BZ45: 192564 | CA45: 4 | CB45: 2 | CC45: 0 | CD45: 0 | CE45: 0 | CF45: 0 | CG45: 3 | CH45: 0 | CI45: 0 | CJ45: 0 | CK45: 0 | CL45: 2 | CM45: 0 | CN45: 0 | CO45: 0 | CP45: 1 | CQ45: 1 | CR45: 0 | CS45: 0 | CT45: 0 | CU45: 1 | CV45: 2 | CW45: 0 | CX45: 0 | CY45: 0 | CZ45: 0 | DA45: 2 | DB45: 0 | DC45: 0 | DD45: 0 | DE45: 0 | DF45: 2 | DG45: 0 | DH45: 0 | DI45: 0 | DJ45: 0 | DK45: 2 | DL45: 0 | DM45: 0 | DN45: 0 | DO45: 0 | DP45: 2 | DQ45: 0 | DR45: 0 | DS45: 0 | DT45: 0 | DU45: 2 | DV45: 0 | DW45: 0 | DX45: 0 | DY45: 0
A46: 05 | B46: ANTIOQUIA | C46: 042 | D46: 05042 | E46: SANTAFÉ DE ANTIOQUIA | F46: 050421 | G46: 1 | H46: 2868 | I46: 1182 | J46: 523 | K46: 68 | L46: 225 | M46: 2251 | N46: 613 | O46: 454 | P46: 37 | Q46: 108 | R46: 2382 | S46: 477 | T46: 608 | U46: 147 | V46: 548 | W46: 2360 | X46: 118 | Y46: 317 | Z46: 303 | AA46: 1080 | AB46: 1878 | AC46: 217 | AD46: 285 | AE46: 306 | AF46: 167 | AG46: 1714 | AH46: 264 | AI46: 308 | AJ46: 95 | AK46: 121 | AL46: 1722 | AM46: 325 | AN46: 353 | AO46: 119 | AP46: 63 | AQ46: 1655 | AR46: 372 | AS46: 285 | AT46: 80 | AU46: 61 | AV46: =+IFERROR(VLOOKUP($F46,[1]Hoja1!$F$2:$L$4485,3,0),0) -> 1601 | AW46: =+IFERROR(VLOOKUP($F46,[1]Hoja1!$F$2:$L$4485,4,0),0) -> 484 | AX46: =+IFERROR(VLOOKUP($F46,[1]Hoja1!$F$2:$L$4485,5,0),0) -> 326 | AY46: =+IFERROR(VLOOKUP($F46,[1]Hoja1!$F$2:$L$4485,6,0),0) -> 50 | AZ46: =+IFERROR(VLOOKUP($F46,[1]Hoja1!$F$2:$L$4485,7,0),0) -> 39 | BA46: =+IFERROR(VLOOKUP($F46,[2]Hoja1!$F$2:$L$4485,3,0),0) -> 1634 | BB46: =+IFERROR(VLOOKUP($F46,[2]Hoja1!$F$2:$L$4485,4,0),0) -> 518 | BC46: =+IFERROR(VLOOKUP($F46,[2]Hoja1!$F$2:$L$4485,5,0),0) -> 264 | BD46: =+IFERROR(VLOOKUP($F46,[2]Hoja1!$F$2:$L$4485,6,0),0) -> 27 | BE46: =+IFERROR(VLOOKUP($F46,[2]Hoja1!$F$2:$L$4485,7,0),0) -> 48 | BU46: 19 | BV46: CAUCA | BW46: 290 | BX46: 19290 | BY46: FLORENCIA | BZ46: 192901 | CA46: 1 | CB46: 49 | CC46: 3 | CD46: 4 | CE46: 0 | CF46: 0 | CG46: 47 | CH46: 8 | CI46: 7 | CJ46: 0 | CK46: 0 | CL46: 28 | CM46: 1 | CN46: 10 | CO46: 0 | CP46: 0 | CQ46: 44 | CR46: 22 | CS46: 3 | CT46: 0 | CU46: 2 | CV46: 50 | CW46: 2 | CX46: 2 | CY46: 0 | CZ46: 0 | DA46: 96 | DB46: 51 | DC46: 1 | DD46: 0 | DE46: 0 | DF46: 109 | DG46: 9 | DH46: 13 | DI46: 0 | DJ46: 0 | DK46: 153 | DL46: 25 | DM46: 22 | DN46: 0 | DO46: 2 | DP46: 141 | DQ46: 13 | DR46: 12 | DS46: 0 | DT46: 0 | DU46: 146 | DV46: 10 | DW46: 7 | DX46: 0 | DY46: 1
A47: 05 | B47: ANTIOQUIA | C47: 042 | D47: 05042 | E47: SANTAFÉ DE ANTIOQUIA | F47: 050422 | G47: 2 | H47: 3233 | I47: 99 | J47: 274 | K47: 42 | L47: 359 | M47: 3429 | N47: 112 | O47: 175 | P47: 20 | Q47: 75 | R47: 3232 | S47: 70 | T47: 166 | U47: 48 | V47: 369 | W47: 3085 | X47: 11 | Y47: 161 | Z47: 208 | AA47: 782 | AB47: 3076 | AC47: 27 | AD47: 151 | AE47: 105 | AF47: 204 | AG47: 2967 | AH47: 95 | AI47: 274 | AJ47: 28 | AK47: 175 | AL47: 2787 | AM47: 164 | AN47: 225 | AO47: 29 | AP47: 73 | AQ47: 2797 | AR47: 137 | AS47: 296 | AT47: 19 | AU47: 70 | AV47: =+IFERROR(VLOOKUP($F47,[1]Hoja1!$F$2:$L$4485,3,0),0) -> 2782 | AW47: =+IFERROR(VLOOKUP($F47,[1]Hoja1!$F$2:$L$4485,4,0),0) -> 148 | AX47: =+IFERROR(VLOOKUP($F47,[1]Hoja1!$F$2:$L$4485,5,0),0) -> 275 | AY47: =+IFERROR(VLOOKUP($F47,[1]Hoja1!$F$2:$L$4485,6,0),0) -> 31 | AZ47: =+IFERROR(VLOOKUP($F47,[1]Hoja1!$F$2:$L$4485,7,0),0) -> 28 | BA47: =+IFERROR(VLOOKUP($F47,[2]Hoja1!$F$2:$L$4485,3,0),0) -> 2896 | BB47: =+IFERROR(VLOOKUP($F47,[2]Hoja1!$F$2:$L$4485,4,0),0) -> 243 | BC47: =+IFERROR(VLOOKUP($F47,[2]Hoja1!$F$2:$L$4485,5,0),0) -> 106 | BD47: =+IFERROR(VLOOKUP($F47,[2]Hoja1!$F$2:$L$4485,6,0),0) -> 26 | BE47: =+IFERROR(VLOOKUP($F47,[2]Hoja1!$F$2:$L$4485,7,0),0) -> 55 | BU47: 19 | BV47: CAUCA | BW47: 290 | BX47: 19290 | BY47: FLORENCIA | BZ47: 192902 | CA47: 2 | CB47: 6 | CC47: 0 | CD47: 0 | CE47: 0 | CF47: 0 | CG47: 6 | CH47: 0 | CI47: 0 | CJ47: 0 | CK47: 0 | CL47: 6 | CM47: 0 | CN47: 0 | CO47: 0 | CP47: 0 | CQ47: 4 | CR47: 0 | CS47: 0 | CT47: 0 | CU47: 0 | CV47: 6 | CW47: 0 | CX47: 0 | CY47: 0 | CZ47: 0 | DA47: 7 | DB47: 1 | DC47: 0 | DD47: 1 | DE47: 0 | DF47: 6 | DG47: 0 | DH47: 0 | DI47: 1 | DJ47: 0 | DK47: 17 | DL47: 0 | DM47: 1 | DN47: 1 | DO47: 2 | DP47: 22 | DQ47: 3 | DR47: 0 | DS47: 1 | DT47: 2 | DU47: 21 | DV47: 0 | DW47: 0 | DX47: 0 | DY47: 1
A48: 05 | B48: ANTIOQUIA | C48: 042 | D48: 05042 | E48: SANTAFÉ DE ANTIOQUIA | F48: 050423 | G48: 3 | H48: 904 | I48: 10 | J48: 46 | K48: 7 | L48: 187 | M48: 1213 | N48: 32 | O48: 59 | P48: 2 | Q48: 53 | R48: 1127 | S48: 11 | T48: 83 | U48: 21 | V48: 205 | W48: 625 | X48: 1 | Y48: 16 | Z48: 49 | AA48: 154 | AB48: 845 | AC48: 2 | AD48: 22 | AE48: 13 | AF48: 58 | AG48: 996 | AH48: 12 | AI48: 32 | AJ48: 4 | AK48: 12 | AL48: 1094 | AM48: 19 | AN48: 24 | AO48: 4 | AP48: 34 | AQ48: 1112 | AR48: 16 | AS48: 40 | AT48: 4 | AU48: 34 | AV48: =+IFERROR(VLOOKUP($F48,[1]Hoja1!$F$2:$L$4485,3,0),0) -> 825 | AW48: =+IFERROR(VLOOKUP($F48,[1]Hoja1!$F$2:$L$4485,4,0),0) -> 22 | AX48: =+IFERROR(VLOOKUP($F48,[1]Hoja1!$F$2:$L$4485,5,0),0) -> 44 | AY48: =+IFERROR(VLOOKUP($F48,[1]Hoja1!$F$2:$L$4485,6,0),0) -> 10 | AZ48: =+IFERROR(VLOOKUP($F48,[1]Hoja1!$F$2:$L$4485,7,0),0) -> 12 | BA48: =+IFERROR(VLOOKUP($F48,[2]Hoja1!$F$2:$L$4485,3,0),0) -> 794 | BB48: =+IFERROR(VLOOKUP($F48,[2]Hoja1!$F$2:$L$4485,4,0),0) -> 8 | BC48: =+IFERROR(VLOOKUP($F48,[2]Hoja1!$F$2:$L$4485,5,0),0) -> 25 | BD48: =+IFERROR(VLOOKUP($F48,[2]Hoja1!$F$2:$L$4485,6,0),0) -> 2 | BE48: =+IFERROR(VLOOKUP($F48,[2]Hoja1!$F$2:$L$4485,7,0),0) -> 23 | BU48: 19 | BV48: CAUCA | BW48: 290 | BX48: 19290 | BY48: FLORENCIA | BZ48: 192903 | CA48: 3 | CB48: 2 | CC48: 0 | CD48: 0 | CE48: 0 | CF48: 0 | CG48: 2 | CH48: 0 | CI48: 0 | CJ48: 0 | CK48: 0 | CL48: 2 | CM48: 0 | CN48: 0 | CO48: 0 | CP48: 0 | CQ48: 2 | CR48: 0 | CS48: 0 | CT48: 0 | CU48: 0 | CV48: 2 | CW48: 0 | CX48: 0 | CY48: 0 | CZ48: 0 | DA48: 2 | DB48: 0 | DC48: 0 | DD48: 0 | DE48: 0 | DF48: 2 | DG48: 0 | DH48: 0 | DI48: 0 | DJ48: 0 | DK48: 13 | DL48: 0 | DM48: 0 | DN48: 1 | DO48: 3 | DP48: 13 | DQ48: 0 | DR48: 0 | DS48: 1 | DT48: 1 | DU48: 12 | DV48: 0 | DW48: 0 | DX48: 0 | DY48: 1
A49: 05 | B49: ANTIOQUIA | C49: 042 | D49: 05042 | E49: SANTAFÉ DE ANTIOQUIA | F49: 050424 | G49: 4 | H49: 140 | I49: 0 | J49: 8 | K49: 0 | L49: 62 | M49: 182 | N49: 3 | O49: 3 | P49: 0 | Q49: 8 | R49: 181 | S49: 1 | T49: 9 | U49: 1 | V49: 34 | W49: 131 | X49: 0 | Y49: 2 | Z49: 1 | AA49: 45 | AB49: 125 | AC49: 0 | AD49: 3 | AE49: 0 | AF49: 5 | AG49: 148 | AH49: 0 | AI49: 1 | AJ49: 0 | AK49: 4 | AL49: 148 | AM49: 1 | AN49: 4 | AO49: 1 | AP49: 9 | AQ49: 149 | AR49: 0 | AS49: 2 | AT49: 1 | AU49: 34 | AV49: =+IFERROR(VLOOKUP($F49,[1]Hoja1!$F$2:$L$4485,3,0),0) -> 116 | AW49: =+IFERROR(VLOOKUP($F49,[1]Hoja1!$F$2:$L$4485,4,0),0) -> 3 | AX49: =+IFERROR(VLOOKUP($F49,[1]Hoja1!$F$2:$L$4485,5,0),0) -> 6 | AY49: =+IFERROR(VLOOKUP($F49,[1]Hoja1!$F$2:$L$4485,6,0),0) -> 0 | AZ49: =+IFERROR(VLOOKUP($F49,[1]Hoja1!$F$2:$L$4485,7,0),0) -> 0 | BA49: =+IFERROR(VLOOKUP($F49,[2]Hoja1!$F$2:$L$4485,3,0),0) -> 119 | BB49: =+IFERROR(VLOOKUP($F49,[2]Hoja1!$F$2:$L$4485,4,0),0) -> 1 | BC49: =+IFERROR(VLOOKUP($F49,[2]Hoja1!$F$2:$L$4485,5,0),0) -> 1 | BD49: =+IFERROR(VLOOKUP($F49,[2]Hoja1!$F$2:$L$4485,6,0),0) -> 0 | BE49: =+IFERROR(VLOOKUP($F49,[2]Hoja1!$F$2:$L$4485,7,0),0) -> 8 | BU49: 19 | BV49: CAUCA | BW49: 290 | BX49: 19290 | BY49: FLORENCIA | BZ49: 192904 | CA49: 4 | CB49: 0 | CC49: 0 | CD49: 0 | CE49: 0 | CF49: 0 | CG49: 0 | CH49: 0 | CI49: 0 | CJ49: 0 | CK49: 0 | CL49: 0 | CM49: 0 | CN49: 0 | CO49: 0 | CP49: 0 | CQ49: 0 | CR49: 0 | CS49: 0 | CT49: 0 | CU49: 0 | CV49: 0 | CW49: 0 | CX49: 0 | CY49: 0 | CZ49: 0 | DA49: 0 | DB49: 0 | DC49: 0 | DD49: 0 | DE49: 0 | DF49: 0 | DG49: 0 | DH49: 0 | DI49: 0 | DJ49: 0 | DK49: 1 | DL49: 0 | DM49: 0 | DN49: 0 | DO49: 0 | DP49: 2 | DQ49: 0 | DR49: 0 | DS49: 0 | DT49: 1 | DU49: 2 | DV49: 0 | DW49: 0 | DX49: 0 | DY49: 0
A50: 05 | B50: ANTIOQUIA | C50: 044 | D50: 05044 | E50: ANZA | F50: 050441 | G50: 1 | H50: 101 | I50: 12 | J50: 4 | K50: 1 | L50: 5 | M50: 124 | N50: 17 | O50: 20 | P50: 1 | Q50: 19 | R50: 121 | S50: 14 | T50: 20 | U50: 1 | V50: 10 | W50: 113 | X50: 11 | Y50: 7 | Z50: 2 | AA50: 13 | AB50: 99 | AC50: 5 | AD50: 11 | AE50: 0 | AF50: 1 | AG50: 117 | AH50: 7 | AI50: 10 | AJ50: 0 | AK50: 2 | AL50: 108 | AM50: 2 | AN50: 2 | AO50: 3 | AP50: 5 | AQ50: 105 | AR50: 4 | AS50: 5 | AT50: 1 | AU50: 8 | AV50: =+IFERROR(VLOOKUP($F50,[1]Hoja1!$F$2:$L$4485,3,0),0) -> 122 | AW50: =+IFERROR(VLOOKUP($F50,[1]Hoja1!$F$2:$L$4485,4,0),0) -> 9 | AX50: =+IFERROR(VLOOKUP($F50,[1]Hoja1!$F$2:$L$4485,5,0),0) -> 14 | AY50: =+IFERROR(VLOOKUP($F50,[1]Hoja1!$F$2:$L$4485,6,0),0) -> 2 | AZ50: =+IFERROR(VLOOKUP($F50,[1]Hoja1!$F$2:$L$4485,7,0),0) -> 10 | BA50: =+IFERROR(VLOOKUP($F50,[2]Hoja1!$F$2:$L$4485,3,0),0) -> 99 | BB50: =+IFERROR(VLOOKUP($F50,[2]Hoja1!$F$2:$L$4485,4,0),0) -> 11 | BC50: =+IFERROR(VLOOKUP($F50,[2]Hoja1!$F$2:$L$4485,5,0),0) -> 8 | BD50: =+IFERROR(VLOOKUP($F50,[2]Hoja1!$F$2:$L$4485,6,0),0) -> 2 | BE50: =+IFERROR(VLOOKUP($F50,[2]Hoja1!$F$2:$L$4485,7,0),0) -> 5 | BU50: 19 | BV50: CAUCA | BW50: 300 | BX50: 19300 | BY50: GUACHENÉ | BZ50: 193001 | CA50: 1 | CB50: 543 | CC50: 131 | CD50: 92 | CE50: 25 | CF50: 30 | CG50: 494 | CH50: 69 | CI50: 100 | CJ50: 26 | CK50: 18 | CL50: 413 | CM50: 69 | CN50: 143 | CO50: 16 | CP50: 84 | CQ50: 506 | CR50: 135 | CS50: 43 | CT50: 3 | CU50: 181 | CV50: 371 | CW50: 72 | CX50: 46 | CY50: 6 | CZ50: 23 | DA50: 353 | DB50: 32 | DC50: 105 | DD50: 2 | DE50: 17 | DF50: 363 | DG50: 83 | DH50: 50 | DI50: 0 | DJ50: 52 | DK50: 420 | DL50: 127 | DM50: 50 | DN50: 9 | DO50: 33 | DP50: 411 | DQ50: 73 | DR50: 100 | DS50: 0 | DT50: 23 | DU50: 384 | DV50: 94 | DW50: 52 | DX50: 0 | DY50: 19
A51: 05 | B51: ANTIOQUIA | C51: 044 | D51: 05044 | E51: ANZA | F51: 050442 | G51: 2 | H51: 61 | I51: 2 | J51: 4 | K51: 0 | L51: 3 | M51: 50 | N51: 1 | O51: 1 | P51: 1 | Q51: 13 | R51: 53 | S51: 2 | T51: 1 | U51: 2 | V51: 2 | W51: 48 | X51: 0 | Y51: 0 | Z51: 2 | AA51: 1 | AB51: 69 | AC51: 2 | AD51: 2 | AE51: 0 | AF51: 1 | AG51: 55 | AH51: 0 | AI51: 2 | AJ51: 1 | AK51: 1 | AL51: 54 | AM51: 0 | AN51: 0 | AO51: 0 | AP51: 2 | AQ51: 61 | AR51: 1 | AS51: 3 | AT51: 0 | AU51: 2 | AV51: =+IFERROR(VLOOKUP($F51,[1]Hoja1!$F$2:$L$4485,3,0),0) -> 55 | AW51: =+IFERROR(VLOOKUP($F51,[1]Hoja1!$F$2:$L$4485,4,0),0) -> 2 | AX51: =+IFERROR(VLOOKUP($F51,[1]Hoja1!$F$2:$L$4485,5,0),0) -> 1 | AY51: =+IFERROR(VLOOKUP($F51,[1]Hoja1!$F$2:$L$4485,6,0),0) -> 0 | AZ51: =+IFERROR(VLOOKUP($F51,[1]Hoja1!$F$2:$L$4485,7,0),0) -> 2 | BA51: =+IFERROR(VLOOKUP($F51,[2]Hoja1!$F$2:$L$4485,3,0),0) -> 65 | BB51: =+IFERROR(VLOOKUP($F51,[2]Hoja1!$F$2:$L$4485,4,0),0) -> 2 | BC51: =+IFERROR(VLOOKUP($F51,[2]Hoja1!$F$2:$L$4485,5,0),0) -> 0 | BD51: =+IFERROR(VLOOKUP($F51,[2]Hoja1!$F$2:$L$4485,6,0),0) -> 1 | BE51: =+IFERROR(VLOOKUP($F51,[2]Hoja1!$F$2:$L$4485,7,0),0) -> 0 | BU51: 19 | BV51: CAUCA | BW51: 300 | BX51: 19300 | BY51: GUACHENÉ | BZ51: 193002 | CA51: 2 | CB51: 280 | CC51: 1 | CD51: 2 | CE51: 5 | CF51: 44 | CG51: 273 | CH51: 0 | CI51: 6 | CJ51: 3 | CK51: 10 | CL51: 360 | CM51: 1 | CN51: 131 | CO51: 1 | CP51: 123 | CQ51: 141 | CR51: 0 | CS51: 5 | CT51: 2 | CU51: 78 | CV51: 304 | CW51: 2 | CX51: 1 | CY51: 2 | CZ51: 52 | DA51: 325 | DB51: 8 | DC51: 3 | DD51: 3 | DE51: 32 | DF51: 291 | DG51: 0 | DH51: 1 | DI51: 5 | DJ51: 30 | DK51: 313 | DL51: 1 | DM51: 5 | DN51: 3 | DO51: 43 | DP51: 337 | DQ51: 2 | DR51: 1 | DS51: 4 | DT51: 11 | DU51: 364 | DV51: 11 | DW51: 0 | DX51: 4 | DY51: 8
A52: 05 | B52: ANTIOQUIA | C52: 044 | D52: 05044 | E52: ANZA | F52: 050443 | G52: 3 | H52: 16 | I52: 0 | J52: 0 | K52: 0 | L52: 2 | M52: 15 | N52: 0 | O52: 0 | P52: 0 | Q52: 1 | R52: 14 | S52: 0 | T52: 0 | U52: 0 | V52: 0 | W52: 14 | X52: 0 | Y52: 0 | Z52: 6 | AA52: 1 | AB52: 11 | AC52: 0 | AD52: 0 | AE52: 1 | AF52: 0 | AG52: 13 | AH52: 0 | AI52: 0 | AJ52: 0 | AK52: 0 | AL52: 14 | AM52: 0 | AN52: 0 | AO52: 0 | AP52: 0 | AQ52: 10 | AR52: 0 | AS52: 3 | AT52: 0 | AU52: 2 | AV52: =+IFERROR(VLOOKUP($F52,[1]Hoja1!$F$2:$L$4485,3,0),0) -> 7 | AW52: =+IFERROR(VLOOKUP($F52,[1]Hoja1!$F$2:$L$4485,4,0),0) -> 0 | AX52: =+IFERROR(VLOOKUP($F52,[1]Hoja1!$F$2:$L$4485,5,0),0) -> 1 | AY52: =+IFERROR(VLOOKUP($F52,[1]Hoja1!$F$2:$L$4485,6,0),0) -> 0 | AZ52: =+IFERROR(VLOOKUP($F52,[1]Hoja1!$F$2:$L$4485,7,0),0) -> 0 | BA52: =+IFERROR(VLOOKUP($F52,[2]Hoja1!$F$2:$L$4485,3,0),0) -> 11 | BB52: =+IFERROR(VLOOKUP($F52,[2]Hoja1!$F$2:$L$4485,4,0),0) -> 3 | BC52: =+IFERROR(VLOOKUP($F52,[2]Hoja1!$F$2:$L$4485,5,0),0) -> 0 | BD52: =+IFERROR(VLOOKUP($F52,[2]Hoja1!$F$2:$L$4485,6,0),0) -> 0 | BE52: =+IFERROR(VLOOKUP($F52,[2]Hoja1!$F$2:$L$4485,7,0),0) -> 0 | BU52: 19 | BV52: CAUCA | BW52: 300 | BX52: 19300 | BY52: GUACHENÉ | BZ52: 193003 | CA52: 3 | CB52: 71 | CC52: 0 | CD52: 0 | CE52: 0 | CF52: 33 | CG52: 94 | CH52: 1 | CI52: 0 | CJ52: 0 | CK52: 3 | CL52: 75 | CM52: 0 | CN52: 2 | CO52: 0 | CP52: 14 | CQ52: 69 | CR52: 0 | CS52: 0 | CT52: 0 | CU52: 25 | CV52: 80 | CW52: 1 | CX52: 0 | CY52: 0 | CZ52: 4 | DA52: 77 | DB52: 1 | DC52: 0 | DD52: 0 | DE52: 2 | DF52: 63 | DG52: 0 | DH52: 0 | DI52: 0 | DJ52: 1 | DK52: 84 | DL52: 0 | DM52: 1 | DN52: 0 | DO52: 3 | DP52: 80 | DQ52: 2 | DR52: 0 | DS52: 0 | DT52: 1 | DU52: 84 | DV52: 1 | DW52: 0 | DX52: 0 | DY52: 1
A53: 05 | B53: ANTIOQUIA | C53: 044 | D53: 05044 | E53: ANZA | F53: 050444 | G53: 4 | H53: 1 | I53: 0 | J53: 0 | K53: 0 | L53: 0 | M53: 0 | N53: 0 | O53: 0 | P53: 0 | Q53: 0 | R53: 1 | S53: 0 | T53: 0 | U53: 0 | V53: 0 | W53: 1 | X53: 0 | Y53: 0 | Z53: 1 | AA53: 0 | AB53: 0 | AC53: 0 | AD53: 0 | AE53: 0 | AF53: 0 | AG53: 2 | AH53: 0 | AI53: 0 | AJ53: 0 | AK53: 0 | AL53: 1 | AM53: 0 | AN53: 0 | AO53: 0 | AP53: 0 | AQ53: 0 | AR53: 0 | AS53: 0 | AT53: 0 | AU53: 0 | AV53: =+IFERROR(VLOOKUP($F53,[1]Hoja1!$F$2:$L$4485,3,0),0) -> 2 | AW53: =+IFERROR(VLOOKUP($F53,[1]Hoja1!$F$2:$L$4485,4,0),0) -> 1 | AX53: =+IFERROR(VLOOKUP($F53,[1]Hoja1!$F$2:$L$4485,5,0),0) -> 0 | AY53: =+IFERROR(VLOOKUP($F53,[1]Hoja1!$F$2:$L$4485,6,0),0) -> 0 | AZ53: =+IFERROR(VLOOKUP($F53,[1]Hoja1!$F$2:$L$4485,7,0),0) -> 0 | BA53: =+IFERROR(VLOOKUP($F53,[2]Hoja1!$F$2:$L$4485,3,0),0) -> 2 | BB53: =+IFERROR(VLOOKUP($F53,[2]Hoja1!$F$2:$L$4485,4,0),0) -> 0 | BC53: =+IFERROR(VLOOKUP($F53,[2]Hoja1!$F$2:$L$4485,5,0),0) -> 0 | BD53: =+IFERROR(VLOOKUP($F53,[2]Hoja1!$F$2:$L$4485,6,0),0) -> 0 | BE53: =+IFERROR(VLOOKUP($F53,[2]Hoja1!$F$2:$L$4485,7,0),0) -> 0 | BU53: 19 | BV53: CAUCA | BW53: 300 | BX53: 19300 | BY53: GUACHENÉ | BZ53: 193004 | CA53: 4 | CB53: 6 | CC53: 0 | CD53: 0 | CE53: 0 | CF53: 3 | CG53: 15 | CH53: 0 | CI53: 0 | CJ53: 0 | CK53: 1 | CL53: 15 | CM53: 0 | CN53: 0 | CO53: 0 | CP53: 3 | CQ53: 8 | CR53: 0 | CS53: 0 | CT53: 0 | CU53: 1 | CV53: 15 | CW53: 0 | CX53: 1 | CY53: 0 | CZ53: 0 | DA53: 14 | DB53: 0 | DC53: 1 | DD53: 0 | DE53: 1 | DF53: 14 | DG53: 0 | DH53: 0 | DI53: 0 | DJ53: 0 | DK53: 15 | DL53: 0 | DM53: 0 | DN53: 0 | DO53: 0 | DP53: 20 | DQ53: 0 | DR53: 0 | DS53: 0 | DT53: 0 | DU53: 19 | DV53: 0 | DW53: 0 | DX53: 0 | DY53: 0
A54: 05 | B54: ANTIOQUIA | C54: 045 | D54: 05045 | E54: APARTADÓ | F54: 050451 | G54: 1 | H54: 15095 | I54: 3782 | J54: 2571 | K54: 301 | L54: 929 | M54: 15041 | N54: 2961 | O54: 2537 | P54: 266 | Q54: 725 | R54: 15200 | S54: 2173 | T54: 3314 | U54: 633 | V54: 1661 | W54: 13804 | X54: 1427 | Y54: 1202 | Z54: 626 | AA54: 2334 | AB54: 14943 | AC54: 2422 | AD54: 1787 | AE54: 521 | AF54: 1227 | AG54: 15555 | AH54: 2108 | AI54: 1941 | AJ54: 435 | AK54: 1213 | AL54: 15731 | AM54: 2214 | AN54: 2302 | AO54: 373 | AP54: 1190 | AQ54: 14843 | AR54: 2169 | AS54: 2184 | AT54: 264 | AU54: 691 | AV54: =+IFERROR(VLOOKUP($F54,[1]Hoja1!$F$2:$L$4485,3,0),0) -> 14530 | AW54: =+IFERROR(VLOOKUP($F54,[1]Hoja1!$F$2:$L$4485,4,0),0) -> 2307 | AX54: =+IFERROR(VLOOKUP($F54,[1]Hoja1!$F$2:$L$4485,5,0),0) -> 2258 | AY54: =+IFERROR(VLOOKUP($F54,[1]Hoja1!$F$2:$L$4485,6,0),0) -> 244 | AZ54: =+IFERROR(VLOOKUP($F54,[1]Hoja1!$F$2:$L$4485,7,0),0) -> 510 | BA54: =+IFERROR(VLOOKUP($F54,[2]Hoja1!$F$2:$L$4485,3,0),0) -> 14514 | BB54: =+IFERROR(VLOOKUP($F54,[2]Hoja1!$F$2:$L$4485,4,0),0) -> 2721 | BC54: =+IFERROR(VLOOKUP($F54,[2]Hoja1!$F$2:$L$4485,5,0),0) -> 2084 | BD54: =+IFERROR(VLOOKUP($F54,[2]Hoja1!$F$2:$L$4485,6,0),0) -> 221 | BE54: =+IFERROR(VLOOKUP($F54,[2]Hoja1!$F$2:$L$4485,7,0),0) -> 517 | BU54: 19 | BV54: CAUCA | BW54: 318 | BX54: 19318 | BY54: GUAPI | BZ54: 193181 | CA54: 1 | CB54: 438 | CC54: 39 | CD54: 29 | CE54: 0 | CF54: 5 | CG54: 458 | CH54: 59 | CI54: 28 | CJ54: 2 | CK54: 4 | CL54: 466 | CM54: 26 | CN54: 36 | CO54: 18 | CP54: 26 | CQ54: 442 | CR54: 7 | CS54: 10 | CT54: 15 | CU54: 32 | CV54: 441 | CW54: 20 | CX54: 2 | CY54: 8 | CZ54: 4 | DA54: 452 | DB54: 15 | DC54: 21 | DD54: 2 | DE54: 1 | DF54: 425 | DG54: 6 | DH54: 13 | DI54: 2 | DJ54: 3 | DK54: 429 | DL54: 4 | DM54: 15 | DN54: 1 | DO54: 5 | DP54: 450 | DQ54: 16 | DR54: 4 | DS54: 2 | DT54: 3 | DU54: 439 | DV54: 9 | DW54: 8 | DX54: 1 | DY54: 2
A55: 05 | B55: ANTIOQUIA | C55: 045 | D55: 05045 | E55: APARTADÓ | F55: 050452 | G55: 2 | H55: 13301 | I55: 289 | J55: 440 | K55: 732 | L55: 1706 | M55: 14965 | N55: 404 | O55: 242 | P55: 549 | Q55: 1020 | R55: 14092 | S55: 478 | T55: 274 | U55: 1682 | V55: 1751 | W55: 13514 | X55: 113 | Y55: 123 | Z55: 555 | AA55: 1795 | AB55: 14936 | AC55: 149 | AD55: 157 | AE55: 526 | AF55: 1355 | AG55: 15191 | AH55: 178 | AI55: 171 | AJ55: 466 | AK55: 1527 | AL55: 14720 | AM55: 243 | AN55: 217 | AO55: 562 | AP55: 1598 | AQ55: 14308 | AR55: 286 | AS55: 281 | AT55: 605 | AU55: 1141 | AV55: =+IFERROR(VLOOKUP($F55,[1]Hoja1!$F$2:$L$4485,3,0),0) -> 15234 | AW55: =+IFERROR(VLOOKUP($F55,[1]Hoja1!$F$2:$L$4485,4,0),0) -> 313 | AX55: =+IFERROR(VLOOKUP($F55,[1]Hoja1!$F$2:$L$4485,5,0),0) -> 333 | AY55: =+IFERROR(VLOOKUP($F55,[1]Hoja1!$F$2:$L$4485,6,0),0) -> 596 | AZ55: =+IFERROR(VLOOKUP($F55,[1]Hoja1!$F$2:$L$4485,7,0),0) -> 1035 | BA55: =+IFERROR(VLOOKUP($F55,[2]Hoja1!$F$2:$L$4485,3,0),0) -> 14113 | BB55: =+IFERROR(VLOOKUP($F55,[2]Hoja1!$F$2:$L$4485,4,0),0) -> 269 | BC55: =+IFERROR(VLOOKUP($F55,[2]Hoja1!$F$2:$L$4485,5,0),0) -> 236 | BD55: =+IFERROR(VLOOKUP($F55,[2]Hoja1!$F$2:$L$4485,6,0),0) -> 575 | BE55: =+IFERROR(VLOOKUP($F55,[2]Hoja1!$F$2:$L$4485,7,0),0) -> 1164 | BU55: 19 | BV55: CAUCA | BW55: 318 | BX55: 19318 | BY55: GUAPI | BZ55: 193182 | CA55: 2 | CB55: 90 | CC55: 2 | CD55: 9 | CE55: 0 | CF55: 3 | CG55: 117 | CH55: 37 | CI55: 3 | CJ55: 1 | CK55: 2 | CL55: 111 | CM55: 7 | CN55: 0 | CO55: 3 | CP55: 11 | CQ55: 111 | CR55: 8 | CS55: 2 | CT55: 10 | CU55: 6 | CV55: 110 | CW55: 1 | CX55: 0 | CY55: 9 | CZ55: 1 | DA55: 143 | DB55: 31 | DC55: 3 | DD55: 10 | DE55: 0 | DF55: 141 | DG55: 0 | DH55: 2 | DI55: 10 | DJ55: 4 | DK55: 141 | DL55: 2 | DM55: 0 | DN55: 10 | DO55: 1 | DP55: 117 | DQ55: 2 | DR55: 3 | DS55: 5 | DT55: 0 | DU55: 122 | DV55: 7 | DW55: 0 | DX55: 0 | DY55: 0
A56: 05 | B56: ANTIOQUIA | C56: 045 | D56: 05045 | E56: APARTADÓ | F56: 050453 | G56: 3 | H56: 5548 | I56: 50 | J56: 119 | K56: 113 | L56: 540 | M56: 4351 | N56: 54 | O56: 86 | P56: 54 | Q56: 219 | R56: 5144 | S56: 57 | T56: 76 | U56: 443 | V56: 570 | W56: 5169 | X56: 10 | Y56: 36 | Z56: 72 | AA56: 514 | AB56: 4023 | AC56: 24 | AD56: 57 | AE56: 63 | AF56: 378 | AG56: 3796 | AH56: 33 | AI56: 42 | AJ56: 43 | AK56: 342 | AL56: 4507 | AM56: 29 | AN56: 64 | AO56: 49 | AP56: 299 | AQ56: 5860 | AR56: 43 | AS56: 83 | AT56: 63 | AU56: 236 | AV56: =+IFERROR(VLOOKUP($F56,[1]Hoja1!$F$2:$L$4485,3,0),0) -> 5350 | AW56: =+IFERROR(VLOOKUP($F56,[1]Hoja1!$F$2:$L$4485,4,0),0) -> 42 | AX56: =+IFERROR(VLOOKUP($F56,[1]Hoja1!$F$2:$L$4485,5,0),0) -> 89 | AY56: =+IFERROR(VLOOKUP($F56,[1]Hoja1!$F$2:$L$4485,6,0),0) -> 83 | AZ56: =+IFERROR(VLOOKUP($F56,[1]Hoja1!$F$2:$L$4485,7,0),0) -> 289 | BA56: =+IFERROR(VLOOKUP($F56,[2]Hoja1!$F$2:$L$4485,3,0),0) -> 6795 | BB56: =+IFERROR(VLOOKUP($F56,[2]Hoja1!$F$2:$L$4485,4,0),0) -> 41 | BC56: =+IFERROR(VLOOKUP($F56,[2]Hoja1!$F$2:$L$4485,5,0),0) -> 83 | BD56: =+IFERROR(VLOOKUP($F56,[2]Hoja1!$F$2:$L$4485,6,0),0) -> 154 | BE56: =+IFERROR(VLOOKUP($F56,[2]Hoja1!$F$2:$L$4485,7,0),0) -> 404 | BU56: 19 | BV56: CAUCA | BW56: 318 | BX56: 19318 | BY56: GUAPI | BZ56: 193183 | CA56: 3 | CB56: 15 | CC56: 1 | CD56: 1 | CE56: 0 | CF56: 0 | CG56: 16 | CH56: 3 | CI56: 0 | CJ56: 0 | CK56: 0 | CL56: 19 | CM56: 0 | CN56: 1 | CO56: 0 | CP56: 0 | CQ56: 15 | CR56: 3 | CS56: 0 | CT56: 0 | CU56: 1 | CV56: 22 | CW56: 0 | CX56: 1 | CY56: 0 | CZ56: 0 | DA56: 22 | DB56: 4 | DC56: 0 | DD56: 0 | DE56: 0 | DF56: 23 | DG56: 0 | DH56: 1 | DI56: 0 | DJ56: 0 | DK56: 23 | DL56: 0 | DM56: 0 | DN56: 0 | DO56: 1 | DP56: 19 | DQ56: 0 | DR56: 2 | DS56: 0 | DT56: 0 | DU56: 15 | DV56: 0 | DW56: 0 | DX56: 0 | DY56: 1
A57: 05 | B57: ANTIOQUIA | C57: 045 | D57: 05045 | E57: APARTADÓ | F57: 050454 | G57: 4 | H57: 278 | I57: 3 | J57: 8 | K57: 1 | L57: 56 | M57: 281 | N57: 3 | O57: 9 | P57: 0 | Q57: 11 | R57: 307 | S57: 4 | T57: 5 | U57: 5 | V57: 35 | W57: 266 | X57: 2 | Y57: 2 | Z57: 4 | AA57: 24 | AB57: 281 | AC57: 2 | AD57: 4 | AE57: 3 | AF57: 14 | AG57: 273 | AH57: 0 | AI57: 8 | AJ57: 1 | AK57: 15 | AL57: 284 | AM57: 1 | AN57: 2 | AO57: 1 | AP57: 13 | AQ57: 324 | AR57: 3 | AS57: 9 | AT57: 1 | AU57: 11 | AV57: =+IFERROR(VLOOKUP($F57,[1]Hoja1!$F$2:$L$4485,3,0),0) -> 336 | AW57: =+IFERROR(VLOOKUP($F57,[1]Hoja1!$F$2:$L$4485,4,0),0) -> 8 | AX57: =+IFERROR(VLOOKUP($F57,[1]Hoja1!$F$2:$L$4485,5,0),0) -> 8 | AY57: =+IFERROR(VLOOKUP($F57,[1]Hoja1!$F$2:$L$4485,6,0),0) -> 2 | AZ57: =+IFERROR(VLOOKUP($F57,[1]Hoja1!$F$2:$L$4485,7,0),0) -> 12 | BA57: =+IFERROR(VLOOKUP($F57,[2]Hoja1!$F$2:$L$4485,3,0),0) -> 339 | BB57: =+IFERROR(VLOOKUP($F57,[2]Hoja1!$F$2:$L$4485,4,0),0) -> 4 | BC57: =+IFERROR(VLOOKUP($F57,[2]Hoja1!$F$2:$L$4485,5,0),0) -> 2 | BD57: =+IFERROR(VLOOKUP($F57,[2]Hoja1!$F$2:$L$4485,6,0),0) -> 2 | BE57: =+IFERROR(VLOOKUP($F57,[2]Hoja1!$F$2:$L$4485,7,0),0) -> 15 | BU57: 19 | BV57: CAUCA | BW57: 318 | BX57: 19318 | BY57: GUAPI | BZ57: 193184 | CA57: 4 | CB57: 1 | CC57: 0 | CD57: 1 | CE57: 0 | CF57: 0 | CG57: 0 | CH57: 0 | CI57: 0 | CJ57: 0 | CK57: 0 | CL57: 0 | CM57: 0 | CN57: 0 | CO57: 0 | CP57: 0 | CQ57: 0 | CR57: 0 | CS57: 0 | CT57: 0 | CU57: 0 | CV57: 0 | CW57: 0 | CX57: 0 | CY57: 0 | CZ57: 0 | DA57: 0 | DB57: 0 | DC57: 0 | DD57: 0 | DE57: 0 | DF57: 0 | DG57: 0 | DH57: 0 | DI57: 0 | DJ57: 0 | DK57: 0 | DL57: 0 | DM57: 0 | DN57: 0 | DO57: 0 | DP57: 0 | DQ57: 0 | DR57: 0 | DS57: 0 | DT57: 0 | DU57: 0 | DV57: 0 | DW57: 0 | DX57: 0 | DY57: 0
A58: 05 | B58: ANTIOQUIA | C58: 051 | D58: 05051 | E58: ARBOLETES | F58: 050511 | G58: 1 | H58: 506 | I58: 87 | J58: 99 | K58: 5 | L58: 45 | M58: 521 | N58: 104 | O58: 102 | P58: 2 | Q58: 8 | R58: 535 | S58: 100 | T58: 132 | U58: 6 | V58: 75 | W58: 550 | X58: 129 | Y58: 51 | Z58: 11 | AA58: 88 | AB58: 490 | AC58: 58 | AD58: 57 | AE58: 10 | AF58: 16 | AG58: 467 | AH58: 32 | AI58: 49 | AJ58: 18 | AK58: 14 | AL58: 431 | AM58: 30 | AN58: 39 | AO58: 20 | AP58: 18 | AQ58: 442 | AR58: 63 | AS58: 35 | AT58: 7 | AU58: 7 | AV58: =+IFERROR(VLOOKUP($F58,[1]Hoja1!$F$2:$L$4485,3,0),0) -> 455 | AW58: =+IFERROR(VLOOKUP($F58,[1]Hoja1!$F$2:$L$4485,4,0),0) -> 57 | AX58: =+IFERROR(VLOOKUP($F58,[1]Hoja1!$F$2:$L$4485,5,0),0) -> 75 | AY58: =+IFERROR(VLOOKUP($F58,[1]Hoja1!$F$2:$L$4485,6,0),0) -> 11 | AZ58: =+IFERROR(VLOOKUP($F58,[1]Hoja1!$F$2:$L$4485,7,0),0) -> 2 | BA58: =+IFERROR(VLOOKUP($F58,[2]Hoja1!$F$2:$L$4485,3,0),0) -> 431 | BB58: =+IFERROR(VLOOKUP($F58,[2]Hoja1!$F$2:$L$4485,4,0),0) -> 39 | BC58: =+IFERROR(VLOOKUP($F58,[2]Hoja1!$F$2:$L$4485,5,0),0) -> 42 | BD58: =+IFERROR(VLOOKUP($F58,[2]Hoja1!$F$2:$L$4485,6,0),0) -> 13 | BE58: =+IFERROR(VLOOKUP($F58,[2]Hoja1!$F$2:$L$4485,7,0),0) -> 5 | BU58: 19 | BV58: CAUCA | BW58: 355 | BX58: 19355 | BY58: INZÁ | BZ58: 193551 | CA58: 1 | CB58: 118 | CC58: 17 | CD58: 2 | CE58: 0 | CF58: 2 | CG58: 119 | CH58: 19 | CI58: 6 | CJ58: 0 | CK58: 0 | CL58: 142 | CM58: 27 | CN58: 36 | CO58: 1 | CP58: 1 | CQ58: 101 | CR58: 1 | CS58: 2 | CT58: 2 | CU58: 2 | CV58: 94 | CW58: 0 | CX58: 3 | CY58: 0 | CZ58: 1 | DA58: 112 | DB58: 19 | DC58: 1 | DD58: 1 | DE58: 0 | DF58: 123 | DG58: 8 | DH58: 16 | DI58: 0 | DJ58: 1 | DK58: 166 | DL58: 51 | DM58: 15 | DN58: 1 | DO58: 1 | DP58: 155 | DQ58: 8 | DR58: 17 | DS58: 0 | DT58: 3 | DU58: 156 | DV58: 24 | DW58: 15 | DX58: 0 | DY58: 1
A59: 05 | B59: ANTIOQUIA | C59: 051 | D59: 05051 | E59: ARBOLETES | F59: 050512 | G59: 2 | H59: 197 | I59: 9 | J59: 6 | K59: 0 | L59: 15 | M59: 214 | N59: 32 | O59: 6 | P59: 0 | Q59: 0 | R59: 206 | S59: 11 | T59: 11 | U59: 1 | V59: 4 | W59: 222 | X59: 28 | Y59: 78 | Z59: 5 | AA59: 7 | AB59: 194 | AC59: 1 | AD59: 7 | AE59: 4 | AF59: 6 | AG59: 188 | AH59: 4 | AI59: 4 | AJ59: 3 | AK59: 3 | AL59: 198 | AM59: 14 | AN59: 2 | AO59: 2 | AP59: 2 | AQ59: 219 | AR59: 5 | AS59: 4 | AT59: 1 | AU59: 4 | AV59: =+IFERROR(VLOOKUP($F59,[1]Hoja1!$F$2:$L$4485,3,0),0) -> 207 | AW59: =+IFERROR(VLOOKUP($F59,[1]Hoja1!$F$2:$L$4485,4,0),0) -> 2 | AX59: =+IFERROR(VLOOKUP($F59,[1]Hoja1!$F$2:$L$4485,5,0),0) -> 6 | AY59: =+IFERROR(VLOOKUP($F59,[1]Hoja1!$F$2:$L$4485,6,0),0) -> 2 | AZ59: =+IFERROR(VLOOKUP($F59,[1]Hoja1!$F$2:$L$4485,7,0),0) -> 3 | BA59: =+IFERROR(VLOOKUP($F59,[2]Hoja1!$F$2:$L$4485,3,0),0) -> 211 | BB59: =+IFERROR(VLOOKUP($F59,[2]Hoja1!$F$2:$L$4485,4,0),0) -> 2 | BC59: =+IFERROR(VLOOKUP($F59,[2]Hoja1!$F$2:$L$4485,5,0),0) -> 5 | BD59: =+IFERROR(VLOOKUP($F59,[2]Hoja1!$F$2:$L$4485,6,0),0) -> 1 | BE59: =+IFERROR(VLOOKUP($F59,[2]Hoja1!$F$2:$L$4485,7,0),0) -> 1 | BU59: 19 | BV59: CAUCA | BW59: 355 | BX59: 19355 | BY59: INZÁ | BZ59: 193552 | CA59: 2 | CB59: 12 | CC59: 3 | CD59: 0 | CE59: 0 | CF59: 0 | CG59: 20 | CH59: 0 | CI59: 10 | CJ59: 0 | CK59: 0 | CL59: 23 | CM59: 10 | CN59: 0 | CO59: 0 | CP59: 0 | CQ59: 27 | CR59: 0 | CS59: 0 | CT59: 0 | CU59: 0 | CV59: 29 | CW59: 0 | CX59: 0 | CY59: 0 | CZ59: 0 | DA59: 29 | DB59: 1 | DC59: 2 | DD59: 1 | DE59: 0 | DF59: 29 | DG59: 1 | DH59: 2 | DI59: 1 | DJ59: 0 | DK59: 32 | DL59: 7 | DM59: 1 | DN59: 0 | DO59: 0 | DP59: 33 | DQ59: 0 | DR59: 1 | DS59: 0 | DT59: 0 | DU59: 33 | DV59: 2 | DW59: 0 | DX59: 0 | DY59: 2
A60: 05 | B60: ANTIOQUIA | C60: 051 | D60: 05051 | E60: ARBOLETES | F60: 050513 | G60: 3 | H60: 35 | I60: 1 | J60: 3 | K60: 0 | L60: 5 | M60: 36 | N60: 3 | O60: 3 | P60: 0 | Q60: 0 | R60: 42 | S60: 4 | T60: 2 | U60: 0 | V60: 1 | W60: 40 | X60: 0 | Y60: 6 | Z60: 0 | AA60: 1 | AB60: 40 | AC60: 1 | AD60: 11 | AE60: 0 | AF60: 1 | AG60: 31 | AH60: 0 | AI60: 0 | AJ60: 0 | AK60: 0 | AL60: 33 | AM60: 2 | AN60: 0 | AO60: 0 | AP60: 0 | AQ60: 29 | AR60: 1 | AS60: 0 | AT60: 0 | AU60: 1 | AV60: =+IFERROR(VLOOKUP($F60,[1]Hoja1!$F$2:$L$4485,3,0),0) -> 30 | AW60: =+IFERROR(VLOOKUP($F60,[1]Hoja1!$F$2:$L$4485,4,0),0) -> 0 | AX60: =+IFERROR(VLOOKUP($F60,[1]Hoja1!$F$2:$L$4485,5,0),0) -> 4 | AY60: =+IFERROR(VLOOKUP($F60,[1]Hoja1!$F$2:$L$4485,6,0),0) -> 1 | AZ60: =+IFERROR(VLOOKUP($F60,[1]Hoja1!$F$2:$L$4485,7,0),0) -> 0 | BA60: =+IFERROR(VLOOKUP($F60,[2]Hoja1!$F$2:$L$4485,3,0),0) -> 25 | BB60: =+IFERROR(VLOOKUP($F60,[2]Hoja1!$F$2:$L$4485,4,0),0) -> 0 | BC60: =+IFERROR(VLOOKUP($F60,[2]Hoja1!$F$2:$L$4485,5,0),0) -> 0 | BD60: =+IFERROR(VLOOKUP($F60,[2]Hoja1!$F$2:$L$4485,6,0),0) -> 0 | BE60: =+IFERROR(VLOOKUP($F60,[2]Hoja1!$F$2:$L$4485,7,0),0) -> 0 | BU60: 19 | BV60: CAUCA | BW60: 355 | BX60: 19355 | BY60: INZÁ | BZ60: 193553 | CA60: 3 | CB60: 2 | CC60: 0 | CD60: 0 | CE60: 0 | CF60: 1 | CG60: 5 | CH60: 0 | CI60: 2 | CJ60: 0 | CK60: 0 | CL60: 2 | CM60: 0 | CN60: 0 | CO60: 0 | CP60: 0 | CQ60: 6 | CR60: 0 | CS60: 0 | CT60: 1 | CU60: 1 | CV60: 5 | CW60: 0 | CX60: 0 | CY60: 0 | CZ60: 0 | DA60: 5 | DB60: 1 | DC60: 0 | DD60: 0 | DE60: 0 | DF60: 4 | DG60: 0 | DH60: 0 | DI60: 0 | DJ60: 0 | DK60: 11 | DL60: 5 | DM60: 1 | DN60: 0 | DO60: 0 | DP60: 12 | DQ60: 2 | DR60: 2 | DS60: 0 | DT60: 0 | DU60: 10 | DV60: 0 | DW60: 0 | DX60: 0 | DY60: 0
A61: 05 | B61: ANTIOQUIA | C61: 051 | D61: 05051 | E61: ARBOLETES | F61: 050514 | G61: 4 | H61: 6 | I61: 0 | J61: 1 | K61: 0 | L61: 0 | M61: 7 | N61: 0 | O61: 0 | P61: 0 | Q61: 0 | R61: 5 | S61: 1 | T61: 0 | U61: 0 | V61: 1 | W61: 6 | X61: 1 | Y61: 0 | Z61: 0 | AA61: 2 | AB61: 6 | AC61: 0 | AD61: 2 | AE61: 0 | AF61: 0 | AG61: 4 | AH61: 0 | AI61: 0 | AJ61: 0 | AK61: 0 | AL61: 4 | AM61: 0 | AN61: 0 | AO61: 0 | AP61: 0 | AQ61: 4 | AR61: 0 | AS61: 0 | AT61: 0 | AU61: 0 | AV61: =+IFERROR(VLOOKUP($F61,[1]Hoja1!$F$2:$L$4485,3,0),0) -> 4 | AW61: =+IFERROR(VLOOKUP($F61,[1]Hoja1!$F$2:$L$4485,4,0),0) -> 0 | AX61: =+IFERROR(VLOOKUP($F61,[1]Hoja1!$F$2:$L$4485,5,0),0) -> 0 | AY61: =+IFERROR(VLOOKUP($F61,[1]Hoja1!$F$2:$L$4485,6,0),0) -> 0 | AZ61: =+IFERROR(VLOOKUP($F61,[1]Hoja1!$F$2:$L$4485,7,0),0) -> 0 | BA61: =+IFERROR(VLOOKUP($F61,[2]Hoja1!$F$2:$L$4485,3,0),0) -> 4 | BB61: =+IFERROR(VLOOKUP($F61,[2]Hoja1!$F$2:$L$4485,4,0),0) -> 0 | BC61: =+IFERROR(VLOOKUP($F61,[2]Hoja1!$F$2:$L$4485,5,0),0) -> 0 | BD61: =+IFERROR(VLOOKUP($F61,[2]Hoja1!$F$2:$L$4485,6,0),0) -> 0 | BE61: =+IFERROR(VLOOKUP($F61,[2]Hoja1!$F$2:$L$4485,7,0),0) -> 0 | BU61: 19 | BV61: CAUCA | BW61: 355 | BX61: 19355 | BY61: INZÁ | BZ61: 193554 | CA61: 4 | CB61: 0 | CC61: 0 | CD61: 0 | CE61: 0 | CF61: 0 | CG61: 0 | CH61: 0 | CI61: 0 | CJ61: 0 | CK61: 0 | CL61: 0 | CM61: 0 | CN61: 0 | CO61: 0 | CP61: 0 | CQ61: 0 | CR61: 0 | CS61: 0 | CT61: 0 | CU61: 0 | CV61: 0 | CW61: 0 | CX61: 0 | CY61: 0 | CZ61: 0 | DA61: 0 | DB61: 0 | DC61: 0 | DD61: 0 | DE61: 0 | DF61: 1 | DG61: 0 | DH61: 0 | DI61: 0 | DJ61: 0 | DK61: 0 | DL61: 0 | DM61: 0 | DN61: 0 | DO61: 0 | DP61: 0 | DQ61: 0 | DR61: 0 | DS61: 0 | DT61: 0 | DU61: 0 | DV61: 0 | DW61: 0 | DX61: 0 | DY61: 0
A62: 05 | B62: ANTIOQUIA | C62: 055 | D62: 05055 | E62: ARGELIA | F62: 050551 | G62: 1 | H62: 99 | I62: 48 | J62: 10 | K62: 0 | L62: 0 | M62: 120 | N62: 38 | O62: 26 | P62: 0 | Q62: 0 | R62: 126 | S62: 29 | T62: 63 | U62: 4 | V62: 2 | W62: 77 | X62: 8 | Y62: 14 | Z62: 1 | AA62: 4 | AB62: 79 | AC62: 16 | AD62: 5 | AE62: 1 | AF62: 2 | AG62: 97 | AH62: 24 | AI62: 10 | AJ62: 0 | AK62: 0 | AL62: 121 | AM62: 38 | AN62: 14 | AO62: 0 | AP62: 0 | AQ62: 92 | AR62: 25 | AS62: 17 | AT62: 0 | AU62: 0 | AV62: =+IFERROR(VLOOKUP($F62,[1]Hoja1!$F$2:$L$4485,3,0),0) -> 102 | AW62: =+IFERROR(VLOOKUP($F62,[1]Hoja1!$F$2:$L$4485,4,0),0) -> 13 | AX62: =+IFERROR(VLOOKUP($F62,[1]Hoja1!$F$2:$L$4485,5,0),0) -> 19 | AY62: =+IFERROR(VLOOKUP($F62,[1]Hoja1!$F$2:$L$4485,6,0),0) -> 12 | AZ62: =+IFERROR(VLOOKUP($F62,[1]Hoja1!$F$2:$L$4485,7,0),0) -> 0 | BA62: =+IFERROR(VLOOKUP($F62,[2]Hoja1!$F$2:$L$4485,3,0),0) -> 121 | BB62: =+IFERROR(VLOOKUP($F62,[2]Hoja1!$F$2:$L$4485,4,0),0) -> 38 | BC62: =+IFERROR(VLOOKUP($F62,[2]Hoja1!$F$2:$L$4485,5,0),0) -> 22 | BD62: =+IFERROR(VLOOKUP($F62,[2]Hoja1!$F$2:$L$4485,6,0),0) -> 0 | BE62: =+IFERROR(VLOOKUP($F62,[2]Hoja1!$F$2:$L$4485,7,0),0) -> 0 | BU62: 19 | BV62: CAUCA | BW62: 364 | BX62: 19364 | BY62: JAMBALÓ | BZ62: 193641 | CA62: 1 | CB62: 45 | CC62: 17 | CD62: 14 | CE62: 0 | CF62: 1 | CG62: 47 | CH62: 18 | CI62: 12 | CJ62: 0 | CK62: 0 | CL62: 40 | CM62: 4 | CN62: 16 | CO62: 0 | CP62: 3 | CQ62: 30 | CR62: 6 | CS62: 2 | CT62: 1 | CU62: 2 | CV62: 38 | CW62: 4 | CX62: 9 | CY62: 0 | CZ62: 3 | DA62: 36 | DB62: 13 | DC62: 6 | DD62: 0 | DE62: 0 | DF62: 32 | DG62: 0 | DH62: 11 | DI62: 0 | DJ62: 0 | DK62: 29 | DL62: 2 | DM62: 3 | DN62: 0 | DO62: 0 | DP62: 47 | DQ62: 16 | DR62: 3 | DS62: 0 | DT62: 0 | DU62: 49 | DV62: 15 | DW62: 0 | DX62: 0 | DY62: 0
A63: 05 | B63: ANTIOQUIA | C63: 055 | D63: 05055 | E63: ARGELIA | F63: 050552 | G63: 2 | H63: 7 | I63: 0 | J63: 2 | K63: 0 | L63: 1 | M63: 13 | N63: 2 | O63: 2 | P63: 0 | Q63: 0 | R63: 13 | S63: 3 | T63: 4 | U63: 2 | V63: 2 | W63: 7 | X63: 0 | Y63: 0 | Z63: 2 | AA63: 1 | AB63: 8 | AC63: 0 | AD63: 0 | AE63: 1 | AF63: 0 | AG63: 9 | AH63: 0 | AI63: 0 | AJ63: 0 | AK63: 0 | AL63: 14 | AM63: 3 | AN63: 0 | AO63: 1 | AP63: 0 | AQ63: 37 | AR63: 1 | AS63: 6 | AT63: 1 | AU63: 0 | AV63: =+IFERROR(VLOOKUP($F63,[1]Hoja1!$F$2:$L$4485,3,0),0) -> 20 | AW63: =+IFERROR(VLOOKUP($F63,[1]Hoja1!$F$2:$L$4485,4,0),0) -> 0 | AX63: =+IFERROR(VLOOKUP($F63,[1]Hoja1!$F$2:$L$4485,5,0),0) -> 2 | AY63: =+IFERROR(VLOOKUP($F63,[1]Hoja1!$F$2:$L$4485,6,0),0) -> 5 | AZ63: =+IFERROR(VLOOKUP($F63,[1]Hoja1!$F$2:$L$4485,7,0),0) -> 0 | BA63: =+IFERROR(VLOOKUP($F63,[2]Hoja1!$F$2:$L$4485,3,0),0) -> 21 | BB63: =+IFERROR(VLOOKUP($F63,[2]Hoja1!$F$2:$L$4485,4,0),0) -> 0 | BC63: =+IFERROR(VLOOKUP($F63,[2]Hoja1!$F$2:$L$4485,5,0),0) -> 1 | BD63: =+IFERROR(VLOOKUP($F63,[2]Hoja1!$F$2:$L$4485,6,0),0) -> 0 | BE63: =+IFERROR(VLOOKUP($F63,[2]Hoja1!$F$2:$L$4485,7,0),0) -> 0 | BU63: 19 | BV63: CAUCA | BW63: 364 | BX63: 19364 | BY63: JAMBALÓ | BZ63: 193642 | CA63: 2 | CB63: 11 | CC63: 0 | CD63: 4 | CE63: 0 | CF63: 1 | CG63: 9 | CH63: 1 | CI63: 0 | CJ63: 0 | CK63: 1 | CL63: 8 | CM63: 0 | CN63: 0 | CO63: 0 | CP63: 2 | CQ63: 9 | CR63: 0 | CS63: 0 | CT63: 0 | CU63: 3 | CV63: 6 | CW63: 0 | CX63: 0 | CY63: 0 | CZ63: 0 | DA63: 9 | DB63: 0 | DC63: 1 | DD63: 0 | DE63: 0 | DF63: 9 | DG63: 0 | DH63: 0 | DI63: 0 | DJ63: 0 | DK63: 42 | DL63: 6 | DM63: 0 | DN63: 0 | DO63: 0 | DP63: 13 | DQ63: 1 | DR63: 0 | DS63: 0 | DT63: 0 | DU63: 13 | DV63: 1 | DW63: 0 | DX63: 0 | DY63: 0
A64: 05 | B64: ANTIOQUIA | C64: 055 | D64: 05055 | E64: ARGELIA | F64: 050553 | G64: 3 | H64: 3 | I64: 0 | J64: 0 | K64: 0 | L64: 0 | M64: 5 | N64: 1 | O64: 0 | P64: 0 | Q64: 0 | R64: 8 | S64: 1 | T64: 0 | U64: 1 | V64: 0 | W64: 8 | X64: 0 | Y64: 0 | Z64: 1 | AA64: 0 | AB64: 11 | AC64: 1 | AD64: 0 | AE64: 1 | AF64: 0 | AG64: 12 | AH64: 2 | AI64: 0 | AJ64: 0 | AK64: 0 | AL64: 13 | AM64: 1 | AN64: 0 | AO64: 0 | AP64: 0 | AQ64: 15 | AR64: 0 | AS64: 0 | AT64: 0 | AU64: 0 | AV64: =+IFERROR(VLOOKUP($F64,[1]Hoja1!$F$2:$L$4485,3,0),0) -> 15 | AW64: =+IFERROR(VLOOKUP($F64,[1]Hoja1!$F$2:$L$4485,4,0),0) -> 1 | AX64: =+IFERROR(VLOOKUP($F64,[1]Hoja1!$F$2:$L$4485,5,0),0) -> 0 | AY64: =+IFERROR(VLOOKUP($F64,[1]Hoja1!$F$2:$L$4485,6,0),0) -> 0 | AZ64: =+IFERROR(VLOOKUP($F64,[1]Hoja1!$F$2:$L$4485,7,0),0) -> 0 | BA64: =+IFERROR(VLOOKUP($F64,[2]Hoja1!$F$2:$L$4485,3,0),0) -> 16 | BB64: =+IFERROR(VLOOKUP($F64,[2]Hoja1!$F$2:$L$4485,4,0),0) -> 0 | BC64: =+IFERROR(VLOOKUP($F64,[2]Hoja1!$F$2:$L$4485,5,0),0) -> 1 | BD64: =+IFERROR(VLOOKUP($F64,[2]Hoja1!$F$2:$L$4485,6,0),0) -> 0 | BE64: =+IFERROR(VLOOKUP($F64,[2]Hoja1!$F$2:$L$4485,7,0),0) -> 0 | BU64: 19 | BV64: CAUCA | BW64: 364 | BX64: 19364 | BY64: JAMBALÓ | BZ64: 193643 | CA64: 3 | CB64: 5 | CC64: 0 | CD64: 4 | CE64: 0 | CF64: 1 | CG64: 1 | CH64: 0 | CI64: 0 | CJ64: 0 | CK64: 1 | CL64: 0 | CM64: 0 | CN64: 0 | CO64: 0 | CP64: 0 | CQ64: 0 | CR64: 0 | CS64: 0 | CT64: 0 | CU64: 0 | CV64: 1 | CW64: 0 | CX64: 0 | CY64: 0 | CZ64: 0 | DA64: 0 | DB64: 0 | DC64: 0 | DD64: 0 | DE64: 0 | DF64: 0 | DG64: 0 | DH64: 0 | DI64: 0 | DJ64: 0 | DK64: 0 | DL64: 0 | DM64: 0 | DN64: 0 | DO64: 0 | DP64: 2 | DQ64: 0 | DR64: 0 | DS64: 0 | DT64: 0 | DU64: 2 | DV64: 0 | DW64: 0 | DX64: 0 | DY64: 0
A65: 05 | B65: ANTIOQUIA | C65: 055 | D65: 05055 | E65: ARGELIA | F65: 050554 | G65: 4 | H65: 0 | I65: 0 | J65: 0 | K65: 0 | L65: 0 | M65: 0 | N65: 0 | O65: 0 | P65: 0 | Q65: 0 | R65: 0 | S65: 0 | T65: 0 | U65: 0 | V65: 0 | W65: 1 | X65: 0 | Y65: 0 | Z65: 1 | AA65: 0 | AB65: 0 | AC65: 0 | AD65: 0 | AE65: 0 | AF65: 0 | AG65: 1 | AH65: 0 | AI65: 0 | AJ65: 0 | AK65: 0 | AL65: 1 | AM65: 0 | AN65: 0 | AO65: 0 | AP65: 0 | AQ65: 1 | AR65: 0 | AS65: 0 | AT65: 0 | AU65: 0 | AV65: =+IFERROR(VLOOKUP($F65,[1]Hoja1!$F$2:$L$4485,3,0),0) -> 1 | AW65: =+IFERROR(VLOOKUP($F65,[1]Hoja1!$F$2:$L$4485,4,0),0) -> 0 | AX65: =+IFERROR(VLOOKUP($F65,[1]Hoja1!$F$2:$L$4485,5,0),0) -> 0 | AY65: =+IFERROR(VLOOKUP($F65,[1]Hoja1!$F$2:$L$4485,6,0),0) -> 0 | AZ65: =+IFERROR(VLOOKUP($F65,[1]Hoja1!$F$2:$L$4485,7,0),0) -> 0 | BA65: =+IFERROR(VLOOKUP($F65,[2]Hoja1!$F$2:$L$4485,3,0),0) -> 1 | BB65: =+IFERROR(VLOOKUP($F65,[2]Hoja1!$F$2:$L$4485,4,0),0) -> 0 | BC65: =+IFERROR(VLOOKUP($F65,[2]Hoja1!$F$2:$L$4485,5,0),0) -> 0 | BD65: =+IFERROR(VLOOKUP($F65,[2]Hoja1!$F$2:$L$4485,6,0),0) -> 0 | BE65: =+IFERROR(VLOOKUP($F65,[2]Hoja1!$F$2:$L$4485,7,0),0) -> 0 | BU65: 19 | BV65: CAUCA | BW65: 364 | BX65: 19364 | BY65: JAMBALÓ | BZ65: 193644 | CA65: 4 | CB65: 0 | CC65: 0 | CD65: 0 | CE65: 0 | CF65: 0 | CG65: 0 | CH65: 0 | CI65: 0 | CJ65: 0 | CK65: 0 | CL65: 0 | CM65: 0 | CN65: 0 | CO65: 0 | CP65: 0 | CQ65: 0 | CR65: 0 | CS65: 0 | CT65: 0 | CU65: 0 | CV65: 0 | CW65: 0 | CX65: 0 | CY65: 0 | CZ65: 0 | DA65: 0 | DB65: 0 | DC65: 0 | DD65: 0 | DE65: 0 | DF65: 0 | DG65: 0 | DH65: 0 | DI65: 0 | DJ65: 0 | DK65: 0 | DL65: 0 | DM65: 0 | DN65: 0 | DO65: 0 | DP65: 0 | DQ65: 0 | DR65: 0 | DS65: 0 | DT65: 0 | DU65: 0 | DV65: 0 | DW65: 0 | DX65: 0 | DY65: 0
A66: 05 | B66: ANTIOQUIA | C66: 059 | D66: 05059 | E66: ARMENIA | F66: 050591 | G66: 1 | H66: 153 | I66: 22 | J66: 35 | K66: 1 | L66: 2 | M66: 135 | N66: 14 | O66: 47 | P66: 0 | Q66: 0 | R66: 111 | S66: 13 | T66: 15 | U66: 4 | V66: 9 | W66: 113 | X66: 9 | Y66: 8 | Z66: 4 | AA66: 16 | AB66: 102 | AC66: 7 | AD66: 7 | AE66: 2 | AF66: 1 | AG66: 114 | AH66: 26 | AI66: 25 | AJ66: 2 | AK66: 1 | AL66: 115 | AM66: 28 | AN66: 15 | AO66: 0 | AP66: 1 | AQ66: 128 | AR66: 19 | AS66: 19 | AT66: 0 | AU66: 1 | AV66: =+IFERROR(VLOOKUP($F66,[1]Hoja1!$F$2:$L$4485,3,0),0) -> 115 | AW66: =+IFERROR(VLOOKUP($F66,[1]Hoja1!$F$2:$L$4485,4,0),0) -> 16 | AX66: =+IFERROR(VLOOKUP($F66,[1]Hoja1!$F$2:$L$4485,5,0),0) -> 12 | AY66: =+IFERROR(VLOOKUP($F66,[1]Hoja1!$F$2:$L$4485,6,0),0) -> 0 | AZ66: =+IFERROR(VLOOKUP($F66,[1]Hoja1!$F$2:$L$4485,7,0),0) -> 1 | BA66: =+IFERROR(VLOOKUP($F66,[2]Hoja1!$F$2:$L$4485,3,0),0) -> 109 | BB66: =+IFERROR(VLOOKUP($F66,[2]Hoja1!$F$2:$L$4485,4,0),0) -> 13 | BC66: =+IFERROR(VLOOKUP($F66,[2]Hoja1!$F$2:$L$4485,5,0),0) -> 13 | BD66: =+IFERROR(VLOOKUP($F66,[2]Hoja1!$F$2:$L$4485,6,0),0) -> 0 | BE66: =+IFERROR(VLOOKUP($F66,[2]Hoja1!$F$2:$L$4485,7,0),0) -> 0 | BU66: 19 | BV66: CAUCA | BW66: 392 | BX66: 19392 | BY66: LA SIERRA | BZ66: 193921 | CA66: 1 | CB66: 150 | CC66: 50 | CD66: 18 | CE66: 5 | CF66: 14 | CG66: 169 | CH66: 14 | CI66: 75 | CJ66: 5 | CK66: 1 | CL66: 186 | CM66: 68 | CN66: 48 | CO66: 1 | CP66: 0 | CQ66: 165 | CR66: 18 | CS66: 19 | CT66: 10 | CU66: 1 | CV66: 165 | CW66: 12 | CX66: 28 | CY66: 10 | CZ66: 0 | DA66: 175 | DB66: 29 | DC66: 22 | DD66: 0 | DE66: 0 | DF66: 179 | DG66: 17 | DH66: 20 | DI66: 0 | DJ66: 0 | DK66: 170 | DL66: 10 | DM66: 13 | DN66: 1 | DO66: 0 | DP66: 200 | DQ66: 28 | DR66: 15 | DS66: 0 | DT66: 0 | DU66: 234 | DV66: 34 | DW66: 27 | DX66: 0 | DY66: 0
A67: 05 | B67: ANTIOQUIA | C67: 059 | D67: 05059 | E67: ARMENIA | F67: 050592 | G67: 2 | H67: 53 | I67: 2 | J67: 4 | K67: 0 | L67: 0 | M67: 54 | N67: 2 | O67: 4 | P67: 0 | Q67: 0 | R67: 42 | S67: 0 | T67: 1 | U67: 0 | V67: 1 | W67: 42 | X67: 1 | Y67: 0 | Z67: 1 | AA67: 1 | AB67: 52 | AC67: 0 | AD67: 0 | AE67: 0 | AF67: 0 | AG67: 52 | AH67: 1 | AI67: 0 | AJ67: 1 | AK67: 0 | AL67: 51 | AM67: 0 | AN67: 1 | AO67: 0 | AP67: 1 | AQ67: 45 | AR67: 1 | AS67: 0 | AT67: 0 | AU67: 0 | AV67: =+IFERROR(VLOOKUP($F67,[1]Hoja1!$F$2:$L$4485,3,0),0) -> 47 | AW67: =+IFERROR(VLOOKUP($F67,[1]Hoja1!$F$2:$L$4485,4,0),0) -> 1 | AX67: =+IFERROR(VLOOKUP($F67,[1]Hoja1!$F$2:$L$4485,5,0),0) -> 0 | AY67: =+IFERROR(VLOOKUP($F67,[1]Hoja1!$F$2:$L$4485,6,0),0) -> 0 | AZ67: =+IFERROR(VLOOKUP($F67,[1]Hoja1!$F$2:$L$4485,7,0),0) -> 1 | BA67: =+IFERROR(VLOOKUP($F67,[2]Hoja1!$F$2:$L$4485,3,0),0) -> 47 | BB67: =+IFERROR(VLOOKUP($F67,[2]Hoja1!$F$2:$L$4485,4,0),0) -> 3 | BC67: =+IFERROR(VLOOKUP($F67,[2]Hoja1!$F$2:$L$4485,5,0),0) -> 0 | BD67: =+IFERROR(VLOOKUP($F67,[2]Hoja1!$F$2:$L$4485,6,0),0) -> 0 | BE67: =+IFERROR(VLOOKUP($F67,[2]Hoja1!$F$2:$L$4485,7,0),0) -> 0 | BU67: 19 | BV67: CAUCA | BW67: 392 | BX67: 19392 | BY67: LA SIERRA | BZ67: 193922 | CA67: 2 | CB67: 4 | CC67: 0 | CD67: 0 | CE67: 0 | CF67: 2 | CG67: 6 | CH67: 0 | CI67: 1 | CJ67: 0 | CK67: 0 | CL67: 14 | CM67: 2 | CN67: 0 | CO67: 1 | CP67: 0 | CQ67: 4 | CR67: 0 | CS67: 0 | CT67: 3 | CU67: 0 | CV67: 5 | CW67: 0 | CX67: 0 | CY67: 2 | CZ67: 0 | DA67: 8 | DB67: 1 | DC67: 2 | DD67: 2 | DE67: 0 | DF67: 8 | DG67: 3 | DH67: 1 | DI67: 2 | DJ67: 0 | DK67: 8 | DL67: 1 | DM67: 1 | DN67: 1 | DO67: 0 | DP67: 11 | DQ67: 0 | DR67: 0 | DS67: 0 | DT67: 0 | DU67: 9 | DV67: 0 | DW67: 0 | DX67: 0 | DY67: 0
A68: 05 | B68: ANTIOQUIA | C68: 059 | D68: 05059 | E68: ARMENIA | F68: 050593 | G68: 3 | H68: 11 | I68: 0 | J68: 0 | K68: 0 | L68: 0 | M68: 9 | N68: 0 | O68: 1 | P68: 0 | Q68: 0 | R68: 6 | S68: 0 | T68: 1 | U68: 0 | V68: 0 | W68: 6 | X68: 0 | Y68: 0 | Z68: 3 | AA68: 3 | AB68: 5 | AC68: 0 | AD68: 0 | AE68: 2 | AF68: 0 | AG68: 4 | AH68: 0 | AI68: 0 | AJ68: 0 | AK68: 0 | AL68: 4 | AM68: 0 | AN68: 0 | AO68: 0 | AP68: 0 | AQ68: 5 | AR68: 1 | AS68: 0 | AT68: 0 | AU68: 1 | AV68: =+IFERROR(VLOOKUP($F68,[1]Hoja1!$F$2:$L$4485,3,0),0) -> 6 | AW68: =+IFERROR(VLOOKUP($F68,[1]Hoja1!$F$2:$L$4485,4,0),0) -> 1 | AX68: =+IFERROR(VLOOKUP($F68,[1]Hoja1!$F$2:$L$4485,5,0),0) -> 0 | AY68: =+IFERROR(VLOOKUP($F68,[1]Hoja1!$F$2:$L$4485,6,0),0) -> 0 | AZ68: =+IFERROR(VLOOKUP($F68,[1]Hoja1!$F$2:$L$4485,7,0),0) -> 0 | BA68: =+IFERROR(VLOOKUP($F68,[2]Hoja1!$F$2:$L$4485,3,0),0) -> 6 | BB68: =+IFERROR(VLOOKUP($F68,[2]Hoja1!$F$2:$L$4485,4,0),0) -> 0 | BC68: =+IFERROR(VLOOKUP($F68,[2]Hoja1!$F$2:$L$4485,5,0),0) -> 0 | BD68: =+IFERROR(VLOOKUP($F68,[2]Hoja1!$F$2:$L$4485,6,0),0) -> 0 | BE68: =+IFERROR(VLOOKUP($F68,[2]Hoja1!$F$2:$L$4485,7,0),0) -> 0 | BU68: 19 | BV68: CAUCA | BW68: 392 | BX68: 19392 | BY68: LA SIERRA | BZ68: 193923 | CA68: 3 | CB68: 3 | CC68: 0 | CD68: 0 | CE68: 0 | CF68: 0 | CG68: 3 | CH68: 0 | CI68: 1 | CJ68: 0 | CK68: 0 | CL68: 2 | CM68: 1 | CN68: 0 | CO68: 0 | CP68: 0 | CQ68: 2 | CR68: 0 | CS68: 0 | CT68: 0 | CU68: 0 | CV68: 3 | CW68: 0 | CX68: 0 | CY68: 1 | CZ68: 0 | DA68: 2 | DB68: 0 | DC68: 0 | DD68: 0 | DE68: 0 | DF68: 2 | DG68: 0 | DH68: 0 | DI68: 0 | DJ68: 0 | DK68: 2 | DL68: 0 | DM68: 0 | DN68: 0 | DO68: 0 | DP68: 2 | DQ68: 0 | DR68: 0 | DS68: 0 | DT68: 0 | DU68: 2 | DV68: 0 | DW68: 0 | DX68: 0 | DY68: 0
A69: 05 | B69: ANTIOQUIA | C69: 059 | D69: 05059 | E69: ARMENIA | F69: 050594 | G69: 4 | H69: 2 | I69: 0 | J69: 0 | K69: 0 | L69: 0 | M69: 1 | N69: 0 | O69: 0 | P69: 0 | Q69: 0 | R69: 1 | S69: 0 | T69: 0 | U69: 0 | V69: 1 | W69: 1 | X69: 0 | Y69: 0 | Z69: 0 | AA69: 1 | AB69: 1 | AC69: 0 | AD69: 0 | AE69: 1 | AF69: 0 | AG69: 2 | AH69: 1 | AI69: 0 | AJ69: 0 | AK69: 0 | AL69: 1 | AM69: 0 | AN69: 0 | AO69: 0 | AP69: 0 | AQ69: 1 | AR69: 0 | AS69: 0 | AT69: 0 | AU69: 0 | AV69: =+IFERROR(VLOOKUP($F69,[1]Hoja1!$F$2:$L$4485,3,0),0) -> 1 | AW69: =+IFERROR(VLOOKUP($F69,[1]Hoja1!$F$2:$L$4485,4,0),0) -> 0 | AX69: =+IFERROR(VLOOKUP($F69,[1]Hoja1!$F$2:$L$4485,5,0),0) -> 0 | AY69: =+IFERROR(VLOOKUP($F69,[1]Hoja1!$F$2:$L$4485,6,0),0) -> 0 | AZ69: =+IFERROR(VLOOKUP($F69,[1]Hoja1!$F$2:$L$4485,7,0),0) -> 0 | BA69: =+IFERROR(VLOOKUP($F69,[2]Hoja1!$F$2:$L$4485,3,0),0) -> 1 | BB69: =+IFERROR(VLOOKUP($F69,[2]Hoja1!$F$2:$L$4485,4,0),0) -> 0 | BC69: =+IFERROR(VLOOKUP($F69,[2]Hoja1!$F$2:$L$4485,5,0),0) -> 0 | BD69: =+IFERROR(VLOOKUP($F69,[2]Hoja1!$F$2:$L$4485,6,0),0) -> 0 | BE69: =+IFERROR(VLOOKUP($F69,[2]Hoja1!$F$2:$L$4485,7,0),0) -> 0 | BU69: 19 | BV69: CAUCA | BW69: 392 | BX69: 19392 | BY69: LA SIERRA | BZ69: 193924 | CA69: 4 | CB69: 0 | CC69: 0 | CD69: 0 | CE69: 0 | CF69: 0 | CG69: 0 | CH69: 0 | CI69: 0 | CJ69: 0 | CK69: 0 | CL69: 0 | CM69: 0 | CN69: 0 | CO69: 0 | CP69: 0 | CQ69: 0 | CR69: 0 | CS69: 0 | CT69: 0 | CU69: 0 | CV69: 0 | CW69: 0 | CX69: 0 | CY69: 0 | CZ69: 0 | DA69: 0 | DB69: 0 | DC69: 0 | DD69: 0 | DE69: 0 | DF69: 0 | DG69: 0 | DH69: 0 | DI69: 0 | DJ69: 0 | DK69: 0 | DL69: 0 | DM69: 0 | DN69: 0 | DO69: 0 | DP69: 0 | DQ69: 0 | DR69: 0 | DS69: 0 | DT69: 0 | DU69: 0 | DV69: 0 | DW69: 0 | DX69: 0 | DY69: 0
A70: 05 | B70: ANTIOQUIA | C70: 079 | D70: 05079 | E70: BARBOSA | F70: 050791 | G70: 1 | H70: 2106 | I70: 626 | J70: 257 | K70: 33 | L70: 177 | M70: 1914 | N70: 324 | O70: 212 | P70: 23 | Q70: 53 | R70: 2175 | S70: 271 | T70: 363 | U70: 89 | V70: 471 | W70: 2518 | X70: 120 | Y70: 197 | Z70: 163 | AA70: 945 | AB70: 1868 | AC70: 258 | AD70: 221 | AE70: 81 | AF70: 58 | AG70: 1908 | AH70: 320 | AI70: 248 | AJ70: 39 | AK70: 34 | AL70: 1881 | AM70: 273 | AN70: 256 | AO70: 46 | AP70: 50 | AQ70: 1777 | AR70: 246 | AS70: 218 | AT70: 38 | AU70: 32 | AV70: =+IFERROR(VLOOKUP($F70,[1]Hoja1!$F$2:$L$4485,3,0),0) -> 1827 | AW70: =+IFERROR(VLOOKUP($F70,[1]Hoja1!$F$2:$L$4485,4,0),0) -> 264 | AX70: =+IFERROR(VLOOKUP($F70,[1]Hoja1!$F$2:$L$4485,5,0),0) -> 243 | AY70: =+IFERROR(VLOOKUP($F70,[1]Hoja1!$F$2:$L$4485,6,0),0) -> 49 | AZ70: =+IFERROR(VLOOKUP($F70,[1]Hoja1!$F$2:$L$4485,7,0),0) -> 43 | BA70: =+IFERROR(VLOOKUP($F70,[2]Hoja1!$F$2:$L$4485,3,0),0) -> 1812 | BB70: =+IFERROR(VLOOKUP($F70,[2]Hoja1!$F$2:$L$4485,4,0),0) -> 230 | BC70: =+IFERROR(VLOOKUP($F70,[2]Hoja1!$F$2:$L$4485,5,0),0) -> 224 | BD70: =+IFERROR(VLOOKUP($F70,[2]Hoja1!$F$2:$L$4485,6,0),0) -> 46 | BE70: =+IFERROR(VLOOKUP($F70,[2]Hoja1!$F$2:$L$4485,7,0),0) -> 39 | BU70: 19 | BV70: CAUCA | BW70: 397 | BX70: 19397 | BY70: LA VEGA | BZ70: 193971 | CA70: 1 | CB70: 26 | CC70: 4 | CD70: 6 | CE70: 0 | CF70: 1 | CG70: 31 | CH70: 5 | CI70: 0 | CJ70: 0 | CK70: 0 | CL70: 26 | CM70: 8 | CN70: 15 | CO70: 0 | CP70: 0 | CQ70: 62 | CR70: 50 | CS70: 2 | CT70: 0 | CU70: 1 | CV70: 55 | CW70: 0 | CX70: 0 | CY70: 0 | CZ70: 0 | DA70: 56 | DB70: 1 | DC70: 1 | DD70: 0 | DE70: 0 | DF70: 63 | DG70: 7 | DH70: 2 | DI70: 0 | DJ70: 0 | DK70: 24 | DL70: 8 | DM70: 10 | DN70: 1 | DO70: 0 | DP70: 72 | DQ70: 49 | DR70: 13 | DS70: 0 | DT70: 2 | DU70: 66 | DV70: 7 | DW70: 1 | DX70: 0 | DY70: 0
A71: 05 | B71: ANTIOQUIA | C71: 079 | D71: 05079 | E71: BARBOSA | F71: 050792 | G71: 2 | H71: 1384 | I71: 52 | J71: 30 | K71: 41 | L71: 442 | M71: 1568 | N71: 70 | O71: 43 | P71: 78 | Q71: 25 | R71: 1396 | S71: 32 | T71: 62 | U71: 48 | V71: 441 | W71: 1072 | X71: 18 | Y71: 20 | Z71: 54 | AA71: 192 | AB71: 1547 | AC71: 14 | AD71: 17 | AE71: 52 | AF71: 144 | AG71: 1639 | AH71: 70 | AI71: 21 | AJ71: 75 | AK71: 34 | AL71: 1680 | AM71: 45 | AN71: 36 | AO71: 73 | AP71: 43 | AQ71: 1749 | AR71: 50 | AS71: 55 | AT71: 144 | AU71: 37 | AV71: =+IFERROR(VLOOKUP($F71,[1]Hoja1!$F$2:$L$4485,3,0),0) -> 1763 | AW71: =+IFERROR(VLOOKUP($F71,[1]Hoja1!$F$2:$L$4485,4,0),0) -> 34 | AX71: =+IFERROR(VLOOKUP($F71,[1]Hoja1!$F$2:$L$4485,5,0),0) -> 52 | AY71: =+IFERROR(VLOOKUP($F71,[1]Hoja1!$F$2:$L$4485,6,0),0) -> 133 | AZ71: =+IFERROR(VLOOKUP($F71,[1]Hoja1!$F$2:$L$4485,7,0),0) -> 38 | BA71: =+IFERROR(VLOOKUP($F71,[2]Hoja1!$F$2:$L$4485,3,0),0) -> 1718 | BB71: =+IFERROR(VLOOKUP($F71,[2]Hoja1!$F$2:$L$4485,4,0),0) -> 51 | BC71: =+IFERROR(VLOOKUP($F71,[2]Hoja1!$F$2:$L$4485,5,0),0) -> 29 | BD71: =+IFERROR(VLOOKUP($F71,[2]Hoja1!$F$2:$L$4485,6,0),0) -> 145 | BE71: =+IFERROR(VLOOKUP($F71,[2]Hoja1!$F$2:$L$4485,7,0),0) -> 43 | BU71: 19 | BV71: CAUCA | BW71: 397 | BX71: 19397 | BY71: LA VEGA | BZ71: 193972 | CA71: 2 | CB71: 11 | CC71: 1 | CD71: 0 | CE71: 0 | CF71: 1 | CG71: 10 | CH71: 0 | CI71: 0 | CJ71: 0 | CK71: 0 | CL71: 12 | CM71: 0 | CN71: 0 | CO71: 0 | CP71: 0 | CQ71: 13 | CR71: 0 | CS71: 0 | CT71: 0 | CU71: 3 | CV71: 14 | CW71: 0 | CX71: 0 | CY71: 0 | CZ71: 0 | DA71: 14 | DB71: 0 | DC71: 0 | DD71: 1 | DE71: 0 | DF71: 16 | DG71: 0 | DH71: 0 | DI71: 1 | DJ71: 1 | DK71: 16 | DL71: 0 | DM71: 1 | DN71: 0 | DO71: 0 | DP71: 10 | DQ71: 0 | DR71: 0 | DS71: 0 | DT71: 0 | DU71: 10 | DV71: 1 | DW71: 0 | DX71: 0 | DY71: 0
A72: 05 | B72: ANTIOQUIA | C72: 079 | D72: 05079 | E72: BARBOSA | F72: 050793 | G72: 3 | H72: 509 | I72: 4 | J72: 8 | K72: 14 | L72: 265 | M72: 622 | N72: 18 | O72: 5 | P72: 13 | Q72: 33 | R72: 619 | S72: 6 | T72: 10 | U72: 12 | V72: 238 | W72: 369 | X72: 1 | Y72: 2 | Z72: 7 | AA72: 39 | AB72: 596 | AC72: 2 | AD72: 4 | AE72: 14 | AF72: 55 | AG72: 629 | AH72: 2 | AI72: 4 | AJ72: 11 | AK72: 34 | AL72: 649 | AM72: 10 | AN72: 4 | AO72: 8 | AP72: 61 | AQ72: 709 | AR72: 1 | AS72: 10 | AT72: 21 | AU72: 60 | AV72: =+IFERROR(VLOOKUP($F72,[1]Hoja1!$F$2:$L$4485,3,0),0) -> 651 | AW72: =+IFERROR(VLOOKUP($F72,[1]Hoja1!$F$2:$L$4485,4,0),0) -> 3 | AX72: =+IFERROR(VLOOKUP($F72,[1]Hoja1!$F$2:$L$4485,5,0),0) -> 11 | AY72: =+IFERROR(VLOOKUP($F72,[1]Hoja1!$F$2:$L$4485,6,0),0) -> 25 | AZ72: =+IFERROR(VLOOKUP($F72,[1]Hoja1!$F$2:$L$4485,7,0),0) -> 36 | BA72: =+IFERROR(VLOOKUP($F72,[2]Hoja1!$F$2:$L$4485,3,0),0) -> 678 | BB72: =+IFERROR(VLOOKUP($F72,[2]Hoja1!$F$2:$L$4485,4,0),0) -> 4 | BC72: =+IFERROR(VLOOKUP($F72,[2]Hoja1!$F$2:$L$4485,5,0),0) -> 5 | BD72: =+IFERROR(VLOOKUP($F72,[2]Hoja1!$F$2:$L$4485,6,0),0) -> 18 | BE72: =+IFERROR(VLOOKUP($F72,[2]Hoja1!$F$2:$L$4485,7,0),0) -> 32 | BU72: 19 | BV72: CAUCA | BW72: 397 | BX72: 19397 | BY72: LA VEGA | BZ72: 193973 | CA72: 3 | CB72: 6 | CC72: 0 | CD72: 1 | CE72: 0 | CF72: 0 | CG72: 5 | CH72: 0 | CI72: 0 | CJ72: 0 | CK72: 0 | CL72: 6 | CM72: 0 | CN72: 0 | CO72: 0 | CP72: 0 | CQ72: 3 | CR72: 0 | CS72: 0 | CT72: 0 | CU72: 0 | CV72: 6 | CW72: 0 | CX72: 0 | CY72: 0 | CZ72: 0 | DA72: 6 | DB72: 0 | DC72: 0 | DD72: 0 | DE72: 0 | DF72: 5 | DG72: 0 | DH72: 0 | DI72: 0 | DJ72: 0 | DK72: 6 | DL72: 0 | DM72: 0 | DN72: 0 | DO72: 0 | DP72: 7 | DQ72: 0 | DR72: 0 | DS72: 0 | DT72: 0 | DU72: 8 | DV72: 0 | DW72: 0 | DX72: 0 | DY72: 1
A73: 05 | B73: ANTIOQUIA | C73: 079 | D73: 05079 | E73: BARBOSA | F73: 050794 | G73: 4 | H73: 94 | I73: 2 | J73: 2 | K73: 0 | L73: 24 | M73: 98 | N73: 0 | O73: 0 | P73: 0 | Q73: 3 | R73: 90 | S73: 0 | T73: 1 | U73: 1 | V73: 8 | W73: 84 | X73: 0 | Y73: 0 | Z73: 0 | AA73: 4 | AB73: 106 | AC73: 0 | AD73: 0 | AE73: 0 | AF73: 0 | AG73: 95 | AH73: 0 | AI73: 1 | AJ73: 0 | AK73: 5 | AL73: 95 | AM73: 0 | AN73: 0 | AO73: 0 | AP73: 4 | AQ73: 88 | AR73: 0 | AS73: 0 | AT73: 0 | AU73: 9 | AV73: =+IFERROR(VLOOKUP($F73,[1]Hoja1!$F$2:$L$4485,3,0),0) -> 98 | AW73: =+IFERROR(VLOOKUP($F73,[1]Hoja1!$F$2:$L$4485,4,0),0) -> 0 | AX73: =+IFERROR(VLOOKUP($F73,[1]Hoja1!$F$2:$L$4485,5,0),0) -> 2 | AY73: =+IFERROR(VLOOKUP($F73,[1]Hoja1!$F$2:$L$4485,6,0),0) -> 0 | AZ73: =+IFERROR(VLOOKUP($F73,[1]Hoja1!$F$2:$L$4485,7,0),0) -> 2 | BA73: =+IFERROR(VLOOKUP($F73,[2]Hoja1!$F$2:$L$4485,3,0),0) -> 92 | BB73: =+IFERROR(VLOOKUP($F73,[2]Hoja1!$F$2:$L$4485,4,0),0) -> 6 | BC73: =+IFERROR(VLOOKUP($F73,[2]Hoja1!$F$2:$L$4485,5,0),0) -> 0 | BD73: =+IFERROR(VLOOKUP($F73,[2]Hoja1!$F$2:$L$4485,6,0),0) -> 0 | BE73: =+IFERROR(VLOOKUP($F73,[2]Hoja1!$F$2:$L$4485,7,0),0) -> 8 | BU73: 19 | BV73: CAUCA | BW73: 397 | BX73: 19397 | BY73: LA VEGA | BZ73: 193974 | CA73: 4 | CB73: 0 | CC73: 0 | CD73: 0 | CE73: 0 | CF73: 0 | CG73: 1 | CH73: 0 | CI73: 1 | CJ73: 0 | CK73: 0 | CL73: 0 | CM73: 0 | CN73: 0 | CO73: 0 | CP73: 0 | CQ73: 1 | CR73: 0 | CS73: 0 | CT73: 0 | CU73: 0 | CV73: 1 | CW73: 0 | CX73: 0 | CY73: 0 | CZ73: 0 | DA73: 0 | DB73: 0 | DC73: 0 | DD73: 0 | DE73: 0 | DF73: 0 | DG73: 0 | DH73: 0 | DI73: 0 | DJ73: 0 | DK73: 0 | DL73: 0 | DM73: 0 | DN73: 0 | DO73: 0 | DP73: 0 | DQ73: 0 | DR73: 0 | DS73: 0 | DT73: 0 | DU73: 0 | DV73: 0 | DW73: 0 | DX73: 0 | DY73: 0
A74: 05 | B74: ANTIOQUIA | C74: 086 | D74: 05086 | E74: BELMIRA | F74: 050861 | G74: 1 | H74: 178 | I74: 36 | J74: 25 | K74: 0 | L74: 6 | M74: 218 | N74: 77 | O74: 49 | P74: 0 | Q74: 1 | R74: 226 | S74: 47 | T74: 60 | U74: 8 | V74: 34 | W74: 215 | X74: 33 | Y74: 22 | Z74: 7 | AA74: 21 | AB74: 201 | AC74: 41 | AD74: 25 | AE74: 0 | AF74: 8 | AG74: 227 | AH74: 56 | AI74: 40 | AJ74: 1 | AK74: 0 | AL74: 222 | AM74: 50 | AN74: 48 | AO74: 1 | AP74: 0 | AQ74: 214 | AR74: 25 | AS74: 29 | AT74: 0 | AU74: 2 | AV74: =+IFERROR(VLOOKUP($F74,[1]Hoja1!$F$2:$L$4485,3,0),0) -> 246 | AW74: =+IFERROR(VLOOKUP($F74,[1]Hoja1!$F$2:$L$4485,4,0),0) -> 57 | AX74: =+IFERROR(VLOOKUP($F74,[1]Hoja1!$F$2:$L$4485,5,0),0) -> 57 | AY74: =+IFERROR(VLOOKUP($F74,[1]Hoja1!$F$2:$L$4485,6,0),0) -> 0 | AZ74: =+IFERROR(VLOOKUP($F74,[1]Hoja1!$F$2:$L$4485,7,0),0) -> 1 | BA74: =+IFERROR(VLOOKUP($F74,[2]Hoja1!$F$2:$L$4485,3,0),0) -> 184 | BB74: =+IFERROR(VLOOKUP($F74,[2]Hoja1!$F$2:$L$4485,4,0),0) -> 17 | BC74: =+IFERROR(VLOOKUP($F74,[2]Hoja1!$F$2:$L$4485,5,0),0) -> 55 | BD74: =+IFERROR(VLOOKUP($F74,[2]Hoja1!$F$2:$L$4485,6,0),0) -> 0 | BE74: =+IFERROR(VLOOKUP($F74,[2]Hoja1!$F$2:$L$4485,7,0),0) -> 0 | BU74: 19 | BV74: CAUCA | BW74: 418 | BX74: 19418 | BY74: LÓPEZ | BZ74: 194181 | CA74: 1 | CB74: 117 | CC74: 0 | CD74: 3 | CE74: 0 | CF74: 0 | CG74: 132 | CH74: 14 | CI74: 1 | CJ74: 0 | CK74: 1 | CL74: 129 | CM74: 1 | CN74: 115 | CO74: 0 | CP74: 0 | CQ74: 110 | CR74: 94 | CS74: 1 | CT74: 0 | CU74: 1 | CV74: 123 | CW74: 13 | CX74: 11 | CY74: 0 | CZ74: 0 | DA74: 123 | DB74: 15 | DC74: 7 | DD74: 0 | DE74: 0 | DF74: 116 | DG74: 7 | DH74: 10 | DI74: 0 | DJ74: 0 | DK74: 119 | DL74: 1 | DM74: 13 | DN74: 1 | DO74: 0 | DP74: 109 | DQ74: 3 | DR74: 3 | DS74: 0 | DT74: 0 | DU74: 106 | DV74: 0 | DW74: 1 | DX74: 0 | DY74: 0
A75: 05 | B75: ANTIOQUIA | C75: 086 | D75: 05086 | E75: BELMIRA | F75: 050862 | G75: 2 | H75: 42 | I75: 1 | J75: 2 | K75: 0 | L75: 0 | M75: 45 | N75: 5 | O75: 1 | P75: 0 | Q75: 0 | R75: 46 | S75: 3 | T75: 2 | U75: 0 | V75: 6 | W75: 43 | X75: 3 | Y75: 0 | Z75: 1 | AA75: 0 | AB75: 45 | AC75: 2 | AD75: 2 | AE75: 0 | AF75: 0 | AG75: 45 | AH75: 1 | AI75: 2 | AJ75: 0 | AK75: 0 | AL75: 49 | AM75: 3 | AN75: 0 | AO75: 1 | AP75: 0 | AQ75: 44 | AR75: 0 | AS75: 1 | AT75: 0 | AU75: 0 | AV75: =+IFERROR(VLOOKUP($F75,[1]Hoja1!$F$2:$L$4485,3,0),0) -> 47 | AW75: =+IFERROR(VLOOKUP($F75,[1]Hoja1!$F$2:$L$4485,4,0),0) -> 0 | AX75: =+IFERROR(VLOOKUP($F75,[1]Hoja1!$F$2:$L$4485,5,0),0) -> 3 | AY75: =+IFERROR(VLOOKUP($F75,[1]Hoja1!$F$2:$L$4485,6,0),0) -> 0 | AZ75: =+IFERROR(VLOOKUP($F75,[1]Hoja1!$F$2:$L$4485,7,0),0) -> 2 | BA75: =+IFERROR(VLOOKUP($F75,[2]Hoja1!$F$2:$L$4485,3,0),0) -> 45 | BB75: =+IFERROR(VLOOKUP($F75,[2]Hoja1!$F$2:$L$4485,4,0),0) -> 1 | BC75: =+IFERROR(VLOOKUP($F75,[2]Hoja1!$F$2:$L$4485,5,0),0) -> 0 | BD75: =+IFERROR(VLOOKUP($F75,[2]Hoja1!$F$2:$L$4485,6,0),0) -> 0 | BE75: =+IFERROR(VLOOKUP($F75,[2]Hoja1!$F$2:$L$4485,7,0),0) -> 5 | BU75: 19 | BV75: CAUCA | BW75: 418 | BX75: 19418 | BY75: LÓPEZ | BZ75: 194182 | CA75: 2 | CB75: 4 | CC75: 0 | CD75: 0 | CE75: 0 | CF75: 2 | CG75: 3 | CH75: 1 | CI75: 0 | CJ75: 0 | CK75: 0 | CL75: 8 | CM75: 1 | CN75: 0 | CO75: 0 | CP75: 1 | CQ75: 5 | CR75: 0 | CS75: 0 | CT75: 0 | CU75: 0 | CV75: 9 | CW75: 0 | CX75: 0 | CY75: 0 | CZ75: 0 | DA75: 13 | DB75: 0 | DC75: 0 | DD75: 1 | DE75: 0 | DF75: 16 | DG75: 1 | DH75: 0 | DI75: 0 | DJ75: 0 | DK75: 11 | DL75: 0 | DM75: 0 | DN75: 0 | DO75: 0 | DP75: 9 | DQ75: 0 | DR75: 0 | DS75: 1 | DT75: 0 | DU75: 11 | DV75: 0 | DW75: 0 | DX75: 0 | DY75: 0
A76: 05 | B76: ANTIOQUIA | C76: 086 | D76: 05086 | E76: BELMIRA | F76: 050863 | G76: 3 | H76: 4 | I76: 0 | J76: 0 | K76: 0 | L76: 0 | M76: 4 | N76: 0 | O76: 0 | P76: 0 | Q76: 0 | R76: 6 | S76: 0 | T76: 0 | U76: 0 | V76: 0 | W76: 8 | X76: 0 | Y76: 0 | Z76: 0 | AA76: 1 | AB76: 11 | AC76: 0 | AD76: 0 | AE76: 0 | AF76: 0 | AG76: 12 | AH76: 1 | AI76: 0 | AJ76: 0 | AK76: 0 | AL76: 13 | AM76: 0 | AN76: 0 | AO76: 0 | AP76: 0 | AQ76: 14 | AR76: 0 | AS76: 0 | AT76: 0 | AU76: 0 | AV76: =+IFERROR(VLOOKUP($F76,[1]Hoja1!$F$2:$L$4485,3,0),0) -> 9 | AW76: =+IFERROR(VLOOKUP($F76,[1]Hoja1!$F$2:$L$4485,4,0),0) -> 1 | AX76: =+IFERROR(VLOOKUP($F76,[1]Hoja1!$F$2:$L$4485,5,0),0) -> 0 | AY76: =+IFERROR(VLOOKUP($F76,[1]Hoja1!$F$2:$L$4485,6,0),0) -> 0 | AZ76: =+IFERROR(VLOOKUP($F76,[1]Hoja1!$F$2:$L$4485,7,0),0) -> 0 | BA76: =+IFERROR(VLOOKUP($F76,[2]Hoja1!$F$2:$L$4485,3,0),0) -> 8 | BB76: =+IFERROR(VLOOKUP($F76,[2]Hoja1!$F$2:$L$4485,4,0),0) -> 0 | BC76: =+IFERROR(VLOOKUP($F76,[2]Hoja1!$F$2:$L$4485,5,0),0) -> 0 | BD76: =+IFERROR(VLOOKUP($F76,[2]Hoja1!$F$2:$L$4485,6,0),0) -> 0 | BE76: =+IFERROR(VLOOKUP($F76,[2]Hoja1!$F$2:$L$4485,7,0),0) -> 0 | BU76: 19 | BV76: CAUCA | BW76: 418 | BX76: 19418 | BY76: LÓPEZ | BZ76: 194183 | CA76: 3 | CB76: 3 | CC76: 0 | CD76: 0 | CE76: 0 | CF76: 0 | CG76: 3 | CH76: 0 | CI76: 0 | CJ76: 0 | CK76: 0 | CL76: 3 | CM76: 0 | CN76: 0 | CO76: 0 | CP76: 0 | CQ76: 4 | CR76: 0 | CS76: 0 | CT76: 0 | CU76: 0 | CV76: 3 | CW76: 0 | CX76: 0 | CY76: 0 | CZ76: 0 | DA76: 2 | DB76: 0 | DC76: 0 | DD76: 0 | DE76: 0 | DF76: 4 | DG76: 0 | DH76: 0 | DI76: 1 | DJ76: 0 | DK76: 0 | DL76: 0 | DM76: 0 | DN76: 0 | DO76: 0 | DP76: 0 | DQ76: 0 | DR76: 0 | DS76: 0 | DT76: 0 | DU76: 0 | DV76: 0 | DW76: 0 | DX76: 0 | DY76: 0
A77: 05 | B77: ANTIOQUIA | C77: 086 | D77: 05086 | E77: BELMIRA | F77: 050864 | G77: 4 | H77: 1 | I77: 0 | J77: 0 | K77: 0 | L77: 1 | M77: 1 | N77: 0 | O77: 0 | P77: 0 | Q77: 0 | R77: 1 | S77: 0 | T77: 0 | U77: 0 | V77: 1 | W77: 1 | X77: 0 | Y77: 0 | Z77: 0 | AA77: 0 | AB77: 1 | AC77: 0 | AD77: 0 | AE77: 0 | AF77: 0 | AG77: 1 | AH77: 0 | AI77: 0 | AJ77: 0 | AK77: 0 | AL77: 1 | AM77: 0 | AN77: 0 | AO77: 0 | AP77: 0 | AQ77: 1 | AR77: 0 | AS77: 0 | AT77: 0 | AU77: 0 | AV77: =+IFERROR(VLOOKUP($F77,[1]Hoja1!$F$2:$L$4485,3,0),0) -> 1 | AW77: =+IFERROR(VLOOKUP($F77,[1]Hoja1!$F$2:$L$4485,4,0),0) -> 0 | AX77: =+IFERROR(VLOOKUP($F77,[1]Hoja1!$F$2:$L$4485,5,0),0) -> 0 | AY77: =+IFERROR(VLOOKUP($F77,[1]Hoja1!$F$2:$L$4485,6,0),0) -> 0 | AZ77: =+IFERROR(VLOOKUP($F77,[1]Hoja1!$F$2:$L$4485,7,0),0) -> 0 | BA77: =+IFERROR(VLOOKUP($F77,[2]Hoja1!$F$2:$L$4485,3,0),0) -> 1 | BB77: =+IFERROR(VLOOKUP($F77,[2]Hoja1!$F$2:$L$4485,4,0),0) -> 0 | BC77: =+IFERROR(VLOOKUP($F77,[2]Hoja1!$F$2:$L$4485,5,0),0) -> 0 | BD77: =+IFERROR(VLOOKUP($F77,[2]Hoja1!$F$2:$L$4485,6,0),0) -> 0 | BE77: =+IFERROR(VLOOKUP($F77,[2]Hoja1!$F$2:$L$4485,7,0),0) -> 0 | BU77: 19 | BV77: CAUCA | BW77: 418 | BX77: 19418 | BY77: LÓPEZ | BZ77: 194184 | CA77: 4 | CB77: 0 | CC77: 0 | CD77: 0 | CE77: 0 | CF77: 0 | CG77: 0 | CH77: 0 | CI77: 0 | CJ77: 0 | CK77: 0 | CL77: 0 | CM77: 0 | CN77: 0 | CO77: 0 | CP77: 0 | CQ77: 0 | CR77: 0 | CS77: 0 | CT77: 0 | CU77: 0 | CV77: 1 | CW77: 0 | CX77: 0 | CY77: 0 | CZ77: 0 | DA77: 1 | DB77: 0 | DC77: 0 | DD77: 0 | DE77: 0 | DF77: 1 | DG77: 0 | DH77: 0 | DI77: 0 | DJ77: 0 | DK77: 1 | DL77: 0 | DM77: 0 | DN77: 0 | DO77: 0 | DP77: 1 | DQ77: 0 | DR77: 0 | DS77: 0 | DT77: 0 | DU77: 1 | DV77: 0 | DW77: 0 | DX77: 0 | DY77: 0
A78: 05 | B78: ANTIOQUIA | C78: 088 | D78: 05088 | E78: BELLO | F78: 050881 | G78: 1 | H78: 19939 | I78: 6166 | J78: 2689 | K78: 380 | L78: 1856 | M78: 18581 | N78: 4322 | O78: 2759 | P78: 227 | Q78: 420 | R78: 20143 | S78: 3042 | T78: 4228 | U78: 1086 | V78: 3507 | W78: 19980 | X78: 2115 | Y78: 2054 | Z78: 1561 | AA78: 5570 | AB78: 17371 | AC78: 2976 | AD78: 1865 | AE78: 1004 | AF78: 1100 | AG78: 16946 | AH78: 3187 | AI78: 2098 | AJ78: 539 | AK78: 470 | AL78: 17377 | AM78: 3343 | AN78: 2095 | AO78: 508 | AP78: 731 | AQ78: 17527 | AR78: 3076 | AS78: 2143 | AT78: 452 | AU78: 642 | AV78: =+IFERROR(VLOOKUP($F78,[1]Hoja1!$F$2:$L$4485,3,0),0) -> 17458 | AW78: =+IFERROR(VLOOKUP($F78,[1]Hoja1!$F$2:$L$4485,4,0),0) -> 3524 | AX78: =+IFERROR(VLOOKUP($F78,[1]Hoja1!$F$2:$L$4485,5,0),0) -> 2199 | AY78: =+IFERROR(VLOOKUP($F78,[1]Hoja1!$F$2:$L$4485,6,0),0) -> 384 | AZ78: =+IFERROR(VLOOKUP($F78,[1]Hoja1!$F$2:$L$4485,7,0),0) -> 530 | BA78: =+IFERROR(VLOOKUP($F78,[2]Hoja1!$F$2:$L$4485,3,0),0) -> 17530 | BB78: =+IFERROR(VLOOKUP($F78,[2]Hoja1!$F$2:$L$4485,4,0),0) -> 3636 | BC78: =+IFERROR(VLOOKUP($F78,[2]Hoja1!$F$2:$L$4485,5,0),0) -> 2158 | BD78: =+IFERROR(VLOOKUP($F78,[2]Hoja1!$F$2:$L$4485,6,0),0) -> 256 | BE78: =+IFERROR(VLOOKUP($F78,[2]Hoja1!$F$2:$L$4485,7,0),0) -> 538 | BU78: 19 | BV78: CAUCA | BW78: 450 | BX78: 19450 | BY78: MERCADERES | BZ78: 194501 | CA78: 1 | CB78: 36 | CC78: 1 | CD78: 1 | CE78: 0 | CF78: 2 | CG78: 44 | CH78: 10 | CI78: 0 | CJ78: 0 | CK78: 0 | CL78: 38 | CM78: 4 | CN78: 1 | CO78: 0 | CP78: 1 | CQ78: 96 | CR78: 58 | CS78: 0 | CT78: 1 | CU78: 4 | CV78: 95 | CW78: 2 | CX78: 0 | CY78: 1 | CZ78: 0 | DA78: 100 | DB78: 2 | DC78: 4 | DD78: 0 | DE78: 1 | DF78: 100 | DG78: 6 | DH78: 3 | DI78: 0 | DJ78: 1 | DK78: 101 | DL78: 5 | DM78: 6 | DN78: 1 | DO78: 2 | DP78: 101 | DQ78: 6 | DR78: 2 | DS78: 0 | DT78: 0 | DU78: 112 | DV78: 11 | DW78: 2 | DX78: 1 | DY78: 1
A79: 05 | B79: ANTIOQUIA | C79: 088 | D79: 05088 | E79: BELLO | F79: 050882 | G79: 2 | H79: 11319 | I79: 753 | J79: 298 | K79: 424 | L79: 1726 | M79: 13391 | N79: 536 | O79: 258 | P79: 324 | Q79: 480 | R79: 11847 | S79: 325 | T79: 323 | U79: 509 | V79: 2683 | W79: 10398 | X79: 92 | Y79: 149 | Z79: 613 | AA79: 2916 | AB79: 12342 | AC79: 323 | AD79: 225 | AE79: 389 | AF79: 690 | AG79: 13508 | AH79: 421 | AI79: 208 | AJ79: 293 | AK79: 427 | AL79: 13365 | AM79: 271 | AN79: 419 | AO79: 349 | AP79: 506 | AQ79: 12934 | AR79: 193 | AS79: 225 | AT79: 296 | AU79: 429 | AV79: =+IFERROR(VLOOKUP($F79,[1]Hoja1!$F$2:$L$4485,3,0),0) -> 13285 | AW79: =+IFERROR(VLOOKUP($F79,[1]Hoja1!$F$2:$L$4485,4,0),0) -> 290 | AX79: =+IFERROR(VLOOKUP($F79,[1]Hoja1!$F$2:$L$4485,5,0),0) -> 257 | AY79: =+IFERROR(VLOOKUP($F79,[1]Hoja1!$F$2:$L$4485,6,0),0) -> 313 | AZ79: =+IFERROR(VLOOKUP($F79,[1]Hoja1!$F$2:$L$4485,7,0),0) -> 396 | BA79: =+IFERROR(VLOOKUP($F79,[2]Hoja1!$F$2:$L$4485,3,0),0) -> 13419 | BB79: =+IFERROR(VLOOKUP($F79,[2]Hoja1!$F$2:$L$4485,4,0),0) -> 262 | BC79: =+IFERROR(VLOOKUP($F79,[2]Hoja1!$F$2:$L$4485,5,0),0) -> 306 | BD79: =+IFERROR(VLOOKUP($F79,[2]Hoja1!$F$2:$L$4485,6,0),0) -> 308 | BE79: =+IFERROR(VLOOKUP($F79,[2]Hoja1!$F$2:$L$4485,7,0),0) -> 514 | BU79: 19 | BV79: CAUCA | BW79: 450 | BX79: 19450 | BY79: MERCADERES | BZ79: 194502 | CA79: 2 | CB79: 15 | CC79: 0 | CD79: 0 | CE79: 0 | CF79: 2 | CG79: 16 | CH79: 1 | CI79: 0 | CJ79: 0 | CK79: 1 | CL79: 22 | CM79: 0 | CN79: 0 | CO79: 0 | CP79: 2 | CQ79: 17 | CR79: 0 | CS79: 1 | CT79: 0 | CU79: 1 | CV79: 21 | CW79: 2 | CX79: 0 | CY79: 0 | CZ79: 0 | DA79: 22 | DB79: 0 | DC79: 1 | DD79: 1 | DE79: 0 | DF79: 25 | DG79: 1 | DH79: 1 | DI79: 1 | DJ79: 1 | DK79: 22 | DL79: 1 | DM79: 0 | DN79: 0 | DO79: 1 | DP79: 23 | DQ79: 0 | DR79: 0 | DS79: 0 | DT79: 1 | DU79: 18 | DV79: 0 | DW79: 0 | DX79: 0 | DY79: 0
A80: 05 | B80: ANTIOQUIA | C80: 088 | D80: 05088 | E80: BELLO | F80: 050883 | G80: 3 | H80: 3552 | I80: 116 | J80: 61 | K80: 44 | L80: 628 | M80: 4195 | N80: 56 | O80: 63 | P80: 37 | Q80: 195 | R80: 3911 | S80: 37 | T80: 77 | U80: 43 | V80: 1030 | W80: 2838 | X80: 19 | Y80: 28 | Z80: 68 | AA80: 694 | AB80: 3727 | AC80: 29 | AD80: 33 | AE80: 44 | AF80: 253 | AG80: 4102 | AH80: 44 | AI80: 47 | AJ80: 47 | AK80: 130 | AL80: 4122 | AM80: 33 | AN80: 72 | AO80: 49 | AP80: 192 | AQ80: 4098 | AR80: 51 | AS80: 89 | AT80: 51 | AU80: 129 | AV80: =+IFERROR(VLOOKUP($F80,[1]Hoja1!$F$2:$L$4485,3,0),0) -> 4113 | AW80: =+IFERROR(VLOOKUP($F80,[1]Hoja1!$F$2:$L$4485,4,0),0) -> 49 | AX80: =+IFERROR(VLOOKUP($F80,[1]Hoja1!$F$2:$L$4485,5,0),0) -> 63 | AY80: =+IFERROR(VLOOKUP($F80,[1]Hoja1!$F$2:$L$4485,6,0),0) -> 42 | AZ80: =+IFERROR(VLOOKUP($F80,[1]Hoja1!$F$2:$L$4485,7,0),0) -> 106 | BA80: =+IFERROR(VLOOKUP($F80,[2]Hoja1!$F$2:$L$4485,3,0),0) -> 4194 | BB80: =+IFERROR(VLOOKUP($F80,[2]Hoja1!$F$2:$L$4485,4,0),0) -> 34 | BC80: =+IFERROR(VLOOKUP($F80,[2]Hoja1!$F$2:$L$4485,5,0),0) -> 59 | BD80: =+IFERROR(VLOOKUP($F80,[2]Hoja1!$F$2:$L$4485,6,0),0) -> 47 | BE80: =+IFERROR(VLOOKUP($F80,[2]Hoja1!$F$2:$L$4485,7,0),0) -> 210 | BU80: 19 | BV80: CAUCA | BW80: 450 | BX80: 19450 | BY80: MERCADERES | BZ80: 194503 | CA80: 3 | CB80: 8 | CC80: 0 | CD80: 0 | CE80: 0 | CF80: 1 | CG80: 9 | CH80: 0 | CI80: 0 | CJ80: 0 | CK80: 0 | CL80: 7 | CM80: 0 | CN80: 0 | CO80: 0 | CP80: 0 | CQ80: 11 | CR80: 0 | CS80: 0 | CT80: 0 | CU80: 0 | CV80: 10 | CW80: 0 | CX80: 0 | CY80: 0 | CZ80: 0 | DA80: 8 | DB80: 0 | DC80: 0 | DD80: 0 | DE80: 1 | DF80: 7 | DG80: 0 | DH80: 0 | DI80: 0 | DJ80: 1 | DK80: 10 | DL80: 0 | DM80: 0 | DN80: 0 | DO80: 0 | DP80: 10 | DQ80: 0 | DR80: 0 | DS80: 0 | DT80: 0 | DU80: 11 | DV80: 0 | DW80: 0 | DX80: 0 | DY80: 1
A81: 05 | B81: ANTIOQUIA | C81: 088 | D81: 05088 | E81: BELLO | F81: 050884 | G81: 4 | H81: 484 | I81: 15 | J81: 7 | K81: 2 | L81: 99 | M81: 536 | N81: 3 | O81: 9 | P81: 1 | Q81: 19 | R81: 515 | S81: 10 | T81: 12 | U81: 10 | V81: 80 | W81: 438 | X81: 2 | Y81: 3 | Z81: 9 | AA81: 92 | AB81: 513 | AC81: 5 | AD81: 10 | AE81: 4 | AF81: 20 | AG81: 562 | AH81: 3 | AI81: 11 | AJ81: 5 | AK81: 17 | AL81: 553 | AM81: 4 | AN81: 8 | AO81: 2 | AP81: 9 | AQ81: 539 | AR81: 5 | AS81: 8 | AT81: 2 | AU81: 26 | AV81: =+IFERROR(VLOOKUP($F81,[1]Hoja1!$F$2:$L$4485,3,0),0) -> 548 | AW81: =+IFERROR(VLOOKUP($F81,[1]Hoja1!$F$2:$L$4485,4,0),0) -> 4 | AX81: =+IFERROR(VLOOKUP($F81,[1]Hoja1!$F$2:$L$4485,5,0),0) -> 8 | AY81: =+IFERROR(VLOOKUP($F81,[1]Hoja1!$F$2:$L$4485,6,0),0) -> 0 | AZ81: =+IFERROR(VLOOKUP($F81,[1]Hoja1!$F$2:$L$4485,7,0),0) -> 19 | BA81: =+IFERROR(VLOOKUP($F81,[2]Hoja1!$F$2:$L$4485,3,0),0) -> 585 | BB81: =+IFERROR(VLOOKUP($F81,[2]Hoja1!$F$2:$L$4485,4,0),0) -> 4 | BC81: =+IFERROR(VLOOKUP($F81,[2]Hoja1!$F$2:$L$4485,5,0),0) -> 13 | BD81: =+IFERROR(VLOOKUP($F81,[2]Hoja1!$F$2:$L$4485,6,0),0) -> 1 | BE81: =+IFERROR(VLOOKUP($F81,[2]Hoja1!$F$2:$L$4485,7,0),0) -> 28 | BU81: 19 | BV81: CAUCA | BW81: 450 | BX81: 19450 | BY81: MERCADERES | BZ81: 194504 | CA81: 4 | CB81: 0 | CC81: 0 | CD81: 0 | CE81: 0 | CF81: 0 | CG81: 0 | CH81: 0 | CI81: 0 | CJ81: 0 | CK81: 0 | CL81: 0 | CM81: 0 | CN81: 0 | CO81: 0 | CP81: 0 | CQ81: 0 | CR81: 0 | CS81: 0 | CT81: 0 | CU81: 0 | CV81: 0 | CW81: 0 | CX81: 0 | CY81: 0 | CZ81: 0 | DA81: 0 | DB81: 0 | DC81: 0 | DD81: 0 | DE81: 0 | DF81: 0 | DG81: 0 | DH81: 0 | DI81: 0 | DJ81: 0 | DK81: 0 | DL81: 0 | DM81: 0 | DN81: 0 | DO81: 0 | DP81: 0 | DQ81: 0 | DR81: 0 | DS81: 0 | DT81: 0 | DU81: 0 | DV81: 0 | DW81: 0 | DX81: 0 | DY81: 0
A82: 05 | B82: ANTIOQUIA | C82: 091 | D82: 05091 | E82: BETANIA | F82: 050911 | G82: 1 | H82: 262 | I82: 82 | J82: 37 | K82: 0 | L82: 4 | M82: 256 | N82: 49 | O82: 81 | P82: 1 | Q82: 0 | R82: 219 | S82: 14 | T82: 50 | U82: 0 | V82: 16 | W82: 184 | X82: 10 | Y82: 11 | Z82: 10 | AA82: 21 | AB82: 183 | AC82: 29 | AD82: 31 | AE82: 0 | AF82: 4 | AG82: 188 | AH82: 32 | AI82: 27 | AJ82: 2 | AK82: 2 | AL82: 182 | AM82: 26 | AN82: 23 | AO82: 2 | AP82: 1 | AQ82: 230 | AR82: 27 | AS82: 30 | AT82: 3 | AU82: 3 | AV82: =+IFERROR(VLOOKUP($F82,[1]Hoja1!$F$2:$L$4485,3,0),0) -> 208 | AW82: =+IFERROR(VLOOKUP($F82,[1]Hoja1!$F$2:$L$4485,4,0),0) -> 34 | AX82: =+IFERROR(VLOOKUP($F82,[1]Hoja1!$F$2:$L$4485,5,0),0) -> 52 | AY82: =+IFERROR(VLOOKUP($F82,[1]Hoja1!$F$2:$L$4485,6,0),0) -> 0 | AZ82: =+IFERROR(VLOOKUP($F82,[1]Hoja1!$F$2:$L$4485,7,0),0) -> 1 | BA82: =+IFERROR(VLOOKUP($F82,[2]Hoja1!$F$2:$L$4485,3,0),0) -> 170 | BB82: =+IFERROR(VLOOKUP($F82,[2]Hoja1!$F$2:$L$4485,4,0),0) -> 15 | BC82: =+IFERROR(VLOOKUP($F82,[2]Hoja1!$F$2:$L$4485,5,0),0) -> 61 | BD82: =+IFERROR(VLOOKUP($F82,[2]Hoja1!$F$2:$L$4485,6,0),0) -> 0 | BE82: =+IFERROR(VLOOKUP($F82,[2]Hoja1!$F$2:$L$4485,7,0),0) -> 0 | BU82: 19 | BV82: CAUCA | BW82: 455 | BX82: 19455 | BY82: MIRANDA | BZ82: 194551 | CA82: 1 | CB82: 634 | CC82: 391 | CD82: 48 | CE82: 6 | CF82: 27 | CG82: 470 | CH82: 110 | CI82: 53 | CJ82: 22 | CK82: 16 | CL82: 516 | CM82: 67 | CN82: 63 | CO82: 13 | CP82: 161 | CQ82: 627 | CR82: 36 | CS82: 23 | CT82: 41 | CU82: 284 | CV82: 446 | CW82: 88 | CX82: 52 | CY82: 43 | CZ82: 50 | DA82: 445 | DB82: 84 | DC82: 70 | DD82: 32 | DE82: 30 | DF82: 488 | DG82: 62 | DH82: 160 | DI82: 33 | DJ82: 11 | DK82: 428 | DL82: 87 | DM82: 57 | DN82: 12 | DO82: 10 | DP82: 418 | DQ82: 108 | DR82: 54 | DS82: 7 | DT82: 6 | DU82: 429 | DV82: 97 | DW82: 62 | DX82: 8 | DY82: 5
A83: 05 | B83: ANTIOQUIA | C83: 091 | D83: 05091 | E83: BETANIA | F83: 050912 | G83: 2 | H83: 40 | I83: 6 | J83: 0 | K83: 0 | L83: 1 | M83: 39 | N83: 1 | O83: 2 | P83: 0 | Q83: 0 | R83: 48 | S83: 1 | T83: 0 | U83: 0 | V83: 2 | W83: 51 | X83: 0 | Y83: 1 | Z83: 2 | AA83: 0 | AB83: 52 | AC83: 0 | AD83: 1 | AE83: 0 | AF83: 0 | AG83: 51 | AH83: 1 | AI83: 2 | AJ83: 0 | AK83: 1 | AL83: 54 | AM83: 0 | AN83: 3 | AO83: 0 | AP83: 0 | AQ83: 47 | AR83: 1 | AS83: 1 | AT83: 0 | AU83: 0 | AV83: =+IFERROR(VLOOKUP($F83,[1]Hoja1!$F$2:$L$4485,3,0),0) -> 46 | AW83: =+IFERROR(VLOOKUP($F83,[1]Hoja1!$F$2:$L$4485,4,0),0) -> 0 | AX83: =+IFERROR(VLOOKUP($F83,[1]Hoja1!$F$2:$L$4485,5,0),0) -> 3 | AY83: =+IFERROR(VLOOKUP($F83,[1]Hoja1!$F$2:$L$4485,6,0),0) -> 0 | AZ83: =+IFERROR(VLOOKUP($F83,[1]Hoja1!$F$2:$L$4485,7,0),0) -> 1 | BA83: =+IFERROR(VLOOKUP($F83,[2]Hoja1!$F$2:$L$4485,3,0),0) -> 47 | BB83: =+IFERROR(VLOOKUP($F83,[2]Hoja1!$F$2:$L$4485,4,0),0) -> 0 | BC83: =+IFERROR(VLOOKUP($F83,[2]Hoja1!$F$2:$L$4485,5,0),0) -> 2 | BD83: =+IFERROR(VLOOKUP($F83,[2]Hoja1!$F$2:$L$4485,6,0),0) -> 0 | BE83: =+IFERROR(VLOOKUP($F83,[2]Hoja1!$F$2:$L$4485,7,0),0) -> 0 | BU83: 19 | BV83: CAUCA | BW83: 455 | BX83: 19455 | BY83: MIRANDA | BZ83: 194552 | CA83: 2 | CB83: 379 | CC83: 105 | CD83: 9 | CE83: 6 | CF83: 25 | CG83: 567 | CH83: 3 | CI83: 14 | CJ83: 15 | CK83: 48 | CL83: 526 | CM83: 15 | CN83: 2 | CO83: 10 | CP83: 171 | CQ83: 383 | CR83: 20 | CS83: 4 | CT83: 11 | CU83: 76 | CV83: 597 | CW83: 7 | CX83: 9 | CY83: 14 | CZ83: 21 | DA83: 635 | DB83: 10 | DC83: 10 | DD83: 6 | DE83: 29 | DF83: 563 | DG83: 6 | DH83: 5 | DI83: 5 | DJ83: 12 | DK83: 522 | DL83: 5 | DM83: 2 | DN83: 7 | DO83: 18 | DP83: 561 | DQ83: 8 | DR83: 13 | DS83: 4 | DT83: 8 | DU83: 569 | DV83: 13 | DW83: 7 | DX83: 8 | DY83: 6
A84: 05 | B84: ANTIOQUIA | C84: 091 | D84: 05091 | E84: BETANIA | F84: 050913 | G84: 3 | H84: 4 | I84: 0 | J84: 0 | K84: 0 | L84: 0 | M84: 4 | N84: 0 | O84: 0 | P84: 0 | Q84: 0 | R84: 5 | S84: 0 | T84: 1 | U84: 0 | V84: 0 | W84: 5 | X84: 0 | Y84: 0 | Z84: 0 | AA84: 0 | AB84: 4 | AC84: 0 | AD84: 0 | AE84: 0 | AF84: 0 | AG84: 3 | AH84: 0 | AI84: 0 | AJ84: 0 | AK84: 0 | AL84: 3 | AM84: 0 | AN84: 0 | AO84: 0 | AP84: 0 | AQ84: 4 | AR84: 0 | AS84: 0 | AT84: 0 | AU84: 0 | AV84: =+IFERROR(VLOOKUP($F84,[1]Hoja1!$F$2:$L$4485,3,0),0) -> 4 | AW84: =+IFERROR(VLOOKUP($F84,[1]Hoja1!$F$2:$L$4485,4,0),0) -> 0 | AX84: =+IFERROR(VLOOKUP($F84,[1]Hoja1!$F$2:$L$4485,5,0),0) -> 0 | AY84: =+IFERROR(VLOOKUP($F84,[1]Hoja1!$F$2:$L$4485,6,0),0) -> 0 | AZ84: =+IFERROR(VLOOKUP($F84,[1]Hoja1!$F$2:$L$4485,7,0),0) -> 0 | BA84: =+IFERROR(VLOOKUP($F84,[2]Hoja1!$F$2:$L$4485,3,0),0) -> 4 | BB84: =+IFERROR(VLOOKUP($F84,[2]Hoja1!$F$2:$L$4485,4,0),0) -> 0 | BC84: =+IFERROR(VLOOKUP($F84,[2]Hoja1!$F$2:$L$4485,5,0),0) -> 0 | BD84: =+IFERROR(VLOOKUP($F84,[2]Hoja1!$F$2:$L$4485,6,0),0) -> 0 | BE84: =+IFERROR(VLOOKUP($F84,[2]Hoja1!$F$2:$L$4485,7,0),0) -> 0 | BU84: 19 | BV84: CAUCA | BW84: 455 | BX84: 19455 | BY84: MIRANDA | BZ84: 194553 | CA84: 3 | CB84: 47 | CC84: 12 | CD84: 0 | CE84: 0 | CF84: 13 | CG84: 67 | CH84: 0 | CI84: 1 | CJ84: 6 | CK84: 8 | CL84: 53 | CM84: 2 | CN84: 0 | CO84: 2 | CP84: 15 | CQ84: 80 | CR84: 0 | CS84: 3 | CT84: 0 | CU84: 11 | CV84: 73 | CW84: 0 | CX84: 2 | CY84: 5 | CZ84: 2 | DA84: 76 | DB84: 2 | DC84: 5 | DD84: 0 | DE84: 5 | DF84: 62 | DG84: 1 | DH84: 1 | DI84: 0 | DJ84: 1 | DK84: 86 | DL84: 0 | DM84: 0 | DN84: 0 | DO84: 1 | DP84: 81 | DQ84: 0 | DR84: 3 | DS84: 1 | DT84: 1 | DU84: 96 | DV84: 4 | DW84: 1 | DX84: 0 | DY84: 1
A85: 05 | B85: ANTIOQUIA | C85: 091 | D85: 05091 | E85: BETANIA | F85: 050914 | G85: 4 | H85: 0 | I85: 0 | J85: 0 | K85: 0 | L85: 0 | M85: 0 | N85: 0 | O85: 0 | P85: 0 | Q85: 0 | R85: 0 | S85: 0 | T85: 0 | U85: 0 | V85: 0 | W85: 0 | X85: 0 | Y85: 0 | Z85: 0 | AA85: 0 | AB85: 0 | AC85: 0 | AD85: 0 | AE85: 0 | AF85: 0 | AG85: 0 | AH85: 0 | AI85: 0 | AJ85: 0 | AK85: 0 | AL85: 0 | AM85: 0 | AN85: 0 | AO85: 0 | AP85: 0 | AQ85: 0 | AR85: 0 | AS85: 0 | AT85: 0 | AU85: 0 | AV85: =+IFERROR(VLOOKUP($F85,[1]Hoja1!$F$2:$L$4485,3,0),0) -> 0 | AW85: =+IFERROR(VLOOKUP($F85,[1]Hoja1!$F$2:$L$4485,4,0),0) -> 0 | AX85: =+IFERROR(VLOOKUP($F85,[1]Hoja1!$F$2:$L$4485,5,0),0) -> 0 | AY85: =+IFERROR(VLOOKUP($F85,[1]Hoja1!$F$2:$L$4485,6,0),0) -> 0 | AZ85: =+IFERROR(VLOOKUP($F85,[1]Hoja1!$F$2:$L$4485,7,0),0) -> 0 | BA85: =+IFERROR(VLOOKUP($F85,[2]Hoja1!$F$2:$L$4485,3,0),0) -> 0 | BB85: =+IFERROR(VLOOKUP($F85,[2]Hoja1!$F$2:$L$4485,4,0),0) -> 0 | BC85: =+IFERROR(VLOOKUP($F85,[2]Hoja1!$F$2:$L$4485,5,0),0) -> 0 | BD85: =+IFERROR(VLOOKUP($F85,[2]Hoja1!$F$2:$L$4485,6,0),0) -> 0 | BE85: =+IFERROR(VLOOKUP($F85,[2]Hoja1!$F$2:$L$4485,7,0),0) -> 0 | BU85: 19 | BV85: CAUCA | BW85: 455 | BX85: 19455 | BY85: MIRANDA | BZ85: 194554 | CA85: 4 | CB85: 3 | CC85: 0 | CD85: 0 | CE85: 0 | CF85: 0 | CG85: 6 | CH85: 0 | CI85: 0 | CJ85: 0 | CK85: 0 | CL85: 9 | CM85: 0 | CN85: 1 | CO85: 0 | CP85: 1 | CQ85: 5 | CR85: 0 | CS85: 0 | CT85: 1 | CU85: 0 | CV85: 7 | CW85: 0 | CX85: 0 | CY85: 0 | CZ85: 0 | DA85: 5 | DB85: 0 | DC85: 0 | DD85: 0 | DE85: 0 | DF85: 9 | DG85: 1 | DH85: 2 | DI85: 0 | DJ85: 0 | DK85: 10 | DL85: 0 | DM85: 0 | DN85: 0 | DO85: 0 | DP85: 11 | DQ85: 0 | DR85: 1 | DS85: 0 | DT85: 0 | DU85: 9 | DV85: 0 | DW85: 0 | DX85: 0 | DY85: 0
A86: 05 | B86: ANTIOQUIA | C86: 093 | D86: 05093 | E86: BETULIA | F86: 050931 | G86: 1 | H86: 284 | I86: 50 | J86: 35 | K86: 4 | L86: 44 | M86: 282 | N86: 53 | O86: 38 | P86: 5 | Q86: 16 | R86: 319 | S86: 17 | T86: 76 | U86: 2 | V86: 18 | W86: 273 | X86: 32 | Y86: 11 | Z86: 6 | AA86: 24 | AB86: 266 | AC86: 29 | AD86: 23 | AE86: 5 | AF86: 5 | AG86: 241 | AH86: 21 | AI86: 29 | AJ86: 2 | AK86: 11 | AL86: 230 | AM86: 25 | AN86: 16 | AO86: 3 | AP86: 13 | AQ86: 275 | AR86: 27 | AS86: 35 | AT86: 6 | AU86: 10 | AV86: =+IFERROR(VLOOKUP($F86,[1]Hoja1!$F$2:$L$4485,3,0),0) -> 259 | AW86: =+IFERROR(VLOOKUP($F86,[1]Hoja1!$F$2:$L$4485,4,0),0) -> 25 | AX86: =+IFERROR(VLOOKUP($F86,[1]Hoja1!$F$2:$L$4485,5,0),0) -> 40 | AY86: =+IFERROR(VLOOKUP($F86,[1]Hoja1!$F$2:$L$4485,6,0),0) -> 6 | AZ86: =+IFERROR(VLOOKUP($F86,[1]Hoja1!$F$2:$L$4485,7,0),0) -> 5 | BA86: =+IFERROR(VLOOKUP($F86,[2]Hoja1!$F$2:$L$4485,3,0),0) -> 209 | BB86: =+IFERROR(VLOOKUP($F86,[2]Hoja1!$F$2:$L$4485,4,0),0) -> 10 | BC86: =+IFERROR(VLOOKUP($F86,[2]Hoja1!$F$2:$L$4485,5,0),0) -> 44 | BD86: =+IFERROR(VLOOKUP($F86,[2]Hoja1!$F$2:$L$4485,6,0),0) -> 5 | BE86: =+IFERROR(VLOOKUP($F86,[2]Hoja1!$F$2:$L$4485,7,0),0) -> 7 | BU86: 19 | BV86: CAUCA | BW86: 473 | BX86: 19473 | BY86: MORALES | BZ86: 194731 | CA86: 1 | CB86: 74 | CC86: 7 | CD86: 11 | CE86: 0 | CF86: 1 | CG86: 91 | CH86: 30 | CI86: 12 | CJ86: 0 | CK86: 2 | CL86: 69 | CM86: 2 | CN86: 5 | CO86: 0 | CP86: 6 | CQ86: 70 | CR86: 1 | CS86: 1 | CT86: 0 | CU86: 5 | CV86: 66 | CW86: 0 | CX86: 1 | CY86: 0 | CZ86: 1 | DA86: 65 | DB86: 0 | DC86: 1 | DD86: 0 | DE86: 2 | DF86: 71 | DG86: 11 | DH86: 2 | DI86: 0 | DJ86: 1 | DK86: 74 | DL86: 4 | DM86: 3 | DN86: 1 | DO86: 2 | DP86: 77 | DQ86: 6 | DR86: 0 | DS86: 0 | DT86: 0 | DU86: 86 | DV86: 4 | DW86: 5 | DX86: 0 | DY86: 1
A87: 05 | B87: ANTIOQUIA | C87: 093 | D87: 05093 | E87: BETULIA | F87: 050932 | G87: 2 | H87: 122 | I87: 2 | J87: 1 | K87: 2 | L87: 6 | M87: 124 | N87: 7 | O87: 3 | P87: 3 | Q87: 1 | R87: 124 | S87: 3 | T87: 4 | U87: 4 | V87: 4 | W87: 130 | X87: 1 | Y87: 1 | Z87: 4 | AA87: 0 | AB87: 129 | AC87: 5 | AD87: 1 | AE87: 4 | AF87: 2 | AG87: 127 | AH87: 1 | AI87: 1 | AJ87: 5 | AK87: 2 | AL87: 132 | AM87: 0 | AN87: 2 | AO87: 1 | AP87: 6 | AQ87: 142 | AR87: 4 | AS87: 9 | AT87: 1 | AU87: 8 | AV87: =+IFERROR(VLOOKUP($F87,[1]Hoja1!$F$2:$L$4485,3,0),0) -> 128 | AW87: =+IFERROR(VLOOKUP($F87,[1]Hoja1!$F$2:$L$4485,4,0),0) -> 3 | AX87: =+IFERROR(VLOOKUP($F87,[1]Hoja1!$F$2:$L$4485,5,0),0) -> 7 | AY87: =+IFERROR(VLOOKUP($F87,[1]Hoja1!$F$2:$L$4485,6,0),0) -> 1 | AZ87: =+IFERROR(VLOOKUP($F87,[1]Hoja1!$F$2:$L$4485,7,0),0) -> 1 | BA87: =+IFERROR(VLOOKUP($F87,[2]Hoja1!$F$2:$L$4485,3,0),0) -> 121 | BB87: =+IFERROR(VLOOKUP($F87,[2]Hoja1!$F$2:$L$4485,4,0),0) -> 1 | BC87: =+IFERROR(VLOOKUP($F87,[2]Hoja1!$F$2:$L$4485,5,0),0) -> 4 | BD87: =+IFERROR(VLOOKUP($F87,[2]Hoja1!$F$2:$L$4485,6,0),0) -> 4 | BE87: =+IFERROR(VLOOKUP($F87,[2]Hoja1!$F$2:$L$4485,7,0),0) -> 0 | BU87: 19 | BV87: CAUCA | BW87: 473 | BX87: 19473 | BY87: MORALES | BZ87: 194732 | CA87: 2 | CB87: 21 | CC87: 1 | CD87: 0 | CE87: 0 | CF87: 2 | CG87: 20 | CH87: 1 | CI87: 0 | CJ87: 0 | CK87: 0 | CL87: 32 | CM87: 0 | CN87: 0 | CO87: 0 | CP87: 1 | CQ87: 28 | CR87: 0 | CS87: 1 | CT87: 0 | CU87: 2 | CV87: 29 | CW87: 0 | CX87: 1 | CY87: 0 | CZ87: 1 | DA87: 30 | DB87: 1 | DC87: 1 | DD87: 1 | DE87: 0 | DF87: 33 | DG87: 0 | DH87: 0 | DI87: 1 | DJ87: 1 | DK87: 32 | DL87: 0 | DM87: 2 | DN87: 0 | DO87: 0 | DP87: 30 | DQ87: 0 | DR87: 0 | DS87: 0 | DT87: 0 | DU87: 27 | DV87: 1 | DW87: 0 | DX87: 0 | DY87: 0
A88: 05 | B88: ANTIOQUIA | C88: 093 | D88: 05093 | E88: BETULIA | F88: 050933 | G88: 3 | H88: 12 | I88: 0 | J88: 0 | K88: 1 | L88: 0 | M88: 14 | N88: 0 | O88: 0 | P88: 0 | Q88: 2 | R88: 15 | S88: 0 | T88: 0 | U88: 0 | V88: 2 | W88: 14 | X88: 0 | Y88: 0 | Z88: 1 | AA88: 1 | AB88: 14 | AC88: 0 | AD88: 0 | AE88: 0 | AF88: 0 | AG88: 20 | AH88: 0 | AI88: 0 | AJ88: 0 | AK88: 0 | AL88: 18 | AM88: 0 | AN88: 0 | AO88: 0 | AP88: 1 | AQ88: 15 | AR88: 2 | AS88: 0 | AT88: 0 | AU88: 0 | AV88: =+IFERROR(VLOOKUP($F88,[1]Hoja1!$F$2:$L$4485,3,0),0) -> 17 | AW88: =+IFERROR(VLOOKUP($F88,[1]Hoja1!$F$2:$L$4485,4,0),0) -> 0 | AX88: =+IFERROR(VLOOKUP($F88,[1]Hoja1!$F$2:$L$4485,5,0),0) -> 1 | AY88: =+IFERROR(VLOOKUP($F88,[1]Hoja1!$F$2:$L$4485,6,0),0) -> 0 | AZ88: =+IFERROR(VLOOKUP($F88,[1]Hoja1!$F$2:$L$4485,7,0),0) -> 0 | BA88: =+IFERROR(VLOOKUP($F88,[2]Hoja1!$F$2:$L$4485,3,0),0) -> 17 | BB88: =+IFERROR(VLOOKUP($F88,[2]Hoja1!$F$2:$L$4485,4,0),0) -> 1 | BC88: =+IFERROR(VLOOKUP($F88,[2]Hoja1!$F$2:$L$4485,5,0),0) -> 0 | BD88: =+IFERROR(VLOOKUP($F88,[2]Hoja1!$F$2:$L$4485,6,0),0) -> 1 | BE88: =+IFERROR(VLOOKUP($F88,[2]Hoja1!$F$2:$L$4485,7,0),0) -> 0 | BU88: 19 | BV88: CAUCA | BW88: 473 | BX88: 19473 | BY88: MORALES | BZ88: 194733 | CA88: 3 | CB88: 2 | CC88: 0 | CD88: 1 | CE88: 0 | CF88: 1 | CG88: 2 | CH88: 0 | CI88: 0 | CJ88: 0 | CK88: 0 | CL88: 1 | CM88: 0 | CN88: 0 | CO88: 0 | CP88: 0 | CQ88: 0 | CR88: 0 | CS88: 0 | CT88: 0 | CU88: 0 | CV88: 1 | CW88: 0 | CX88: 0 | CY88: 0 | CZ88: 0 | DA88: 0 | DB88: 0 | DC88: 0 | DD88: 0 | DE88: 0 | DF88: 1 | DG88: 0 | DH88: 0 | DI88: 0 | DJ88: 0 | DK88: 0 | DL88: 0 | DM88: 0 | DN88: 0 | DO88: 0 | DP88: 1 | DQ88: 0 | DR88: 0 | DS88: 0 | DT88: 0 | DU88: 1 | DV88: 0 | DW88: 0 | DX88: 0 | DY88: 0
A89: 05 | B89: ANTIOQUIA | C89: 093 | D89: 05093 | E89: BETULIA | F89: 050934 | G89: 4 | H89: 3 | I89: 0 | J89: 0 | K89: 0 | L89: 0 | M89: 2 | N89: 0 | O89: 0 | P89: 0 | Q89: 0 | R89: 2 | S89: 0 | T89: 0 | U89: 0 | V89: 0 | W89: 3 | X89: 0 | Y89: 0 | Z89: 0 | AA89: 0 | AB89: 2 | AC89: 0 | AD89: 0 | AE89: 0 | AF89: 0 | AG89: 3 | AH89: 0 | AI89: 0 | AJ89: 0 | AK89: 0 | AL89: 3 | AM89: 0 | AN89: 1 | AO89: 0 | AP89: 0 | AQ89: 3 | AR89: 0 | AS89: 0 | AT89: 0 | AU89: 0 | AV89: =+IFERROR(VLOOKUP($F89,[1]Hoja1!$F$2:$L$4485,3,0),0) -> 3 | AW89: =+IFERROR(VLOOKUP($F89,[1]Hoja1!$F$2:$L$4485,4,0),0) -> 0 | AX89: =+IFERROR(VLOOKUP($F89,[1]Hoja1!$F$2:$L$4485,5,0),0) -> 0 | AY89: =+IFERROR(VLOOKUP($F89,[1]Hoja1!$F$2:$L$4485,6,0),0) -> 0 | AZ89: =+IFERROR(VLOOKUP($F89,[1]Hoja1!$F$2:$L$4485,7,0),0) -> 0 | BA89: =+IFERROR(VLOOKUP($F89,[2]Hoja1!$F$2:$L$4485,3,0),0) -> 4 | BB89: =+IFERROR(VLOOKUP($F89,[2]Hoja1!$F$2:$L$4485,4,0),0) -> 0 | BC89: =+IFERROR(VLOOKUP($F89,[2]Hoja1!$F$2:$L$4485,5,0),0) -> 0 | BD89: =+IFERROR(VLOOKUP($F89,[2]Hoja1!$F$2:$L$4485,6,0),0) -> 0 | BE89: =+IFERROR(VLOOKUP($F89,[2]Hoja1!$F$2:$L$4485,7,0),0) -> 0 | BU89: 19 | BV89: CAUCA | BW89: 473 | BX89: 19473 | BY89: MORALES | BZ89: 194734 | CA89: 4 | CB89: 1 | CC89: 0 | CD89: 0 | CE89: 0 | CF89: 0 | CG89: 1 | CH89: 0 | CI89: 0 | CJ89: 0 | CK89: 0 | CL89: 1 | CM89: 0 | CN89: 0 | CO89: 0 | CP89: 0 | CQ89: 1 | CR89: 0 | CS89: 0 | CT89: 0 | CU89: 0 | CV89: 1 | CW89: 0 | CX89: 0 | CY89: 0 | CZ89: 0 | DA89: 1 | DB89: 0 | DC89: 0 | DD89: 0 | DE89: 0 | DF89: 1 | DG89: 0 | DH89: 0 | DI89: 0 | DJ89: 0 | DK89: 1 | DL89: 0 | DM89: 0 | DN89: 0 | DO89: 0 | DP89: 1 | DQ89: 0 | DR89: 0 | DS89: 0 | DT89: 0 | DU89: 1 | DV89: 0 | DW89: 0 | DX89: 0 | DY89: 0
A90: 05 | B90: ANTIOQUIA | C90: 101 | D90: 05101 | E90: CIUDAD BOLÍVAR | F90: 051011 | G90: 1 | H90: 1272 | I90: 401 | J90: 131 | K90: 12 | L90: 38 | M90: 1305 | N90: 232 | O90: 127 | P90: 15 | Q90: 21 | R90: 1272 | S90: 76 | T90: 168 | U90: 21 | V90: 112 | W90: 1199 | X90: 64 | Y90: 87 | Z90: 20 | AA90: 134 | AB90: 1184 | AC90: 113 | AD90: 99 | AE90: 2 | AF90: 27 | AG90: 1188 | AH90: 153 | AI90: 108 | AJ90: 10 | AK90: 23 | AL90: 1194 | AM90: 116 | AN90: 118 | AO90: 5 | AP90: 31 | AQ90: 1126 | AR90: 95 | AS90: 109 | AT90: 3 | AU90: 29 | AV90: =+IFERROR(VLOOKUP($F90,[1]Hoja1!$F$2:$L$4485,3,0),0) -> 1106 | AW90: =+IFERROR(VLOOKUP($F90,[1]Hoja1!$F$2:$L$4485,4,0),0) -> 94 | AX90: =+IFERROR(VLOOKUP($F90,[1]Hoja1!$F$2:$L$4485,5,0),0) -> 104 | AY90: =+IFERROR(VLOOKUP($F90,[1]Hoja1!$F$2:$L$4485,6,0),0) -> 11 | AZ90: =+IFERROR(VLOOKUP($F90,[1]Hoja1!$F$2:$L$4485,7,0),0) -> 9 | BA90: =+IFERROR(VLOOKUP($F90,[2]Hoja1!$F$2:$L$4485,3,0),0) -> 1143 | BB90: =+IFERROR(VLOOKUP($F90,[2]Hoja1!$F$2:$L$4485,4,0),0) -> 150 | BC90: =+IFERROR(VLOOKUP($F90,[2]Hoja1!$F$2:$L$4485,5,0),0) -> 101 | BD90: =+IFERROR(VLOOKUP($F90,[2]Hoja1!$F$2:$L$4485,6,0),0) -> 11 | BE90: =+IFERROR(VLOOKUP($F90,[2]Hoja1!$F$2:$L$4485,7,0),0) -> 5 | BU90: 19 | BV90: CAUCA | BW90: 513 | BX90: 19513 | BY90: PADILLA | BZ90: 195131 | CA90: 1 | CB90: 105 | CC90: 21 | CD90: 3 | CE90: 0 | CF90: 0 | CG90: 114 | CH90: 20 | CI90: 32 | CJ90: 0 | CK90: 1 | CL90: 89 | CM90: 10 | CN90: 12 | CO90: 0 | CP90: 1 | CQ90: 82 | CR90: 3 | CS90: 1 | CT90: 0 | CU90: 4 | CV90: 82 | CW90: 8 | CX90: 7 | CY90: 0 | CZ90: 2 | DA90: 88 | DB90: 10 | DC90: 10 | DD90: 0 | DE90: 0 | DF90: 92 | DG90: 15 | DH90: 17 | DI90: 0 | DJ90: 0 | DK90: 83 | DL90: 8 | DM90: 10 | DN90: 1 | DO90: 0 | DP90: 87 | DQ90: 13 | DR90: 16 | DS90: 0 | DT90: 0 | DU90: 81 | DV90: 9 | DW90: 3 | DX90: 0 | DY90: 1
A91: 05 | B91: ANTIOQUIA | C91: 101 | D91: 05101 | E91: CIUDAD BOLÍVAR | F91: 051012 | G91: 2 | H91: 508 | I91: 17 | J91: 14 | K91: 6 | L91: 28 | M91: 556 | N91: 12 | O91: 7 | P91: 6 | Q91: 8 | R91: 531 | S91: 6 | T91: 5 | U91: 7 | V91: 51 | W91: 506 | X91: 3 | Y91: 9 | Z91: 1 | AA91: 55 | AB91: 532 | AC91: 7 | AD91: 15 | AE91: 1 | AF91: 10 | AG91: 582 | AH91: 8 | AI91: 17 | AJ91: 9 | AK91: 4 | AL91: 586 | AM91: 6 | AN91: 9 | AO91: 2 | AP91: 6 | AQ91: 620 | AR91: 12 | AS91: 52 | AT91: 4 | AU91: 5 | AV91: =+IFERROR(VLOOKUP($F91,[1]Hoja1!$F$2:$L$4485,3,0),0) -> 578 | AW91: =+IFERROR(VLOOKUP($F91,[1]Hoja1!$F$2:$L$4485,4,0),0) -> 10 | AX91: =+IFERROR(VLOOKUP($F91,[1]Hoja1!$F$2:$L$4485,5,0),0) -> 10 | AY91: =+IFERROR(VLOOKUP($F91,[1]Hoja1!$F$2:$L$4485,6,0),0) -> 4 | AZ91: =+IFERROR(VLOOKUP($F91,[1]Hoja1!$F$2:$L$4485,7,0),0) -> 6 | BA91: =+IFERROR(VLOOKUP($F91,[2]Hoja1!$F$2:$L$4485,3,0),0) -> 595 | BB91: =+IFERROR(VLOOKUP($F91,[2]Hoja1!$F$2:$L$4485,4,0),0) -> 15 | BC91: =+IFERROR(VLOOKUP($F91,[2]Hoja1!$F$2:$L$4485,5,0),0) -> 7 | BD91: =+IFERROR(VLOOKUP($F91,[2]Hoja1!$F$2:$L$4485,6,0),0) -> 4 | BE91: =+IFERROR(VLOOKUP($F91,[2]Hoja1!$F$2:$L$4485,7,0),0) -> 3 | BU91: 19 | BV91: CAUCA | BW91: 513 | BX91: 19513 | BY91: PADILLA | BZ91: 195132 | CA91: 2 | CB91: 7 | CC91: 1 | CD91: 0 | CE91: 0 | CF91: 0 | CG91: 18 | CH91: 3 | CI91: 0 | CJ91: 0 | CK91: 0 | CL91: 20 | CM91: 1 | CN91: 0 | CO91: 0 | CP91: 2 | CQ91: 20 | CR91: 0 | CS91: 0 | CT91: 1 | CU91: 1 | CV91: 21 | CW91: 0 | CX91: 0 | CY91: 0 | CZ91: 0 | DA91: 23 | DB91: 0 | DC91: 0 | DD91: 1 | DE91: 0 | DF91: 24 | DG91: 3 | DH91: 0 | DI91: 1 | DJ91: 0 | DK91: 26 | DL91: 0 | DM91: 2 | DN91: 1 | DO91: 1 | DP91: 25 | DQ91: 0 | DR91: 2 | DS91: 0 | DT91: 0 | DU91: 25 | DV91: 2 | DW91: 1 | DX91: 0 | DY91: 0
A92: 05 | B92: ANTIOQUIA | C92: 101 | D92: 05101 | E92: CIUDAD BOLÍVAR | F92: 051013 | G92: 3 | H92: 60 | I92: 0 | J92: 0 | K92: 0 | L92: 9 | M92: 68 | N92: 1 | O92: 0 | P92: 0 | Q92: 3 | R92: 69 | S92: 0 | T92: 2 | U92: 0 | V92: 11 | W92: 61 | X92: 0 | Y92: 0 | Z92: 1 | AA92: 7 | AB92: 67 | AC92: 0 | AD92: 1 | AE92: 0 | AF92: 1 | AG92: 75 | AH92: 3 | AI92: 1 | AJ92: 0 | AK92: 3 | AL92: 70 | AM92: 0 | AN92: 0 | AO92: 0 | AP92: 1 | AQ92: 70 | AR92: 1 | AS92: 0 | AT92: 0 | AU92: 0 | AV92: =+IFERROR(VLOOKUP($F92,[1]Hoja1!$F$2:$L$4485,3,0),0) -> 71 | AW92: =+IFERROR(VLOOKUP($F92,[1]Hoja1!$F$2:$L$4485,4,0),0) -> 0 | AX92: =+IFERROR(VLOOKUP($F92,[1]Hoja1!$F$2:$L$4485,5,0),0) -> 3 | AY92: =+IFERROR(VLOOKUP($F92,[1]Hoja1!$F$2:$L$4485,6,0),0) -> 0 | AZ92: =+IFERROR(VLOOKUP($F92,[1]Hoja1!$F$2:$L$4485,7,0),0) -> 0 | BA92: =+IFERROR(VLOOKUP($F92,[2]Hoja1!$F$2:$L$4485,3,0),0) -> 76 | BB92: =+IFERROR(VLOOKUP($F92,[2]Hoja1!$F$2:$L$4485,4,0),0) -> 0 | BC92: =+IFERROR(VLOOKUP($F92,[2]Hoja1!$F$2:$L$4485,5,0),0) -> 0 | BD92: =+IFERROR(VLOOKUP($F92,[2]Hoja1!$F$2:$L$4485,6,0),0) -> 0 | BE92: =+IFERROR(VLOOKUP($F92,[2]Hoja1!$F$2:$L$4485,7,0),0) -> 0 | BU92: 19 | BV92: CAUCA | BW92: 513 | BX92: 19513 | BY92: PADILLA | BZ92: 195133 | CA92: 3 | CB92: 2 | CC92: 0 | CD92: 0 | CE92: 0 | CF92: 0 | CG92: 2 | CH92: 0 | CI92: 0 | CJ92: 0 | CK92: 0 | CL92: 2 | CM92: 0 | CN92: 0 | CO92: 0 | CP92: 0 | CQ92: 2 | CR92: 0 | CS92: 0 | CT92: 0 | CU92: 0 | CV92: 2 | CW92: 0 | CX92: 0 | CY92: 0 | CZ92: 0 | DA92: 2 | DB92: 0 | DC92: 0 | DD92: 0 | DE92: 0 | DF92: 2 | DG92: 0 | DH92: 0 | DI92: 0 | DJ92: 0 | DK92: 3 | DL92: 1 | DM92: 0 | DN92: 0 | DO92: 0 | DP92: 3 | DQ92: 0 | DR92: 1 | DS92: 0 | DT92: 0 | DU92: 2 | DV92: 0 | DW92: 0 | DX92: 0 | DY92: 0
A93: 05 | B93: ANTIOQUIA | C93: 101 | D93: 05101 | E93: CIUDAD BOLÍVAR | F93: 051014 | G93: 4 | H93: 4 | I93: 0 | J93: 0 | K93: 0 | L93: 1 | M93: 6 | N93: 0 | O93: 0 | P93: 0 | Q93: 0 | R93: 5 | S93: 0 | T93: 0 | U93: 0 | V93: 1 | W93: 5 | X93: 0 | Y93: 0 | Z93: 0 | AA93: 0 | AB93: 6 | AC93: 0 | AD93: 0 | AE93: 0 | AF93: 0 | AG93: 7 | AH93: 0 | AI93: 0 | AJ93: 0 | AK93: 0 | AL93: 5 | AM93: 0 | AN93: 0 | AO93: 0 | AP93: 0 | AQ93: 6 | AR93: 0 | AS93: 1 | AT93: 0 | AU93: 0 | AV93: =+IFERROR(VLOOKUP($F93,[1]Hoja1!$F$2:$L$4485,3,0),0) -> 6 | AW93: =+IFERROR(VLOOKUP($F93,[1]Hoja1!$F$2:$L$4485,4,0),0) -> 0 | AX93: =+IFERROR(VLOOKUP($F93,[1]Hoja1!$F$2:$L$4485,5,0),0) -> 0 | AY93: =+IFERROR(VLOOKUP($F93,[1]Hoja1!$F$2:$L$4485,6,0),0) -> 0 | AZ93: =+IFERROR(VLOOKUP($F93,[1]Hoja1!$F$2:$L$4485,7,0),0) -> 0 | BA93: =+IFERROR(VLOOKUP($F93,[2]Hoja1!$F$2:$L$4485,3,0),0) -> 9 | BB93: =+IFERROR(VLOOKUP($F93,[2]Hoja1!$F$2:$L$4485,4,0),0) -> 0 | BC93: =+IFERROR(VLOOKUP($F93,[2]Hoja1!$F$2:$L$4485,5,0),0) -> 0 | BD93: =+IFERROR(VLOOKUP($F93,[2]Hoja1!$F$2:$L$4485,6,0),0) -> 0 | BE93: =+IFERROR(VLOOKUP($F93,[2]Hoja1!$F$2:$L$4485,7,0),0) -> 0 | BU93: 19 | BV93: CAUCA | BW93: 513 | BX93: 19513 | BY93: PADILLA | BZ93: 195134 | CA93: 4 | CB93: 1 | CC93: 0 | CD93: 0 | CE93: 0 | CF93: 0 | CG93: 1 | CH93: 0 | CI93: 0 | CJ93: 0 | CK93: 0 | CL93: 1 | CM93: 0 | CN93: 0 | CO93: 0 | CP93: 0 | CQ93: 1 | CR93: 0 | CS93: 0 | CT93: 0 | CU93: 0 | CV93: 1 | CW93: 0 | CX93: 0 | CY93: 0 | CZ93: 0 | DA93: 1 | DB93: 0 | DC93: 0 | DD93: 0 | DE93: 0 | DF93: 1 | DG93: 0 | DH93: 0 | DI93: 0 | DJ93: 0 | DK93: 1 | DL93: 0 | DM93: 0 | DN93: 0 | DO93: 0 | DP93: 1 | DQ93: 0 | DR93: 0 | DS93: 0 | DT93: 0 | DU93: 1 | DV93: 0 | DW93: 0 | DX93: 0 | DY93: 0
A94: 05 | B94: ANTIOQUIA | C94: 107 | D94: 05107 | E94: BRICEÑO | F94: 051071 | G94: 1 | H94: 186 | I94: 48 | J94: 43 | K94: 4 | L94: 0 | M94: 203 | N94: 64 | O94: 81 | P94: 1 | Q94: 0 | R94: 222 | S94: 38 | T94: 65 | U94: 9 | V94: 9 | W94: 170 | X94: 14 | Y94: 13 | Z94: 16 | AA94: 16 | AB94: 127 | AC94: 6 | AD94: 27 | AE94: 5 | AF94: 2 | AG94: 131 | AH94: 16 | AI94: 33 | AJ94: 0 | AK94: 0 | AL94: 136 | AM94: 42 | AN94: 18 | AO94: 2 | AP94: 0 | AQ94: 168 | AR94: 39 | AS94: 25 | AT94: 0 | AU94: 1 | AV94: =+IFERROR(VLOOKUP($F94,[1]Hoja1!$F$2:$L$4485,3,0),0) -> 187 | AW94: =+IFERROR(VLOOKUP($F94,[1]Hoja1!$F$2:$L$4485,4,0),0) -> 48 | AX94: =+IFERROR(VLOOKUP($F94,[1]Hoja1!$F$2:$L$4485,5,0),0) -> 61 | AY94: =+IFERROR(VLOOKUP($F94,[1]Hoja1!$F$2:$L$4485,6,0),0) -> 0 | AZ94: =+IFERROR(VLOOKUP($F94,[1]Hoja1!$F$2:$L$4485,7,0),0) -> 0 | BA94: =+IFERROR(VLOOKUP($F94,[2]Hoja1!$F$2:$L$4485,3,0),0) -> 195 | BB94: =+IFERROR(VLOOKUP($F94,[2]Hoja1!$F$2:$L$4485,4,0),0) -> 80 | BC94: =+IFERROR(VLOOKUP($F94,[2]Hoja1!$F$2:$L$4485,5,0),0) -> 54 | BD94: =+IFERROR(VLOOKUP($F94,[2]Hoja1!$F$2:$L$4485,6,0),0) -> 1 | BE94: =+IFERROR(VLOOKUP($F94,[2]Hoja1!$F$2:$L$4485,7,0),0) -> 0 | BU94: 19 | BV94: CAUCA | BW94: 517 | BX94: 19517 | BY94: PAEZ | BZ94: 195171 | CA94: 1 | CB94: 55 | CC94: 22 | CD94: 9 | CE94: 8 | CF94: 2 | CG94: 70 | CH94: 40 | CI94: 13 | CJ94: 0 | CK94: 0 | CL94: 65 | CM94: 11 | CN94: 12 | CO94: 5 | CP94: 3 | CQ94: 56 | CR94: 10 | CS94: 5 | CT94: 10 | CU94: 4 | CV94: 55 | CW94: 4 | CX94: 4 | CY94: 9 | CZ94: 2 | DA94: 61 | DB94: 11 | DC94: 8 | DD94: 1 | DE94: 0 | DF94: 76 | DG94: 26 | DH94: 20 | DI94: 5 | DJ94: 1 | DK94: 125 | DL94: 53 | DM94: 23 | DN94: 6 | DO94: 1 | DP94: 149 | DQ94: 38 | DR94: 12 | DS94: 3 | DT94: 1 | DU94: 162 | DV94: 28 | DW94: 16 | DX94: 0 | DY94: 2
A95: 05 | B95: ANTIOQUIA | C95: 107 | D95: 05107 | E95: BRICEÑO | F95: 051072 | G95: 2 | H95: 44 | I95: 2 | J95: 6 | K95: 4 | L95: 2 | M95: 41 | N95: 3 | O95: 21 | P95: 0 | Q95: 0 | R95: 32 | S95: 6 | T95: 2 | U95: 4 | V95: 4 | W95: 37 | X95: 0 | Y95: 3 | Z95: 1 | AA95: 7 | AB95: 34 | AC95: 0 | AD95: 0 | AE95: 0 | AF95: 0 | AG95: 28 | AH95: 1 | AI95: 1 | AJ95: 0 | AK95: 0 | AL95: 36 | AM95: 1 | AN95: 4 | AO95: 0 | AP95: 0 | AQ95: 32 | AR95: 1 | AS95: 2 | AT95: 0 | AU95: 0 | AV95: =+IFERROR(VLOOKUP($F95,[1]Hoja1!$F$2:$L$4485,3,0),0) -> 35 | AW95: =+IFERROR(VLOOKUP($F95,[1]Hoja1!$F$2:$L$4485,4,0),0) -> 0 | AX95: =+IFERROR(VLOOKUP($F95,[1]Hoja1!$F$2:$L$4485,5,0),0) -> 2 | AY95: =+IFERROR(VLOOKUP($F95,[1]Hoja1!$F$2:$L$4485,6,0),0) -> 1 | AZ95: =+IFERROR(VLOOKUP($F95,[1]Hoja1!$F$2:$L$4485,7,0),0) -> 0 | BA95: =+IFERROR(VLOOKUP($F95,[2]Hoja1!$F$2:$L$4485,3,0),0) -> 40 | BB95: =+IFERROR(VLOOKUP($F95,[2]Hoja1!$F$2:$L$4485,4,0),0) -> 3 | BC95: =+IFERROR(VLOOKUP($F95,[2]Hoja1!$F$2:$L$4485,5,0),0) -> 5 | BD95: =+IFERROR(VLOOKUP($F95,[2]Hoja1!$F$2:$L$4485,6,0),0) -> 0 | BE95: =+IFERROR(VLOOKUP($F95,[2]Hoja1!$F$2:$L$4485,7,0),0) -> 0 | BU95: 19 | BV95: CAUCA | BW95: 517 | BX95: 19517 | BY95: PAEZ | BZ95: 195172 | CA95: 2 | CB95: 23 | CC95: 4 | CD95: 0 | CE95: 2 | CF95: 0 | CG95: 36 | CH95: 2 | CI95: 11 | CJ95: 0 | CK95: 0 | CL95: 33 | CM95: 3 | CN95: 0 | CO95: 0 | CP95: 1 | CQ95: 38 | CR95: 0 | CS95: 1 | CT95: 0 | CU95: 1 | CV95: 37 | CW95: 0 | CX95: 0 | CY95: 0 | CZ95: 0 | DA95: 40 | DB95: 2 | DC95: 0 | DD95: 1 | DE95: 0 | DF95: 42 | DG95: 0 | DH95: 1 | DI95: 1 | DJ95: 0 | DK95: 52 | DL95: 14 | DM95: 1 | DN95: 0 | DO95: 0 | DP95: 56 | DQ95: 0 | DR95: 1 | DS95: 0 | DT95: 0 | DU95: 58 | DV95: 5 | DW95: 1 | DX95: 0 | DY95: 0
A96: 05 | B96: ANTIOQUIA | C96: 107 | D96: 05107 | E96: BRICEÑO | F96: 051073 | G96: 3 | H96: 34 | I96: 0 | J96: 1 | K96: 2 | L96: 8 | M96: 18 | N96: 0 | O96: 4 | P96: 1 | Q96: 1 | R96: 11 | S96: 2 | T96: 1 | U96: 2 | V96: 6 | W96: 11 | X96: 0 | Y96: 3 | Z96: 4 | AA96: 2 | AB96: 6 | AC96: 0 | AD96: 0 | AE96: 3 | AF96: 0 | AG96: 11 | AH96: 0 | AI96: 0 | AJ96: 0 | AK96: 0 | AL96: 11 | AM96: 0 | AN96: 0 | AO96: 0 | AP96: 0 | AQ96: 13 | AR96: 2 | AS96: 1 | AT96: 0 | AU96: 0 | AV96: =+IFERROR(VLOOKUP($F96,[1]Hoja1!$F$2:$L$4485,3,0),0) -> 13 | AW96: =+IFERROR(VLOOKUP($F96,[1]Hoja1!$F$2:$L$4485,4,0),0) -> 0 | AX96: =+IFERROR(VLOOKUP($F96,[1]Hoja1!$F$2:$L$4485,5,0),0) -> 4 | AY96: =+IFERROR(VLOOKUP($F96,[1]Hoja1!$F$2:$L$4485,6,0),0) -> 0 | AZ96: =+IFERROR(VLOOKUP($F96,[1]Hoja1!$F$2:$L$4485,7,0),0) -> 0 | BA96: =+IFERROR(VLOOKUP($F96,[2]Hoja1!$F$2:$L$4485,3,0),0) -> 12 | BB96: =+IFERROR(VLOOKUP($F96,[2]Hoja1!$F$2:$L$4485,4,0),0) -> 2 | BC96: =+IFERROR(VLOOKUP($F96,[2]Hoja1!$F$2:$L$4485,5,0),0) -> 1 | BD96: =+IFERROR(VLOOKUP($F96,[2]Hoja1!$F$2:$L$4485,6,0),0) -> 1 | BE96: =+IFERROR(VLOOKUP($F96,[2]Hoja1!$F$2:$L$4485,7,0),0) -> 0 | BU96: 19 | BV96: CAUCA | BW96: 517 | BX96: 19517 | BY96: PAEZ | BZ96: 195173 | CA96: 3 | CB96: 2 | CC96: 1 | CD96: 0 | CE96: 0 | CF96: 0 | CG96: 6 | CH96: 0 | CI96: 2 | CJ96: 0 | CK96: 0 | CL96: 4 | CM96: 0 | CN96: 0 | CO96: 0 | CP96: 0 | CQ96: 4 | CR96: 0 | CS96: 0 | CT96: 0 | CU96: 0 | CV96: 4 | CW96: 0 | CX96: 0 | CY96: 0 | CZ96: 0 | DA96: 4 | DB96: 0 | DC96: 0 | DD96: 0 | DE96: 0 | DF96: 5 | DG96: 0 | DH96: 1 | DI96: 0 | DJ96: 0 | DK96: 10 | DL96: 6 | DM96: 0 | DN96: 0 | DO96: 0 | DP96: 13 | DQ96: 2 | DR96: 0 | DS96: 0 | DT96: 0 | DU96: 14 | DV96: 1 | DW96: 1 | DX96: 0 | DY96: 0
A97: 05 | B97: ANTIOQUIA | C97: 107 | D97: 05107 | E97: BRICEÑO | F97: 051074 | G97: 4 | H97: 3 | I97: 0 | J97: 0 | K97: 0 | L97: 0 | M97: 1 | N97: 0 | O97: 0 | P97: 0 | Q97: 0 | R97: 3 | S97: 0 | T97: 1 | U97: 0 | V97: 1 | W97: 2 | X97: 0 | Y97: 0 | Z97: 1 | AA97: 0 | AB97: 1 | AC97: 0 | AD97: 0 | AE97: 1 | AF97: 0 | AG97: 2 | AH97: 0 | AI97: 0 | AJ97: 0 | AK97: 0 | AL97: 1 | AM97: 0 | AN97: 0 | AO97: 0 | AP97: 0 | AQ97: 1 | AR97: 0 | AS97: 0 | AT97: 0 | AU97: 0 | AV97: =+IFERROR(VLOOKUP($F97,[1]Hoja1!$F$2:$L$4485,3,0),0) -> 1 | AW97: =+IFERROR(VLOOKUP($F97,[1]Hoja1!$F$2:$L$4485,4,0),0) -> 0 | AX97: =+IFERROR(VLOOKUP($F97,[1]Hoja1!$F$2:$L$4485,5,0),0) -> 0 | AY97: =+IFERROR(VLOOKUP($F97,[1]Hoja1!$F$2:$L$4485,6,0),0) -> 0 | AZ97: =+IFERROR(VLOOKUP($F97,[1]Hoja1!$F$2:$L$4485,7,0),0) -> 0 | BA97: =+IFERROR(VLOOKUP($F97,[2]Hoja1!$F$2:$L$4485,3,0),0) -> 2 | BB97: =+IFERROR(VLOOKUP($F97,[2]Hoja1!$F$2:$L$4485,4,0),0) -> 0 | BC97: =+IFERROR(VLOOKUP($F97,[2]Hoja1!$F$2:$L$4485,5,0),0) -> 0 | BD97: =+IFERROR(VLOOKUP($F97,[2]Hoja1!$F$2:$L$4485,6,0),0) -> 0 | BE97: =+IFERROR(VLOOKUP($F97,[2]Hoja1!$F$2:$L$4485,7,0),0) -> 0 | BU97: 19 | BV97: CAUCA | BW97: 517 | BX97: 19517 | BY97: PAEZ | BZ97: 195174 | CA97: 4 | CB97: 0 | CC97: 0 | CD97: 0 | CE97: 0 | CF97: 0 | CG97: 0 | CH97: 0 | CI97: 0 | CJ97: 0 | CK97: 0 | CL97: 0 | CM97: 0 | CN97: 0 | CO97: 0 | CP97: 0 | CQ97: 0 | CR97: 0 | CS97: 0 | CT97: 0 | CU97: 0 | CV97: 0 | CW97: 0 | CX97: 0 | CY97: 0 | CZ97: 0 | DA97: 0 | DB97: 0 | DC97: 0 | DD97: 0 | DE97: 0 | DF97: 0 | DG97: 0 | DH97: 0 | DI97: 0 | DJ97: 0 | DK97: 0 | DL97: 0 | DM97: 0 | DN97: 0 | DO97: 0 | DP97: 0 | DQ97: 0 | DR97: 0 | DS97: 0 | DT97: 0 | DU97: 0 | DV97: 0 | DW97: 0 | DX97: 0 | DY97: 0
A98: 05 | B98: ANTIOQUIA | C98: 113 | D98: 05113 | E98: BURITICÁ | F98: 051131 | G98: 1 | H98: 354 | I98: 126 | J98: 92 | K98: 15 | L98: 5 | M98: 452 | N98: 102 | O98: 138 | P98: 14 | Q98: 2 | R98: 351 | S98: 68 | T98: 115 | U98: 16 | V98: 9 | W98: 310 | X98: 12 | Y98: 29 | Z98: 64 | AA98: 75 | AB98: 329 | AC98: 29 | AD98: 132 | AE98: 97 | AF98: 2 | AG98: 259 | AH98: 43 | AI98: 62 | AJ98: 16 | AK98: 2 | AL98: 259 | AM98: 29 | AN98: 68 | AO98: 7 | AP98: 20 | AQ98: 258 | AR98: 34 | AS98: 42 | AT98: 27 | AU98: 16 | AV98: =+IFERROR(VLOOKUP($F98,[1]Hoja1!$F$2:$L$4485,3,0),0) -> 241 | AW98: =+IFERROR(VLOOKUP($F98,[1]Hoja1!$F$2:$L$4485,4,0),0) -> 41 | AX98: =+IFERROR(VLOOKUP($F98,[1]Hoja1!$F$2:$L$4485,5,0),0) -> 45 | AY98: =+IFERROR(VLOOKUP($F98,[1]Hoja1!$F$2:$L$4485,6,0),0) -> 3 | AZ98: =+IFERROR(VLOOKUP($F98,[1]Hoja1!$F$2:$L$4485,7,0),0) -> 0 | BA98: =+IFERROR(VLOOKUP($F98,[2]Hoja1!$F$2:$L$4485,3,0),0) -> 219 | BB98: =+IFERROR(VLOOKUP($F98,[2]Hoja1!$F$2:$L$4485,4,0),0) -> 41 | BC98: =+IFERROR(VLOOKUP($F98,[2]Hoja1!$F$2:$L$4485,5,0),0) -> 69 | BD98: =+IFERROR(VLOOKUP($F98,[2]Hoja1!$F$2:$L$4485,6,0),0) -> 2 | BE98: =+IFERROR(VLOOKUP($F98,[2]Hoja1!$F$2:$L$4485,7,0),0) -> 0 | BU98: 19 | BV98: CAUCA | BW98: 532 | BX98: 19532 | BY98: PATÍA | BZ98: 195321 | CA98: 1 | CB98: 644 | CC98: 108 | CD98: 52 | CE98: 1 | CF98: 17 | CG98: 692 | CH98: 116 | CI98: 59 | CJ98: 1 | CK98: 10 | CL98: 681 | CM98: 48 | CN98: 120 | CO98: 6 | CP98: 20 | CQ98: 598 | CR98: 32 | CS98: 53 | CT98: 7 | CU98: 105 | CV98: 780 | CW98: 240 | CX98: 172 | CY98: 3 | CZ98: 10 | DA98: 652 | DB98: 52 | DC98: 87 | DD98: 0 | DE98: 4 | DF98: 642 | DG98: 81 | DH98: 71 | DI98: 1 | DJ98: 9 | DK98: 656 | DL98: 83 | DM98: 99 | DN98: 3 | DO98: 7 | DP98: 611 | DQ98: 63 | DR98: 52 | DS98: 1 | DT98: 7 | DU98: 622 | DV98: 65 | DW98: 40 | DX98: 3 | DY98: 9
A99: 05 | B99: ANTIOQUIA | C99: 113 | D99: 05113 | E99: BURITICÁ | F99: 051132 | G99: 2 | H99: 417 | I99: 13 | J99: 31 | K99: 14 | L99: 15 | M99: 427 | N99: 21 | O99: 34 | P99: 20 | Q99: 1 | R99: 366 | S99: 10 | T99: 50 | U99: 6 | V99: 43 | W99: 315 | X99: 3 | Y99: 11 | Z99: 67 | AA99: 49 | AB99: 306 | AC99: 7 | AD99: 16 | AE99: 38 | AF99: 5 | AG99: 275 | AH99: 12 | AI99: 24 | AJ99: 7 | AK99: 1 | AL99: 235 | AM99: 15 | AN99: 16 | AO99: 0 | AP99: 0 | AQ99: 216 | AR99: 3 | AS99: 26 | AT99: 2 | AU99: 10 | AV99: =+IFERROR(VLOOKUP($F99,[1]Hoja1!$F$2:$L$4485,3,0),0) -> 217 | AW99: =+IFERROR(VLOOKUP($F99,[1]Hoja1!$F$2:$L$4485,4,0),0) -> 10 | AX99: =+IFERROR(VLOOKUP($F99,[1]Hoja1!$F$2:$L$4485,5,0),0) -> 15 | AY99: =+IFERROR(VLOOKUP($F99,[1]Hoja1!$F$2:$L$4485,6,0),0) -> 2 | AZ99: =+IFERROR(VLOOKUP($F99,[1]Hoja1!$F$2:$L$4485,7,0),0) -> 1 | BA99: =+IFERROR(VLOOKUP($F99,[2]Hoja1!$F$2:$L$4485,3,0),0) -> 210 | BB99: =+IFERROR(VLOOKUP($F99,[2]Hoja1!$F$2:$L$4485,4,0),0) -> 9 | BC99: =+IFERROR(VLOOKUP($F99,[2]Hoja1!$F$2:$L$4485,5,0),0) -> 13 | BD99: =+IFERROR(VLOOKUP($F99,[2]Hoja1!$F$2:$L$4485,6,0),0) -> 0 | BE99: =+IFERROR(VLOOKUP($F99,[2]Hoja1!$F$2:$L$4485,7,0),0) -> 2 | BU99: 19 | BV99: CAUCA | BW99: 532 | BX99: 19532 | BY99: PATÍA | BZ99: 195322 | CA99: 2 | CB99: 125 | CC99: 7 | CD99: 5 | CE99: 0 | CF99: 6 | CG99: 132 | CH99: 5 | CI99: 3 | CJ99: 2 | CK99: 6 | CL99: 136 | CM99: 3 | CN99: 7 | CO99: 0 | CP99: 8 | CQ99: 116 | CR99: 1 | CS99: 0 | CT99: 4 | CU99: 5 | CV99: 120 | CW99: 0 | CX99: 0 | CY99: 1 | CZ99: 8 | DA99: 132 | DB99: 1 | DC99: 1 | DD99: 3 | DE99: 5 | DF99: 130 | DG99: 0 | DH99: 2 | DI99: 4 | DJ99: 2 | DK99: 124 | DL99: 0 | DM99: 1 | DN99: 2 | DO99: 5 | DP99: 131 | DQ99: 2 | DR99: 4 | DS99: 0 | DT99: 1 | DU99: 126 | DV99: 0 | DW99: 3 | DX99: 0 | DY99: 4
A100: 05 | B100: ANTIOQUIA | C100: 113 | D100: 05113 | E100: BURITICÁ | F100: 051133 | G100: 3 | H100: 298 | I100: 6 | J100: 20 | K100: 12 | L100: 14 | M100: 273 | N100: 7 | O100: 20 | P100: 3 | Q100: 5 | R100: 278 | S100: 6 | T100: 58 | U100: 7 | V100: 55 | W100: 160 | X100: 0 | Y100: 7 | Z100: 34 | AA100: 19 | AB100: 139 | AC100: 1 | AD100: 8 | AE100: 9 | AF100: 0 | AG100: 164 | AH100: 0 | AI100: 19 | AJ100: 0 | AK100: 2 | AL100: 138 | AM100: 2 | AN100: 26 | AO100: 0 | AP100: 0 | AQ100: 100 | AR100: 0 | AS100: 25 | AT100: 0 | AU100: 9 | AV100: =+IFERROR(VLOOKUP($F100,[1]Hoja1!$F$2:$L$4485,3,0),0) -> 73 | AW100: =+IFERROR(VLOOKUP($F100,[1]Hoja1!$F$2:$L$4485,4,0),0) -> 6 | AX100: =+IFERROR(VLOOKUP($F100,[1]Hoja1!$F$2:$L$4485,5,0),0) -> 18 | AY100: =+IFERROR(VLOOKUP($F100,[1]Hoja1!$F$2:$L$4485,6,0),0) -> 2 | AZ100: =+IFERROR(VLOOKUP($F100,[1]Hoja1!$F$2:$L$4485,7,0),0) -> 3 | BA100: =+IFERROR(VLOOKUP($F100,[2]Hoja1!$F$2:$L$4485,3,0),0) -> 61 | BB100: =+IFERROR(VLOOKUP($F100,[2]Hoja1!$F$2:$L$4485,4,0),0) -> 5 | BC100: =+IFERROR(VLOOKUP($F100,[2]Hoja1!$F$2:$L$4485,5,0),0) -> 5 | BD100: =+IFERROR(VLOOKUP($F100,[2]Hoja1!$F$2:$L$4485,6,0),0) -> 0 | BE100: =+IFERROR(VLOOKUP($F100,[2]Hoja1!$F$2:$L$4485,7,0),0) -> 1 | BU100: 19 | BV100: CAUCA | BW100: 532 | BX100: 19532 | BY100: PATÍA | BZ100: 195323 | CA100: 3 | CB100: 38 | CC100: 1 | CD100: 1 | CE100: 0 | CF100: 10 | CG100: 47 | CH100: 0 | CI100: 0 | CJ100: 0 | CK100: 7 | CL100: 44 | CM100: 0 | CN100: 3 | CO100: 0 | CP100: 16 | CQ100: 42 | CR100: 1 | CS100: 0 | CT100: 2 | CU100: 15 | CV100: 41 | CW100: 0 | CX100: 0 | CY100: 2 | CZ100: 8 | DA100: 47 | DB100: 1 | DC100: 2 | DD100: 0 | DE100: 3 | DF100: 47 | DG100: 3 | DH100: 2 | DI100: 0 | DJ100: 2 | DK100: 46 | DL100: 1 | DM100: 0 | DN100: 0 | DO100: 3 | DP100: 43 | DQ100: 0 | DR100: 1 | DS100: 1 | DT100: 0 | DU100: 46 | DV100: 1 | DW100: 0 | DX100: 0 | DY100: 1
A101: 05 | B101: ANTIOQUIA | C101: 113 | D101: 05113 | E101: BURITICÁ | F101: 051134 | G101: 4 | H101: 26 | I101: 0 | J101: 0 | K101: 0 | L101: 2 | M101: 31 | N101: 0 | O101: 1 | P101: 0 | Q101: 1 | R101: 43 | S101: 0 | T101: 4 | U101: 0 | V101: 6 | W101: 22 | X101: 0 | Y101: 0 | Z101: 4 | AA101: 2 | AB101: 29 | AC101: 0 | AD101: 7 | AE101: 3 | AF101: 0 | AG101: 23 | AH101: 0 | AI101: 8 | AJ101: 1 | AK101: 0 | AL101: 19 | AM101: 1 | AN101: 4 | AO101: 1 | AP101: 0 | AQ101: 15 | AR101: 1 | AS101: 4 | AT101: 0 | AU101: 0 | AV101: =+IFERROR(VLOOKUP($F101,[1]Hoja1!$F$2:$L$4485,3,0),0) -> 18 | AW101: =+IFERROR(VLOOKUP($F101,[1]Hoja1!$F$2:$L$4485,4,0),0) -> 0 | AX101: =+IFERROR(VLOOKUP($F101,[1]Hoja1!$F$2:$L$4485,5,0),0) -> 10 | AY101: =+IFERROR(VLOOKUP($F101,[1]Hoja1!$F$2:$L$4485,6,0),0) -> 0 | AZ101: =+IFERROR(VLOOKUP($F101,[1]Hoja1!$F$2:$L$4485,7,0),0) -> 0 | BA101: =+IFERROR(VLOOKUP($F101,[2]Hoja1!$F$2:$L$4485,3,0),0) -> 11 | BB101: =+IFERROR(VLOOKUP($F101,[2]Hoja1!$F$2:$L$4485,4,0),0) -> 0 | BC101: =+IFERROR(VLOOKUP($F101,[2]Hoja1!$F$2:$L$4485,5,0),0) -> 2 | BD101: =+IFERROR(VLOOKUP($F101,[2]Hoja1!$F$2:$L$4485,6,0),0) -> 0 | BE101: =+IFERROR(VLOOKUP($F101,[2]Hoja1!$F$2:$L$4485,7,0),0) -> 0 | BU101: 19 | BV101: CAUCA | BW101: 532 | BX101: 19532 | BY101: PATÍA | BZ101: 195324 | CA101: 4 | CB101: 2 | CC101: 0 | CD101: 0 | CE101: 0 | CF101: 1 | CG101: 4 | CH101: 0 | CI101: 1 | CJ101: 0 | CK101: 0 | CL101: 1 | CM101: 0 | CN101: 0 | CO101: 0 | CP101: 0 | CQ101: 4 | CR101: 0 | CS101: 0 | CT101: 1 | CU101: 4 | CV101: 3 | CW101: 0 | CX101: 0 | CY101: 0 | CZ101: 1 | DA101: 3 | DB101: 0 | DC101: 0 | DD101: 0 | DE101: 0 | DF101: 3 | DG101: 0 | DH101: 0 | DI101: 0 | DJ101: 0 | DK101: 4 | DL101: 0 | DM101: 0 | DN101: 0 | DO101: 0 | DP101: 6 | DQ101: 0 | DR101: 0 | DS101: 0 | DT101: 0 | DU101: 4 | DV101: 0 | DW101: 0 | DX101: 0 | DY101: 0
A102: 05 | B102: ANTIOQUIA | C102: 120 | D102: 05120 | E102: CÁCERES | F102: 051201 | G102: 1 | H102: 268 | I102: 44 | J102: 71 | K102: 16 | L102: 6 | M102: 287 | N102: 82 | O102: 51 | P102: 30 | Q102: 3 | R102: 251 | S102: 28 | T102: 22 | U102: 22 | V102: 3 | W102: 226 | X102: 6 | Y102: 7 | Z102: 17 | AA102: 7 | AB102: 313 | AC102: 91 | AD102: 35 | AE102: 0 | AF102: 8 | AG102: 313 | AH102: 38 | AI102: 29 | AJ102: 35 | AK102: 2 | AL102: 363 | AM102: 82 | AN102: 44 | AO102: 31 | AP102: 2 | AQ102: 344 | AR102: 30 | AS102: 46 | AT102: 40 | AU102: 0 | AV102: =+IFERROR(VLOOKUP($F102,[1]Hoja1!$F$2:$L$4485,3,0),0) -> 310 | AW102: =+IFERROR(VLOOKUP($F102,[1]Hoja1!$F$2:$L$4485,4,0),0) -> 17 | AX102: =+IFERROR(VLOOKUP($F102,[1]Hoja1!$F$2:$L$4485,5,0),0) -> 36 | AY102: =+IFERROR(VLOOKUP($F102,[1]Hoja1!$F$2:$L$4485,6,0),0) -> 37 | AZ102: =+IFERROR(VLOOKUP($F102,[1]Hoja1!$F$2:$L$4485,7,0),0) -> 1 | BA102: =+IFERROR(VLOOKUP($F102,[2]Hoja1!$F$2:$L$4485,3,0),0) -> 295 | BB102: =+IFERROR(VLOOKUP($F102,[2]Hoja1!$F$2:$L$4485,4,0),0) -> 27 | BC102: =+IFERROR(VLOOKUP($F102,[2]Hoja1!$F$2:$L$4485,5,0),0) -> 36 | BD102: =+IFERROR(VLOOKUP($F102,[2]Hoja1!$F$2:$L$4485,6,0),0) -> 36 | BE102: =+IFERROR(VLOOKUP($F102,[2]Hoja1!$F$2:$L$4485,7,0),0) -> 3 | BU102: 19 | BV102: CAUCA | BW102: 533 | BX102: 19533 | BY102: PIAMONTE | BZ102: 195331 | CA102: 1 | CB102: 44 | CC102: 17 | CD102: 3 | CE102: 0 | CF102: 0 | CG102: 88 | CH102: 45 | CI102: 9 | CJ102: 0 | CK102: 0 | CL102: 103 | CM102: 46 | CN102: 45 | CO102: 0 | CP102: 0 | CQ102: 59 | CR102: 1 | CS102: 1 | CT102: 1 | CU102: 1 | CV102: 57 | CW102: 1 | CX102: 2 | CY102: 0 | CZ102: 0 | DA102: 59 | DB102: 2 | DC102: 7 | DD102: 0 | DE102: 0 | DF102: 61 | DG102: 5 | DH102: 5 | DI102: 0 | DJ102: 0 | DK102: 47 | DL102: 6 | DM102: 17 | DN102: 1 | DO102: 0 | DP102: 68 | DQ102: 17 | DR102: 4 | DS102: 0 | DT102: 0 | DU102: 63 | DV102: 8 | DW102: 12 | DX102: 0 | DY102: 0
A103: 05 | B103: ANTIOQUIA | C103: 120 | D103: 05120 | E103: CÁCERES | F103: 051202 | G103: 2 | H103: 52 | I103: 1 | J103: 1 | K103: 0 | L103: 0 | M103: 50 | N103: 3 | O103: 4 | P103: 1 | Q103: 0 | R103: 51 | S103: 0 | T103: 2 | U103: 1 | V103: 0 | W103: 55 | X103: 0 | Y103: 0 | Z103: 0 | AA103: 0 | AB103: 59 | AC103: 2 | AD103: 0 | AE103: 0 | AF103: 0 | AG103: 67 | AH103: 2 | AI103: 4 | AJ103: 0 | AK103: 1 | AL103: 72 | AM103: 2 | AN103: 0 | AO103: 0 | AP103: 0 | AQ103: 78 | AR103: 1 | AS103: 3 | AT103: 6 | AU103: 1 | AV103: =+IFERROR(VLOOKUP($F103,[1]Hoja1!$F$2:$L$4485,3,0),0) -> 74 | AW103: =+IFERROR(VLOOKUP($F103,[1]Hoja1!$F$2:$L$4485,4,0),0) -> 5 | AX103: =+IFERROR(VLOOKUP($F103,[1]Hoja1!$F$2:$L$4485,5,0),0) -> 7 | AY103: =+IFERROR(VLOOKUP($F103,[1]Hoja1!$F$2:$L$4485,6,0),0) -> 0 | AZ103: =+IFERROR(VLOOKUP($F103,[1]Hoja1!$F$2:$L$4485,7,0),0) -> 0 | BA103: =+IFERROR(VLOOKUP($F103,[2]Hoja1!$F$2:$L$4485,3,0),0) -> 80 | BB103: =+IFERROR(VLOOKUP($F103,[2]Hoja1!$F$2:$L$4485,4,0),0) -> 9 | BC103: =+IFERROR(VLOOKUP($F103,[2]Hoja1!$F$2:$L$4485,5,0),0) -> 6 | BD103: =+IFERROR(VLOOKUP($F103,[2]Hoja1!$F$2:$L$4485,6,0),0) -> 0 | BE103: =+IFERROR(VLOOKUP($F103,[2]Hoja1!$F$2:$L$4485,7,0),0) -> 1 | BU103: 19 | BV103: CAUCA | BW103: 533 | BX103: 19533 | BY103: PIAMONTE | BZ103: 195332 | CA103: 2 | CB103: 13 | CC103: 2 | CD103: 0 | CE103: 0 | CF103: 0 | CG103: 12 | CH103: 0 | CI103: 0 | CJ103: 0 | CK103: 0 | CL103: 38 | CM103: 1 | CN103: 5 | CO103: 0 | CP103: 0 | CQ103: 33 | CR103: 0 | CS103: 1 | CT103: 0 | CU103: 0 | CV103: 34 | CW103: 0 | CX103: 1 | CY103: 0 | CZ103: 0 | DA103: 35 | DB103: 4 | DC103: 0 | DD103: 1 | DE103: 0 | DF103: 34 | DG103: 0 | DH103: 5 | DI103: 1 | DJ103: 0 | DK103: 47 | DL103: 1 | DM103: 0 | DN103: 0 | DO103: 0 | DP103: 32 | DQ103: 5 | DR103: 5 | DS103: 0 | DT103: 0 | DU103: 33 | DV103: 0 | DW103: 1 | DX103: 0 | DY103: 0
A104: 05 | B104: ANTIOQUIA | C104: 120 | D104: 05120 | E104: CÁCERES | F104: 051203 | G104: 3 | H104: 8 | I104: 0 | J104: 1 | K104: 0 | L104: 0 | M104: 7 | N104: 0 | O104: 0 | P104: 0 | Q104: 0 | R104: 9 | S104: 0 | T104: 5 | U104: 0 | V104: 0 | W104: 4 | X104: 0 | Y104: 0 | Z104: 0 | AA104: 0 | AB104: 5 | AC104: 1 | AD104: 0 | AE104: 0 | AF104: 0 | AG104: 8 | AH104: 1 | AI104: 0 | AJ104: 0 | AK104: 1 | AL104: 5 | AM104: 0 | AN104: 0 | AO104: 0 | AP104: 1 | AQ104: 12 | AR104: 0 | AS104: 0 | AT104: 2 | AU104: 0 | AV104: =+IFERROR(VLOOKUP($F104,[1]Hoja1!$F$2:$L$4485,3,0),0) -> 10 | AW104: =+IFERROR(VLOOKUP($F104,[1]Hoja1!$F$2:$L$4485,4,0),0) -> 1 | AX104: =+IFERROR(VLOOKUP($F104,[1]Hoja1!$F$2:$L$4485,5,0),0) -> 0 | AY104: =+IFERROR(VLOOKUP($F104,[1]Hoja1!$F$2:$L$4485,6,0),0) -> 0 | AZ104: =+IFERROR(VLOOKUP($F104,[1]Hoja1!$F$2:$L$4485,7,0),0) -> 0 | BA104: =+IFERROR(VLOOKUP($F104,[2]Hoja1!$F$2:$L$4485,3,0),0) -> 10 | BB104: =+IFERROR(VLOOKUP($F104,[2]Hoja1!$F$2:$L$4485,4,0),0) -> 2 | BC104: =+IFERROR(VLOOKUP($F104,[2]Hoja1!$F$2:$L$4485,5,0),0) -> 0 | BD104: =+IFERROR(VLOOKUP($F104,[2]Hoja1!$F$2:$L$4485,6,0),0) -> 0 | BE104: =+IFERROR(VLOOKUP($F104,[2]Hoja1!$F$2:$L$4485,7,0),0) -> 1 | BU104: 19 | BV104: CAUCA | BW104: 533 | BX104: 19533 | BY104: PIAMONTE | BZ104: 195333 | CA104: 3 | CB104: 4 | CC104: 0 | CD104: 0 | CE104: 0 | CF104: 0 | CG104: 3 | CH104: 0 | CI104: 0 | CJ104: 0 | CK104: 0 | CL104: 3 | CM104: 0 | CN104: 2 | CO104: 0 | CP104: 0 | CQ104: 2 | CR104: 1 | CS104: 1 | CT104: 0 | CU104: 0 | CV104: 1 | CW104: 0 | CX104: 0 | CY104: 0 | CZ104: 0 | DA104: 1 | DB104: 0 | DC104: 0 | DD104: 0 | DE104: 0 | DF104: 2 | DG104: 0 | DH104: 0 | DI104: 0 | DJ104: 0 | DK104: 1 | DL104: 0 | DM104: 0 | DN104: 0 | DO104: 0 | DP104: 1 | DQ104: 0 | DR104: 0 | DS104: 0 | DT104: 0 | DU104: 1 | DV104: 0 | DW104: 0 | DX104: 0 | DY104: 0
A105: 05 | B105: ANTIOQUIA | C105: 120 | D105: 05120 | E105: CÁCERES | F105: 051204 | G105: 4 | H105: 0 | I105: 0 | J105: 0 | K105: 0 | L105: 0 | M105: 0 | N105: 0 | O105: 0 | P105: 0 | Q105: 0 | R105: 0 | S105: 0 | T105: 0 | U105: 0 | V105: 0 | W105: 0 | X105: 0 | Y105: 0 | Z105: 0 | AA105: 0 | AB105: 0 | AC105: 0 | AD105: 0 | AE105: 0 | AF105: 0 | AG105: 0 | AH105: 0 | AI105: 0 | AJ105: 0 | AK105: 0 | AL105: 0 | AM105: 0 | AN105: 0 | AO105: 0 | AP105: 0 | AQ105: 0 | AR105: 0 | AS105: 0 | AT105: 0 | AU105: 0 | AV105: =+IFERROR(VLOOKUP($F105,[1]Hoja1!$F$2:$L$4485,3,0),0) -> 0 | AW105: =+IFERROR(VLOOKUP($F105,[1]Hoja1!$F$2:$L$4485,4,0),0) -> 0 | AX105: =+IFERROR(VLOOKUP($F105,[1]Hoja1!$F$2:$L$4485,5,0),0) -> 0 | AY105: =+IFERROR(VLOOKUP($F105,[1]Hoja1!$F$2:$L$4485,6,0),0) -> 0 | AZ105: =+IFERROR(VLOOKUP($F105,[1]Hoja1!$F$2:$L$4485,7,0),0) -> 0 | BA105: =+IFERROR(VLOOKUP($F105,[2]Hoja1!$F$2:$L$4485,3,0),0) -> 4 | BB105: =+IFERROR(VLOOKUP($F105,[2]Hoja1!$F$2:$L$4485,4,0),0) -> 0 | BC105: =+IFERROR(VLOOKUP($F105,[2]Hoja1!$F$2:$L$4485,5,0),0) -> 0 | BD105: =+IFERROR(VLOOKUP($F105,[2]Hoja1!$F$2:$L$4485,6,0),0) -> 0 | BE105: =+IFERROR(VLOOKUP($F105,[2]Hoja1!$F$2:$L$4485,7,0),0) -> 0 | BU105: 19 | BV105: CAUCA | BW105: 533 | BX105: 19533 | BY105: PIAMONTE | BZ105: 195334 | CA105: 4 | CB105: 1 | CC105: 0 | CD105: 1 | CE105: 0 | CF105: 0 | CG105: 0 | CH105: 0 | CI105: 0 | CJ105: 0 | CK105: 0 | CL105: 2 | CM105: 0 | CN105: 2 | CO105: 0 | CP105: 0 | CQ105: 0 | CR105: 0 | CS105: 0 | CT105: 0 | CU105: 0 | CV105: 0 | CW105: 0 | CX105: 0 | CY105: 0 | CZ105: 0 | DA105: 0 | DB105: 0 | DC105: 0 | DD105: 0 | DE105: 0 | DF105: 0 | DG105: 0 | DH105: 0 | DI105: 0 | DJ105: 0 | DK105: 0 | DL105: 0 | DM105: 0 | DN105: 0 | DO105: 0 | DP105: 0 | DQ105: 0 | DR105: 0 | DS105: 0 | DT105: 0 | DU105: 0 | DV105: 0 | DW105: 0 | DX105: 0 | DY105: 0
A106: 05 | B106: ANTIOQUIA | C106: 125 | D106: 05125 | E106: CAICEDO | F106: 051251 | G106: 1 | H106: 109 | I106: 36 | J106: 18 | K106: 1 | L106: 3 | M106: 122 | N106: 35 | O106: 71 | P106: 1 | Q106: 2 | R106: 74 | S106: 13 | T106: 11 | U106: 1 | V106: 7 | W106: 69 | X106: 1 | Y106: 5 | Z106: 2 | AA106: 14 | AB106: 69 | AC106: 11 | AD106: 8 | AE106: 4 | AF106: 1 | AG106: 76 | AH106: 12 | AI106: 8 | AJ106: 8 | AK106: 1 | AL106: 91 | AM106: 17 | AN106: 7 | AO106: 7 | AP106: 2 | AQ106: 94 | AR106: 11 | AS106: 22 | AT106: 8 | AU106: 3 | AV106: =+IFERROR(VLOOKUP($F106,[1]Hoja1!$F$2:$L$4485,3,0),0) -> 101 | AW106: =+IFERROR(VLOOKUP($F106,[1]Hoja1!$F$2:$L$4485,4,0),0) -> 13 | AX106: =+IFERROR(VLOOKUP($F106,[1]Hoja1!$F$2:$L$4485,5,0),0) -> 34 | AY106: =+IFERROR(VLOOKUP($F106,[1]Hoja1!$F$2:$L$4485,6,0),0) -> 9 | AZ106: =+IFERROR(VLOOKUP($F106,[1]Hoja1!$F$2:$L$4485,7,0),0) -> 4 | BA106: =+IFERROR(VLOOKUP($F106,[2]Hoja1!$F$2:$L$4485,3,0),0) -> 66 | BB106: =+IFERROR(VLOOKUP($F106,[2]Hoja1!$F$2:$L$4485,4,0),0) -> 14 | BC106: =+IFERROR(VLOOKUP($F106,[2]Hoja1!$F$2:$L$4485,5,0),0) -> 19 | BD106: =+IFERROR(VLOOKUP($F106,[2]Hoja1!$F$2:$L$4485,6,0),0) -> 7 | BE106: =+IFERROR(VLOOKUP($F106,[2]Hoja1!$F$2:$L$4485,7,0),0) -> 3 | BU106: 19 | BV106: CAUCA | BW106: 548 | BX106: 19548 | BY106: PIENDAMÓ | BZ106: 195481 | CA106: 1 | CB106: 326 | CC106: 112 | CD106: 42 | CE106: 6 | CF106: 17 | CG106: 432 | CH106: 147 | CI106: 107 | CJ106: 5 | CK106: 8 | CL106: 336 | CM106: 60 | CN106: 68 | CO106: 14 | CP106: 21 | CQ106: 298 | CR106: 10 | CS106: 10 | CT106: 9 | CU106: 38 | CV106: 341 | CW106: 48 | CX106: 24 | CY106: 14 | CZ106: 12 | DA106: 322 | DB106: 25 | DC106: 36 | DD106: 6 | DE106: 7 | DF106: 321 | DG106: 24 | DH106: 27 | DI106: 5 | DJ106: 5 | DK106: 298 | DL106: 9 | DM106: 25 | DN106: 5 | DO106: 4 | DP106: 314 | DQ106: 43 | DR106: 18 | DS106: 4 | DT106: 4 | DU106: 650 | DV106: 356 | DW106: 35 | DX106: 2 | DY106: 3
A107: 05 | B107: ANTIOQUIA | C107: 125 | D107: 05125 | E107: CAICEDO | F107: 051252 | G107: 2 | H107: 14 | I107: 1 | J107: 2 | K107: 1 | L107: 3 | M107: 19 | N107: 1 | O107: 5 | P107: 0 | Q107: 0 | R107: 20 | S107: 2 | T107: 0 | U107: 1 | V107: 9 | W107: 17 | X107: 0 | Y107: 0 | Z107: 0 | AA107: 3 | AB107: 23 | AC107: 1 | AD107: 0 | AE107: 0 | AF107: 3 | AG107: 20 | AH107: 1 | AI107: 3 | AJ107: 1 | AK107: 0 | AL107: 18 | AM107: 1 | AN107: 1 | AO107: 0 | AP107: 0 | AQ107: 19 | AR107: 1 | AS107: 1 | AT107: 0 | AU107: 0 | AV107: =+IFERROR(VLOOKUP($F107,[1]Hoja1!$F$2:$L$4485,3,0),0) -> 24 | AW107: =+IFERROR(VLOOKUP($F107,[1]Hoja1!$F$2:$L$4485,4,0),0) -> 1 | AX107: =+IFERROR(VLOOKUP($F107,[1]Hoja1!$F$2:$L$4485,5,0),0) -> 1 | AY107: =+IFERROR(VLOOKUP($F107,[1]Hoja1!$F$2:$L$4485,6,0),0) -> 1 | AZ107: =+IFERROR(VLOOKUP($F107,[1]Hoja1!$F$2:$L$4485,7,0),0) -> 2 | BA107: =+IFERROR(VLOOKUP($F107,[2]Hoja1!$F$2:$L$4485,3,0),0) -> 20 | BB107: =+IFERROR(VLOOKUP($F107,[2]Hoja1!$F$2:$L$4485,4,0),0) -> 0 | BC107: =+IFERROR(VLOOKUP($F107,[2]Hoja1!$F$2:$L$4485,5,0),0) -> 2 | BD107: =+IFERROR(VLOOKUP($F107,[2]Hoja1!$F$2:$L$4485,6,0),0) -> 3 | BE107: =+IFERROR(VLOOKUP($F107,[2]Hoja1!$F$2:$L$4485,7,0),0) -> 0 | BU107: 19 | BV107: CAUCA | BW107: 548 | BX107: 19548 | BY107: PIENDAMÓ | BZ107: 195482 | CA107: 2 | CB107: 152 | CC107: 5 | CD107: 4 | CE107: 3 | CF107: 2 | CG107: 145 | CH107: 3 | CI107: 0 | CJ107: 4 | CK107: 2 | CL107: 184 | CM107: 5 | CN107: 4 | CO107: 0 | CP107: 9 | CQ107: 165 | CR107: 3 | CS107: 1 | CT107: 1 | CU107: 14 | CV107: 149 | CW107: 0 | CX107: 0 | CY107: 2 | CZ107: 8 | DA107: 167 | DB107: 2 | DC107: 1 | DD107: 4 | DE107: 4 | DF107: 165 | DG107: 1 | DH107: 1 | DI107: 4 | DJ107: 0 | DK107: 162 | DL107: 0 | DM107: 5 | DN107: 0 | DO107: 3 | DP107: 171 | DQ107: 8 | DR107: 3 | DS107: 1 | DT107: 5 | DU107: 170 | DV107: 8 | DW107: 3 | DX107: 2 | DY107: 6
A108: 05 | B108: ANTIOQUIA | C108: 125 | D108: 05125 | E108: CAICEDO | F108: 051253 | G108: 3 | H108: 8 | I108: 0 | J108: 0 | K108: 0 | L108: 0 | M108: 5 | N108: 0 | O108: 1 | P108: 0 | Q108: 0 | R108: 3 | S108: 0 | T108: 0 | U108: 0 | V108: 0 | W108: 2 | X108: 0 | Y108: 0 | Z108: 0 | AA108: 0 | AB108: 4 | AC108: 2 | AD108: 0 | AE108: 0 | AF108: 0 | AG108: 7 | AH108: 1 | AI108: 0 | AJ108: 0 | AK108: 0 | AL108: 7 | AM108: 1 | AN108: 0 | AO108: 0 | AP108: 0 | AQ108: 8 | AR108: 2 | AS108: 1 | AT108: 0 | AU108: 1 | AV108: =+IFERROR(VLOOKUP($F108,[1]Hoja1!$F$2:$L$4485,3,0),0) -> 8 | AW108: =+IFERROR(VLOOKUP($F108,[1]Hoja1!$F$2:$L$4485,4,0),0) -> 1 | AX108: =+IFERROR(VLOOKUP($F108,[1]Hoja1!$F$2:$L$4485,5,0),0) -> 1 | AY108: =+IFERROR(VLOOKUP($F108,[1]Hoja1!$F$2:$L$4485,6,0),0) -> 0 | AZ108: =+IFERROR(VLOOKUP($F108,[1]Hoja1!$F$2:$L$4485,7,0),0) -> 0 | BA108: =+IFERROR(VLOOKUP($F108,[2]Hoja1!$F$2:$L$4485,3,0),0) -> 9 | BB108: =+IFERROR(VLOOKUP($F108,[2]Hoja1!$F$2:$L$4485,4,0),0) -> 1 | BC108: =+IFERROR(VLOOKUP($F108,[2]Hoja1!$F$2:$L$4485,5,0),0) -> 1 | BD108: =+IFERROR(VLOOKUP($F108,[2]Hoja1!$F$2:$L$4485,6,0),0) -> 0 | BE108: =+IFERROR(VLOOKUP($F108,[2]Hoja1!$F$2:$L$4485,7,0),0) -> 1 | BU108: 19 | BV108: CAUCA | BW108: 548 | BX108: 19548 | BY108: PIENDAMÓ | BZ108: 195483 | CA108: 3 | CB108: 48 | CC108: 5 | CD108: 3 | CE108: 0 | CF108: 2 | CG108: 44 | CH108: 0 | CI108: 0 | CJ108: 0 | CK108: 0 | CL108: 43 | CM108: 0 | CN108: 0 | CO108: 0 | CP108: 4 | CQ108: 39 | CR108: 0 | CS108: 0 | CT108: 0 | CU108: 6 | CV108: 43 | CW108: 0 | CX108: 0 | CY108: 0 | CZ108: 1 | DA108: 46 | DB108: 0 | DC108: 0 | DD108: 0 | DE108: 0 | DF108: 45 | DG108: 0 | DH108: 1 | DI108: 0 | DJ108: 2 | DK108: 44 | DL108: 0 | DM108: 1 | DN108: 0 | DO108: 1 | DP108: 47 | DQ108: 2 | DR108: 1 | DS108: 0 | DT108: 1 | DU108: 46 | DV108: 0 | DW108: 0 | DX108: 0 | DY108: 0
A109: 05 | B109: ANTIOQUIA | C109: 125 | D109: 05125 | E109: CAICEDO | F109: 051254 | G109: 4 | H109: 1 | I109: 0 | J109: 0 | K109: 0 | L109: 0 | M109: 0 | N109: 0 | O109: 0 | P109: 0 | Q109: 0 | R109: 0 | S109: 0 | T109: 0 | U109: 0 | V109: 0 | W109: 0 | X109: 0 | Y109: 0 | Z109: 0 | AA109: 0 | AB109: 0 | AC109: 0 | AD109: 0 | AE109: 0 | AF109: 0 | AG109: 0 | AH109: 0 | AI109: 0 | AJ109: 0 | AK109: 0 | AL109: 2 | AM109: 1 | AN109: 0 | AO109: 0 | AP109: 0 | AQ109: 2 | AR109: 0 | AS109: 0 | AT109: 0 | AU109: 0 | AV109: =+IFERROR(VLOOKUP($F109,[1]Hoja1!$F$2:$L$4485,3,0),0) -> 2 | AW109: =+IFERROR(VLOOKUP($F109,[1]Hoja1!$F$2:$L$4485,4,0),0) -> 0 | AX109: =+IFERROR(VLOOKUP($F109,[1]Hoja1!$F$2:$L$4485,5,0),0) -> 1 | AY109: =+IFERROR(VLOOKUP($F109,[1]Hoja1!$F$2:$L$4485,6,0),0) -> 0 | AZ109: =+IFERROR(VLOOKUP($F109,[1]Hoja1!$F$2:$L$4485,7,0),0) -> 0 | BA109: =+IFERROR(VLOOKUP($F109,[2]Hoja1!$F$2:$L$4485,3,0),0) -> 2 | BB109: =+IFERROR(VLOOKUP($F109,[2]Hoja1!$F$2:$L$4485,4,0),0) -> 0 | BC109: =+IFERROR(VLOOKUP($F109,[2]Hoja1!$F$2:$L$4485,5,0),0) -> 0 | BD109: =+IFERROR(VLOOKUP($F109,[2]Hoja1!$F$2:$L$4485,6,0),0) -> 0 | BE109: =+IFERROR(VLOOKUP($F109,[2]Hoja1!$F$2:$L$4485,7,0),0) -> 0 | BU109: 19 | BV109: CAUCA | BW109: 548 | BX109: 19548 | BY109: PIENDAMÓ | BZ109: 195484 | CA109: 4 | CB109: 5 | CC109: 2 | CD109: 0 | CE109: 0 | CF109: 1 | CG109: 5 | CH109: 0 | CI109: 0 | CJ109: 0 | CK109: 1 | CL109: 4 | CM109: 0 | CN109: 0 | CO109: 0 | CP109: 0 | CQ109: 4 | CR109: 0 | CS109: 0 | CT109: 0 | CU109: 0 | CV109: 5 | CW109: 0 | CX109: 0 | CY109: 0 | CZ109: 0 | DA109: 4 | DB109: 0 | DC109: 0 | DD109: 0 | DE109: 0 | DF109: 5 | DG109: 0 | DH109: 0 | DI109: 0 | DJ109: 0 | DK109: 5 | DL109: 0 | DM109: 0 | DN109: 0 | DO109: 0 | DP109: 4 | DQ109: 0 | DR109: 0 | DS109: 0 | DT109: 0 | DU109: 5 | DV109: 0 | DW109: 0 | DX109: 0 | DY109: 0
A110: 05 | B110: ANTIOQUIA | C110: 129 | D110: 05129 | E110: CALDAS | F110: 051291 | G110: 1 | H110: 4727 | I110: 1270 | J110: 663 | K110: 63 | L110: 303 | M110: 4581 | N110: 972 | O110: 751 | P110: 39 | Q110: 100 | R110: 4943 | S110: 569 | T110: 1256 | U110: 117 | V110: 971 | W110: 4355 | X110: 411 | Y110: 445 | Z110: 199 | AA110: 1191 | AB110: 4069 | AC110: 674 | AD110: 485 | AE110: 114 | AF110: 175 | AG110: 3988 | AH110: 578 | AI110: 470 | AJ110: 68 | AK110: 105 | AL110: 4177 | AM110: 684 | AN110: 457 | AO110: 87 | AP110: 119 | AQ110: 4126 | AR110: 558 | AS110: 501 | AT110: 60 | AU110: 117 | AV110: =+IFERROR(VLOOKUP($F110,[1]Hoja1!$F$2:$L$4485,3,0),0) -> 4322 | AW110: =+IFERROR(VLOOKUP($F110,[1]Hoja1!$F$2:$L$4485,4,0),0) -> 761 | AX110: =+IFERROR(VLOOKUP($F110,[1]Hoja1!$F$2:$L$4485,5,0),0) -> 628 | AY110: =+IFERROR(VLOOKUP($F110,[1]Hoja1!$F$2:$L$4485,6,0),0) -> 59 | AZ110: =+IFERROR(VLOOKUP($F110,[1]Hoja1!$F$2:$L$4485,7,0),0) -> 83 | BA110: =+IFERROR(VLOOKUP($F110,[2]Hoja1!$F$2:$L$4485,3,0),0) -> 4332 | BB110: =+IFERROR(VLOOKUP($F110,[2]Hoja1!$F$2:$L$4485,4,0),0) -> 864 | BC110: =+IFERROR(VLOOKUP($F110,[2]Hoja1!$F$2:$L$4485,5,0),0) -> 539 | BD110: =+IFERROR(VLOOKUP($F110,[2]Hoja1!$F$2:$L$4485,6,0),0) -> 82 | BE110: =+IFERROR(VLOOKUP($F110,[2]Hoja1!$F$2:$L$4485,7,0),0) -> 95 | BU110: 19 | BV110: CAUCA | BW110: 573 | BX110: 19573 | BY110: PUERTO TEJADA | BZ110: 195731 | CA110: 1 | CB110: 2277 | CC110: 569 | CD110: 349 | CE110: 59 | CF110: 503 | CG110: 1985 | CH110: 446 | CI110: 346 | CJ110: 55 | CK110: 175 | CL110: 2050 | CM110: 327 | CN110: 514 | CO110: 58 | CP110: 370 | CQ110: 2096 | CR110: 313 | CS110: 250 | CT110: 143 | CU110: 616 | CV110: 1904 | CW110: 506 | CX110: 276 | CY110: 84 | CZ110: 126 | DA110: 1752 | DB110: 321 | DC110: 383 | DD110: 64 | DE110: 89 | DF110: 1944 | DG110: 397 | DH110: 292 | DI110: 47 | DJ110: 91 | DK110: 1867 | DL110: 479 | DM110: 439 | DN110: 54 | DO110: 67 | DP110: 1879 | DQ110: 356 | DR110: 298 | DS110: 71 | DT110: 95 | DU110: 1875 | DV110: 398 | DW110: 254 | DX110: 148 | DY110: 105
A111: 05 | B111: ANTIOQUIA | C111: 129 | D111: 05129 | E111: CALDAS | F111: 051292 | G111: 2 | H111: 2520 | I111: 168 | J111: 96 | K111: 62 | L111: 240 | M111: 2851 | N111: 93 | O111: 72 | P111: 24 | Q111: 42 | R111: 2515 | S111: 60 | T111: 197 | U111: 93 | V111: 391 | W111: 2017 | X111: 22 | Y111: 44 | Z111: 47 | AA111: 220 | AB111: 2517 | AC111: 34 | AD111: 44 | AE111: 49 | AF111: 73 | AG111: 2679 | AH111: 84 | AI111: 39 | AJ111: 55 | AK111: 37 | AL111: 2802 | AM111: 81 | AN111: 58 | AO111: 40 | AP111: 43 | AQ111: 2978 | AR111: 85 | AS111: 76 | AT111: 50 | AU111: 29 | AV111: =+IFERROR(VLOOKUP($F111,[1]Hoja1!$F$2:$L$4485,3,0),0) -> 2979 | AW111: =+IFERROR(VLOOKUP($F111,[1]Hoja1!$F$2:$L$4485,4,0),0) -> 124 | AX111: =+IFERROR(VLOOKUP($F111,[1]Hoja1!$F$2:$L$4485,5,0),0) -> 70 | AY111: =+IFERROR(VLOOKUP($F111,[1]Hoja1!$F$2:$L$4485,6,0),0) -> 52 | AZ111: =+IFERROR(VLOOKUP($F111,[1]Hoja1!$F$2:$L$4485,7,0),0) -> 29 | BA111: =+IFERROR(VLOOKUP($F111,[2]Hoja1!$F$2:$L$4485,3,0),0) -> 3136 | BB111: =+IFERROR(VLOOKUP($F111,[2]Hoja1!$F$2:$L$4485,4,0),0) -> 94 | BC111: =+IFERROR(VLOOKUP($F111,[2]Hoja1!$F$2:$L$4485,5,0),0) -> 66 | BD111: =+IFERROR(VLOOKUP($F111,[2]Hoja1!$F$2:$L$4485,6,0),0) -> 56 | BE111: =+IFERROR(VLOOKUP($F111,[2]Hoja1!$F$2:$L$4485,7,0),0) -> 38 | BU111: 19 | BV111: CAUCA | BW111: 573 | BX111: 19573 | BY111: PUERTO TEJADA | BZ111: 195732 | CA111: 2 | CB111: 2329 | CC111: 77 | CD111: 49 | CE111: 100 | CF111: 667 | CG111: 2605 | CH111: 26 | CI111: 43 | CJ111: 83 | CK111: 111 | CL111: 2571 | CM111: 28 | CN111: 115 | CO111: 74 | CP111: 290 | CQ111: 2364 | CR111: 31 | CS111: 26 | CT111: 85 | CU111: 422 | CV111: 2708 | CW111: 32 | CX111: 29 | CY111: 65 | CZ111: 99 | DA111: 2785 | DB111: 22 | DC111: 25 | DD111: 88 | DE111: 137 | DF111: 2739 | DG111: 43 | DH111: 33 | DI111: 77 | DJ111: 126 | DK111: 2873 | DL111: 58 | DM111: 24 | DN111: 72 | DO111: 107 | DP111: 2863 | DQ111: 28 | DR111: 38 | DS111: 83 | DT111: 130 | DU111: 2950 | DV111: 15 | DW111: 32 | DX111: 88 | DY111: 151
A112: 05 | B112: ANTIOQUIA | C112: 129 | D112: 05129 | E112: CALDAS | F112: 051293 | G112: 3 | H112: 360 | I112: 18 | J112: 15 | K112: 4 | L112: 83 | M112: 429 | N112: 12 | O112: 6 | P112: 1 | Q112: 12 | R112: 374 | S112: 4 | T112: 18 | U112: 4 | V112: 68 | W112: 306 | X112: 2 | Y112: 2 | Z112: 3 | AA112: 50 | AB112: 375 | AC112: 5 | AD112: 5 | AE112: 7 | AF112: 7 | AG112: 376 | AH112: 7 | AI112: 4 | AJ112: 3 | AK112: 12 | AL112: 398 | AM112: 7 | AN112: 6 | AO112: 0 | AP112: 7 | AQ112: 415 | AR112: 15 | AS112: 4 | AT112: 0 | AU112: 6 | AV112: =+IFERROR(VLOOKUP($F112,[1]Hoja1!$F$2:$L$4485,3,0),0) -> 438 | AW112: =+IFERROR(VLOOKUP($F112,[1]Hoja1!$F$2:$L$4485,4,0),0) -> 7 | AX112: =+IFERROR(VLOOKUP($F112,[1]Hoja1!$F$2:$L$4485,5,0),0) -> 12 | AY112: =+IFERROR(VLOOKUP($F112,[1]Hoja1!$F$2:$L$4485,6,0),0) -> 2 | AZ112: =+IFERROR(VLOOKUP($F112,[1]Hoja1!$F$2:$L$4485,7,0),0) -> 8 | BA112: =+IFERROR(VLOOKUP($F112,[2]Hoja1!$F$2:$L$4485,3,0),0) -> 462 | BB112: =+IFERROR(VLOOKUP($F112,[2]Hoja1!$F$2:$L$4485,4,0),0) -> 10 | BC112: =+IFERROR(VLOOKUP($F112,[2]Hoja1!$F$2:$L$4485,5,0),0) -> 13 | BD112: =+IFERROR(VLOOKUP($F112,[2]Hoja1!$F$2:$L$4485,6,0),0) -> 0 | BE112: =+IFERROR(VLOOKUP($F112,[2]Hoja1!$F$2:$L$4485,7,0),0) -> 21 | BU112: 19 | BV112: CAUCA | BW112: 573 | BX112: 19573 | BY112: PUERTO TEJADA | BZ112: 195733 | CA112: 3 | CB112: 943 | CC112: 10 | CD112: 13 | CE112: 10 | CF112: 317 | CG112: 1002 | CH112: 3 | CI112: 10 | CJ112: 13 | CK112: 66 | CL112: 989 | CM112: 6 | CN112: 15 | CO112: 8 | CP112: 144 | CQ112: 908 | CR112: 7 | CS112: 11 | CT112: 11 | CU112: 192 | CV112: 979 | CW112: 10 | CX112: 1 | CY112: 10 | CZ112: 43 | DA112: 1067 | DB112: 5 | DC112: 14 | DD112: 7 | DE112: 72 | DF112: 1063 | DG112: 5 | DH112: 20 | DI112: 9 | DJ112: 102 | DK112: 1073 | DL112: 10 | DM112: 7 | DN112: 4 | DO112: 100 | DP112: 1057 | DQ112: 8 | DR112: 5 | DS112: 0 | DT112: 81 | DU112: 1087 | DV112: 5 | DW112: 13 | DX112: 5 | DY112: 123
A113: 05 | B113: ANTIOQUIA | C113: 129 | D113: 05129 | E113: CALDAS | F113: 051294 | G113: 4 | H113: 63 | I113: 3 | J113: 1 | K113: 1 | L113: 10 | M113: 78 | N113: 3 | O113: 1 | P113: 0 | Q113: 0 | R113: 70 | S113: 0 | T113: 2 | U113: 2 | V113: 7 | W113: 62 | X113: 0 | Y113: 0 | Z113: 1 | AA113: 8 | AB113: 65 | AC113: 2 | AD113: 0 | AE113: 1 | AF113: 11 | AG113: 71 | AH113: 0 | AI113: 1 | AJ113: 0 | AK113: 2 | AL113: 75 | AM113: 0 | AN113: 3 | AO113: 0 | AP113: 0 | AQ113: 75 | AR113: 4 | AS113: 1 | AT113: 0 | AU113: 0 | AV113: =+IFERROR(VLOOKUP($F113,[1]Hoja1!$F$2:$L$4485,3,0),0) -> 72 | AW113: =+IFERROR(VLOOKUP($F113,[1]Hoja1!$F$2:$L$4485,4,0),0) -> 1 | AX113: =+IFERROR(VLOOKUP($F113,[1]Hoja1!$F$2:$L$4485,5,0),0) -> 1 | AY113: =+IFERROR(VLOOKUP($F113,[1]Hoja1!$F$2:$L$4485,6,0),0) -> 0 | AZ113: =+IFERROR(VLOOKUP($F113,[1]Hoja1!$F$2:$L$4485,7,0),0) -> 0 | BA113: =+IFERROR(VLOOKUP($F113,[2]Hoja1!$F$2:$L$4485,3,0),0) -> 74 | BB113: =+IFERROR(VLOOKUP($F113,[2]Hoja1!$F$2:$L$4485,4,0),0) -> 1 | BC113: =+IFERROR(VLOOKUP($F113,[2]Hoja1!$F$2:$L$4485,5,0),0) -> 1 | BD113: =+IFERROR(VLOOKUP($F113,[2]Hoja1!$F$2:$L$4485,6,0),0) -> 0 | BE113: =+IFERROR(VLOOKUP($F113,[2]Hoja1!$F$2:$L$4485,7,0),0) -> 5 | BU113: 19 | BV113: CAUCA | BW113: 573 | BX113: 19573 | BY113: PUERTO TEJADA | BZ113: 195734 | CA113: 4 | CB113: 162 | CC113: 1 | CD113: 1 | CE113: 0 | CF113: 55 | CG113: 208 | CH113: 1 | CI113: 3 | CJ113: 0 | CK113: 10 | CL113: 185 | CM113: 2 | CN113: 7 | CO113: 0 | CP113: 18 | CQ113: 158 | CR113: 2 | CS113: 2 | CT113: 0 | CU113: 18 | CV113: 197 | CW113: 4 | CX113: 6 | CY113: 0 | CZ113: 2 | DA113: 192 | DB113: 2 | DC113: 1 | DD113: 0 | DE113: 16 | DF113: 212 | DG113: 5 | DH113: 6 | DI113: 0 | DJ113: 15 | DK113: 194 | DL113: 3 | DM113: 3 | DN113: 0 | DO113: 14 | DP113: 230 | DQ113: 3 | DR113: 3 | DS113: 0 | DT113: 18 | DU113: 198 | DV113: 1 | DW113: 0 | DX113: 0 | DY113: 30
A114: 05 | B114: ANTIOQUIA | C114: 134 | D114: 05134 | E114: CAMPAMENTO | F114: 051341 | G114: 1 | H114: 56 | I114: 21 | J114: 6 | K114: 0 | L114: 0 | M114: 60 | N114: 15 | O114: 7 | P114: 1 | Q114: 0 | R114: 51 | S114: 5 | T114: 23 | U114: 1 | V114: 2 | W114: 38 | X114: 11 | Y114: 1 | Z114: 1 | AA114: 2 | AB114: 33 | AC114: 1 | AD114: 3 | AE114: 0 | AF114: 1 | AG114: 36 | AH114: 5 | AI114: 8 | AJ114: 1 | AK114: 0 | AL114: 27 | AM114: 3 | AN114: 2 | AO114: 1 | AP114: 0 | AQ114: 31 | AR114: 3 | AS114: 4 | AT114: 2 | AU114: 0 | AV114: =+IFERROR(VLOOKUP($F114,[1]Hoja1!$F$2:$L$4485,3,0),0) -> 33 | AW114: =+IFERROR(VLOOKUP($F114,[1]Hoja1!$F$2:$L$4485,4,0),0) -> 6 | AX114: =+IFERROR(VLOOKUP($F114,[1]Hoja1!$F$2:$L$4485,5,0),0) -> 3 | AY114: =+IFERROR(VLOOKUP($F114,[1]Hoja1!$F$2:$L$4485,6,0),0) -> 4 | AZ114: =+IFERROR(VLOOKUP($F114,[1]Hoja1!$F$2:$L$4485,7,0),0) -> 0 | BA114: =+IFERROR(VLOOKUP($F114,[2]Hoja1!$F$2:$L$4485,3,0),0) -> 35 | BB114: =+IFERROR(VLOOKUP($F114,[2]Hoja1!$F$2:$L$4485,4,0),0) -> 2 | BC114: =+IFERROR(VLOOKUP($F114,[2]Hoja1!$F$2:$L$4485,5,0),0) -> 10 | BD114: =+IFERROR(VLOOKUP($F114,[2]Hoja1!$F$2:$L$4485,6,0),0) -> 2 | BE114: =+IFERROR(VLOOKUP($F114,[2]Hoja1!$F$2:$L$4485,7,0),0) -> 0 | BU114: 19 | BV114: CAUCA | BW114: 585 | BX114: 19585 | BY114: PURACÉ | BZ114: 195851 | CA114: 1 | CB114: 58 | CC114: 12 | CD114: 8 | CE114: 0 | CF114: 1 | CG114: 53 | CH114: 2 | CI114: 5 | CJ114: 1 | CK114: 1 | CL114: 44 | CM114: 2 | CN114: 7 | CO114: 5 | CP114: 4 | CQ114: 43 | CR114: 6 | CS114: 0 | CT114: 5 | CU114: 3 | CV114: 54 | CW114: 9 | CX114: 7 | CY114: 0 | CZ114: 3 | DA114: 45 | DB114: 6 | DC114: 7 | DD114: 0 | DE114: 1 | DF114: 50 | DG114: 7 | DH114: 11 | DI114: 0 | DJ114: 0 | DK114: 42 | DL114: 1 | DM114: 5 | DN114: 1 | DO114: 2 | DP114: 37 | DQ114: 0 | DR114: 1 | DS114: 0 | DT114: 1 | DU114: 35 | DV114: 1 | DW114: 0 | DX114: 0 | DY114: 0
A115: 05 | B115: ANTIOQUIA | C115: 134 | D115: 05134 | E115: CAMPAMENTO | F115: 051342 | G115: 2 | H115: 6 | I115: 0 | J115: 0 | K115: 0 | L115: 0 | M115: 13 | N115: 1 | O115: 0 | P115: 0 | Q115: 0 | R115: 12 | S115: 0 | T115: 0 | U115: 0 | V115: 2 | W115: 15 | X115: 2 | Y115: 0 | Z115: 0 | AA115: 1 | AB115: 21 | AC115: 0 | AD115: 1 | AE115: 0 | AF115: 1 | AG115: 20 | AH115: 2 | AI115: 0 | AJ115: 1 | AK115: 1 | AL115: 24 | AM115: 1 | AN115: 1 | AO115: 2 | AP115: 0 | AQ115: 20 | AR115: 0 | AS115: 0 | AT115: 0 | AU115: 1 | AV115: =+IFERROR(VLOOKUP($F115,[1]Hoja1!$F$2:$L$4485,3,0),0) -> 18 | AW115: =+IFERROR(VLOOKUP($F115,[1]Hoja1!$F$2:$L$4485,4,0),0) -> 0 | AX115: =+IFERROR(VLOOKUP($F115,[1]Hoja1!$F$2:$L$4485,5,0),0) -> 0 | AY115: =+IFERROR(VLOOKUP($F115,[1]Hoja1!$F$2:$L$4485,6,0),0) -> 1 | AZ115: =+IFERROR(VLOOKUP($F115,[1]Hoja1!$F$2:$L$4485,7,0),0) -> 0 | BA115: =+IFERROR(VLOOKUP($F115,[2]Hoja1!$F$2:$L$4485,3,0),0) -> 16 | BB115: =+IFERROR(VLOOKUP($F115,[2]Hoja1!$F$2:$L$4485,4,0),0) -> 1 | BC115: =+IFERROR(VLOOKUP($F115,[2]Hoja1!$F$2:$L$4485,5,0),0) -> 1 | BD115: =+IFERROR(VLOOKUP($F115,[2]Hoja1!$F$2:$L$4485,6,0),0) -> 0 | BE115: =+IFERROR(VLOOKUP($F115,[2]Hoja1!$F$2:$L$4485,7,0),0) -> 0 | BU115: 19 | BV115: CAUCA | BW115: 585 | BX115: 19585 | BY115: PURACÉ | BZ115: 195852 | CA115: 2 | CB115: 27 | CC115: 1 | CD115: 0 | CE115: 0 | CF115: 2 | CG115: 25 | CH115: 0 | CI115: 0 | CJ115: 0 | CK115: 0 | CL115: 23 | CM115: 1 | CN115: 0 | CO115: 1 | CP115: 1 | CQ115: 23 | CR115: 1 | CS115: 0 | CT115: 1 | CU115: 0 | CV115: 21 | CW115: 0 | CX115: 0 | CY115: 1 | CZ115: 0 | DA115: 27 | DB115: 0 | DC115: 5 | DD115: 1 | DE115: 1 | DF115: 19 | DG115: 0 | DH115: 0 | DI115: 1 | DJ115: 0 | DK115: 16 | DL115: 0 | DM115: 0 | DN115: 0 | DO115: 0 | DP115: 16 | DQ115: 0 | DR115: 0 | DS115: 0 | DT115: 0 | DU115: 17 | DV115: 0 | DW115: 0 | DX115: 0 | DY115: 1
A116: 05 | B116: ANTIOQUIA | C116: 134 | D116: 05134 | E116: CAMPAMENTO | F116: 051343 | G116: 3 | H116: 2 | I116: 0 | J116: 0 | K116: 0 | L116: 0 | M116: 4 | N116: 0 | O116: 0 | P116: 0 | Q116: 0 | R116: 10 | S116: 0 | T116: 0 | U116: 0 | V116: 0 | W116: 11 | X116: 0 | Y116: 0 | Z116: 0 | AA116: 0 | AB116: 9 | AC116: 0 | AD116: 0 | AE116: 0 | AF116: 0 | AG116: 10 | AH116: 0 | AI116: 0 | AJ116: 0 | AK116: 0 | AL116: 12 | AM116: 0 | AN116: 0 | AO116: 0 | AP116: 0 | AQ116: 14 | AR116: 0 | AS116: 0 | AT116: 0 | AU116: 0 | AV116: =+IFERROR(VLOOKUP($F116,[1]Hoja1!$F$2:$L$4485,3,0),0) -> 14 | AW116: =+IFERROR(VLOOKUP($F116,[1]Hoja1!$F$2:$L$4485,4,0),0) -> 0 | AX116: =+IFERROR(VLOOKUP($F116,[1]Hoja1!$F$2:$L$4485,5,0),0) -> 0 | AY116: =+IFERROR(VLOOKUP($F116,[1]Hoja1!$F$2:$L$4485,6,0),0) -> 1 | AZ116: =+IFERROR(VLOOKUP($F116,[1]Hoja1!$F$2:$L$4485,7,0),0) -> 0 | BA116: =+IFERROR(VLOOKUP($F116,[2]Hoja1!$F$2:$L$4485,3,0),0) -> 13 | BB116: =+IFERROR(VLOOKUP($F116,[2]Hoja1!$F$2:$L$4485,4,0),0) -> 0 | BC116: =+IFERROR(VLOOKUP($F116,[2]Hoja1!$F$2:$L$4485,5,0),0) -> 0 | BD116: =+IFERROR(VLOOKUP($F116,[2]Hoja1!$F$2:$L$4485,6,0),0) -> 1 | BE116: =+IFERROR(VLOOKUP($F116,[2]Hoja1!$F$2:$L$4485,7,0),0) -> 0 | BU116: 19 | BV116: CAUCA | BW116: 585 | BX116: 19585 | BY116: PURACÉ | BZ116: 195853 | CA116: 3 | CB116: 1 | CC116: 0 | CD116: 1 | CE116: 0 | CF116: 0 | CG116: 1 | CH116: 0 | CI116: 0 | CJ116: 0 | CK116: 0 | CL116: 3 | CM116: 1 | CN116: 0 | CO116: 0 | CP116: 0 | CQ116: 4 | CR116: 0 | CS116: 0 | CT116: 0 | CU116: 0 | CV116: 4 | CW116: 0 | CX116: 0 | CY116: 0 | CZ116: 0 | DA116: 3 | DB116: 0 | DC116: 0 | DD116: 0 | DE116: 0 | DF116: 3 | DG116: 0 | DH116: 0 | DI116: 0 | DJ116: 0 | DK116: 3 | DL116: 0 | DM116: 0 | DN116: 0 | DO116: 0 | DP116: 3 | DQ116: 0 | DR116: 0 | DS116: 0 | DT116: 0 | DU116: 3 | DV116: 0 | DW116: 0 | DX116: 0 | DY116: 0
A117: 05 | B117: ANTIOQUIA | C117: 134 | D117: 05134 | E117: CAMPAMENTO | F117: 051344 | G117: 4 | H117: 0 | I117: 0 | J117: 0 | K117: 0 | L117: 0 | M117: 0 | N117: 0 | O117: 0 | P117: 0 | Q117: 0 | R117: 0 | S117: 0 | T117: 0 | U117: 0 | V117: 0 | W117: 0 | X117: 0 | Y117: 0 | Z117: 0 | AA117: 0 | AB117: 0 | AC117: 0 | AD117: 0 | AE117: 0 | AF117: 0 | AG117: 0 | AH117: 0 | AI117: 0 | AJ117: 0 | AK117: 0 | AL117: 0 | AM117: 0 | AN117: 0 | AO117: 0 | AP117: 0 | AQ117: 0 | AR117: 0 | AS117: 0 | AT117: 0 | AU117: 0 | AV117: =+IFERROR(VLOOKUP($F117,[1]Hoja1!$F$2:$L$4485,3,0),0) -> 0 | AW117: =+IFERROR(VLOOKUP($F117,[1]Hoja1!$F$2:$L$4485,4,0),0) -> 0 | AX117: =+IFERROR(VLOOKUP($F117,[1]Hoja1!$F$2:$L$4485,5,0),0) -> 0 | AY117: =+IFERROR(VLOOKUP($F117,[1]Hoja1!$F$2:$L$4485,6,0),0) -> 0 | AZ117: =+IFERROR(VLOOKUP($F117,[1]Hoja1!$F$2:$L$4485,7,0),0) -> 0 | BA117: =+IFERROR(VLOOKUP($F117,[2]Hoja1!$F$2:$L$4485,3,0),0) -> 0 | BB117: =+IFERROR(VLOOKUP($F117,[2]Hoja1!$F$2:$L$4485,4,0),0) -> 0 | BC117: =+IFERROR(VLOOKUP($F117,[2]Hoja1!$F$2:$L$4485,5,0),0) -> 0 | BD117: =+IFERROR(VLOOKUP($F117,[2]Hoja1!$F$2:$L$4485,6,0),0) -> 0 | BE117: =+IFERROR(VLOOKUP($F117,[2]Hoja1!$F$2:$L$4485,7,0),0) -> 0 | BU117: 19 | BV117: CAUCA | BW117: 585 | BX117: 19585 | BY117: PURACÉ | BZ117: 195854 | CA117: 4 | CB117: 0 | CC117: 0 | CD117: 0 | CE117: 0 | CF117: 0 | CG117: 0 | CH117: 0 | CI117: 0 | CJ117: 0 | CK117: 0 | CL117: 0 | CM117: 0 | CN117: 0 | CO117: 0 | CP117: 0 | CQ117: 0 | CR117: 0 | CS117: 0 | CT117: 0 | CU117: 0 | CV117: 0 | CW117: 0 | CX117: 0 | CY117: 0 | CZ117: 0 | DA117: 0 | DB117: 0 | DC117: 0 | DD117: 0 | DE117: 0 | DF117: 0 | DG117: 0 | DH117: 0 | DI117: 0 | DJ117: 0 | DK117: 0 | DL117: 0 | DM117: 0 | DN117: 0 | DO117: 0 | DP117: 0 | DQ117: 0 | DR117: 0 | DS117: 0 | DT117: 0 | DU117: 0 | DV117: 0 | DW117: 0 | DX117: 0 | DY117: 0
A118: 05 | B118: ANTIOQUIA | C118: 138 | D118: 05138 | E118: CAÑASGORDAS | F118: 051381 | G118: 1 | H118: 114 | I118: 24 | J118: 14 | K118: 1 | L118: 7 | M118: 156 | N118: 58 | O118: 18 | P118: 1 | Q118: 2 | R118: 167 | S118: 38 | T118: 31 | U118: 1 | V118: 29 | W118: 151 | X118: 3 | Y118: 18 | Z118: 19 | AA118: 40 | AB118: 119 | AC118: 7 | AD118: 9 | AE118: 10 | AF118: 2 | AG118: 176 | AH118: 24 | AI118: 49 | AJ118: 1 | AK118: 2 | AL118: 144 | AM118: 25 | AN118: 13 | AO118: 0 | AP118: 5 | AQ118: 125 | AR118: 14 | AS118: 20 | AT118: 3 | AU118: 1 | AV118: =+IFERROR(VLOOKUP($F118,[1]Hoja1!$F$2:$L$4485,3,0),0) -> 138 | AW118: =+IFERROR(VLOOKUP($F118,[1]Hoja1!$F$2:$L$4485,4,0),0) -> 26 | AX118: =+IFERROR(VLOOKUP($F118,[1]Hoja1!$F$2:$L$4485,5,0),0) -> 17 | AY118: =+IFERROR(VLOOKUP($F118,[1]Hoja1!$F$2:$L$4485,6,0),0) -> 2 | AZ118: =+IFERROR(VLOOKUP($F118,[1]Hoja1!$F$2:$L$4485,7,0),0) -> 2 | BA118: =+IFERROR(VLOOKUP($F118,[2]Hoja1!$F$2:$L$4485,3,0),0) -> 157 | BB118: =+IFERROR(VLOOKUP($F118,[2]Hoja1!$F$2:$L$4485,4,0),0) -> 49 | BC118: =+IFERROR(VLOOKUP($F118,[2]Hoja1!$F$2:$L$4485,5,0),0) -> 34 | BD118: =+IFERROR(VLOOKUP($F118,[2]Hoja1!$F$2:$L$4485,6,0),0) -> 0 | BE118: =+IFERROR(VLOOKUP($F118,[2]Hoja1!$F$2:$L$4485,7,0),0) -> 7 | BU118: 19 | BV118: CAUCA | BW118: 622 | BX118: 19622 | BY118: ROSAS | BZ118: 196221 | CA118: 1 | CB118: 46 | CC118: 2 | CD118: 3 | CE118: 0 | CF118: 2 | CG118: 58 | CH118: 17 | CI118: 2 | CJ118: 0 | CK118: 0 | CL118: 55 | CM118: 6 | CN118: 11 | CO118: 0 | CP118: 0 | CQ118: 81 | CR118: 32 | CS118: 1 | CT118: 0 | CU118: 1 | CV118: 84 | CW118: 2 | CX118: 3 | CY118: 0 | CZ118: 0 | DA118: 92 | DB118: 11 | DC118: 12 | DD118: 0 | DE118: 0 | DF118: 84 | DG118: 7 | DH118: 2 | DI118: 0 | DJ118: 0 | DK118: 67 | DL118: 10 | DM118: 3 | DN118: 0 | DO118: 0 | DP118: 64 | DQ118: 2 | DR118: 2 | DS118: 0 | DT118: 0 | DU118: 75 | DV118: 12 | DW118: 6 | DX118: 0 | DY118: 0
A119: 05 | B119: ANTIOQUIA | C119: 138 | D119: 05138 | E119: CAÑASGORDAS | F119: 051382 | G119: 2 | H119: 116 | I119: 11 | J119: 2 | K119: 3 | L119: 14 | M119: 117 | N119: 4 | O119: 1 | P119: 5 | Q119: 1 | R119: 130 | S119: 7 | T119: 6 | U119: 8 | V119: 23 | W119: 120 | X119: 1 | Y119: 2 | Z119: 3 | AA119: 20 | AB119: 147 | AC119: 3 | AD119: 8 | AE119: 5 | AF119: 5 | AG119: 132 | AH119: 7 | AI119: 8 | AJ119: 5 | AK119: 1 | AL119: 143 | AM119: 10 | AN119: 4 | AO119: 1 | AP119: 2 | AQ119: 165 | AR119: 7 | AS119: 4 | AT119: 2 | AU119: 2 | AV119: =+IFERROR(VLOOKUP($F119,[1]Hoja1!$F$2:$L$4485,3,0),0) -> 172 | AW119: =+IFERROR(VLOOKUP($F119,[1]Hoja1!$F$2:$L$4485,4,0),0) -> 5 | AX119: =+IFERROR(VLOOKUP($F119,[1]Hoja1!$F$2:$L$4485,5,0),0) -> 13 | AY119: =+IFERROR(VLOOKUP($F119,[1]Hoja1!$F$2:$L$4485,6,0),0) -> 4 | AZ119: =+IFERROR(VLOOKUP($F119,[1]Hoja1!$F$2:$L$4485,7,0),0) -> 5 | BA119: =+IFERROR(VLOOKUP($F119,[2]Hoja1!$F$2:$L$4485,3,0),0) -> 166 | BB119: =+IFERROR(VLOOKUP($F119,[2]Hoja1!$F$2:$L$4485,4,0),0) -> 4 | BC119: =+IFERROR(VLOOKUP($F119,[2]Hoja1!$F$2:$L$4485,5,0),0) -> 2 | BD119: =+IFERROR(VLOOKUP($F119,[2]Hoja1!$F$2:$L$4485,6,0),0) -> 1 | BE119: =+IFERROR(VLOOKUP($F119,[2]Hoja1!$F$2:$L$4485,7,0),0) -> 5 | BU119: 19 | BV119: CAUCA | BW119: 622 | BX119: 19622 | BY119: ROSAS | BZ119: 196222 | CA119: 2 | CB119: 13 | CC119: 2 | CD119: 0 | CE119: 0 | CF119: 2 | CG119: 9 | CH119: 0 | CI119: 0 | CJ119: 0 | CK119: 0 | CL119: 16 | CM119: 0 | CN119: 0 | CO119: 2 | CP119: 1 | CQ119: 14 | CR119: 1 | CS119: 0 | CT119: 1 | CU119: 0 | CV119: 18 | CW119: 3 | CX119: 1 | CY119: 1 | CZ119: 0 | DA119: 65 | DB119: 48 | DC119: 4 | DD119: 0 | DE119: 0 | DF119: 67 | DG119: 3 | DH119: 1 | DI119: 0 | DJ119: 0 | DK119: 72 | DL119: 1 | DM119: 1 | DN119: 0 | DO119: 0 | DP119: 80 | DQ119: 2 | DR119: 6 | DS119: 0 | DT119: 0 | DU119: 77 | DV119: 3 | DW119: 2 | DX119: 0 | DY119: 1
A120: 05 | B120: ANTIOQUIA | C120: 138 | D120: 05138 | E120: CAÑASGORDAS | F120: 051383 | G120: 3 | H120: 24 | I120: 3 | J120: 1 | K120: 1 | L120: 4 | M120: 23 | N120: 1 | O120: 0 | P120: 0 | Q120: 0 | R120: 25 | S120: 0 | T120: 1 | U120: 0 | V120: 3 | W120: 16 | X120: 0 | Y120: 0 | Z120: 0 | AA120: 3 | AB120: 23 | AC120: 0 | AD120: 0 | AE120: 2 | AF120: 2 | AG120: 28 | AH120: 4 | AI120: 3 | AJ120: 0 | AK120: 3 | AL120: 38 | AM120: 2 | AN120: 1 | AO120: 1 | AP120: 0 | AQ120: 45 | AR120: 1 | AS120: 0 | AT120: 0 | AU120: 1 | AV120: =+IFERROR(VLOOKUP($F120,[1]Hoja1!$F$2:$L$4485,3,0),0) -> 33 | AW120: =+IFERROR(VLOOKUP($F120,[1]Hoja1!$F$2:$L$4485,4,0),0) -> 1 | AX120: =+IFERROR(VLOOKUP($F120,[1]Hoja1!$F$2:$L$4485,5,0),0) -> 0 | AY120: =+IFERROR(VLOOKUP($F120,[1]Hoja1!$F$2:$L$4485,6,0),0) -> 0 | AZ120: =+IFERROR(VLOOKUP($F120,[1]Hoja1!$F$2:$L$4485,7,0),0) -> 0 | BA120: =+IFERROR(VLOOKUP($F120,[2]Hoja1!$F$2:$L$4485,3,0),0) -> 44 | BB120: =+IFERROR(VLOOKUP($F120,[2]Hoja1!$F$2:$L$4485,4,0),0) -> 1 | BC120: =+IFERROR(VLOOKUP($F120,[2]Hoja1!$F$2:$L$4485,5,0),0) -> 3 | BD120: =+IFERROR(VLOOKUP($F120,[2]Hoja1!$F$2:$L$4485,6,0),0) -> 0 | BE120: =+IFERROR(VLOOKUP($F120,[2]Hoja1!$F$2:$L$4485,7,0),0) -> 2 | BU120: 19 | BV120: CAUCA | BW120: 622 | BX120: 19622 | BY120: ROSAS | BZ120: 196223 | CA120: 3 | CB120: 1 | CC120: 0 | CD120: 0 | CE120: 0 | CF120: 0 | CG120: 3 | CH120: 0 | CI120: 0 | CJ120: 0 | CK120: 1 | CL120: 2 | CM120: 0 | CN120: 0 | CO120: 0 | CP120: 1 | CQ120: 2 | CR120: 0 | CS120: 0 | CT120: 0 | CU120: 1 | CV120: 1 | CW120: 0 | CX120: 0 | CY120: 0 | CZ120: 0 | DA120: 6 | DB120: 5 | DC120: 0 | DD120: 0 | DE120: 0 | DF120: 9 | DG120: 1 | DH120: 0 | DI120: 0 | DJ120: 0 | DK120: 10 | DL120: 0 | DM120: 0 | DN120: 0 | DO120: 0 | DP120: 9 | DQ120: 0 | DR120: 0 | DS120: 0 | DT120: 0 | DU120: 7 | DV120: 0 | DW120: 0 | DX120: 0 | DY120: 0
A121: 05 | B121: ANTIOQUIA | C121: 138 | D121: 05138 | E121: CAÑASGORDAS | F121: 051384 | G121: 4 | H121: 2 | I121: 0 | J121: 0 | K121: 0 | L121: 0 | M121: 1 | N121: 0 | O121: 0 | P121: 0 | Q121: 0 | R121: 1 | S121: 0 | T121: 0 | U121: 0 | V121: 1 | W121: 0 | X121: 0 | Y121: 0 | Z121: 0 | AA121: 0 | AB121: 0 | AC121: 0 | AD121: 0 | AE121: 0 | AF121: 0 | AG121: 0 | AH121: 0 | AI121: 0 | AJ121: 0 | AK121: 0 | AL121: 1 | AM121: 0 | AN121: 1 | AO121: 0 | AP121: 0 | AQ121: 1 | AR121: 0 | AS121: 0 | AT121: 0 | AU121: 0 | AV121: =+IFERROR(VLOOKUP($F121,[1]Hoja1!$F$2:$L$4485,3,0),0) -> 1 | AW121: =+IFERROR(VLOOKUP($F121,[1]Hoja1!$F$2:$L$4485,4,0),0) -> 0 | AX121: =+IFERROR(VLOOKUP($F121,[1]Hoja1!$F$2:$L$4485,5,0),0) -> 0 | AY121: =+IFERROR(VLOOKUP($F121,[1]Hoja1!$F$2:$L$4485,6,0),0) -> 0 | AZ121: =+IFERROR(VLOOKUP($F121,[1]Hoja1!$F$2:$L$4485,7,0),0) -> 0 | BA121: =+IFERROR(VLOOKUP($F121,[2]Hoja1!$F$2:$L$4485,3,0),0) -> 2 | BB121: =+IFERROR(VLOOKUP($F121,[2]Hoja1!$F$2:$L$4485,4,0),0) -> 1 | BC121: =+IFERROR(VLOOKUP($F121,[2]Hoja1!$F$2:$L$4485,5,0),0) -> 0 | BD121: =+IFERROR(VLOOKUP($F121,[2]Hoja1!$F$2:$L$4485,6,0),0) -> 0 | BE121: =+IFERROR(VLOOKUP($F121,[2]Hoja1!$F$2:$L$4485,7,0),0) -> 0 | BU121: 19 | BV121: CAUCA | BW121: 622 | BX121: 19622 | BY121: ROSAS | BZ121: 196224 | CA121: 4 | CB121: 0 | CC121: 0 | CD121: 0 | CE121: 0 | CF121: 0 | CG121: 0 | CH121: 0 | CI121: 0 | CJ121: 0 | CK121: 0 | CL121: 0 | CM121: 0 | CN121: 0 | CO121: 0 | CP121: 0 | CQ121: 0 | CR121: 0 | CS121: 0 | CT121: 0 | CU121: 0 | CV121: 0 | CW121: 0 | CX121: 0 | CY121: 0 | CZ121: 0 | DA121: 1 | DB121: 0 | DC121: 1 | DD121: 0 | DE121: 0 | DF121: 0 | DG121: 0 | DH121: 0 | DI121: 0 | DJ121: 0 | DK121: 0 | DL121: 0 | DM121: 0 | DN121: 0 | DO121: 0 | DP121: 0 | DQ121: 0 | DR121: 0 | DS121: 0 | DT121: 0 | DU121: 0 | DV121: 0 | DW121: 0 | DX121: 0 | DY121: 0
A122: 05 | B122: ANTIOQUIA | C122: 142 | D122: 05142 | E122: CARACOLÍ | F122: 051421 | G122: 1 | H122: 74 | I122: 40 | J122: 3 | K122: 0 | L122: 6 | M122: 73 | N122: 18 | O122: 3 | P122: 0 | Q122: 3 | R122: 78 | S122: 1 | T122: 27 | U122: 0 | V122: 4 | W122: 70 | X122: 16 | Y122: 3 | Z122: 0 | AA122: 7 | AB122: 67 | AC122: 14 | AD122: 6 | AE122: 1 | AF122: 1 | AG122: 81 | AH122: 6 | AI122: 26 | AJ122: 0 | AK122: 1 | AL122: 65 | AM122: 4 | AN122: 23 | AO122: 0 | AP122: 2 | AQ122: 60 | AR122: 21 | AS122: 11 | AT122: 1 | AU122: 0 | AV122: =+IFERROR(VLOOKUP($F122,[1]Hoja1!$F$2:$L$4485,3,0),0) -> 37 | AW122: =+IFERROR(VLOOKUP($F122,[1]Hoja1!$F$2:$L$4485,4,0),0) -> 4 | AX122: =+IFERROR(VLOOKUP($F122,[1]Hoja1!$F$2:$L$4485,5,0),0) -> 3 | AY122: =+IFERROR(VLOOKUP($F122,[1]Hoja1!$F$2:$L$4485,6,0),0) -> 0 | AZ122: =+IFERROR(VLOOKUP($F122,[1]Hoja1!$F$2:$L$4485,7,0),0) -> 3 | BA122: =+IFERROR(VLOOKUP($F122,[2]Hoja1!$F$2:$L$4485,3,0),0) -> 56 | BB122: =+IFERROR(VLOOKUP($F122,[2]Hoja1!$F$2:$L$4485,4,0),0) -> 8 | BC122: =+IFERROR(VLOOKUP($F122,[2]Hoja1!$F$2:$L$4485,5,0),0) -> 18 | BD122: =+IFERROR(VLOOKUP($F122,[2]Hoja1!$F$2:$L$4485,6,0),0) -> 0 | BE122: =+IFERROR(VLOOKUP($F122,[2]Hoja1!$F$2:$L$4485,7,0),0) -> 0 | BU122: 19 | BV122: CAUCA | BW122: 693 | BX122: 19693 | BY122: SAN SEBASTIÁN | BZ122: 196931 | CA122: 1 | CB122: 64 | CC122: 2 | CD122: 1 | CE122: 1 | CF122: 0 | CG122: 64 | CH122: 1 | CI122: 1 | CJ122: 0 | CK122: 0 | CL122: 62 | CM122: 0 | CN122: 36 | CO122: 0 | CP122: 0 | CQ122: 44 | CR122: 6 | CS122: 12 | CT122: 0 | CU122: 1 | CV122: 42 | CW122: 0 | CX122: 10 | CY122: 0 | CZ122: 1 | DA122: 42 | DB122: 1 | DC122: 11 | DD122: 0 | DE122: 0 | DF122: 41 | DG122: 0 | DH122: 10 | DI122: 0 | DJ122: 0 | DK122: 38 | DL122: 1 | DM122: 11 | DN122: 1 | DO122: 0 | DP122: 63 | DQ122: 26 | DR122: 2 | DS122: 0 | DT122: 0 | DU122: 64 | DV122: 3 | DW122: 0 | DX122: 0 | DY122: 0
A123: 05 | B123: ANTIOQUIA | C123: 142 | D123: 05142 | E123: CARACOLÍ | F123: 051422 | G123: 2 | H123: 16 | I123: 1 | J123: 3 | K123: 0 | L123: 2 | M123: 31 | N123: 4 | O123: 0 | P123: 0 | Q123: 0 | R123: 25 | S123: 1 | T123: 1 | U123: 0 | V123: 3 | W123: 25 | X123: 0 | Y123: 0 | Z123: 0 | AA123: 4 | AB123: 34 | AC123: 0 | AD123: 2 | AE123: 0 | AF123: 2 | AG123: 20 | AH123: 0 | AI123: 0 | AJ123: 0 | AK123: 2 | AL123: 19 | AM123: 2 | AN123: 0 | AO123: 0 | AP123: 0 | AQ123: 23 | AR123: 1 | AS123: 0 | AT123: 0 | AU123: 1 | AV123: =+IFERROR(VLOOKUP($F123,[1]Hoja1!$F$2:$L$4485,3,0),0) -> 39 | AW123: =+IFERROR(VLOOKUP($F123,[1]Hoja1!$F$2:$L$4485,4,0),0) -> 0 | AX123: =+IFERROR(VLOOKUP($F123,[1]Hoja1!$F$2:$L$4485,5,0),0) -> 1 | AY123: =+IFERROR(VLOOKUP($F123,[1]Hoja1!$F$2:$L$4485,6,0),0) -> 0 | AZ123: =+IFERROR(VLOOKUP($F123,[1]Hoja1!$F$2:$L$4485,7,0),0) -> 0 | BA123: =+IFERROR(VLOOKUP($F123,[2]Hoja1!$F$2:$L$4485,3,0),0) -> 24 | BB123: =+IFERROR(VLOOKUP($F123,[2]Hoja1!$F$2:$L$4485,4,0),0) -> 1 | BC123: =+IFERROR(VLOOKUP($F123,[2]Hoja1!$F$2:$L$4485,5,0),0) -> 1 | BD123: =+IFERROR(VLOOKUP($F123,[2]Hoja1!$F$2:$L$4485,6,0),0) -> 0 | BE123: =+IFERROR(VLOOKUP($F123,[2]Hoja1!$F$2:$L$4485,7,0),0) -> 0 | BU123: 19 | BV123: CAUCA | BW123: 693 | BX123: 19693 | BY123: SAN SEBASTIÁN | BZ123: 196932 | CA123: 2 | CB123: 4 | CC123: 1 | CD123: 0 | CE123: 0 | CF123: 0 | CG123: 4 | CH123: 0 | CI123: 0 | CJ123: 0 | CK123: 0 | CL123: 5 | CM123: 0 | CN123: 0 | CO123: 0 | CP123: 0 | CQ123: 4 | CR123: 0 | CS123: 0 | CT123: 0 | CU123: 0 | CV123: 4 | CW123: 0 | CX123: 0 | CY123: 0 | CZ123: 0 | DA123: 5 | DB123: 0 | DC123: 0 | DD123: 1 | DE123: 0 | DF123: 5 | DG123: 0 | DH123: 0 | DI123: 1 | DJ123: 0 | DK123: 4 | DL123: 0 | DM123: 0 | DN123: 0 | DO123: 1 | DP123: 5 | DQ123: 0 | DR123: 0 | DS123: 0 | DT123: 1 | DU123: 4 | DV123: 0 | DW123: 0 | DX123: 0 | DY123: 0
A124: 05 | B124: ANTIOQUIA | C124: 142 | D124: 05142 | E124: CARACOLÍ | F124: 051423 | G124: 3 | H124: 9 | I124: 0 | J124: 0 | K124: 0 | L124: 2 | M124: 12 | N124: 0 | O124: 0 | P124: 0 | Q124: 2 | R124: 12 | S124: 0 | T124: 0 | U124: 0 | V124: 1 | W124: 10 | X124: 0 | Y124: 0 | Z124: 0 | AA124: 2 | AB124: 14 | AC124: 0 | AD124: 0 | AE124: 0 | AF124: 0 | AG124: 12 | AH124: 0 | AI124: 0 | AJ124: 0 | AK124: 1 | AL124: 15 | AM124: 0 | AN124: 0 | AO124: 0 | AP124: 1 | AQ124: 15 | AR124: 1 | AS124: 0 | AT124: 0 | AU124: 0 | AV124: =+IFERROR(VLOOKUP($F124,[1]Hoja1!$F$2:$L$4485,3,0),0) -> 15 | AW124: =+IFERROR(VLOOKUP($F124,[1]Hoja1!$F$2:$L$4485,4,0),0) -> 0 | AX124: =+IFERROR(VLOOKUP($F124,[1]Hoja1!$F$2:$L$4485,5,0),0) -> 0 | AY124: =+IFERROR(VLOOKUP($F124,[1]Hoja1!$F$2:$L$4485,6,0),0) -> 0 | AZ124: =+IFERROR(VLOOKUP($F124,[1]Hoja1!$F$2:$L$4485,7,0),0) -> 0 | BA124: =+IFERROR(VLOOKUP($F124,[2]Hoja1!$F$2:$L$4485,3,0),0) -> 17 | BB124: =+IFERROR(VLOOKUP($F124,[2]Hoja1!$F$2:$L$4485,4,0),0) -> 0 | BC124: =+IFERROR(VLOOKUP($F124,[2]Hoja1!$F$2:$L$4485,5,0),0) -> 1 | BD124: =+IFERROR(VLOOKUP($F124,[2]Hoja1!$F$2:$L$4485,6,0),0) -> 0 | BE124: =+IFERROR(VLOOKUP($F124,[2]Hoja1!$F$2:$L$4485,7,0),0) -> 0 | BU124: 19 | BV124: CAUCA | BW124: 693 | BX124: 19693 | BY124: SAN SEBASTIÁN | BZ124: 196933 | CA124: 3 | CB124: 0 | CC124: 0 | CD124: 0 | CE124: 0 | CF124: 0 | CG124: 0 | CH124: 0 | CI124: 0 | CJ124: 0 | CK124: 0 | CL124: 0 | CM124: 0 | CN124: 0 | CO124: 0 | CP124: 0 | CQ124: 0 | CR124: 0 | CS124: 0 | CT124: 0 | CU124: 0 | CV124: 0 | CW124: 0 | CX124: 0 | CY124: 0 | CZ124: 0 | DA124: 0 | DB124: 0 | DC124: 0 | DD124: 0 | DE124: 0 | DF124: 0 | DG124: 0 | DH124: 0 | DI124: 0 | DJ124: 0 | DK124: 0 | DL124: 0 | DM124: 0 | DN124: 0 | DO124: 0 | DP124: 0 | DQ124: 0 | DR124: 0 | DS124: 0 | DT124: 0 | DU124: 0 | DV124: 0 | DW124: 0 | DX124: 0 | DY124: 0
A125: 05 | B125: ANTIOQUIA | C125: 142 | D125: 05142 | E125: CARACOLÍ | F125: 051424 | G125: 4 | H125: 0 | I125: 0 | J125: 0 | K125: 0 | L125: 0 | M125: 1 | N125: 0 | O125: 0 | P125: 0 | Q125: 0 | R125: 0 | S125: 0 | T125: 0 | U125: 0 | V125: 0 | W125: 0 | X125: 0 | Y125: 0 | Z125: 0 | AA125: 0 | AB125: 0 | AC125: 0 | AD125: 0 | AE125: 0 | AF125: 0 | AG125: 0 | AH125: 0 | AI125: 0 | AJ125: 0 | AK125: 0 | AL125: 0 | AM125: 0 | AN125: 0 | AO125: 0 | AP125: 0 | AQ125: 0 | AR125: 0 | AS125: 0 | AT125: 0 | AU125: 0 | AV125: =+IFERROR(VLOOKUP($F125,[1]Hoja1!$F$2:$L$4485,3,0),0) -> 0 | AW125: =+IFERROR(VLOOKUP($F125,[1]Hoja1!$F$2:$L$4485,4,0),0) -> 0 | AX125: =+IFERROR(VLOOKUP($F125,[1]Hoja1!$F$2:$L$4485,5,0),0) -> 0 | AY125: =+IFERROR(VLOOKUP($F125,[1]Hoja1!$F$2:$L$4485,6,0),0) -> 0 | AZ125: =+IFERROR(VLOOKUP($F125,[1]Hoja1!$F$2:$L$4485,7,0),0) -> 0 | BA125: =+IFERROR(VLOOKUP($F125,[2]Hoja1!$F$2:$L$4485,3,0),0) -> 0 | BB125: =+IFERROR(VLOOKUP($F125,[2]Hoja1!$F$2:$L$4485,4,0),0) -> 0 | BC125: =+IFERROR(VLOOKUP($F125,[2]Hoja1!$F$2:$L$4485,5,0),0) -> 0 | BD125: =+IFERROR(VLOOKUP($F125,[2]Hoja1!$F$2:$L$4485,6,0),0) -> 0 | BE125: =+IFERROR(VLOOKUP($F125,[2]Hoja1!$F$2:$L$4485,7,0),0) -> 0 | BU125: 19 | BV125: CAUCA | BW125: 693 | BX125: 19693 | BY125: SAN SEBASTIÁN | BZ125: 196934 | CA125: 4 | CB125: 0 | CC125: 0 | CD125: 0 | CE125: 0 | CF125: 0 | CG125: 0 | CH125: 0 | CI125: 0 | CJ125: 0 | CK125: 0 | CL125: 0 | CM125: 0 | CN125: 0 | CO125: 0 | CP125: 0 | CQ125: 0 | CR125: 0 | CS125: 0 | CT125: 0 | CU125: 0 | CV125: 0 | CW125: 0 | CX125: 0 | CY125: 0 | CZ125: 0 | DA125: 0 | DB125: 0 | DC125: 0 | DD125: 0 | DE125: 0 | DF125: 0 | DG125: 0 | DH125: 0 | DI125: 0 | DJ125: 0 | DK125: 0 | DL125: 0 | DM125: 0 | DN125: 0 | DO125: 0 | DP125: 0 | DQ125: 0 | DR125: 0 | DS125: 0 | DT125: 0 | DU125: 0 | DV125: 0 | DW125: 0 | DX125: 0 | DY125: 0
A126: 05 | B126: ANTIOQUIA | C126: 145 | D126: 05145 | E126: CARAMANTA | F126: 051451 | G126: 1 | H126: 97 | I126: 41 | J126: 21 | K126: 0 | L126: 2 | M126: 84 | N126: 11 | O126: 33 | P126: 0 | Q126: 0 | R126: 51 | S126: 2 | T126: 3 | U126: 0 | V126: 0 | W126: 50 | X126: 4 | Y126: 0 | Z126: 0 | AA126: 3 | AB126: 49 | AC126: 1 | AD126: 0 | AE126: 0 | AF126: 2 | AG126: 56 | AH126: 5 | AI126: 7 | AJ126: 0 | AK126: 5 | AL126: 52 | AM126: 5 | AN126: 3 | AO126: 0 | AP126: 5 | AQ126: 50 | AR126: 3 | AS126: 5 | AT126: 0 | AU126: 1 | AV126: =+IFERROR(VLOOKUP($F126,[1]Hoja1!$F$2:$L$4485,3,0),0) -> 60 | AW126: =+IFERROR(VLOOKUP($F126,[1]Hoja1!$F$2:$L$4485,4,0),0) -> 13 | AX126: =+IFERROR(VLOOKUP($F126,[1]Hoja1!$F$2:$L$4485,5,0),0) -> 2 | AY126: =+IFERROR(VLOOKUP($F126,[1]Hoja1!$F$2:$L$4485,6,0),0) -> 0 | AZ126: =+IFERROR(VLOOKUP($F126,[1]Hoja1!$F$2:$L$4485,7,0),0) -> 1 | BA126: =+IFERROR(VLOOKUP($F126,[2]Hoja1!$F$2:$L$4485,3,0),0) -> 60 | BB126: =+IFERROR(VLOOKUP($F126,[2]Hoja1!$F$2:$L$4485,4,0),0) -> 9 | BC126: =+IFERROR(VLOOKUP($F126,[2]Hoja1!$F$2:$L$4485,5,0),0) -> 3 | BD126: =+IFERROR(VLOOKUP($F126,[2]Hoja1!$F$2:$L$4485,6,0),0) -> 0 | BE126: =+IFERROR(VLOOKUP($F126,[2]Hoja1!$F$2:$L$4485,7,0),0) -> 0 | BU126: 19 | BV126: CAUCA | BW126: 698 | BX126: 19698 | BY126: SANTANDER DE QUILICHAO | BZ126: 196981 | CA126: 1 | CB126: 3044 | CC126: 732 | CD126: 330 | CE126: 56 | CF126: 311 | CG126: 3094 | CH126: 766 | CI126: 425 | CJ126: 23 | CK126: 165 | CL126: 3191 | CM126: 422 | CN126: 564 | CO126: 85 | CP126: 590 | CQ126: 3672 | CR126: 260 | CS126: 429 | CT126: 191 | CU126: 1398 | CV126: 2851 | CW126: 318 | CX126: 360 | CY126: 79 | CZ126: 365 | DA126: 2591 | DB126: 293 | DC126: 251 | DD126: 80 | DE126: 145 | DF126: 2781 | DG126: 435 | DH126: 369 | DI126: 67 | DJ126: 156 | DK126: 2819 | DL126: 445 | DM126: 329 | DN126: 62 | DO126: 139 | DP126: 2867 | DQ126: 406 | DR126: 396 | DS126: 55 | DT126: 146 | DU126: 2961 | DV126: 500 | DW126: 427 | DX126: 31 | DY126: 141
A127: 05 | B127: ANTIOQUIA | C127: 145 | D127: 05145 | E127: CARAMANTA | F127: 051452 | G127: 2 | H127: 11 | I127: 1 | J127: 1 | K127: 0 | L127: 2 | M127: 13 | N127: 2 | O127: 1 | P127: 0 | Q127: 0 | R127: 16 | S127: 2 | T127: 0 | U127: 0 | V127: 0 | W127: 19 | X127: 3 | Y127: 0 | Z127: 0 | AA127: 0 | AB127: 22 | AC127: 0 | AD127: 0 | AE127: 0 | AF127: 0 | AG127: 17 | AH127: 0 | AI127: 0 | AJ127: 0 | AK127: 0 | AL127: 21 | AM127: 0 | AN127: 0 | AO127: 0 | AP127: 0 | AQ127: 27 | AR127: 0 | AS127: 1 | AT127: 0 | AU127: 2 | AV127: =+IFERROR(VLOOKUP($F127,[1]Hoja1!$F$2:$L$4485,3,0),0) -> 25 | AW127: =+IFERROR(VLOOKUP($F127,[1]Hoja1!$F$2:$L$4485,4,0),0) -> 1 | AX127: =+IFERROR(VLOOKUP($F127,[1]Hoja1!$F$2:$L$4485,5,0),0) -> 0 | AY127: =+IFERROR(VLOOKUP($F127,[1]Hoja1!$F$2:$L$4485,6,0),0) -> 0 | AZ127: =+IFERROR(VLOOKUP($F127,[1]Hoja1!$F$2:$L$4485,7,0),0) -> 0 | BA127: =+IFERROR(VLOOKUP($F127,[2]Hoja1!$F$2:$L$4485,3,0),0) -> 32 | BB127: =+IFERROR(VLOOKUP($F127,[2]Hoja1!$F$2:$L$4485,4,0),0) -> 1 | BC127: =+IFERROR(VLOOKUP($F127,[2]Hoja1!$F$2:$L$4485,5,0),0) -> 0 | BD127: =+IFERROR(VLOOKUP($F127,[2]Hoja1!$F$2:$L$4485,6,0),0) -> 0 | BE127: =+IFERROR(VLOOKUP($F127,[2]Hoja1!$F$2:$L$4485,7,0),0) -> 0 | BU127: 19 | BV127: CAUCA | BW127: 698 | BX127: 19698 | BY127: SANTANDER DE QUILICHAO | BZ127: 196982 | CA127: 2 | CB127: 3279 | CC127: 252 | CD127: 140 | CE127: 93 | CF127: 252 | CG127: 4236 | CH127: 749 | CI127: 131 | CJ127: 64 | CK127: 125 | CL127: 4238 | CM127: 151 | CN127: 114 | CO127: 54 | CP127: 527 | CQ127: 3476 | CR127: 12 | CS127: 104 | CT127: 37 | CU127: 750 | CV127: 4092 | CW127: 20 | CX127: 146 | CY127: 43 | CZ127: 168 | DA127: 4189 | DB127: 63 | DC127: 92 | DD127: 49 | DE127: 249 | DF127: 4153 | DG127: 70 | DH127: 100 | DI127: 38 | DJ127: 143 | DK127: 4312 | DL127: 166 | DM127: 184 | DN127: 97 | DO127: 129 | DP127: 4230 | DQ127: 96 | DR127: 79 | DS127: 58 | DT127: 84 | DU127: 4135 | DV127: 63 | DW127: 179 | DX127: 69 | DY127: 94
A128: 05 | B128: ANTIOQUIA | C128: 145 | D128: 05145 | E128: CARAMANTA | F128: 051453 | G128: 3 | H128: 7 | I128: 0 | J128: 0 | K128: 0 | L128: 2 | M128: 8 | N128: 0 | O128: 1 | P128: 0 | Q128: 0 | R128: 5 | S128: 0 | T128: 0 | U128: 0 | V128: 0 | W128: 7 | X128: 0 | Y128: 0 | Z128: 4 | AA128: 0 | AB128: 8 | AC128: 0 | AD128: 1 | AE128: 0 | AF128: 0 | AG128: 9 | AH128: 0 | AI128: 0 | AJ128: 0 | AK128: 0 | AL128: 7 | AM128: 0 | AN128: 0 | AO128: 0 | AP128: 0 | AQ128: 5 | AR128: 0 | AS128: 1 | AT128: 0 | AU128: 1 | AV128: =+IFERROR(VLOOKUP($F128,[1]Hoja1!$F$2:$L$4485,3,0),0) -> 5 | AW128: =+IFERROR(VLOOKUP($F128,[1]Hoja1!$F$2:$L$4485,4,0),0) -> 1 | AX128: =+IFERROR(VLOOKUP($F128,[1]Hoja1!$F$2:$L$4485,5,0),0) -> 0 | AY128: =+IFERROR(VLOOKUP($F128,[1]Hoja1!$F$2:$L$4485,6,0),0) -> 0 | AZ128: =+IFERROR(VLOOKUP($F128,[1]Hoja1!$F$2:$L$4485,7,0),0) -> 0 | BA128: =+IFERROR(VLOOKUP($F128,[2]Hoja1!$F$2:$L$4485,3,0),0) -> 7 | BB128: =+IFERROR(VLOOKUP($F128,[2]Hoja1!$F$2:$L$4485,4,0),0) -> 2 | BC128: =+IFERROR(VLOOKUP($F128,[2]Hoja1!$F$2:$L$4485,5,0),0) -> 0 | BD128: =+IFERROR(VLOOKUP($F128,[2]Hoja1!$F$2:$L$4485,6,0),0) -> 0 | BE128: =+IFERROR(VLOOKUP($F128,[2]Hoja1!$F$2:$L$4485,7,0),0) -> 0 | BU128: 19 | BV128: CAUCA | BW128: 698 | BX128: 19698 | BY128: SANTANDER DE QUILICHAO | BZ128: 196983 | CA128: 3 | CB128: 602 | CC128: 36 | CD128: 24 | CE128: 5 | CF128: 65 | CG128: 536 | CH128: 4 | CI128: 16 | CJ128: 2 | CK128: 28 | CL128: 555 | CM128: 5 | CN128: 19 | CO128: 6 | CP128: 117 | CQ128: 444 | CR128: 3 | CS128: 10 | CT128: 9 | CU128: 109 | CV128: 478 | CW128: 0 | CX128: 7 | CY128: 6 | CZ128: 33 | DA128: 513 | DB128: 9 | DC128: 12 | DD128: 6 | DE128: 30 | DF128: 511 | DG128: 3 | DH128: 11 | DI128: 4 | DJ128: 30 | DK128: 530 | DL128: 17 | DM128: 15 | DN128: 4 | DO128: 26 | DP128: 567 | DQ128: 10 | DR128: 9 | DS128: 4 | DT128: 23 | DU128: 663 | DV128: 5 | DW128: 19 | DX128: 4 | DY128: 43
A129: 05 | B129: ANTIOQUIA | C129: 145 | D129: 05145 | E129: CARAMANTA | F129: 051454 | G129: 4 | H129: 2 | I129: 0 | J129: 0 | K129: 0 | L129: 0 | M129: 1 | N129: 0 | O129: 1 | P129: 0 | Q129: 0 | R129: 2 | S129: 0 | T129: 0 | U129: 0 | V129: 0 | W129: 2 | X129: 0 | Y129: 0 | Z129: 2 | AA129: 0 | AB129: 0 | AC129: 0 | AD129: 0 | AE129: 0 | AF129: 0 | AG129: 0 | AH129: 0 | AI129: 0 | AJ129: 0 | AK129: 0 | AL129: 2 | AM129: 0 | AN129: 0 | AO129: 0 | AP129: 0 | AQ129: 1 | AR129: 0 | AS129: 1 | AT129: 0 | AU129: 1 | AV129: =+IFERROR(VLOOKUP($F129,[1]Hoja1!$F$2:$L$4485,3,0),0) -> 1 | AW129: =+IFERROR(VLOOKUP($F129,[1]Hoja1!$F$2:$L$4485,4,0),0) -> 0 | AX129: =+IFERROR(VLOOKUP($F129,[1]Hoja1!$F$2:$L$4485,5,0),0) -> 0 | AY129: =+IFERROR(VLOOKUP($F129,[1]Hoja1!$F$2:$L$4485,6,0),0) -> 0 | AZ129: =+IFERROR(VLOOKUP($F129,[1]Hoja1!$F$2:$L$4485,7,0),0) -> 0 | BA129: =+IFERROR(VLOOKUP($F129,[2]Hoja1!$F$2:$L$4485,3,0),0) -> 1 | BB129: =+IFERROR(VLOOKUP($F129,[2]Hoja1!$F$2:$L$4485,4,0),0) -> 0 | BC129: =+IFERROR(VLOOKUP($F129,[2]Hoja1!$F$2:$L$4485,5,0),0) -> 0 | BD129: =+IFERROR(VLOOKUP($F129,[2]Hoja1!$F$2:$L$4485,6,0),0) -> 0 | BE129: =+IFERROR(VLOOKUP($F129,[2]Hoja1!$F$2:$L$4485,7,0),0) -> 0 | BU129: 19 | BV129: CAUCA | BW129: 698 | BX129: 19698 | BY129: SANTANDER DE QUILICHAO | BZ129: 196984 | CA129: 4 | CB129: 104 | CC129: 2 | CD129: 4 | CE129: 0 | CF129: 20 | CG129: 98 | CH129: 0 | CI129: 1 | CJ129: 0 | CK129: 1 | CL129: 95 | CM129: 1 | CN129: 0 | CO129: 2 | CP129: 17 | CQ129: 64 | CR129: 0 | CS129: 0 | CT129: 0 | CU129: 9 | CV129: 90 | CW129: 0 | CX129: 1 | CY129: 2 | CZ129: 10 | DA129: 96 | DB129: 0 | DC129: 1 | DD129: 2 | DE129: 4 | DF129: 90 | DG129: 0 | DH129: 1 | DI129: 2 | DJ129: 1 | DK129: 97 | DL129: 0 | DM129: 3 | DN129: 1 | DO129: 7 | DP129: 88 | DQ129: 0 | DR129: 0 | DS129: 1 | DT129: 1 | DU129: 101 | DV129: 1 | DW129: 0 | DX129: 0 | DY129: 4
A130: 05 | B130: ANTIOQUIA | C130: 147 | D130: 05147 | E130: CAREPA | F130: 051471 | G130: 1 | H130: 1180 | I130: 269 | J130: 212 | K130: 48 | L130: 84 | M130: 1240 | N130: 257 | O130: 131 | P130: 58 | Q130: 89 | R130: 1368 | S130: 186 | T130: 216 | U130: 67 | V130: 315 | W130: 1263 | X130: 130 | Y130: 92 | Z130: 97 | AA130: 350 | AB130: 1303 | AC130: 170 | AD130: 151 | AE130: 88 | AF130: 128 | AG130: 1288 | AH130: 212 | AI130: 129 | AJ130: 43 | AK130: 109 | AL130: 1346 | AM130: 212 | AN130: 206 | AO130: 40 | AP130: 128 | AQ130: 1323 | AR130: 172 | AS130: 186 | AT130: 57 | AU130: 109 | AV130: =+IFERROR(VLOOKUP($F130,[1]Hoja1!$F$2:$L$4485,3,0),0) -> 1400 | AW130: =+IFERROR(VLOOKUP($F130,[1]Hoja1!$F$2:$L$4485,4,0),0) -> 208 | AX130: =+IFERROR(VLOOKUP($F130,[1]Hoja1!$F$2:$L$4485,5,0),0) -> 189 | AY130: =+IFERROR(VLOOKUP($F130,[1]Hoja1!$F$2:$L$4485,6,0),0) -> 50 | AZ130: =+IFERROR(VLOOKUP($F130,[1]Hoja1!$F$2:$L$4485,7,0),0) -> 112 | BA130: =+IFERROR(VLOOKUP($F130,[2]Hoja1!$F$2:$L$4485,3,0),0) -> 1329 | BB130: =+IFERROR(VLOOKUP($F130,[2]Hoja1!$F$2:$L$4485,4,0),0) -> 210 | BC130: =+IFERROR(VLOOKUP($F130,[2]Hoja1!$F$2:$L$4485,5,0),0) -> 180 | BD130: =+IFERROR(VLOOKUP($F130,[2]Hoja1!$F$2:$L$4485,6,0),0) -> 50 | BE130: =+IFERROR(VLOOKUP($F130,[2]Hoja1!$F$2:$L$4485,7,0),0) -> 82 | BU130: 19 | BV130: CAUCA | BW130: 701 | BX130: 19701 | BY130: SANTA ROSA | BZ130: 197011 | CA130: 1 | CB130: 17 | CC130: 2 | CD130: 0 | CE130: 0 | CF130: 0 | CG130: 16 | CH130: 1 | CI130: 0 | CJ130: 0 | CK130: 0 | CL130: 16 | CM130: 0 | CN130: 13 | CO130: 0 | CP130: 0 | CQ130: 15 | CR130: 12 | CS130: 0 | CT130: 0 | CU130: 1 | CV130: 20 | CW130: 0 | CX130: 0 | CY130: 1 | CZ130: 0 | DA130: 19 | DB130: 0 | DC130: 0 | DD130: 0 | DE130: 0 | DF130: 22 | DG130: 0 | DH130: 0 | DI130: 0 | DJ130: 0 | DK130: 8 | DL130: 0 | DM130: 1 | DN130: 0 | DO130: 0 | DP130: 28 | DQ130: 12 | DR130: 0 | DS130: 0 | DT130: 0 | DU130: 28 | DV130: 0 | DW130: 1 | DX130: 0 | DY130: 0
A131: 05 | B131: ANTIOQUIA | C131: 147 | D131: 05147 | E131: CAREPA | F131: 051472 | G131: 2 | H131: 1849 | I131: 27 | J131: 26 | K131: 69 | L131: 348 | M131: 2150 | N131: 54 | O131: 33 | P131: 46 | Q131: 270 | R131: 2045 | S131: 47 | T131: 26 | U131: 89 | V131: 719 | W131: 1956 | X131: 11 | Y131: 6 | Z131: 59 | AA131: 338 | AB131: 2181 | AC131: 18 | AD131: 52 | AE131: 57 | AF131: 374 | AG131: 2189 | AH131: 53 | AI131: 18 | AJ131: 35 | AK131: 490 | AL131: 2065 | AM131: 30 | AN131: 23 | AO131: 40 | AP131: 481 | AQ131: 1955 | AR131: 42 | AS131: 31 | AT131: 32 | AU131: 353 | AV131: =+IFERROR(VLOOKUP($F131,[1]Hoja1!$F$2:$L$4485,3,0),0) -> 2005 | AW131: =+IFERROR(VLOOKUP($F131,[1]Hoja1!$F$2:$L$4485,4,0),0) -> 55 | AX131: =+IFERROR(VLOOKUP($F131,[1]Hoja1!$F$2:$L$4485,5,0),0) -> 20 | AY131: =+IFERROR(VLOOKUP($F131,[1]Hoja1!$F$2:$L$4485,6,0),0) -> 47 | AZ131: =+IFERROR(VLOOKUP($F131,[1]Hoja1!$F$2:$L$4485,7,0),0) -> 341 | BA131: =+IFERROR(VLOOKUP($F131,[2]Hoja1!$F$2:$L$4485,3,0),0) -> 1981 | BB131: =+IFERROR(VLOOKUP($F131,[2]Hoja1!$F$2:$L$4485,4,0),0) -> 27 | BC131: =+IFERROR(VLOOKUP($F131,[2]Hoja1!$F$2:$L$4485,5,0),0) -> 15 | BD131: =+IFERROR(VLOOKUP($F131,[2]Hoja1!$F$2:$L$4485,6,0),0) -> 54 | BE131: =+IFERROR(VLOOKUP($F131,[2]Hoja1!$F$2:$L$4485,7,0),0) -> 365 | BU131: 19 | BV131: CAUCA | BW131: 701 | BX131: 19701 | BY131: SANTA ROSA | BZ131: 197012 | CA131: 2 | CB131: 2 | CC131: 0 | CD131: 0 | CE131: 0 | CF131: 0 | CG131: 4 | CH131: 0 | CI131: 0 | CJ131: 0 | CK131: 0 | CL131: 3 | CM131: 0 | CN131: 0 | CO131: 0 | CP131: 0 | CQ131: 2 | CR131: 0 | CS131: 0 | CT131: 0 | CU131: 0 | CV131: 3 | CW131: 0 | CX131: 0 | CY131: 0 | CZ131: 0 | DA131: 4 | DB131: 0 | DC131: 0 | DD131: 1 | DE131: 0 | DF131: 9 | DG131: 0 | DH131: 0 | DI131: 1 | DJ131: 0 | DK131: 11 | DL131: 0 | DM131: 0 | DN131: 0 | DO131: 0 | DP131: 3 | DQ131: 0 | DR131: 0 | DS131: 0 | DT131: 0 | DU131: 2 | DV131: 0 | DW131: 0 | DX131: 0 | DY131: 0
A132: 05 | B132: ANTIOQUIA | C132: 147 | D132: 05147 | E132: CAREPA | F132: 051473 | G132: 3 | H132: 811 | I132: 19 | J132: 17 | K132: 9 | L132: 108 | M132: 496 | N132: 8 | O132: 6 | P132: 2 | Q132: 41 | R132: 535 | S132: 1 | T132: 4 | U132: 5 | V132: 86 | W132: 631 | X132: 1 | Y132: 8 | Z132: 4 | AA132: 83 | AB132: 469 | AC132: 1 | AD132: 46 | AE132: 4 | AF132: 39 | AG132: 456 | AH132: 8 | AI132: 3 | AJ132: 2 | AK132: 78 | AL132: 596 | AM132: 8 | AN132: 6 | AO132: 4 | AP132: 91 | AQ132: 701 | AR132: 4 | AS132: 4 | AT132: 6 | AU132: 72 | AV132: =+IFERROR(VLOOKUP($F132,[1]Hoja1!$F$2:$L$4485,3,0),0) -> 594 | AW132: =+IFERROR(VLOOKUP($F132,[1]Hoja1!$F$2:$L$4485,4,0),0) -> 5 | AX132: =+IFERROR(VLOOKUP($F132,[1]Hoja1!$F$2:$L$4485,5,0),0) -> 4 | AY132: =+IFERROR(VLOOKUP($F132,[1]Hoja1!$F$2:$L$4485,6,0),0) -> 9 | AZ132: =+IFERROR(VLOOKUP($F132,[1]Hoja1!$F$2:$L$4485,7,0),0) -> 46 | BA132: =+IFERROR(VLOOKUP($F132,[2]Hoja1!$F$2:$L$4485,3,0),0) -> 708 | BB132: =+IFERROR(VLOOKUP($F132,[2]Hoja1!$F$2:$L$4485,4,0),0) -> 10 | BC132: =+IFERROR(VLOOKUP($F132,[2]Hoja1!$F$2:$L$4485,5,0),0) -> 7 | BD132: =+IFERROR(VLOOKUP($F132,[2]Hoja1!$F$2:$L$4485,6,0),0) -> 4 | BE132: =+IFERROR(VLOOKUP($F132,[2]Hoja1!$F$2:$L$4485,7,0),0) -> 65 | BU132: 19 | BV132: CAUCA | BW132: 701 | BX132: 19701 | BY132: SANTA ROSA | BZ132: 197013 | CA132: 3 | CB132: 0 | CC132: 0 | CD132: 0 | CE132: 0 | CF132: 0 | CG132: 0 | CH132: 0 | CI132: 0 | CJ132: 0 | CK132: 0 | CL132: 0 | CM132: 0 | CN132: 0 | CO132: 0 | CP132: 0 | CQ132: 0 | CR132: 0 | CS132: 0 | CT132: 0 | CU132: 0 | CV132: 0 | CW132: 0 | CX132: 0 | CY132: 0 | CZ132: 0 | DA132: 0 | DB132: 0 | DC132: 0 | DD132: 0 | DE132: 0 | DF132: 0 | DG132: 0 | DH132: 0 | DI132: 0 | DJ132: 0 | DK132: 0 | DL132: 0 | DM132: 0 | DN132: 0 | DO132: 0 | DP132: 0 | DQ132: 0 | DR132: 0 | DS132: 0 | DT132: 0 | DU132: 0 | DV132: 0 | DW132: 0 | DX132: 0 | DY132: 0
A133: 05 | B133: ANTIOQUIA | C133: 147 | D133: 05147 | E133: CAREPA | F133: 051474 | G133: 4 | H133: 55 | I133: 0 | J133: 1 | K133: 0 | L133: 8 | M133: 55 | N133: 0 | O133: 1 | P133: 0 | Q133: 1 | R133: 60 | S133: 1 | T133: 0 | U133: 0 | V133: 4 | W133: 52 | X133: 0 | Y133: 1 | Z133: 0 | AA133: 1 | AB133: 58 | AC133: 0 | AD133: 3 | AE133: 0 | AF133: 2 | AG133: 49 | AH133: 0 | AI133: 1 | AJ133: 0 | AK133: 5 | AL133: 48 | AM133: 0 | AN133: 0 | AO133: 0 | AP133: 3 | AQ133: 52 | AR133: 1 | AS133: 0 | AT133: 0 | AU133: 1 | AV133: =+IFERROR(VLOOKUP($F133,[1]Hoja1!$F$2:$L$4485,3,0),0) -> 47 | AW133: =+IFERROR(VLOOKUP($F133,[1]Hoja1!$F$2:$L$4485,4,0),0) -> 1 | AX133: =+IFERROR(VLOOKUP($F133,[1]Hoja1!$F$2:$L$4485,5,0),0) -> 0 | AY133: =+IFERROR(VLOOKUP($F133,[1]Hoja1!$F$2:$L$4485,6,0),0) -> 1 | AZ133: =+IFERROR(VLOOKUP($F133,[1]Hoja1!$F$2:$L$4485,7,0),0) -> 4 | BA133: =+IFERROR(VLOOKUP($F133,[2]Hoja1!$F$2:$L$4485,3,0),0) -> 53 | BB133: =+IFERROR(VLOOKUP($F133,[2]Hoja1!$F$2:$L$4485,4,0),0) -> 1 | BC133: =+IFERROR(VLOOKUP($F133,[2]Hoja1!$F$2:$L$4485,5,0),0) -> 1 | BD133: =+IFERROR(VLOOKUP($F133,[2]Hoja1!$F$2:$L$4485,6,0),0) -> 1 | BE133: =+IFERROR(VLOOKUP($F133,[2]Hoja1!$F$2:$L$4485,7,0),0) -> 3 | BU133: 19 | BV133: CAUCA | BW133: 701 | BX133: 19701 | BY133: SANTA ROSA | BZ133: 197014 | CA133: 4 | CB133: 0 | CC133: 0 | CD133: 0 | CE133: 0 | CF133: 0 | CG133: 0 | CH133: 0 | CI133: 0 | CJ133: 0 | CK133: 0 | CL133: 0 | CM133: 0 | CN133: 0 | CO133: 0 | CP133: 0 | CQ133: 0 | CR133: 0 | CS133: 0 | CT133: 0 | CU133: 0 | CV133: 0 | CW133: 0 | CX133: 0 | CY133: 0 | CZ133: 0 | DA133: 0 | DB133: 0 | DC133: 0 | DD133: 0 | DE133: 0 | DF133: 0 | DG133: 0 | DH133: 0 | DI133: 0 | DJ133: 0 | DK133: 0 | DL133: 0 | DM133: 0 | DN133: 0 | DO133: 0 | DP133: 0 | DQ133: 0 | DR133: 0 | DS133: 0 | DT133: 0 | DU133: 0 | DV133: 0 | DW133: 0 | DX133: 0 | DY133: 0
A134: 05 | B134: ANTIOQUIA | C134: 148 | D134: 05148 | E134: EL CARMEN DE VIBORAL | F134: 051481 | G134: 1 | H134: 4249 | I134: 1001 | J134: 570 | K134: 42 | L134: 302 | M134: 4183 | N134: 564 | O134: 570 | P134: 40 | Q134: 197 | R134: 4608 | S134: 556 | T134: 984 | U134: 144 | V134: 1016 | W134: 4061 | X134: 290 | Y134: 417 | Z134: 244 | AA134: 919 | AB134: 3793 | AC134: 488 | AD134: 407 | AE134: 84 | AF134: 138 | AG134: 3544 | AH134: 373 | AI134: 392 | AJ134: 50 | AK134: 113 | AL134: 3642 | AM134: 476 | AN134: 382 | AO134: 44 | AP134: 183 | AQ134: 3677 | AR134: 498 | AS134: 396 | AT134: 34 | AU134: 143 | AV134: =+IFERROR(VLOOKUP($F134,[1]Hoja1!$F$2:$L$4485,3,0),0) -> 3849 | AW134: =+IFERROR(VLOOKUP($F134,[1]Hoja1!$F$2:$L$4485,4,0),0) -> 586 | AX134: =+IFERROR(VLOOKUP($F134,[1]Hoja1!$F$2:$L$4485,5,0),0) -> 422 | AY134: =+IFERROR(VLOOKUP($F134,[1]Hoja1!$F$2:$L$4485,6,0),0) -> 33 | AZ134: =+IFERROR(VLOOKUP($F134,[1]Hoja1!$F$2:$L$4485,7,0),0) -> 146 | BA134: =+IFERROR(VLOOKUP($F134,[2]Hoja1!$F$2:$L$4485,3,0),0) -> 3833 | BB134: =+IFERROR(VLOOKUP($F134,[2]Hoja1!$F$2:$L$4485,4,0),0) -> 554 | BC134: =+IFERROR(VLOOKUP($F134,[2]Hoja1!$F$2:$L$4485,5,0),0) -> 436 | BD134: =+IFERROR(VLOOKUP($F134,[2]Hoja1!$F$2:$L$4485,6,0),0) -> 32 | BE134: =+IFERROR(VLOOKUP($F134,[2]Hoja1!$F$2:$L$4485,7,0),0) -> 154 | BU134: 19 | BV134: CAUCA | BW134: 743 | BX134: 19743 | BY134: SILVIA | BZ134: 197431 | CA134: 1 | CB134: 25 | CC134: 5 | CD134: 0 | CE134: 1 | CF134: 1 | CG134: 97 | CH134: 73 | CI134: 8 | CJ134: 0 | CK134: 0 | CL134: 99 | CM134: 7 | CN134: 5 | CO134: 6 | CP134: 2 | CQ134: 102 | CR134: 3 | CS134: 10 | CT134: 8 | CU134: 2 | CV134: 98 | CW134: 7 | CX134: 2 | CY134: 2 | CZ134: 0 | DA134: 84 | DB134: 0 | DC134: 65 | DD134: 0 | DE134: 2 | DF134: 305 | DG134: 112 | DH134: 28 | DI134: 0 | DJ134: 1 | DK134: 109 | DL134: 23 | DM134: 9 | DN134: 1 | DO134: 2 | DP134: 108 | DQ134: 9 | DR134: 18 | DS134: 0 | DT134: 1 | DU134: 111 | DV134: 22 | DW134: 8 | DX134: 1 | DY134: 0
A135: 05 | B135: ANTIOQUIA | C135: 148 | D135: 05148 | E135: EL CARMEN DE VIBORAL | F135: 051482 | G135: 2 | H135: 2648 | I135: 78 | J135: 71 | K135: 53 | L135: 165 | M135: 2656 | N135: 51 | O135: 41 | P135: 30 | Q135: 52 | R135: 2231 | S135: 25 | T135: 95 | U135: 26 | V135: 145 | W135: 1978 | X135: 30 | Y135: 30 | Z135: 31 | AA135: 101 | AB135: 2306 | AC135: 16 | AD135: 56 | AE135: 33 | AF135: 37 | AG135: 2492 | AH135: 23 | AI135: 45 | AJ135: 20 | AK135: 77 | AL135: 2465 | AM135: 49 | AN135: 40 | AO135: 26 | AP135: 58 | AQ135: 2533 | AR135: 62 | AS135: 44 | AT135: 23 | AU135: 53 | AV135: =+IFERROR(VLOOKUP($F135,[1]Hoja1!$F$2:$L$4485,3,0),0) -> 2562 | AW135: =+IFERROR(VLOOKUP($F135,[1]Hoja1!$F$2:$L$4485,4,0),0) -> 42 | AX135: =+IFERROR(VLOOKUP($F135,[1]Hoja1!$F$2:$L$4485,5,0),0) -> 59 | AY135: =+IFERROR(VLOOKUP($F135,[1]Hoja1!$F$2:$L$4485,6,0),0) -> 30 | AZ135: =+IFERROR(VLOOKUP($F135,[1]Hoja1!$F$2:$L$4485,7,0),0) -> 48 | BA135: =+IFERROR(VLOOKUP($F135,[2]Hoja1!$F$2:$L$4485,3,0),0) -> 2624 | BB135: =+IFERROR(VLOOKUP($F135,[2]Hoja1!$F$2:$L$4485,4,0),0) -> 47 | BC135: =+IFERROR(VLOOKUP($F135,[2]Hoja1!$F$2:$L$4485,5,0),0) -> 43 | BD135: =+IFERROR(VLOOKUP($F135,[2]Hoja1!$F$2:$L$4485,6,0),0) -> 18 | BE135: =+IFERROR(VLOOKUP($F135,[2]Hoja1!$F$2:$L$4485,7,0),0) -> 65 | BU135: 19 | BV135: CAUCA | BW135: 743 | BX135: 19743 | BY135: SILVIA | BZ135: 197432 | CA135: 2 | CB135: 24 | CC135: 0 | CD135: 0 | CE135: 1 | CF135: 0 | CG135: 37 | CH135: 13 | CI135: 0 | CJ135: 0 | CK135: 0 | CL135: 33 | CM135: 1 | CN135: 1 | CO135: 0 | CP135: 0 | CQ135: 30 | CR135: 0 | CS135: 3 | CT135: 0 | CU135: 0 | CV135: 30 | CW135: 1 | CX135: 1 | CY135: 0 | CZ135: 0 | DA135: 36 | DB135: 0 | DC135: 18 | DD135: 2 | DE135: 0 | DF135: 30 | DG135: 11 | DH135: 1 | DI135: 2 | DJ135: 2 | DK135: 34 | DL135: 8 | DM135: 2 | DN135: 2 | DO135: 0 | DP135: 35 | DQ135: 0 | DR135: 1 | DS135: 1 | DT135: 0 | DU135: 36 | DV135: 3 | DW135: 0 | DX135: 1 | DY135: 0
A136: 05 | B136: ANTIOQUIA | C136: 148 | D136: 05148 | E136: EL CARMEN DE VIBORAL | F136: 051483 | G136: 3 | H136: 279 | I136: 8 | J136: 9 | K136: 1 | L136: 25 | M136: 287 | N136: 7 | O136: 4 | P136: 0 | Q136: 3 | R136: 259 | S136: 1 | T136: 10 | U136: 0 | V136: 33 | W136: 236 | X136: 3 | Y136: 3 | Z136: 3 | AA136: 26 | AB136: 276 | AC136: 2 | AD136: 5 | AE136: 1 | AF136: 3 | AG136: 312 | AH136: 4 | AI136: 5 | AJ136: 3 | AK136: 9 | AL136: 305 | AM136: 1 | AN136: 6 | AO136: 3 | AP136: 10 | AQ136: 315 | AR136: 3 | AS136: 3 | AT136: 1 | AU136: 7 | AV136: =+IFERROR(VLOOKUP($F136,[1]Hoja1!$F$2:$L$4485,3,0),0) -> 299 | AW136: =+IFERROR(VLOOKUP($F136,[1]Hoja1!$F$2:$L$4485,4,0),0) -> 6 | AX136: =+IFERROR(VLOOKUP($F136,[1]Hoja1!$F$2:$L$4485,5,0),0) -> 7 | AY136: =+IFERROR(VLOOKUP($F136,[1]Hoja1!$F$2:$L$4485,6,0),0) -> 1 | AZ136: =+IFERROR(VLOOKUP($F136,[1]Hoja1!$F$2:$L$4485,7,0),0) -> 6 | BA136: =+IFERROR(VLOOKUP($F136,[2]Hoja1!$F$2:$L$4485,3,0),0) -> 308 | BB136: =+IFERROR(VLOOKUP($F136,[2]Hoja1!$F$2:$L$4485,4,0),0) -> 3 | BC136: =+IFERROR(VLOOKUP($F136,[2]Hoja1!$F$2:$L$4485,5,0),0) -> 2 | BD136: =+IFERROR(VLOOKUP($F136,[2]Hoja1!$F$2:$L$4485,6,0),0) -> 0 | BE136: =+IFERROR(VLOOKUP($F136,[2]Hoja1!$F$2:$L$4485,7,0),0) -> 9 | BU136: 19 | BV136: CAUCA | BW136: 743 | BX136: 19743 | BY136: SILVIA | BZ136: 197433 | CA136: 3 | CB136: 0 | CC136: 0 | CD136: 0 | CE136: 0 | CF136: 0 | CG136: 5 | CH136: 5 | CI136: 0 | CJ136: 0 | CK136: 0 | CL136: 5 | CM136: 0 | CN136: 0 | CO136: 0 | CP136: 0 | CQ136: 6 | CR136: 0 | CS136: 0 | CT136: 0 | CU136: 0 | CV136: 5 | CW136: 0 | CX136: 0 | CY136: 0 | CZ136: 0 | DA136: 5 | DB136: 0 | DC136: 5 | DD136: 0 | DE136: 0 | DF136: 4 | DG136: 4 | DH136: 0 | DI136: 0 | DJ136: 0 | DK136: 6 | DL136: 1 | DM136: 0 | DN136: 0 | DO136: 0 | DP136: 4 | DQ136: 1 | DR136: 0 | DS136: 0 | DT136: 0 | DU136: 5 | DV136: 0 | DW136: 0 | DX136: 0 | DY136: 0
A137: 05 | B137: ANTIOQUIA | C137: 148 | D137: 05148 | E137: EL CARMEN DE VIBORAL | F137: 051484 | G137: 4 | H137: 58 | I137: 0 | J137: 2 | K137: 0 | L137: 4 | M137: 57 | N137: 0 | O137: 1 | P137: 0 | Q137: 2 | R137: 53 | S137: 1 | T137: 1 | U137: 0 | V137: 4 | W137: 34 | X137: 0 | Y137: 0 | Z137: 0 | AA137: 2 | AB137: 38 | AC137: 0 | AD137: 0 | AE137: 0 | AF137: 0 | AG137: 51 | AH137: 1 | AI137: 0 | AJ137: 0 | AK137: 5 | AL137: 55 | AM137: 0 | AN137: 1 | AO137: 0 | AP137: 1 | AQ137: 54 | AR137: 0 | AS137: 0 | AT137: 0 | AU137: 0 | AV137: =+IFERROR(VLOOKUP($F137,[1]Hoja1!$F$2:$L$4485,3,0),0) -> 58 | AW137: =+IFERROR(VLOOKUP($F137,[1]Hoja1!$F$2:$L$4485,4,0),0) -> 2 | AX137: =+IFERROR(VLOOKUP($F137,[1]Hoja1!$F$2:$L$4485,5,0),0) -> 0 | AY137: =+IFERROR(VLOOKUP($F137,[1]Hoja1!$F$2:$L$4485,6,0),0) -> 0 | AZ137: =+IFERROR(VLOOKUP($F137,[1]Hoja1!$F$2:$L$4485,7,0),0) -> 0 | BA137: =+IFERROR(VLOOKUP($F137,[2]Hoja1!$F$2:$L$4485,3,0),0) -> 63 | BB137: =+IFERROR(VLOOKUP($F137,[2]Hoja1!$F$2:$L$4485,4,0),0) -> 2 | BC137: =+IFERROR(VLOOKUP($F137,[2]Hoja1!$F$2:$L$4485,5,0),0) -> 2 | BD137: =+IFERROR(VLOOKUP($F137,[2]Hoja1!$F$2:$L$4485,6,0),0) -> 0 | BE137: =+IFERROR(VLOOKUP($F137,[2]Hoja1!$F$2:$L$4485,7,0),0) -> 0 | BU137: 19 | BV137: CAUCA | BW137: 743 | BX137: 19743 | BY137: SILVIA | BZ137: 197434 | CA137: 4 | CB137: 0 | CC137: 0 | CD137: 0 | CE137: 0 | CF137: 0 | CG137: 0 | CH137: 0 | CI137: 0 | CJ137: 0 | CK137: 0 | CL137: 0 | CM137: 0 | CN137: 0 | CO137: 0 | CP137: 0 | CQ137: 0 | CR137: 0 | CS137: 0 | CT137: 0 | CU137: 0 | CV137: 0 | CW137: 0 | CX137: 0 | CY137: 0 | CZ137: 0 | DA137: 0 | DB137: 0 | DC137: 0 | DD137: 0 | DE137: 0 | DF137: 0 | DG137: 0 | DH137: 0 | DI137: 0 | DJ137: 0 | DK137: 0 | DL137: 0 | DM137: 0 | DN137: 0 | DO137: 0 | DP137: 0 | DQ137: 0 | DR137: 0 | DS137: 0 | DT137: 0 | DU137: 0 | DV137: 0 | DW137: 0 | DX137: 0 | DY137: 0
A138: 05 | B138: ANTIOQUIA | C138: 150 | D138: 05150 | E138: CAROLINA | F138: 051501 | G138: 1 | H138: 103 | I138: 16 | J138: 7 | K138: 0 | L138: 3 | M138: 103 | N138: 8 | O138: 6 | P138: 0 | Q138: 0 | R138: 102 | S138: 5 | T138: 1 | U138: 1 | V138: 5 | W138: 103 | X138: 2 | Y138: 9 | Z138: 6 | AA138: 6 | AB138: 95 | AC138: 1 | AD138: 1 | AE138: 3 | AF138: 0 | AG138: 109 | AH138: 12 | AI138: 8 | AJ138: 0 | AK138: 1 | AL138: 101 | AM138: 8 | AN138: 1 | AO138: 0 | AP138: 0 | AQ138: 113 | AR138: 14 | AS138: 9 | AT138: 0 | AU138: 1 | AV138: =+IFERROR(VLOOKUP($F138,[1]Hoja1!$F$2:$L$4485,3,0),0) -> 118 | AW138: =+IFERROR(VLOOKUP($F138,[1]Hoja1!$F$2:$L$4485,4,0),0) -> 18 | AX138: =+IFERROR(VLOOKUP($F138,[1]Hoja1!$F$2:$L$4485,5,0),0) -> 9 | AY138: =+IFERROR(VLOOKUP($F138,[1]Hoja1!$F$2:$L$4485,6,0),0) -> 0 | AZ138: =+IFERROR(VLOOKUP($F138,[1]Hoja1!$F$2:$L$4485,7,0),0) -> 1 | BA138: =+IFERROR(VLOOKUP($F138,[2]Hoja1!$F$2:$L$4485,3,0),0) -> 113 | BB138: =+IFERROR(VLOOKUP($F138,[2]Hoja1!$F$2:$L$4485,4,0),0) -> 8 | BC138: =+IFERROR(VLOOKUP($F138,[2]Hoja1!$F$2:$L$4485,5,0),0) -> 19 | BD138: =+IFERROR(VLOOKUP($F138,[2]Hoja1!$F$2:$L$4485,6,0),0) -> 0 | BE138: =+IFERROR(VLOOKUP($F138,[2]Hoja1!$F$2:$L$4485,7,0),0) -> 3 | BU138: 19 | BV138: CAUCA | BW138: 760 | BX138: 19760 | BY138: SOTARA | BZ138: 197601 | CA138: 1 | CB138: 23 | CC138: 2 | CD138: 2 | CE138: 0 | CF138: 1 | CG138: 19 | CH138: 0 | CI138: 0 | CJ138: 0 | CK138: 0 | CL138: 19 | CM138: 0 | CN138: 0 | CO138: 0 | CP138: 0 | CQ138: 21 | CR138: 1 | CS138: 0 | CT138: 0 | CU138: 1 | CV138: 20 | CW138: 0 | CX138: 0 | CY138: 0 | CZ138: 0 | DA138: 21 | DB138: 1 | DC138: 2 | DD138: 0 | DE138: 0 | DF138: 41 | DG138: 22 | DH138: 7 | DI138: 0 | DJ138: 0 | DK138: 41 | DL138: 6 | DM138: 11 | DN138: 0 | DO138: 0 | DP138: 34 | DQ138: 4 | DR138: 8 | DS138: 0 | DT138: 0 | DU138: 34 | DV138: 8 | DW138: 3 | DX138: 0 | DY138: 0
A139: 05 | B139: ANTIOQUIA | C139: 150 | D139: 05150 | E139: CAROLINA | F139: 051502 | G139: 2 | H139: 60 | I139: 4 | J139: 1 | K139: 0 | L139: 1 | M139: 63 | N139: 3 | O139: 1 | P139: 0 | Q139: 0 | R139: 62 | S139: 1 | T139: 1 | U139: 0 | V139: 2 | W139: 60 | X139: 0 | Y139: 0 | Z139: 1 | AA139: 1 | AB139: 63 | AC139: 2 | AD139: 0 | AE139: 3 | AF139: 0 | AG139: 59 | AH139: 0 | AI139: 2 | AJ139: 0 | AK139: 0 | AL139: 65 | AM139: 0 | AN139: 1 | AO139: 0 | AP139: 0 | AQ139: 69 | AR139: 3 | AS139: 2 | AT139: 0 | AU139: 0 | AV139: =+IFERROR(VLOOKUP($F139,[1]Hoja1!$F$2:$L$4485,3,0),0) -> 67 | AW139: =+IFERROR(VLOOKUP($F139,[1]Hoja1!$F$2:$L$4485,4,0),0) -> 1 | AX139: =+IFERROR(VLOOKUP($F139,[1]Hoja1!$F$2:$L$4485,5,0),0) -> 7 | AY139: =+IFERROR(VLOOKUP($F139,[1]Hoja1!$F$2:$L$4485,6,0),0) -> 0 | AZ139: =+IFERROR(VLOOKUP($F139,[1]Hoja1!$F$2:$L$4485,7,0),0) -> 0 | BA139: =+IFERROR(VLOOKUP($F139,[2]Hoja1!$F$2:$L$4485,3,0),0) -> 65 | BB139: =+IFERROR(VLOOKUP($F139,[2]Hoja1!$F$2:$L$4485,4,0),0) -> 0 | BC139: =+IFERROR(VLOOKUP($F139,[2]Hoja1!$F$2:$L$4485,5,0),0) -> 0 | BD139: =+IFERROR(VLOOKUP($F139,[2]Hoja1!$F$2:$L$4485,6,0),0) -> 0 | BE139: =+IFERROR(VLOOKUP($F139,[2]Hoja1!$F$2:$L$4485,7,0),0) -> 1 | BU139: 19 | BV139: CAUCA | BW139: 760 | BX139: 19760 | BY139: SOTARA | BZ139: 197602 | CA139: 2 | CB139: 1 | CC139: 0 | CD139: 0 | CE139: 0 | CF139: 0 | CG139: 2 | CH139: 0 | CI139: 0 | CJ139: 0 | CK139: 0 | CL139: 2 | CM139: 0 | CN139: 0 | CO139: 0 | CP139: 0 | CQ139: 2 | CR139: 1 | CS139: 0 | CT139: 0 | CU139: 0 | CV139: 2 | CW139: 0 | CX139: 0 | CY139: 0 | CZ139: 0 | DA139: 3 | DB139: 0 | DC139: 1 | DD139: 1 | DE139: 0 | DF139: 2 | DG139: 0 | DH139: 0 | DI139: 1 | DJ139: 0 | DK139: 1 | DL139: 0 | DM139: 0 | DN139: 0 | DO139: 0 | DP139: 1 | DQ139: 0 | DR139: 0 | DS139: 0 | DT139: 0 | DU139: 1 | DV139: 0 | DW139: 0 | DX139: 0 | DY139: 0
A140: 05 | B140: ANTIOQUIA | C140: 150 | D140: 05150 | E140: CAROLINA | F140: 051503 | G140: 3 | H140: 3 | I140: 0 | J140: 1 | K140: 0 | L140: 0 | M140: 4 | N140: 0 | O140: 0 | P140: 0 | Q140: 0 | R140: 5 | S140: 0 | T140: 0 | U140: 0 | V140: 0 | W140: 3 | X140: 0 | Y140: 0 | Z140: 0 | AA140: 0 | AB140: 5 | AC140: 0 | AD140: 0 | AE140: 0 | AF140: 0 | AG140: 6 | AH140: 0 | AI140: 0 | AJ140: 0 | AK140: 0 | AL140: 5 | AM140: 0 | AN140: 0 | AO140: 0 | AP140: 0 | AQ140: 4 | AR140: 0 | AS140: 1 | AT140: 0 | AU140: 0 | AV140: =+IFERROR(VLOOKUP($F140,[1]Hoja1!$F$2:$L$4485,3,0),0) -> 4 | AW140: =+IFERROR(VLOOKUP($F140,[1]Hoja1!$F$2:$L$4485,4,0),0) -> 0 | AX140: =+IFERROR(VLOOKUP($F140,[1]Hoja1!$F$2:$L$4485,5,0),0) -> 1 | AY140: =+IFERROR(VLOOKUP($F140,[1]Hoja1!$F$2:$L$4485,6,0),0) -> 0 | AZ140: =+IFERROR(VLOOKUP($F140,[1]Hoja1!$F$2:$L$4485,7,0),0) -> 0 | BA140: =+IFERROR(VLOOKUP($F140,[2]Hoja1!$F$2:$L$4485,3,0),0) -> 2 | BB140: =+IFERROR(VLOOKUP($F140,[2]Hoja1!$F$2:$L$4485,4,0),0) -> 0 | BC140: =+IFERROR(VLOOKUP($F140,[2]Hoja1!$F$2:$L$4485,5,0),0) -> 0 | BD140: =+IFERROR(VLOOKUP($F140,[2]Hoja1!$F$2:$L$4485,6,0),0) -> 0 | BE140: =+IFERROR(VLOOKUP($F140,[2]Hoja1!$F$2:$L$4485,7,0),0) -> 0 | BU140: 19 | BV140: CAUCA | BW140: 760 | BX140: 19760 | BY140: SOTARA | BZ140: 197603 | CA140: 3 | CB140: 0 | CC140: 0 | CD140: 0 | CE140: 0 | CF140: 0 | CG140: 0 | CH140: 0 | CI140: 0 | CJ140: 0 | CK140: 0 | CL140: 0 | CM140: 0 | CN140: 0 | CO140: 0 | CP140: 0 | CQ140: 0 | CR140: 0 | CS140: 0 | CT140: 0 | CU140: 0 | CV140: 1 | CW140: 0 | CX140: 0 | CY140: 0 | CZ140: 0 | DA140: 0 | DB140: 0 | DC140: 0 | DD140: 0 | DE140: 0 | DF140: 0 | DG140: 0 | DH140: 0 | DI140: 0 | DJ140: 0 | DK140: 0 | DL140: 0 | DM140: 0 | DN140: 0 | DO140: 0 | DP140: 0 | DQ140: 0 | DR140: 0 | DS140: 0 | DT140: 0 | DU140: 0 | DV140: 0 | DW140: 0 | DX140: 0 | DY140: 0
A141: 05 | B141: ANTIOQUIA | C141: 150 | D141: 05150 | E141: CAROLINA | F141: 051504 | G141: 4 | H141: 0 | I141: 0 | J141: 0 | K141: 0 | L141: 0 | M141: 0 | N141: 0 | O141: 0 | P141: 0 | Q141: 0 | R141: 0 | S141: 0 | T141: 0 | U141: 0 | V141: 0 | W141: 0 | X141: 0 | Y141: 0 | Z141: 0 | AA141: 0 | AB141: 0 | AC141: 0 | AD141: 0 | AE141: 0 | AF141: 0 | AG141: 0 | AH141: 0 | AI141: 0 | AJ141: 0 | AK141: 0 | AL141: 0 | AM141: 0 | AN141: 0 | AO141: 0 | AP141: 0 | AQ141: 0 | AR141: 0 | AS141: 0 | AT141: 0 | AU141: 0 | AV141: =+IFERROR(VLOOKUP($F141,[1]Hoja1!$F$2:$L$4485,3,0),0) -> 0 | AW141: =+IFERROR(VLOOKUP($F141,[1]Hoja1!$F$2:$L$4485,4,0),0) -> 0 | AX141: =+IFERROR(VLOOKUP($F141,[1]Hoja1!$F$2:$L$4485,5,0),0) -> 0 | AY141: =+IFERROR(VLOOKUP($F141,[1]Hoja1!$F$2:$L$4485,6,0),0) -> 0 | AZ141: =+IFERROR(VLOOKUP($F141,[1]Hoja1!$F$2:$L$4485,7,0),0) -> 0 | BA141: =+IFERROR(VLOOKUP($F141,[2]Hoja1!$F$2:$L$4485,3,0),0) -> 0 | BB141: =+IFERROR(VLOOKUP($F141,[2]Hoja1!$F$2:$L$4485,4,0),0) -> 0 | BC141: =+IFERROR(VLOOKUP($F141,[2]Hoja1!$F$2:$L$4485,5,0),0) -> 0 | BD141: =+IFERROR(VLOOKUP($F141,[2]Hoja1!$F$2:$L$4485,6,0),0) -> 0 | BE141: =+IFERROR(VLOOKUP($F141,[2]Hoja1!$F$2:$L$4485,7,0),0) -> 0 | BU141: 19 | BV141: CAUCA | BW141: 760 | BX141: 19760 | BY141: SOTARA | BZ141: 197604 | CA141: 4 | CB141: 0 | CC141: 0 | CD141: 0 | CE141: 0 | CF141: 0 | CG141: 0 | CH141: 0 | CI141: 0 | CJ141: 0 | CK141: 0 | CL141: 0 | CM141: 0 | CN141: 0 | CO141: 0 | CP141: 0 | CQ141: 0 | CR141: 0 | CS141: 0 | CT141: 0 | CU141: 0 | CV141: 0 | CW141: 0 | CX141: 0 | CY141: 0 | CZ141: 0 | DA141: 0 | DB141: 0 | DC141: 0 | DD141: 0 | DE141: 0 | DF141: 0 | DG141: 0 | DH141: 0 | DI141: 0 | DJ141: 0 | DK141: 0 | DL141: 0 | DM141: 0 | DN141: 0 | DO141: 0 | DP141: 0 | DQ141: 0 | DR141: 0 | DS141: 0 | DT141: 0 | DU141: 0 | DV141: 0 | DW141: 0 | DX141: 0 | DY141: 0
A142: 05 | B142: ANTIOQUIA | C142: 154 | D142: 05154 | E142: CAUCASIA | F142: 051541 | G142: 1 | H142: 4204 | I142: 665 | J142: 437 | K142: 31 | L142: 282 | M142: 4184 | N142: 722 | O142: 408 | P142: 32 | Q142: 106 | R142: 4508 | S142: 673 | T142: 544 | U142: 22 | V142: 497 | W142: 4320 | X142: 231 | Y142: 326 | Z142: 133 | AA142: 753 | AB142: 4316 | AC142: 507 | AD142: 312 | AE142: 105 | AF142: 246 | AG142: 4246 | AH142: 452 | AI142: 434 | AJ142: 47 | AK142: 81 | AL142: 4191 | AM142: 410 | AN142: 359 | AO142: 29 | AP142: 71 | AQ142: 4255 | AR142: 456 | AS142: 444 | AT142: 65 | AU142: 91 | AV142: =+IFERROR(VLOOKUP($F142,[1]Hoja1!$F$2:$L$4485,3,0),0) -> 4163 | AW142: =+IFERROR(VLOOKUP($F142,[1]Hoja1!$F$2:$L$4485,4,0),0) -> 446 | AX142: =+IFERROR(VLOOKUP($F142,[1]Hoja1!$F$2:$L$4485,5,0),0) -> 441 | AY142: =+IFERROR(VLOOKUP($F142,[1]Hoja1!$F$2:$L$4485,6,0),0) -> 60 | AZ142: =+IFERROR(VLOOKUP($F142,[1]Hoja1!$F$2:$L$4485,7,0),0) -> 67 | BA142: =+IFERROR(VLOOKUP($F142,[2]Hoja1!$F$2:$L$4485,3,0),0) -> 4093 | BB142: =+IFERROR(VLOOKUP($F142,[2]Hoja1!$F$2:$L$4485,4,0),0) -> 404 | BC142: =+IFERROR(VLOOKUP($F142,[2]Hoja1!$F$2:$L$4485,5,0),0) -> 408 | BD142: =+IFERROR(VLOOKUP($F142,[2]Hoja1!$F$2:$L$4485,6,0),0) -> 55 | BE142: =+IFERROR(VLOOKUP($F142,[2]Hoja1!$F$2:$L$4485,7,0),0) -> 84 | BU142: 19 | BV142: CAUCA | BW142: 780 | BX142: 19780 | BY142: SUÁREZ | BZ142: 197801 | CA142: 1 | CB142: 59 | CC142: 9 | CD142: 1 | CE142: 0 | CF142: 3 | CG142: 72 | CH142: 27 | CI142: 7 | CJ142: 1 | CK142: 1 | CL142: 63 | CM142: 13 | CN142: 15 | CO142: 0 | CP142: 1 | CQ142: 33 | CR142: 1 | CS142: 8 | CT142: 0 | CU142: 2 | CV142: 48 | CW142: 22 | CX142: 0 | CY142: 0 | CZ142: 0 | DA142: 59 | DB142: 31 | DC142: 3 | DD142: 19 | DE142: 0 | DF142: 84 | DG142: 34 | DH142: 10 | DI142: 8 | DJ142: 1 | DK142: 97 | DL142: 25 | DM142: 51 | DN142: 3 | DO142: 0 | DP142: 105 | DQ142: 59 | DR142: 16 | DS142: 1 | DT142: 2 | DU142: 112 | DV142: 52 | DW142: 20 | DX142: 6 | DY142: 0
A143: 05 | B143: ANTIOQUIA | C143: 154 | D143: 05154 | E143: CAUCASIA | F143: 051542 | G143: 2 | H143: 2286 | I143: 71 | J143: 130 | K143: 22 | L143: 228 | M143: 2497 | N143: 149 | O143: 54 | P143: 15 | Q143: 63 | R143: 2565 | S143: 186 | T143: 55 | U143: 26 | V143: 254 | W143: 2425 | X143: 40 | Y143: 46 | Z143: 41 | AA143: 243 | AB143: 2626 | AC143: 37 | AD143: 48 | AE143: 45 | AF143: 113 | AG143: 2737 | AH143: 63 | AI143: 99 | AJ143: 15 | AK143: 50 | AL143: 2668 | AM143: 52 | AN143: 48 | AO143: 25 | AP143: 72 | AQ143: 2746 | AR143: 49 | AS143: 149 | AT143: 28 | AU143: 66 | AV143: =+IFERROR(VLOOKUP($F143,[1]Hoja1!$F$2:$L$4485,3,0),0) -> 2744 | AW143: =+IFERROR(VLOOKUP($F143,[1]Hoja1!$F$2:$L$4485,4,0),0) -> 74 | AX143: =+IFERROR(VLOOKUP($F143,[1]Hoja1!$F$2:$L$4485,5,0),0) -> 75 | AY143: =+IFERROR(VLOOKUP($F143,[1]Hoja1!$F$2:$L$4485,6,0),0) -> 28 | AZ143: =+IFERROR(VLOOKUP($F143,[1]Hoja1!$F$2:$L$4485,7,0),0) -> 56 | BA143: =+IFERROR(VLOOKUP($F143,[2]Hoja1!$F$2:$L$4485,3,0),0) -> 2671 | BB143: =+IFERROR(VLOOKUP($F143,[2]Hoja1!$F$2:$L$4485,4,0),0) -> 46 | BC143: =+IFERROR(VLOOKUP($F143,[2]Hoja1!$F$2:$L$4485,5,0),0) -> 59 | BD143: =+IFERROR(VLOOKUP($F143,[2]Hoja1!$F$2:$L$4485,6,0),0) -> 30 | BE143: =+IFERROR(VLOOKUP($F143,[2]Hoja1!$F$2:$L$4485,7,0),0) -> 63 | BU143: 19 | BV143: CAUCA | BW143: 780 | BX143: 19780 | BY143: SUÁREZ | BZ143: 197802 | CA143: 2 | CB143: 18 | CC143: 1 | CD143: 0 | CE143: 0 | CF143: 0 | CG143: 22 | CH143: 1 | CI143: 0 | CJ143: 0 | CK143: 0 | CL143: 26 | CM143: 2 | CN143: 1 | CO143: 0 | CP143: 0 | CQ143: 53 | CR143: 0 | CS143: 0 | CT143: 0 | CU143: 1 | CV143: 49 | CW143: 1 | CX143: 0 | CY143: 0 | CZ143: 1 | DA143: 72 | DB143: 9 | DC143: 0 | DD143: 1 | DE143: 1 | DF143: 133 | DG143: 8 | DH143: 2 | DI143: 1 | DJ143: 1 | DK143: 126 | DL143: 3 | DM143: 0 | DN143: 0 | DO143: 1 | DP143: 143 | DQ143: 4 | DR143: 11 | DS143: 0 | DT143: 1 | DU143: 171 | DV143: 13 | DW143: 0 | DX143: 1 | DY143: 1
A144: 05 | B144: ANTIOQUIA | C144: 154 | D144: 05154 | E144: CAUCASIA | F144: 051543 | G144: 3 | H144: 591 | I144: 16 | J144: 22 | K144: 8 | L144: 105 | M144: 637 | N144: 15 | O144: 22 | P144: 5 | Q144: 37 | R144: 641 | S144: 22 | T144: 44 | U144: 3 | V144: 92 | W144: 542 | X144: 7 | Y144: 8 | Z144: 23 | AA144: 120 | AB144: 560 | AC144: 6 | AD144: 9 | AE144: 25 | AF144: 44 | AG144: 653 | AH144: 13 | AI144: 10 | AJ144: 2 | AK144: 13 | AL144: 662 | AM144: 23 | AN144: 23 | AO144: 3 | AP144: 21 | AQ144: 658 | AR144: 14 | AS144: 28 | AT144: 13 | AU144: 15 | AV144: =+IFERROR(VLOOKUP($F144,[1]Hoja1!$F$2:$L$4485,3,0),0) -> 587 | AW144: =+IFERROR(VLOOKUP($F144,[1]Hoja1!$F$2:$L$4485,4,0),0) -> 11 | AX144: =+IFERROR(VLOOKUP($F144,[1]Hoja1!$F$2:$L$4485,5,0),0) -> 20 | AY144: =+IFERROR(VLOOKUP($F144,[1]Hoja1!$F$2:$L$4485,6,0),0) -> 6 | AZ144: =+IFERROR(VLOOKUP($F144,[1]Hoja1!$F$2:$L$4485,7,0),0) -> 27 | BA144: =+IFERROR(VLOOKUP($F144,[2]Hoja1!$F$2:$L$4485,3,0),0) -> 604 | BB144: =+IFERROR(VLOOKUP($F144,[2]Hoja1!$F$2:$L$4485,4,0),0) -> 20 | BC144: =+IFERROR(VLOOKUP($F144,[2]Hoja1!$F$2:$L$4485,5,0),0) -> 14 | BD144: =+IFERROR(VLOOKUP($F144,[2]Hoja1!$F$2:$L$4485,6,0),0) -> 3 | BE144: =+IFERROR(VLOOKUP($F144,[2]Hoja1!$F$2:$L$4485,7,0),0) -> 25 | BU144: 19 | BV144: CAUCA | BW144: 780 | BX144: 19780 | BY144: SUÁREZ | BZ144: 197803 | CA144: 3 | CB144: 5 | CC144: 0 | CD144: 1 | CE144: 0 | CF144: 0 | CG144: 4 | CH144: 0 | CI144: 0 | CJ144: 0 | CK144: 0 | CL144: 9 | CM144: 2 | CN144: 0 | CO144: 1 | CP144: 0 | CQ144: 4 | CR144: 0 | CS144: 1 | CT144: 1 | CU144: 0 | CV144: 9 | CW144: 1 | CX144: 0 | CY144: 0 | CZ144: 0 | DA144: 9 | DB144: 1 | DC144: 0 | DD144: 0 | DE144: 0 | DF144: 16 | DG144: 2 | DH144: 1 | DI144: 0 | DJ144: 0 | DK144: 16 | DL144: 0 | DM144: 0 | DN144: 0 | DO144: 0 | DP144: 15 | DQ144: 0 | DR144: 4 | DS144: 0 | DT144: 0 | DU144: 18 | DV144: 1 | DW144: 3 | DX144: 0 | DY144: 0
A145: 05 | B145: ANTIOQUIA | C145: 154 | D145: 05154 | E145: CAUCASIA | F145: 051544 | G145: 4 | H145: 81 | I145: 0 | J145: 4 | K145: 0 | L145: 19 | M145: 97 | N145: 3 | O145: 3 | P145: 2 | Q145: 5 | R145: 99 | S145: 3 | T145: 0 | U145: 0 | V145: 11 | W145: 104 | X145: 0 | Y145: 2 | Z145: 2 | AA145: 17 | AB145: 105 | AC145: 1 | AD145: 0 | AE145: 1 | AF145: 2 | AG145: 120 | AH145: 0 | AI145: 0 | AJ145: 1 | AK145: 3 | AL145: 116 | AM145: 1 | AN145: 2 | AO145: 1 | AP145: 3 | AQ145: 119 | AR145: 4 | AS145: 8 | AT145: 0 | AU145: 5 | AV145: =+IFERROR(VLOOKUP($F145,[1]Hoja1!$F$2:$L$4485,3,0),0) -> 116 | AW145: =+IFERROR(VLOOKUP($F145,[1]Hoja1!$F$2:$L$4485,4,0),0) -> 2 | AX145: =+IFERROR(VLOOKUP($F145,[1]Hoja1!$F$2:$L$4485,5,0),0) -> 2 | AY145: =+IFERROR(VLOOKUP($F145,[1]Hoja1!$F$2:$L$4485,6,0),0) -> 0 | AZ145: =+IFERROR(VLOOKUP($F145,[1]Hoja1!$F$2:$L$4485,7,0),0) -> 8 | BA145: =+IFERROR(VLOOKUP($F145,[2]Hoja1!$F$2:$L$4485,3,0),0) -> 111 | BB145: =+IFERROR(VLOOKUP($F145,[2]Hoja1!$F$2:$L$4485,4,0),0) -> 4 | BC145: =+IFERROR(VLOOKUP($F145,[2]Hoja1!$F$2:$L$4485,5,0),0) -> 1 | BD145: =+IFERROR(VLOOKUP($F145,[2]Hoja1!$F$2:$L$4485,6,0),0) -> 2 | BE145: =+IFERROR(VLOOKUP($F145,[2]Hoja1!$F$2:$L$4485,7,0),0) -> 8 | BU145: 19 | BV145: CAUCA | BW145: 780 | BX145: 19780 | BY145: SUÁREZ | BZ145: 197804 | CA145: 4 | CB145: 0 | CC145: 0 | CD145: 0 | CE145: 0 | CF145: 0 | CG145: 0 | CH145: 0 | CI145: 0 | CJ145: 0 | CK145: 0 | CL145: 0 | CM145: 0 | CN145: 0 | CO145: 0 | CP145: 0 | CQ145: 1 | CR145: 0 | CS145: 0 | CT145: 0 | CU145: 1 | CV145: 1 | CW145: 0 | CX145: 0 | CY145: 0 | CZ145: 0 | DA145: 1 | DB145: 0 | DC145: 0 | DD145: 0 | DE145: 0 | DF145: 1 | DG145: 0 | DH145: 0 | DI145: 0 | DJ145: 0 | DK145: 1 | DL145: 0 | DM145: 0 | DN145: 0 | DO145: 0 | DP145: 1 | DQ145: 0 | DR145: 0 | DS145: 0 | DT145: 0 | DU145: 1 | DV145: 0 | DW145: 0 | DX145: 0 | DY145: 0
A146: 05 | B146: ANTIOQUIA | C146: 172 | D146: 05172 | E146: CHIGORODÓ | F146: 051721 | G146: 1 | H146: 1712 | I146: 272 | J146: 228 | K146: 19 | L146: 86 | M146: 1713 | N146: 309 | O146: 196 | P146: 10 | Q146: 60 | R146: 1972 | S146: 322 | T146: 268 | U146: 96 | V146: 196 | W146: 1934 | X146: 224 | Y146: 134 | Z146: 73 | AA146: 297 | AB146: 1945 | AC146: 293 | AD146: 180 | AE146: 75 | AF146: 83 | AG146: 1955 | AH146: 228 | AI146: 238 | AJ146: 15 | AK146: 53 | AL146: 1995 | AM146: 264 | AN146: 259 | AO146: 15 | AP146: 57 | AQ146: 1981 | AR146: 270 | AS146: 220 | AT146: 22 | AU146: 51 | AV146: =+IFERROR(VLOOKUP($F146,[1]Hoja1!$F$2:$L$4485,3,0),0) -> 2012 | AW146: =+IFERROR(VLOOKUP($F146,[1]Hoja1!$F$2:$L$4485,4,0),0) -> 269 | AX146: =+IFERROR(VLOOKUP($F146,[1]Hoja1!$F$2:$L$4485,5,0),0) -> 285 | AY146: =+IFERROR(VLOOKUP($F146,[1]Hoja1!$F$2:$L$4485,6,0),0) -> 84 | AZ146: =+IFERROR(VLOOKUP($F146,[1]Hoja1!$F$2:$L$4485,7,0),0) -> 44 | BA146: =+IFERROR(VLOOKUP($F146,[2]Hoja1!$F$2:$L$4485,3,0),0) -> 1908 | BB146: =+IFERROR(VLOOKUP($F146,[2]Hoja1!$F$2:$L$4485,4,0),0) -> 273 | BC146: =+IFERROR(VLOOKUP($F146,[2]Hoja1!$F$2:$L$4485,5,0),0) -> 229 | BD146: =+IFERROR(VLOOKUP($F146,[2]Hoja1!$F$2:$L$4485,6,0),0) -> 15 | BE146: =+IFERROR(VLOOKUP($F146,[2]Hoja1!$F$2:$L$4485,7,0),0) -> 37 | BU146: 19 | BV146: CAUCA | BW146: 785 | BX146: 19785 | BY146: SUCRE | BZ146: 197851 | CA146: 1 | CB146: 414 | CC146: 5 | CD146: 82 | CE146: 0 | CF146: 0 | CG146: 341 | CH146: 0 | CI146: 87 | CJ146: 0 | CK146: 0 | CL146: 256 | CM146: 2 | CN146: 68 | CO146: 2 | CP146: 0 | CQ146: 189 | CR146: 0 | CS146: 3 | CT146: 0 | CU146: 1 | CV146: 188 | CW146: 0 | CX146: 49 | CY146: 0 | CZ146: 0 | DA146: 141 | DB146: 0 | DC146: 14 | DD146: 0 | DE146: 0 | DF146: 142 | DG146: 12 | DH146: 19 | DI146: 0 | DJ146: 0 | DK146: 137 | DL146: 17 | DM146: 37 | DN146: 1 | DO146: 0 | DP146: 116 | DQ146: 19 | DR146: 96 | DS146: 0 | DT146: 0 | DU146: 41 | DV146: 13 | DW146: 21 | DX146: 0 | DY146: 0
A147: 05 | B147: ANTIOQUIA | C147: 172 | D147: 05172 | E147: CHIGORODÓ | F147: 051722 | G147: 2 | H147: 1221 | I147: 26 | J147: 32 | K147: 33 | L147: 133 | M147: 1449 | N147: 62 | O147: 68 | P147: 23 | Q147: 98 | R147: 1299 | S147: 56 | T147: 10 | U147: 21 | V147: 190 | W147: 1302 | X147: 20 | Y147: 13 | Z147: 21 | AA147: 160 | AB147: 1614 | AC147: 8 | AD147: 14 | AE147: 40 | AF147: 106 | AG147: 1531 | AH147: 30 | AI147: 34 | AJ147: 12 | AK147: 115 | AL147: 1433 | AM147: 29 | AN147: 15 | AO147: 11 | AP147: 157 | AQ147: 1429 | AR147: 20 | AS147: 23 | AT147: 18 | AU147: 114 | AV147: =+IFERROR(VLOOKUP($F147,[1]Hoja1!$F$2:$L$4485,3,0),0) -> 1358 | AW147: =+IFERROR(VLOOKUP($F147,[1]Hoja1!$F$2:$L$4485,4,0),0) -> 20 | AX147: =+IFERROR(VLOOKUP($F147,[1]Hoja1!$F$2:$L$4485,5,0),0) -> 15 | AY147: =+IFERROR(VLOOKUP($F147,[1]Hoja1!$F$2:$L$4485,6,0),0) -> 34 | AZ147: =+IFERROR(VLOOKUP($F147,[1]Hoja1!$F$2:$L$4485,7,0),0) -> 92 | BA147: =+IFERROR(VLOOKUP($F147,[2]Hoja1!$F$2:$L$4485,3,0),0) -> 1400 | BB147: =+IFERROR(VLOOKUP($F147,[2]Hoja1!$F$2:$L$4485,4,0),0) -> 14 | BC147: =+IFERROR(VLOOKUP($F147,[2]Hoja1!$F$2:$L$4485,5,0),0) -> 32 | BD147: =+IFERROR(VLOOKUP($F147,[2]Hoja1!$F$2:$L$4485,6,0),0) -> 27 | BE147: =+IFERROR(VLOOKUP($F147,[2]Hoja1!$F$2:$L$4485,7,0),0) -> 98 | BU147: 19 | BV147: CAUCA | BW147: 785 | BX147: 19785 | BY147: SUCRE | BZ147: 197852 | CA147: 2 | CB147: 5 | CC147: 0 | CD147: 0 | CE147: 0 | CF147: 0 | CG147: 3 | CH147: 0 | CI147: 0 | CJ147: 0 | CK147: 0 | CL147: 4 | CM147: 0 | CN147: 0 | CO147: 0 | CP147: 0 | CQ147: 3 | CR147: 0 | CS147: 0 | CT147: 0 | CU147: 0 | CV147: 3 | CW147: 0 | CX147: 0 | CY147: 0 | CZ147: 0 | DA147: 4 | DB147: 1 | DC147: 0 | DD147: 1 | DE147: 0 | DF147: 4 | DG147: 3 | DH147: 0 | DI147: 1 | DJ147: 0 | DK147: 1 | DL147: 0 | DM147: 0 | DN147: 0 | DO147: 0 | DP147: 1 | DQ147: 0 | DR147: 0 | DS147: 0 | DT147: 0 | DU147: 1 | DV147: 0 | DW147: 0 | DX147: 0 | DY147: 0
A148: 05 | B148: ANTIOQUIA | C148: 172 | D148: 05172 | E148: CHIGORODÓ | F148: 051723 | G148: 3 | H148: 386 | I148: 3 | J148: 5 | K148: 6 | L148: 50 | M148: 276 | N148: 8 | O148: 4 | P148: 0 | Q148: 22 | R148: 317 | S148: 6 | T148: 2 | U148: 6 | V148: 30 | W148: 297 | X148: 2 | Y148: 4 | Z148: 2 | AA148: 26 | AB148: 269 | AC148: 1 | AD148: 2 | AE148: 0 | AF148: 11 | AG148: 269 | AH148: 1 | AI148: 2 | AJ148: 0 | AK148: 17 | AL148: 344 | AM148: 1 | AN148: 3 | AO148: 0 | AP148: 28 | AQ148: 376 | AR148: 1 | AS148: 3 | AT148: 2 | AU148: 28 | AV148: =+IFERROR(VLOOKUP($F148,[1]Hoja1!$F$2:$L$4485,3,0),0) -> 409 | AW148: =+IFERROR(VLOOKUP($F148,[1]Hoja1!$F$2:$L$4485,4,0),0) -> 1 | AX148: =+IFERROR(VLOOKUP($F148,[1]Hoja1!$F$2:$L$4485,5,0),0) -> 4 | AY148: =+IFERROR(VLOOKUP($F148,[1]Hoja1!$F$2:$L$4485,6,0),0) -> 6 | AZ148: =+IFERROR(VLOOKUP($F148,[1]Hoja1!$F$2:$L$4485,7,0),0) -> 21 | BA148: =+IFERROR(VLOOKUP($F148,[2]Hoja1!$F$2:$L$4485,3,0),0) -> 466 | BB148: =+IFERROR(VLOOKUP($F148,[2]Hoja1!$F$2:$L$4485,4,0),0) -> 5 | BC148: =+IFERROR(VLOOKUP($F148,[2]Hoja1!$F$2:$L$4485,5,0),0) -> 6 | BD148: =+IFERROR(VLOOKUP($F148,[2]Hoja1!$F$2:$L$4485,6,0),0) -> 3 | BE148: =+IFERROR(VLOOKUP($F148,[2]Hoja1!$F$2:$L$4485,7,0),0) -> 23 | BU148: 19 | BV148: CAUCA | BW148: 785 | BX148: 19785 | BY148: SUCRE | BZ148: 197853 | CA148: 3 | CB148: 0 | CC148: 0 | CD148: 0 | CE148: 0 | CF148: 0 | CG148: 0 | CH148: 0 | CI148: 0 | CJ148: 0 | CK148: 0 | CL148: 0 | CM148: 0 | CN148: 0 | CO148: 0 | CP148: 0 | CQ148: 0 | CR148: 0 | CS148: 0 | CT148: 0 | CU148: 0 | CV148: 0 | CW148: 0 | CX148: 0 | CY148: 0 | CZ148: 0 | DA148: 0 | DB148: 0 | DC148: 0 | DD148: 0 | DE148: 0 | DF148: 0 | DG148: 0 | DH148: 0 | DI148: 0 | DJ148: 0 | DK148: 2 | DL148: 0 | DM148: 0 | DN148: 0 | DO148: 0 | DP148: 2 | DQ148: 0 | DR148: 0 | DS148: 0 | DT148: 0 | DU148: 2 | DV148: 0 | DW148: 0 | DX148: 0 | DY148: 0
A149: 05 | B149: ANTIOQUIA | C149: 172 | D149: 05172 | E149: CHIGORODÓ | F149: 051724 | G149: 4 | H149: 28 | I149: 0 | J149: 1 | K149: 0 | L149: 12 | M149: 25 | N149: 1 | O149: 8 | P149: 0 | Q149: 0 | R149: 19 | S149: 0 | T149: 2 | U149: 0 | V149: 1 | W149: 21 | X149: 2 | Y149: 1 | Z149: 0 | AA149: 0 | AB149: 22 | AC149: 0 | AD149: 0 | AE149: 0 | AF149: 1 | AG149: 19 | AH149: 0 | AI149: 1 | AJ149: 0 | AK149: 0 | AL149: 19 | AM149: 0 | AN149: 0 | AO149: 0 | AP149: 0 | AQ149: 16 | AR149: 0 | AS149: 0 | AT149: 0 | AU149: 0 | AV149: =+IFERROR(VLOOKUP($F149,[1]Hoja1!$F$2:$L$4485,3,0),0) -> 19 | AW149: =+IFERROR(VLOOKUP($F149,[1]Hoja1!$F$2:$L$4485,4,0),0) -> 0 | AX149: =+IFERROR(VLOOKUP($F149,[1]Hoja1!$F$2:$L$4485,5,0),0) -> 0 | AY149: =+IFERROR(VLOOKUP($F149,[1]Hoja1!$F$2:$L$4485,6,0),0) -> 0 | AZ149: =+IFERROR(VLOOKUP($F149,[1]Hoja1!$F$2:$L$4485,7,0),0) -> 0 | BA149: =+IFERROR(VLOOKUP($F149,[2]Hoja1!$F$2:$L$4485,3,0),0) -> 23 | BB149: =+IFERROR(VLOOKUP($F149,[2]Hoja1!$F$2:$L$4485,4,0),0) -> 1 | BC149: =+IFERROR(VLOOKUP($F149,[2]Hoja1!$F$2:$L$4485,5,0),0) -> 1 | BD149: =+IFERROR(VLOOKUP($F149,[2]Hoja1!$F$2:$L$4485,6,0),0) -> 0 | BE149: =+IFERROR(VLOOKUP($F149,[2]Hoja1!$F$2:$L$4485,7,0),0) -> 1 | BU149: 19 | BV149: CAUCA | BW149: 785 | BX149: 19785 | BY149: SUCRE | BZ149: 197854 | CA149: 4 | CB149: 0 | CC149: 0 | CD149: 0 | CE149: 0 | CF149: 0 | CG149: 0 | CH149: 0 | CI149: 0 | CJ149: 0 | CK149: 0 | CL149: 0 | CM149: 0 | CN149: 0 | CO149: 0 | CP149: 0 | CQ149: 0 | CR149: 0 | CS149: 0 | CT149: 0 | CU149: 0 | CV149: 0 | CW149: 0 | CX149: 0 | CY149: 0 | CZ149: 0 | DA149: 0 | DB149: 0 | DC149: 0 | DD149: 0 | DE149: 0 | DF149: 0 | DG149: 0 | DH149: 0 | DI149: 0 | DJ149: 0 | DK149: 0 | DL149: 0 | DM149: 0 | DN149: 0 | DO149: 0 | DP149: 0 | DQ149: 0 | DR149: 0 | DS149: 0 | DT149: 0 | DU149: 0 | DV149: 0 | DW149: 0 | DX149: 0 | DY149: 0
A150: 05 | B150: ANTIOQUIA | C150: 190 | D150: 05190 | E150: CISNEROS | F150: 051901 | G150: 1 | H150: 371 | I150: 138 | J150: 44 | K150: 27 | L150: 18 | M150: 346 | N150: 111 | O150: 73 | P150: 29 | Q150: 9 | R150: 353 | S150: 75 | T150: 79 | U150: 25 | V150: 82 | W150: 648 | X150: 25 | Y150: 34 | Z150: 32 | AA150: 376 | AB150: 349 | AC150: 87 | AD150: 52 | AE150: 28 | AF150: 49 | AG150: 333 | AH150: 32 | AI150: 62 | AJ150: 22 | AK150: 6 | AL150: 384 | AM150: 63 | AN150: 135 | AO150: 20 | AP150: 15 | AQ150: 397 | AR150: 138 | AS150: 98 | AT150: 29 | AU150: 10 | AV150: =+IFERROR(VLOOKUP($F150,[1]Hoja1!$F$2:$L$4485,3,0),0) -> 382 | AW150: =+IFERROR(VLOOKUP($F150,[1]Hoja1!$F$2:$L$4485,4,0),0) -> 74 | AX150: =+IFERROR(VLOOKUP($F150,[1]Hoja1!$F$2:$L$4485,5,0),0) -> 78 | AY150: =+IFERROR(VLOOKUP($F150,[1]Hoja1!$F$2:$L$4485,6,0),0) -> 21 | AZ150: =+IFERROR(VLOOKUP($F150,[1]Hoja1!$F$2:$L$4485,7,0),0) -> 8 | BA150: =+IFERROR(VLOOKUP($F150,[2]Hoja1!$F$2:$L$4485,3,0),0) -> 380 | BB150: =+IFERROR(VLOOKUP($F150,[2]Hoja1!$F$2:$L$4485,4,0),0) -> 84 | BC150: =+IFERROR(VLOOKUP($F150,[2]Hoja1!$F$2:$L$4485,5,0),0) -> 78 | BD150: =+IFERROR(VLOOKUP($F150,[2]Hoja1!$F$2:$L$4485,6,0),0) -> 10 | BE150: =+IFERROR(VLOOKUP($F150,[2]Hoja1!$F$2:$L$4485,7,0),0) -> 12 | BU150: 19 | BV150: CAUCA | BW150: 807 | BX150: 19807 | BY150: TIMBÍO | BZ150: 198071 | CA150: 1 | CB150: 240 | CC150: 35 | CD150: 26 | CE150: 1 | CF150: 6 | CG150: 264 | CH150: 48 | CI150: 21 | CJ150: 1 | CK150: 5 | CL150: 238 | CM150: 10 | CN150: 15 | CO150: 0 | CP150: 10 | CQ150: 226 | CR150: 3 | CS150: 10 | CT150: 3 | CU150: 17 | CV150: 233 | CW150: 15 | CX150: 14 | CY150: 0 | CZ150: 6 | DA150: 233 | DB150: 18 | DC150: 15 | DD150: 1 | DE150: 2 | DF150: 265 | DG150: 39 | DH150: 9 | DI150: 0 | DJ150: 10 | DK150: 269 | DL150: 16 | DM150: 12 | DN150: 2 | DO150: 4 | DP150: 283 | DQ150: 24 | DR150: 12 | DS150: 2 | DT150: 5 | DU150: 288 | DV150: 25 | DW150: 17 | DX150: 1 | DY150: 6
A151: 05 | B151: ANTIOQUIA | C151: 190 | D151: 05190 | E151: CISNEROS | F151: 051902 | G151: 2 | H151: 527 | I151: 105 | J151: 17 | K151: 142 | L151: 103 | M151: 624 | N151: 57 | O151: 22 | P151: 112 | Q151: 16 | R151: 625 | S151: 26 | T151: 18 | U151: 66 | V151: 275 | W151: 684 | X151: 12 | Y151: 11 | Z151: 15 | AA151: 472 | AB151: 604 | AC151: 9 | AD151: 36 | AE151: 75 | AF151: 77 | AG151: 602 | AH151: 13 | AI151: 22 | AJ151: 59 | AK151: 40 | AL151: 603 | AM151: 65 | AN151: 28 | AO151: 60 | AP151: 16 | AQ151: 603 | AR151: 33 | AS151: 36 | AT151: 81 | AU151: 20 | AV151: =+IFERROR(VLOOKUP($F151,[1]Hoja1!$F$2:$L$4485,3,0),0) -> 590 | AW151: =+IFERROR(VLOOKUP($F151,[1]Hoja1!$F$2:$L$4485,4,0),0) -> 19 | AX151: =+IFERROR(VLOOKUP($F151,[1]Hoja1!$F$2:$L$4485,5,0),0) -> 34 | AY151: =+IFERROR(VLOOKUP($F151,[1]Hoja1!$F$2:$L$4485,6,0),0) -> 82 | AZ151: =+IFERROR(VLOOKUP($F151,[1]Hoja1!$F$2:$L$4485,7,0),0) -> 14 | BA151: =+IFERROR(VLOOKUP($F151,[2]Hoja1!$F$2:$L$4485,3,0),0) -> 569 | BB151: =+IFERROR(VLOOKUP($F151,[2]Hoja1!$F$2:$L$4485,4,0),0) -> 17 | BC151: =+IFERROR(VLOOKUP($F151,[2]Hoja1!$F$2:$L$4485,5,0),0) -> 25 | BD151: =+IFERROR(VLOOKUP($F151,[2]Hoja1!$F$2:$L$4485,6,0),0) -> 41 | BE151: =+IFERROR(VLOOKUP($F151,[2]Hoja1!$F$2:$L$4485,7,0),0) -> 11 | BU151: 19 | BV151: CAUCA | BW151: 807 | BX151: 19807 | BY151: TIMBÍO | BZ151: 198072 | CA151: 2 | CB151: 100 | CC151: 2 | CD151: 5 | CE151: 1 | CF151: 2 | CG151: 107 | CH151: 4 | CI151: 0 | CJ151: 1 | CK151: 2 | CL151: 124 | CM151: 1 | CN151: 3 | CO151: 0 | CP151: 3 | CQ151: 121 | CR151: 0 | CS151: 1 | CT151: 1 | CU151: 4 | CV151: 133 | CW151: 12 | CX151: 11 | CY151: 1 | CZ151: 2 | DA151: 120 | DB151: 0 | DC151: 3 | DD151: 1 | DE151: 2 | DF151: 123 | DG151: 11 | DH151: 3 | DI151: 2 | DJ151: 0 | DK151: 130 | DL151: 4 | DM151: 1 | DN151: 1 | DO151: 2 | DP151: 124 | DQ151: 3 | DR151: 0 | DS151: 0 | DT151: 0 | DU151: 131 | DV151: 3 | DW151: 1 | DX151: 0 | DY151: 2
A152: 05 | B152: ANTIOQUIA | C152: 190 | D152: 05190 | E152: CISNEROS | F152: 051903 | G152: 3 | H152: 506 | I152: 36 | J152: 5 | K152: 184 | L152: 165 | M152: 597 | N152: 38 | O152: 10 | P152: 100 | Q152: 18 | R152: 607 | S152: 9 | T152: 6 | U152: 39 | V152: 344 | W152: 206 | X152: 2 | Y152: 4 | Z152: 8 | AA152: 77 | AB152: 600 | AC152: 2 | AD152: 12 | AE152: 43 | AF152: 64 | AG152: 597 | AH152: 10 | AI152: 7 | AJ152: 76 | AK152: 15 | AL152: 593 | AM152: 13 | AN152: 9 | AO152: 48 | AP152: 9 | AQ152: 577 | AR152: 11 | AS152: 42 | AT152: 58 | AU152: 12 | AV152: =+IFERROR(VLOOKUP($F152,[1]Hoja1!$F$2:$L$4485,3,0),0) -> 516 | AW152: =+IFERROR(VLOOKUP($F152,[1]Hoja1!$F$2:$L$4485,4,0),0) -> 14 | AX152: =+IFERROR(VLOOKUP($F152,[1]Hoja1!$F$2:$L$4485,5,0),0) -> 20 | AY152: =+IFERROR(VLOOKUP($F152,[1]Hoja1!$F$2:$L$4485,6,0),0) -> 43 | AZ152: =+IFERROR(VLOOKUP($F152,[1]Hoja1!$F$2:$L$4485,7,0),0) -> 17 | BA152: =+IFERROR(VLOOKUP($F152,[2]Hoja1!$F$2:$L$4485,3,0),0) -> 523 | BB152: =+IFERROR(VLOOKUP($F152,[2]Hoja1!$F$2:$L$4485,4,0),0) -> 15 | BC152: =+IFERROR(VLOOKUP($F152,[2]Hoja1!$F$2:$L$4485,5,0),0) -> 21 | BD152: =+IFERROR(VLOOKUP($F152,[2]Hoja1!$F$2:$L$4485,6,0),0) -> 36 | BE152: =+IFERROR(VLOOKUP($F152,[2]Hoja1!$F$2:$L$4485,7,0),0) -> 8 | BU152: 19 | BV152: CAUCA | BW152: 807 | BX152: 19807 | BY152: TIMBÍO | BZ152: 198073 | CA152: 3 | CB152: 22 | CC152: 0 | CD152: 0 | CE152: 0 | CF152: 1 | CG152: 24 | CH152: 1 | CI152: 0 | CJ152: 0 | CK152: 1 | CL152: 25 | CM152: 0 | CN152: 1 | CO152: 0 | CP152: 1 | CQ152: 24 | CR152: 0 | CS152: 0 | CT152: 1 | CU152: 5 | CV152: 23 | CW152: 0 | CX152: 1 | CY152: 1 | CZ152: 1 | DA152: 27 | DB152: 1 | DC152: 0 | DD152: 0 | DE152: 1 | DF152: 25 | DG152: 0 | DH152: 0 | DI152: 1 | DJ152: 1 | DK152: 22 | DL152: 0 | DM152: 0 | DN152: 0 | DO152: 1 | DP152: 26 | DQ152: 0 | DR152: 1 | DS152: 0 | DT152: 2 | DU152: 25 | DV152: 0 | DW152: 1 | DX152: 0 | DY152: 2
A153: 05 | B153: ANTIOQUIA | C153: 190 | D153: 05190 | E153: CISNEROS | F153: 051904 | G153: 4 | H153: 53 | I153: 1 | J153: 1 | K153: 18 | L153: 18 | M153: 45 | N153: 2 | O153: 0 | P153: 6 | Q153: 3 | R153: 35 | S153: 0 | T153: 0 | U153: 1 | V153: 13 | W153: 13 | X153: 0 | Y153: 1 | Z153: 1 | AA153: 3 | AB153: 55 | AC153: 0 | AD153: 3 | AE153: 1 | AF153: 4 | AG153: 49 | AH153: 1 | AI153: 0 | AJ153: 2 | AK153: 0 | AL153: 44 | AM153: 2 | AN153: 3 | AO153: 5 | AP153: 0 | AQ153: 54 | AR153: 1 | AS153: 5 | AT153: 1 | AU153: 0 | AV153: =+IFERROR(VLOOKUP($F153,[1]Hoja1!$F$2:$L$4485,3,0),0) -> 43 | AW153: =+IFERROR(VLOOKUP($F153,[1]Hoja1!$F$2:$L$4485,4,0),0) -> 1 | AX153: =+IFERROR(VLOOKUP($F153,[1]Hoja1!$F$2:$L$4485,5,0),0) -> 0 | AY153: =+IFERROR(VLOOKUP($F153,[1]Hoja1!$F$2:$L$4485,6,0),0) -> 0 | AZ153: =+IFERROR(VLOOKUP($F153,[1]Hoja1!$F$2:$L$4485,7,0),0) -> 2 | BA153: =+IFERROR(VLOOKUP($F153,[2]Hoja1!$F$2:$L$4485,3,0),0) -> 36 | BB153: =+IFERROR(VLOOKUP($F153,[2]Hoja1!$F$2:$L$4485,4,0),0) -> 1 | BC153: =+IFERROR(VLOOKUP($F153,[2]Hoja1!$F$2:$L$4485,5,0),0) -> 0 | BD153: =+IFERROR(VLOOKUP($F153,[2]Hoja1!$F$2:$L$4485,6,0),0) -> 0 | BE153: =+IFERROR(VLOOKUP($F153,[2]Hoja1!$F$2:$L$4485,7,0),0) -> 1 | BU153: 19 | BV153: CAUCA | BW153: 807 | BX153: 19807 | BY153: TIMBÍO | BZ153: 198074 | CA153: 4 | CB153: 1 | CC153: 0 | CD153: 0 | CE153: 0 | CF153: 0 | CG153: 1 | CH153: 0 | CI153: 0 | CJ153: 0 | CK153: 0 | CL153: 1 | CM153: 0 | CN153: 0 | CO153: 0 | CP153: 0 | CQ153: 1 | CR153: 0 | CS153: 0 | CT153: 0 | CU153: 1 | CV153: 1 | CW153: 0 | CX153: 0 | CY153: 0 | CZ153: 0 | DA153: 1 | DB153: 0 | DC153: 0 | DD153: 0 | DE153: 0 | DF153: 1 | DG153: 0 | DH153: 0 | DI153: 0 | DJ153: 0 | DK153: 1 | DL153: 0 | DM153: 0 | DN153: 0 | DO153: 0 | DP153: 1 | DQ153: 0 | DR153: 0 | DS153: 0 | DT153: 0 | DU153: 1 | DV153: 0 | DW153: 0 | DX153: 0 | DY153: 0
A154: 05 | B154: ANTIOQUIA | C154: 197 | D154: 05197 | E154: COCORNÁ | F154: 051971 | G154: 1 | H154: 395 | I154: 79 | J154: 69 | K154: 5 | L154: 36 | M154: 405 | N154: 93 | O154: 34 | P154: 5 | Q154: 5 | R154: 410 | S154: 56 | T154: 59 | U154: 8 | V154: 58 | W154: 385 | X154: 28 | Y154: 34 | Z154: 13 | AA154: 119 | AB154: 364 | AC154: 32 | AD154: 18 | AE154: 4 | AF154: 4 | AG154: 386 | AH154: 40 | AI154: 28 | AJ154: 2 | AK154: 4 | AL154: 381 | AM154: 49 | AN154: 44 | AO154: 8 | AP154: 12 | AQ154: 379 | AR154: 46 | AS154: 35 | AT154: 3 | AU154: 6 | AV154: =+IFERROR(VLOOKUP($F154,[1]Hoja1!$F$2:$L$4485,3,0),0) -> 383 | AW154: =+IFERROR(VLOOKUP($F154,[1]Hoja1!$F$2:$L$4485,4,0),0) -> 42 | AX154: =+IFERROR(VLOOKUP($F154,[1]Hoja1!$F$2:$L$4485,5,0),0) -> 43 | AY154: =+IFERROR(VLOOKUP($F154,[1]Hoja1!$F$2:$L$4485,6,0),0) -> 4 | AZ154: =+IFERROR(VLOOKUP($F154,[1]Hoja1!$F$2:$L$4485,7,0),0) -> 3 | BA154: =+IFERROR(VLOOKUP($F154,[2]Hoja1!$F$2:$L$4485,3,0),0) -> 385 | BB154: =+IFERROR(VLOOKUP($F154,[2]Hoja1!$F$2:$L$4485,4,0),0) -> 43 | BC154: =+IFERROR(VLOOKUP($F154,[2]Hoja1!$F$2:$L$4485,5,0),0) -> 30 | BD154: =+IFERROR(VLOOKUP($F154,[2]Hoja1!$F$2:$L$4485,6,0),0) -> 3 | BE154: =+IFERROR(VLOOKUP($F154,[2]Hoja1!$F$2:$L$4485,7,0),0) -> 2 | BU154: 19 | BV154: CAUCA | BW154: 809 | BX154: 19809 | BY154: TIMBIQUÍ | BZ154: 198091 | CA154: 1 | CB154: 161 | CC154: 5 | CD154: 3 | CE154: 0 | CF154: 1 | CG154: 159 | CH154: 3 | CI154: 0 | CJ154: 0 | CK154: 0 | CL154: 139 | CM154: 0 | CN154: 2 | CO154: 0 | CP154: 1 | CQ154: 169 | CR154: 7 | CS154: 0 | CT154: 1 | CU154: 1 | CV154: 183 | CW154: 15 | CX154: 6 | CY154: 1 | CZ154: 0 | DA154: 167 | DB154: 1 | DC154: 0 | DD154: 0 | DE154: 0 | DF154: 166 | DG154: 2 | DH154: 0 | DI154: 0 | DJ154: 0 | DK154: 177 | DL154: 0 | DM154: 13 | DN154: 1 | DO154: 0 | DP154: 162 | DQ154: 0 | DR154: 1 | DS154: 0 | DT154: 0 | DU154: 172 | DV154: 5 | DW154: 1 | DX154: 0 | DY154: 0
A155: 05 | B155: ANTIOQUIA | C155: 197 | D155: 05197 | E155: COCORNÁ | F155: 051972 | G155: 2 | H155: 113 | I155: 3 | J155: 7 | K155: 0 | L155: 3 | M155: 121 | N155: 7 | O155: 4 | P155: 2 | Q155: 2 | R155: 134 | S155: 6 | T155: 7 | U155: 1 | V155: 23 | W155: 103 | X155: 2 | Y155: 6 | Z155: 2 | AA155: 15 | AB155: 112 | AC155: 1 | AD155: 1 | AE155: 3 | AF155: 1 | AG155: 116 | AH155: 0 | AI155: 7 | AJ155: 2 | AK155: 0 | AL155: 141 | AM155: 5 | AN155: 2 | AO155: 1 | AP155: 1 | AQ155: 140 | AR155: 5 | AS155: 3 | AT155: 2 | AU155: 2 | AV155: =+IFERROR(VLOOKUP($F155,[1]Hoja1!$F$2:$L$4485,3,0),0) -> 146 | AW155: =+IFERROR(VLOOKUP($F155,[1]Hoja1!$F$2:$L$4485,4,0),0) -> 6 | AX155: =+IFERROR(VLOOKUP($F155,[1]Hoja1!$F$2:$L$4485,5,0),0) -> 5 | AY155: =+IFERROR(VLOOKUP($F155,[1]Hoja1!$F$2:$L$4485,6,0),0) -> 1 | AZ155: =+IFERROR(VLOOKUP($F155,[1]Hoja1!$F$2:$L$4485,7,0),0) -> 2 | BA155: =+IFERROR(VLOOKUP($F155,[2]Hoja1!$F$2:$L$4485,3,0),0) -> 154 | BB155: =+IFERROR(VLOOKUP($F155,[2]Hoja1!$F$2:$L$4485,4,0),0) -> 6 | BC155: =+IFERROR(VLOOKUP($F155,[2]Hoja1!$F$2:$L$4485,5,0),0) -> 6 | BD155: =+IFERROR(VLOOKUP($F155,[2]Hoja1!$F$2:$L$4485,6,0),0) -> 2 | BE155: =+IFERROR(VLOOKUP($F155,[2]Hoja1!$F$2:$L$4485,7,0),0) -> 1 | BU155: 19 | BV155: CAUCA | BW155: 809 | BX155: 19809 | BY155: TIMBIQUÍ | BZ155: 198092 | CA155: 2 | CB155: 6 | CC155: 0 | CD155: 0 | CE155: 0 | CF155: 2 | CG155: 6 | CH155: 1 | CI155: 0 | CJ155: 0 | CK155: 0 | CL155: 6 | CM155: 1 | CN155: 0 | CO155: 1 | CP155: 0 | CQ155: 6 | CR155: 1 | CS155: 1 | CT155: 0 | CU155: 0 | CV155: 6 | CW155: 0 | CX155: 0 | CY155: 0 | CZ155: 0 | DA155: 17 | DB155: 0 | DC155: 1 | DD155: 1 | DE155: 0 | DF155: 17 | DG155: 0 | DH155: 2 | DI155: 1 | DJ155: 0 | DK155: 6 | DL155: 0 | DM155: 0 | DN155: 0 | DO155: 0 | DP155: 7 | DQ155: 0 | DR155: 1 | DS155: 0 | DT155: 0 | DU155: 5 | DV155: 0 | DW155: 0 | DX155: 0 | DY155: 1
A156: 05 | B156: ANTIOQUIA | C156: 197 | D156: 05197 | E156: COCORNÁ | F156: 051973 | G156: 3 | H156: 26 | I156: 0 | J156: 0 | K156: 0 | L156: 2 | M156: 31 | N156: 2 | O156: 0 | P156: 0 | Q156: 0 | R156: 33 | S156: 0 | T156: 1 | U156: 0 | V156: 5 | W156: 19 | X156: 1 | Y156: 0 | Z156: 1 | AA156: 1 | AB156: 27 | AC156: 0 | AD156: 0 | AE156: 0 | AF156: 4 | AG156: 23 | AH156: 0 | AI156: 1 | AJ156: 0 | AK156: 0 | AL156: 28 | AM156: 2 | AN156: 0 | AO156: 0 | AP156: 0 | AQ156: 28 | AR156: 1 | AS156: 0 | AT156: 0 | AU156: 0 | AV156: =+IFERROR(VLOOKUP($F156,[1]Hoja1!$F$2:$L$4485,3,0),0) -> 27 | AW156: =+IFERROR(VLOOKUP($F156,[1]Hoja1!$F$2:$L$4485,4,0),0) -> 0 | AX156: =+IFERROR(VLOOKUP($F156,[1]Hoja1!$F$2:$L$4485,5,0),0) -> 0 | AY156: =+IFERROR(VLOOKUP($F156,[1]Hoja1!$F$2:$L$4485,6,0),0) -> 0 | AZ156: =+IFERROR(VLOOKUP($F156,[1]Hoja1!$F$2:$L$4485,7,0),0) -> 0 | BA156: =+IFERROR(VLOOKUP($F156,[2]Hoja1!$F$2:$L$4485,3,0),0) -> 25 | BB156: =+IFERROR(VLOOKUP($F156,[2]Hoja1!$F$2:$L$4485,4,0),0) -> 0 | BC156: =+IFERROR(VLOOKUP($F156,[2]Hoja1!$F$2:$L$4485,5,0),0) -> 1 | BD156: =+IFERROR(VLOOKUP($F156,[2]Hoja1!$F$2:$L$4485,6,0),0) -> 0 | BE156: =+IFERROR(VLOOKUP($F156,[2]Hoja1!$F$2:$L$4485,7,0),0) -> 0 | BU156: 19 | BV156: CAUCA | BW156: 809 | BX156: 19809 | BY156: TIMBIQUÍ | BZ156: 198093 | CA156: 3 | CB156: 1 | CC156: 0 | CD156: 0 | CE156: 0 | CF156: 0 | CG156: 1 | CH156: 0 | CI156: 0 | CJ156: 0 | CK156: 0 | CL156: 1 | CM156: 0 | CN156: 0 | CO156: 0 | CP156: 0 | CQ156: 1 | CR156: 0 | CS156: 0 | CT156: 0 | CU156: 0 | CV156: 2 | CW156: 0 | CX156: 0 | CY156: 0 | CZ156: 0 | DA156: 3 | DB156: 0 | DC156: 0 | DD156: 0 | DE156: 0 | DF156: 3 | DG156: 0 | DH156: 0 | DI156: 0 | DJ156: 0 | DK156: 1 | DL156: 0 | DM156: 0 | DN156: 0 | DO156: 0 | DP156: 1 | DQ156: 0 | DR156: 0 | DS156: 0 | DT156: 0 | DU156: 1 | DV156: 0 | DW156: 0 | DX156: 0 | DY156: 0
A157: 05 | B157: ANTIOQUIA | C157: 197 | D157: 05197 | E157: COCORNÁ | F157: 051974 | G157: 4 | H157: 5 | I157: 0 | J157: 0 | K157: 0 | L157: 0 | M157: 5 | N157: 0 | O157: 0 | P157: 0 | Q157: 0 | R157: 5 | S157: 0 | T157: 1 | U157: 0 | V157: 0 | W157: 2 | X157: 0 | Y157: 1 | Z157: 0 | AA157: 0 | AB157: 2 | AC157: 0 | AD157: 0 | AE157: 0 | AF157: 0 | AG157: 1 | AH157: 0 | AI157: 0 | AJ157: 0 | AK157: 0 | AL157: 1 | AM157: 0 | AN157: 0 | AO157: 0 | AP157: 0 | AQ157: 2 | AR157: 0 | AS157: 0 | AT157: 0 | AU157: 0 | AV157: =+IFERROR(VLOOKUP($F157,[1]Hoja1!$F$2:$L$4485,3,0),0) -> 1 | AW157: =+IFERROR(VLOOKUP($F157,[1]Hoja1!$F$2:$L$4485,4,0),0) -> 0 | AX157: =+IFERROR(VLOOKUP($F157,[1]Hoja1!$F$2:$L$4485,5,0),0) -> 0 | AY157: =+IFERROR(VLOOKUP($F157,[1]Hoja1!$F$2:$L$4485,6,0),0) -> 0 | AZ157: =+IFERROR(VLOOKUP($F157,[1]Hoja1!$F$2:$L$4485,7,0),0) -> 0 | BA157: =+IFERROR(VLOOKUP($F157,[2]Hoja1!$F$2:$L$4485,3,0),0) -> 1 | BB157: =+IFERROR(VLOOKUP($F157,[2]Hoja1!$F$2:$L$4485,4,0),0) -> 0 | BC157: =+IFERROR(VLOOKUP($F157,[2]Hoja1!$F$2:$L$4485,5,0),0) -> 0 | BD157: =+IFERROR(VLOOKUP($F157,[2]Hoja1!$F$2:$L$4485,6,0),0) -> 0 | BE157: =+IFERROR(VLOOKUP($F157,[2]Hoja1!$F$2:$L$4485,7,0),0) -> 0 | BU157: 19 | BV157: CAUCA | BW157: 809 | BX157: 19809 | BY157: TIMBIQUÍ | BZ157: 198094 | CA157: 4 | CB157: 0 | CC157: 0 | CD157: 0 | CE157: 0 | CF157: 0 | CG157: 0 | CH157: 0 | CI157: 0 | CJ157: 0 | CK157: 0 | CL157: 0 | CM157: 0 | CN157: 0 | CO157: 0 | CP157: 0 | CQ157: 0 | CR157: 0 | CS157: 0 | CT157: 0 | CU157: 0 | CV157: 0 | CW157: 0 | CX157: 0 | CY157: 0 | CZ157: 0 | DA157: 0 | DB157: 0 | DC157: 0 | DD157: 0 | DE157: 0 | DF157: 0 | DG157: 0 | DH157: 0 | DI157: 0 | DJ157: 0 | DK157: 0 | DL157: 0 | DM157: 0 | DN157: 0 | DO157: 0 | DP157: 0 | DQ157: 0 | DR157: 0 | DS157: 0 | DT157: 0 | DU157: 0 | DV157: 0 | DW157: 0 | DX157: 0 | DY157: 0
A158: 05 | B158: ANTIOQUIA | C158: 206 | D158: 05206 | E158: CONCEPCIÓN | F158: 052061 | G158: 1 | H158: 107 | I158: 36 | J158: 23 | K158: 0 | L158: 1 | M158: 98 | N158: 16 | O158: 33 | P158: 0 | Q158: 0 | R158: 87 | S158: 24 | T158: 13 | U158: 8 | V158: 3 | W158: 81 | X158: 14 | Y158: 14 | Z158: 25 | AA158: 2 | AB158: 85 | AC158: 12 | AD158: 16 | AE158: 32 | AF158: 2 | AG158: 126 | AH158: 55 | AI158: 32 | AJ158: 0 | AK158: 0 | AL158: 130 | AM158: 30 | AN158: 21 | AO158: 1 | AP158: 0 | AQ158: 110 | AR158: 10 | AS158: 32 | AT158: 0 | AU158: 0 | AV158: =+IFERROR(VLOOKUP($F158,[1]Hoja1!$F$2:$L$4485,3,0),0) -> 87 | AW158: =+IFERROR(VLOOKUP($F158,[1]Hoja1!$F$2:$L$4485,4,0),0) -> 10 | AX158: =+IFERROR(VLOOKUP($F158,[1]Hoja1!$F$2:$L$4485,5,0),0) -> 35 | AY158: =+IFERROR(VLOOKUP($F158,[1]Hoja1!$F$2:$L$4485,6,0),0) -> 1 | AZ158: =+IFERROR(VLOOKUP($F158,[1]Hoja1!$F$2:$L$4485,7,0),0) -> 0 | BA158: =+IFERROR(VLOOKUP($F158,[2]Hoja1!$F$2:$L$4485,3,0),0) -> 55 | BB158: =+IFERROR(VLOOKUP($F158,[2]Hoja1!$F$2:$L$4485,4,0),0) -> 4 | BC158: =+IFERROR(VLOOKUP($F158,[2]Hoja1!$F$2:$L$4485,5,0),0) -> 10 | BD158: =+IFERROR(VLOOKUP($F158,[2]Hoja1!$F$2:$L$4485,6,0),0) -> 0 | BE158: =+IFERROR(VLOOKUP($F158,[2]Hoja1!$F$2:$L$4485,7,0),0) -> 0 | BU158: 19 | BV158: CAUCA | BW158: 821 | BX158: 19821 | BY158: TORIBIO | BZ158: 198211 | CA158: 1 | CB158: 81 | CC158: 12 | CD158: 6 | CE158: 0 | CF158: 0 | CG158: 82 | CH158: 7 | CI158: 4 | CJ158: 0 | CK158: 0 | CL158: 87 | CM158: 13 | CN158: 12 | CO158: 0 | CP158: 1 | CQ158: 76 | CR158: 1 | CS158: 2 | CT158: 0 | CU158: 0 | CV158: 55 | CW158: 0 | CX158: 2 | CY158: 0 | CZ158: 0 | DA158: 49 | DB158: 0 | DC158: 1 | DD158: 0 | DE158: 0 | DF158: 37 | DG158: 4 | DH158: 4 | DI158: 0 | DJ158: 0 | DK158: 37 | DL158: 4 | DM158: 0 | DN158: 0 | DO158: 0 | DP158: 68 | DQ158: 31 | DR158: 4 | DS158: 0 | DT158: 0 | DU158: 75 | DV158: 13 | DW158: 6 | DX158: 0 | DY158: 0
A159: 05 | B159: ANTIOQUIA | C159: 206 | D159: 05206 | E159: CONCEPCIÓN | F159: 052062 | G159: 2 | H159: 23 | I159: 1 | J159: 1 | K159: 0 | L159: 1 | M159: 25 | N159: 2 | O159: 0 | P159: 0 | Q159: 0 | R159: 18 | S159: 0 | T159: 1 | U159: 0 | V159: 1 | W159: 21 | X159: 3 | Y159: 1 | Z159: 1 | AA159: 3 | AB159: 22 | AC159: 0 | AD159: 0 | AE159: 3 | AF159: 0 | AG159: 28 | AH159: 2 | AI159: 1 | AJ159: 0 | AK159: 0 | AL159: 29 | AM159: 1 | AN159: 0 | AO159: 0 | AP159: 1 | AQ159: 24 | AR159: 0 | AS159: 0 | AT159: 0 | AU159: 1 | AV159: =+IFERROR(VLOOKUP($F159,[1]Hoja1!$F$2:$L$4485,3,0),0) -> 29 | AW159: =+IFERROR(VLOOKUP($F159,[1]Hoja1!$F$2:$L$4485,4,0),0) -> 3 | AX159: =+IFERROR(VLOOKUP($F159,[1]Hoja1!$F$2:$L$4485,5,0),0) -> 2 | AY159: =+IFERROR(VLOOKUP($F159,[1]Hoja1!$F$2:$L$4485,6,0),0) -> 0 | AZ159: =+IFERROR(VLOOKUP($F159,[1]Hoja1!$F$2:$L$4485,7,0),0) -> 0 | BA159: =+IFERROR(VLOOKUP($F159,[2]Hoja1!$F$2:$L$4485,3,0),0) -> 31 | BB159: =+IFERROR(VLOOKUP($F159,[2]Hoja1!$F$2:$L$4485,4,0),0) -> 2 | BC159: =+IFERROR(VLOOKUP($F159,[2]Hoja1!$F$2:$L$4485,5,0),0) -> 0 | BD159: =+IFERROR(VLOOKUP($F159,[2]Hoja1!$F$2:$L$4485,6,0),0) -> 0 | BE159: =+IFERROR(VLOOKUP($F159,[2]Hoja1!$F$2:$L$4485,7,0),0) -> 1 | BU159: 19 | BV159: CAUCA | BW159: 821 | BX159: 19821 | BY159: TORIBIO | BZ159: 198212 | CA159: 2 | CB159: 6 | CC159: 0 | CD159: 0 | CE159: 0 | CF159: 0 | CG159: 7 | CH159: 0 | CI159: 0 | CJ159: 0 | CK159: 0 | CL159: 6 | CM159: 0 | CN159: 0 | CO159: 0 | CP159: 0 | CQ159: 6 | CR159: 0 | CS159: 0 | CT159: 0 | CU159: 0 | CV159: 27 | CW159: 0 | CX159: 0 | CY159: 0 | CZ159: 0 | DA159: 27 | DB159: 0 | DC159: 0 | DD159: 0 | DE159: 0 | DF159: 44 | DG159: 3 | DH159: 0 | DI159: 0 | DJ159: 0 | DK159: 44 | DL159: 0 | DM159: 0 | DN159: 0 | DO159: 0 | DP159: 47 | DQ159: 3 | DR159: 0 | DS159: 0 | DT159: 0 | DU159: 48 | DV159: 0 | DW159: 0 | DX159: 0 | DY159: 0
A160: 05 | B160: ANTIOQUIA | C160: 206 | D160: 05206 | E160: CONCEPCIÓN | F160: 052063 | G160: 3 | H160: 14 | I160: 2 | J160: 0 | K160: 0 | L160: 0 | M160: 18 | N160: 0 | O160: 3 | P160: 0 | Q160: 0 | R160: 22 | S160: 0 | T160: 2 | U160: 0 | V160: 1 | W160: 21 | X160: 2 | Y160: 0 | Z160: 6 | AA160: 1 | AB160: 22 | AC160: 1 | AD160: 0 | AE160: 2 | AF160: 2 | AG160: 23 | AH160: 1 | AI160: 1 | AJ160: 0 | AK160: 0 | AL160: 21 | AM160: 1 | AN160: 0 | AO160: 0 | AP160: 0 | AQ160: 21 | AR160: 0 | AS160: 1 | AT160: 0 | AU160: 0 | AV160: =+IFERROR(VLOOKUP($F160,[1]Hoja1!$F$2:$L$4485,3,0),0) -> 18 | AW160: =+IFERROR(VLOOKUP($F160,[1]Hoja1!$F$2:$L$4485,4,0),0) -> 0 | AX160: =+IFERROR(VLOOKUP($F160,[1]Hoja1!$F$2:$L$4485,5,0),0) -> 4 | AY160: =+IFERROR(VLOOKUP($F160,[1]Hoja1!$F$2:$L$4485,6,0),0) -> 0 | AZ160: =+IFERROR(VLOOKUP($F160,[1]Hoja1!$F$2:$L$4485,7,0),0) -> 0 | BA160: =+IFERROR(VLOOKUP($F160,[2]Hoja1!$F$2:$L$4485,3,0),0) -> 13 | BB160: =+IFERROR(VLOOKUP($F160,[2]Hoja1!$F$2:$L$4485,4,0),0) -> 0 | BC160: =+IFERROR(VLOOKUP($F160,[2]Hoja1!$F$2:$L$4485,5,0),0) -> 0 | BD160: =+IFERROR(VLOOKUP($F160,[2]Hoja1!$F$2:$L$4485,6,0),0) -> 0 | BE160: =+IFERROR(VLOOKUP($F160,[2]Hoja1!$F$2:$L$4485,7,0),0) -> 0 | BU160: 19 | BV160: CAUCA | BW160: 821 | BX160: 19821 | BY160: TORIBIO | BZ160: 198213 | CA160: 3 | CB160: 0 | CC160: 0 | CD160: 0 | CE160: 0 | CF160: 0 | CG160: 0 | CH160: 0 | CI160: 0 | CJ160: 0 | CK160: 0 | CL160: 0 | CM160: 0 | CN160: 0 | CO160: 0 | CP160: 0 | CQ160: 0 | CR160: 0 | CS160: 0 | CT160: 0 | CU160: 0 | CV160: 0 | CW160: 0 | CX160: 0 | CY160: 0 | CZ160: 0 | DA160: 0 | DB160: 0 | DC160: 0 | DD160: 0 | DE160: 0 | DF160: 0 | DG160: 0 | DH160: 0 | DI160: 0 | DJ160: 0 | DK160: 0 | DL160: 0 | DM160: 0 | DN160: 0 | DO160: 0 | DP160: 0 | DQ160: 0 | DR160: 0 | DS160: 0 | DT160: 0 | DU160: 0 | DV160: 0 | DW160: 0 | DX160: 0 | DY160: 0
A161: 05 | B161: ANTIOQUIA | C161: 206 | D161: 05206 | E161: CONCEPCIÓN | F161: 052064 | G161: 4 | H161: 0 | I161: 0 | J161: 0 | K161: 0 | L161: 0 | M161: 0 | N161: 0 | O161: 0 | P161: 0 | Q161: 0 | R161: 1 | S161: 0 | T161: 0 | U161: 0 | V161: 1 | W161: 0 | X161: 0 | Y161: 0 | Z161: 0 | AA161: 0 | AB161: 1 | AC161: 0 | AD161: 0 | AE161: 0 | AF161: 0 | AG161: 1 | AH161: 0 | AI161: 0 | AJ161: 0 | AK161: 0 | AL161: 0 | AM161: 0 | AN161: 0 | AO161: 0 | AP161: 0 | AQ161: 0 | AR161: 0 | AS161: 0 | AT161: 0 | AU161: 0 | AV161: =+IFERROR(VLOOKUP($F161,[1]Hoja1!$F$2:$L$4485,3,0),0) -> 0 | AW161: =+IFERROR(VLOOKUP($F161,[1]Hoja1!$F$2:$L$4485,4,0),0) -> 0 | AX161: =+IFERROR(VLOOKUP($F161,[1]Hoja1!$F$2:$L$4485,5,0),0) -> 0 | AY161: =+IFERROR(VLOOKUP($F161,[1]Hoja1!$F$2:$L$4485,6,0),0) -> 0 | AZ161: =+IFERROR(VLOOKUP($F161,[1]Hoja1!$F$2:$L$4485,7,0),0) -> 0 | BA161: =+IFERROR(VLOOKUP($F161,[2]Hoja1!$F$2:$L$4485,3,0),0) -> 0 | BB161: =+IFERROR(VLOOKUP($F161,[2]Hoja1!$F$2:$L$4485,4,0),0) -> 0 | BC161: =+IFERROR(VLOOKUP($F161,[2]Hoja1!$F$2:$L$4485,5,0),0) -> 0 | BD161: =+IFERROR(VLOOKUP($F161,[2]Hoja1!$F$2:$L$4485,6,0),0) -> 0 | BE161: =+IFERROR(VLOOKUP($F161,[2]Hoja1!$F$2:$L$4485,7,0),0) -> 0 | BU161: 19 | BV161: CAUCA | BW161: 821 | BX161: 19821 | BY161: TORIBIO | BZ161: 198214 | CA161: 4 | CB161: 0 | CC161: 0 | CD161: 0 | CE161: 0 | CF161: 0 | CG161: 0 | CH161: 0 | CI161: 0 | CJ161: 0 | CK161: 0 | CL161: 0 | CM161: 0 | CN161: 0 | CO161: 0 | CP161: 0 | CQ161: 0 | CR161: 0 | CS161: 0 | CT161: 0 | CU161: 0 | CV161: 0 | CW161: 0 | CX161: 0 | CY161: 0 | CZ161: 0 | DA161: 0 | DB161: 0 | DC161: 0 | DD161: 0 | DE161: 0 | DF161: 0 | DG161: 0 | DH161: 0 | DI161: 0 | DJ161: 0 | DK161: 0 | DL161: 0 | DM161: 0 | DN161: 0 | DO161: 0 | DP161: 0 | DQ161: 0 | DR161: 0 | DS161: 0 | DT161: 0 | DU161: 0 | DV161: 0 | DW161: 0 | DX161: 0 | DY161: 0
A162: 05 | B162: ANTIOQUIA | C162: 209 | D162: 05209 | E162: CONCORDIA | F162: 052091 | G162: 1 | H162: 512 | I162: 53 | J162: 42 | K162: 1 | L162: 37 | M162: 560 | N162: 88 | O162: 53 | P162: 2 | Q162: 21 | R162: 566 | S162: 59 | T162: 79 | U162: 4 | V162: 45 | W162: 526 | X162: 28 | Y162: 30 | Z162: 6 | AA162: 64 | AB162: 533 | AC162: 65 | AD162: 54 | AE162: 2 | AF162: 30 | AG162: 504 | AH162: 27 | AI162: 18 | AJ162: 3 | AK162: 18 | AL162: 566 | AM162: 78 | AN162: 60 | AO162: 1 | AP162: 36 | AQ162: 521 | AR162: 22 | AS162: 24 | AT162: 4 | AU162: 44 | AV162: =+IFERROR(VLOOKUP($F162,[1]Hoja1!$F$2:$L$4485,3,0),0) -> 533 | AW162: =+IFERROR(VLOOKUP($F162,[1]Hoja1!$F$2:$L$4485,4,0),0) -> 47 | AX162: =+IFERROR(VLOOKUP($F162,[1]Hoja1!$F$2:$L$4485,5,0),0) -> 33 | AY162: =+IFERROR(VLOOKUP($F162,[1]Hoja1!$F$2:$L$4485,6,0),0) -> 3 | AZ162: =+IFERROR(VLOOKUP($F162,[1]Hoja1!$F$2:$L$4485,7,0),0) -> 32 | BA162: =+IFERROR(VLOOKUP($F162,[2]Hoja1!$F$2:$L$4485,3,0),0) -> 539 | BB162: =+IFERROR(VLOOKUP($F162,[2]Hoja1!$F$2:$L$4485,4,0),0) -> 45 | BC162: =+IFERROR(VLOOKUP($F162,[2]Hoja1!$F$2:$L$4485,5,0),0) -> 31 | BD162: =+IFERROR(VLOOKUP($F162,[2]Hoja1!$F$2:$L$4485,6,0),0) -> 1 | BE162: =+IFERROR(VLOOKUP($F162,[2]Hoja1!$F$2:$L$4485,7,0),0) -> 22 | BU162: 19 | BV162: CAUCA | BW162: 824 | BX162: 19824 | BY162: TOTORÓ | BZ162: 198241 | CA162: 1 | CB162: 88 | CC162: 14 | CD162: 7 | CE162: 3 | CF162: 5 | CG162: 110 | CH162: 26 | CI162: 25 | CJ162: 2 | CK162: 2 | CL162: 105 | CM162: 14 | CN162: 37 | CO162: 11 | CP162: 9 | CQ162: 91 | CR162: 0 | CS162: 5 | CT162: 39 | CU162: 32 | CV162: 104 | CW162: 9 | CX162: 1 | CY162: 34 | CZ162: 12 | DA162: 94 | DB162: 17 | DC162: 8 | DD162: 14 | DE162: 3 | DF162: 98 | DG162: 19 | DH162: 10 | DI162: 5 | DJ162: 2 | DK162: 95 | DL162: 10 | DM162: 25 | DN162: 1 | DO162: 0 | DP162: 94 | DQ162: 17 | DR162: 19 | DS162: 0 | DT162: 2 | DU162: 93 | DV162: 19 | DW162: 8 | DX162: 2 | DY162: 1
A163: 05 | B163: ANTIOQUIA | C163: 209 | D163: 05209 | E163: CONCORDIA | F163: 052092 | G163: 2 | H163: 195 | I163: 1 | J163: 6 | K163: 0 | L163: 13 | M163: 207 | N163: 6 | O163: 6 | P163: 2 | Q163: 7 | R163: 205 | S163: 4 | T163: 4 | U163: 0 | V163: 19 | W163: 194 | X163: 6 | Y163: 1 | Z163: 1 | AA163: 6 | AB163: 224 | AC163: 9 | AD163: 4 | AE163: 0 | AF163: 5 | AG163: 226 | AH163: 5 | AI163: 5 | AJ163: 0 | AK163: 4 | AL163: 217 | AM163: 0 | AN163: 0 | AO163: 1 | AP163: 4 | AQ163: 227 | AR163: 0 | AS163: 7 | AT163: 0 | AU163: 9 | AV163: =+IFERROR(VLOOKUP($F163,[1]Hoja1!$F$2:$L$4485,3,0),0) -> 227 | AW163: =+IFERROR(VLOOKUP($F163,[1]Hoja1!$F$2:$L$4485,4,0),0) -> 4 | AX163: =+IFERROR(VLOOKUP($F163,[1]Hoja1!$F$2:$L$4485,5,0),0) -> 5 | AY163: =+IFERROR(VLOOKUP($F163,[1]Hoja1!$F$2:$L$4485,6,0),0) -> 0 | AZ163: =+IFERROR(VLOOKUP($F163,[1]Hoja1!$F$2:$L$4485,7,0),0) -> 3 | BA163: =+IFERROR(VLOOKUP($F163,[2]Hoja1!$F$2:$L$4485,3,0),0) -> 223 | BB163: =+IFERROR(VLOOKUP($F163,[2]Hoja1!$F$2:$L$4485,4,0),0) -> 3 | BC163: =+IFERROR(VLOOKUP($F163,[2]Hoja1!$F$2:$L$4485,5,0),0) -> 2 | BD163: =+IFERROR(VLOOKUP($F163,[2]Hoja1!$F$2:$L$4485,6,0),0) -> 0 | BE163: =+IFERROR(VLOOKUP($F163,[2]Hoja1!$F$2:$L$4485,7,0),0) -> 4 | BU163: 19 | BV163: CAUCA | BW163: 824 | BX163: 19824 | BY163: TOTORÓ | BZ163: 198242 | CA163: 2 | CB163: 98 | CC163: 2 | CD163: 6 | CE163: 2 | CF163: 23 | CG163: 80 | CH163: 2 | CI163: 8 | CJ163: 3 | CK163: 43 | CL163: 82 | CM163: 0 | CN163: 2 | CO163: 1 | CP163: 61 | CQ163: 62 | CR163: 0 | CS163: 1 | CT163: 23 | CU163: 44 | CV163: 53 | CW163: 0 | CX163: 4 | CY163: 29 | CZ163: 3 | DA163: 63 | DB163: 0 | DC163: 0 | DD163: 15 | DE163: 0 | DF163: 73 | DG163: 0 | DH163: 7 | DI163: 8 | DJ163: 0 | DK163: 70 | DL163: 1 | DM163: 3 | DN163: 1 | DO163: 0 | DP163: 60 | DQ163: 1 | DR163: 0 | DS163: 1 | DT163: 3 | DU163: 59 | DV163: 0 | DW163: 0 | DX163: 1 | DY163: 0
A164: 05 | B164: ANTIOQUIA | C164: 209 | D164: 05209 | E164: CONCORDIA | F164: 052093 | G164: 3 | H164: 20 | I164: 0 | J164: 1 | K164: 0 | L164: 1 | M164: 25 | N164: 0 | O164: 1 | P164: 0 | Q164: 1 | R164: 26 | S164: 0 | T164: 0 | U164: 0 | V164: 6 | W164: 27 | X164: 0 | Y164: 0 | Z164: 0 | AA164: 4 | AB164: 32 | AC164: 2 | AD164: 0 | AE164: 0 | AF164: 3 | AG164: 37 | AH164: 1 | AI164: 4 | AJ164: 1 | AK164: 2 | AL164: 34 | AM164: 0 | AN164: 0 | AO164: 1 | AP164: 0 | AQ164: 32 | AR164: 0 | AS164: 0 | AT164: 0 | AU164: 0 | AV164: =+IFERROR(VLOOKUP($F164,[1]Hoja1!$F$2:$L$4485,3,0),0) -> 35 | AW164: =+IFERROR(VLOOKUP($F164,[1]Hoja1!$F$2:$L$4485,4,0),0) -> 0 | AX164: =+IFERROR(VLOOKUP($F164,[1]Hoja1!$F$2:$L$4485,5,0),0) -> 0 | AY164: =+IFERROR(VLOOKUP($F164,[1]Hoja1!$F$2:$L$4485,6,0),0) -> 0 | AZ164: =+IFERROR(VLOOKUP($F164,[1]Hoja1!$F$2:$L$4485,7,0),0) -> 0 | BA164: =+IFERROR(VLOOKUP($F164,[2]Hoja1!$F$2:$L$4485,3,0),0) -> 35 | BB164: =+IFERROR(VLOOKUP($F164,[2]Hoja1!$F$2:$L$4485,4,0),0) -> 0 | BC164: =+IFERROR(VLOOKUP($F164,[2]Hoja1!$F$2:$L$4485,5,0),0) -> 0 | BD164: =+IFERROR(VLOOKUP($F164,[2]Hoja1!$F$2:$L$4485,6,0),0) -> 0 | BE164: =+IFERROR(VLOOKUP($F164,[2]Hoja1!$F$2:$L$4485,7,0),0) -> 0 | BU164: 19 | BV164: CAUCA | BW164: 824 | BX164: 19824 | BY164: TOTORÓ | BZ164: 198243 | CA164: 3 | CB164: 29 | CC164: 1 | CD164: 0 | CE164: 0 | CF164: 6 | CG164: 39 | CH164: 0 | CI164: 7 | CJ164: 1 | CK164: 11 | CL164: 19 | CM164: 0 | CN164: 0 | CO164: 0 | CP164: 16 | CQ164: 16 | CR164: 0 | CS164: 1 | CT164: 3 | CU164: 13 | CV164: 13 | CW164: 0 | CX164: 0 | CY164: 7 | CZ164: 2 | DA164: 22 | DB164: 0 | DC164: 0 | DD164: 5 | DE164: 0 | DF164: 18 | DG164: 0 | DH164: 2 | DI164: 3 | DJ164: 0 | DK164: 19 | DL164: 1 | DM164: 0 | DN164: 0 | DO164: 0 | DP164: 21 | DQ164: 0 | DR164: 0 | DS164: 0 | DT164: 0 | DU164: 22 | DV164: 0 | DW164: 1 | DX164: 0 | DY164: 0
